Workbook

Sheet Dashboard
A2: =IF(LEFT(FVB_Code_Beschreibung,3)="IND","Industrie "&Auswahl_Bundesland,"Industrie "&Auswahl_Bundesland&CHAR(10)& FVB_Code_Beschreibung) -> Industrie Österreich | B2: Fachverband:
A3: Sonderauswertung der Konjunkturstatistik im Produzierenden Bereich | B3: =IF(Auswahl_Periode=1,"Monat: ",IF(Auswahl_Periode=4,"Zeitraum: ","")) -> Monat: | F3: =Auswahl_Monat_Quartal_Jahr_Bezeichnung -> September
B7: =IF(OR(Auswahl_Periode=1,Auswahl_Periode=2),Dashboard_Basis_Auswahl_1!F2,IF(Auswahl_Periode=4,Dashboard_Basis_Auswahl_2!E2&" "&Dashboard_Basis_Auswahl_2!E3,Dashboard_Basis_Auswahl_2!E2)) -> Juli 2021 | C7: =IF(OR(Auswahl_Periode=1,Auswahl_Periode=2),Dashboard_Basis_Auswahl_1!G2,IF(Auswahl_Periode=4,Dashboard_Basis_Auswahl_2!F2&" "&Dashboard_Basis_Auswahl_2!F3,Dashboard_Basis_Auswahl_2!F2)) -> August 2021 | D7: =IF(OR(Auswahl_Periode=1,Auswahl_Periode=2),Dashboard_Basis_Auswahl_1!H2,IF(Auswahl_Periode=4,Dashboard_Basis_Auswahl_2!G2&" "&Dashboard_Basis_Auswahl_2!G3,Dashboard_Basis_Auswahl_2!G2)) -> September 2021 | E7: =IF(OR(Auswahl_Periode=1,Auswahl_Periode=2),Dashboard_Basis_Auswahl_1!I2,IF(Auswahl_Periode=4,Dashboard_Basis_Auswahl_2!H2&" "&Dashboard_Basis_Auswahl_2!H3,Dashboard_Basis_Auswahl_2!H2)) -> 3. Quartal 2021 | F7: =IF(OR(Auswahl_Periode=1,Auswahl_Periode=2),Dashboard_Basis_Auswahl_1!J2,IF(Auswahl_Periode=4,Dashboard_Basis_Auswahl_2!I2&" "&Dashboard_Basis_Auswahl_2!I3,Dashboard_Basis_Auswahl_2!I2)) -> Juli 2022 | G7: =IF(OR(Auswahl_Periode=1,Auswahl_Periode=2),Dashboard_Basis_Auswahl_1!K2,IF(Auswahl_Periode=4,Dashboard_Basis_Auswahl_2!J2&" "&Dashboard_Basis_Auswahl_2!J3,Dashboard_Basis_Auswahl_2!J2)) -> August 2022 | H7: =IF(OR(Auswahl_Periode=1,Auswahl_Periode=2),Dashboard_Basis_Auswahl_1!L2,IF(Auswahl_Periode=4,Dashboard_Basis_Auswahl_2!K2&" "&Dashboard_Basis_Auswahl_2!K3,Dashboard_Basis_Auswahl_2!K2)) -> September 2022 | I7: =IF(OR(Auswahl_Periode=1,Auswahl_Periode=2),Dashboard_Basis_Auswahl_1!M2,IF(Auswahl_Periode=4,Dashboard_Basis_Auswahl_2!L2&" "&Dashboard_Basis_Auswahl_2!L3,Dashboard_Basis_Auswahl_2!L2)) -> 3. Quartal 2022
A8: Abgesetzte Produktion in Mio. Euro | B8: =IF(OR(Auswahl_Periode=1,Auswahl_Periode=2),Dashboard_Basis_Auswahl_1!F5,IF(Auswahl_Periode=4,Dashboard_Basis_Auswahl_2!E5,Dashboard_Basis_Auswahl_2!E5)) -> 16767.5339 | C8: =IF(OR(Auswahl_Periode=1,Auswahl_Periode=2),Dashboard_Basis_Auswahl_1!G5,IF(Auswahl_Periode=4,Dashboard_Basis_Auswahl_2!F5,Dashboard_Basis_Auswahl_2!F5)) -> 15555.4989 | D8: =IF(OR(Auswahl_Periode=1,Auswahl_Periode=2),Dashboard_Basis_Auswahl_1!H5,IF(Auswahl_Periode=4,Dashboard_Basis_Auswahl_2!G5,Dashboard_Basis_Auswahl_2!G5)) -> 18048.6327 | E8: =IF(OR(Auswahl_Periode=1,Auswahl_Periode=2),Dashboard_Basis_Auswahl_1!I5,IF(Auswahl_Periode=4,Dashboard_Basis_Auswahl_2!H5,Dashboard_Basis_Auswahl_2!H5)) -> 50371.6655 | F8: =IF(OR(Auswahl_Periode=1,Auswahl_Periode=2),Dashboard_Basis_Auswahl_1!J5,IF(Auswahl_Periode=4,Dashboard_Basis_Auswahl_2!I5,Dashboard_Basis_Auswahl_2!I5)) -> 20883.1162 | G8: =IF(OR(Auswahl_Periode=1,Auswahl_Periode=2),Dashboard_Basis_Auswahl_1!K5,IF(Auswahl_Periode=4,Dashboard_Basis_Auswahl_2!J5,Dashboard_Basis_Auswahl_2!J5)) -> 20942.9592 | H8: =IF(OR(Auswahl_Periode=1,Auswahl_Periode=2),Dashboard_Basis_Auswahl_1!L5,IF(Auswahl_Periode=4,Dashboard_Basis_Auswahl_2!K5,Dashboard_Basis_Auswahl_2!K5)) -> 22499.338 | I8: =IF(OR(Auswahl_Periode=1,Auswahl_Periode=2),Dashboard_Basis_Auswahl_1!M5,IF(Auswahl_Periode=4,Dashboard_Basis_Auswahl_2!L5,Dashboard_Basis_Auswahl_2!L5)) -> 64325.4134
A9: Auftragseingänge, gesamt (bereinigt um Storni) in Mio. Euro | B9: =IF(OR(Auswahl_Periode=1,Auswahl_Periode=2),Dashboard_Basis_Auswahl_1!F6,IF(Auswahl_Periode=4,Dashboard_Basis_Auswahl_2!E6,Dashboard_Basis_Auswahl_2!E6)) -> 10478.8979 | C9: =IF(OR(Auswahl_Periode=1,Auswahl_Periode=2),Dashboard_Basis_Auswahl_1!G6,IF(Auswahl_Periode=4,Dashboard_Basis_Auswahl_2!F6,Dashboard_Basis_Auswahl_2!F6)) -> 9158.8065 | D9: =IF(OR(Auswahl_Periode=1,Auswahl_Periode=2),Dashboard_Basis_Auswahl_1!H6,IF(Auswahl_Periode=4,Dashboard_Basis_Auswahl_2!G6,Dashboard_Basis_Auswahl_2!G6)) -> 10782.5639 | E9: =IF(OR(Auswahl_Periode=1,Auswahl_Periode=2),Dashboard_Basis_Auswahl_1!I6,IF(Auswahl_Periode=4,Dashboard_Basis_Auswahl_2!H6,Dashboard_Basis_Auswahl_2!H6)) -> 30420.2683 | F9: =IF(OR(Auswahl_Periode=1,Auswahl_Periode=2),Dashboard_Basis_Auswahl_1!J6,IF(Auswahl_Periode=4,Dashboard_Basis_Auswahl_2!I6,Dashboard_Basis_Auswahl_2!I6)) -> 10725.2485 | G9: =IF(OR(Auswahl_Periode=1,Auswahl_Periode=2),Dashboard_Basis_Auswahl_1!K6,IF(Auswahl_Periode=4,Dashboard_Basis_Auswahl_2!J6,Dashboard_Basis_Auswahl_2!J6)) -> 10965.417 | H9: =IF(OR(Auswahl_Periode=1,Auswahl_Periode=2),Dashboard_Basis_Auswahl_1!L6,IF(Auswahl_Periode=4,Dashboard_Basis_Auswahl_2!K6,Dashboard_Basis_Auswahl_2!K6)) -> 12548.746 | I9: =IF(OR(Auswahl_Periode=1,Auswahl_Periode=2),Dashboard_Basis_Auswahl_1!M6,IF(Auswahl_Periode=4,Dashboard_Basis_Auswahl_2!L6,Dashboard_Basis_Auswahl_2!L6)) -> 34239.4115
A10: Auftragseingänge, Inland in Mio. Euro | B10: =IF(OR(Auswahl_Periode=1,Auswahl_Periode=2),Dashboard_Basis_Auswahl_1!F7,IF(Auswahl_Periode=4,Dashboard_Basis_Auswahl_2!E7,Dashboard_Basis_Auswahl_2!E7)) -> 2882.5266 | C10: =IF(OR(Auswahl_Periode=1,Auswahl_Periode=2),Dashboard_Basis_Auswahl_1!G7,IF(Auswahl_Periode=4,Dashboard_Basis_Auswahl_2!F7,Dashboard_Basis_Auswahl_2!F7)) -> 2465.97 | D10: =IF(OR(Auswahl_Periode=1,Auswahl_Periode=2),Dashboard_Basis_Auswahl_1!H7,IF(Auswahl_Periode=4,Dashboard_Basis_Auswahl_2!G7,Dashboard_Basis_Auswahl_2!G7)) -> 3107.9328 | E10: =IF(OR(Auswahl_Periode=1,Auswahl_Periode=2),Dashboard_Basis_Auswahl_1!I7,IF(Auswahl_Periode=4,Dashboard_Basis_Auswahl_2!H7,Dashboard_Basis_Auswahl_2!H7)) -> 8456.4294 | F10: =IF(OR(Auswahl_Periode=1,Auswahl_Periode=2),Dashboard_Basis_Auswahl_1!J7,IF(Auswahl_Periode=4,Dashboard_Basis_Auswahl_2!I7,Dashboard_Basis_Auswahl_2!I7)) -> 2967.905 | G10: =IF(OR(Auswahl_Periode=1,Auswahl_Periode=2),Dashboard_Basis_Auswahl_1!K7,IF(Auswahl_Periode=4,Dashboard_Basis_Auswahl_2!J7,Dashboard_Basis_Auswahl_2!J7)) -> 2778.839 | H10: =IF(OR(Auswahl_Periode=1,Auswahl_Periode=2),Dashboard_Basis_Auswahl_1!L7,IF(Auswahl_Periode=4,Dashboard_Basis_Auswahl_2!K7,Dashboard_Basis_Auswahl_2!K7)) -> 2881.553 | I10: =IF(OR(Auswahl_Periode=1,Auswahl_Periode=2),Dashboard_Basis_Auswahl_1!M7,IF(Auswahl_Periode=4,Dashboard_Basis_Auswahl_2!L7,Dashboard_Basis_Auswahl_2!L7)) -> 8628.297
A11: Auftragseingänge, Ausland in Mio. Euro | B11: =IF(OR(Auswahl_Periode=1,Auswahl_Periode=2),Dashboard_Basis_Auswahl_1!F8,IF(Auswahl_Periode=4,Dashboard_Basis_Auswahl_2!E8,Dashboard_Basis_Auswahl_2!E8)) -> 7596.3713 | C11: =IF(OR(Auswahl_Periode=1,Auswahl_Periode=2),Dashboard_Basis_Auswahl_1!G8,IF(Auswahl_Periode=4,Dashboard_Basis_Auswahl_2!F8,Dashboard_Basis_Auswahl_2!F8)) -> 6692.8365 | D11: =IF(OR(Auswahl_Periode=1,Auswahl_Periode=2),Dashboard_Basis_Auswahl_1!H8,IF(Auswahl_Periode=4,Dashboard_Basis_Auswahl_2!G8,Dashboard_Basis_Auswahl_2!G8)) -> 7674.6311 | E11: =IF(OR(Auswahl_Periode=1,Auswahl_Periode=2),Dashboard_Basis_Auswahl_1!I8,IF(Auswahl_Periode=4,Dashboard_Basis_Auswahl_2!H8,Dashboard_Basis_Auswahl_2!H8)) -> 21963.8389 | F11: =IF(OR(Auswahl_Periode=1,Auswahl_Periode=2),Dashboard_Basis_Auswahl_1!J8,IF(Auswahl_Periode=4,Dashboard_Basis_Auswahl_2!I8,Dashboard_Basis_Auswahl_2!I8)) -> 7757.3435 | G11: =IF(OR(Auswahl_Periode=1,Auswahl_Periode=2),Dashboard_Basis_Auswahl_1!K8,IF(Auswahl_Periode=4,Dashboard_Basis_Auswahl_2!J8,Dashboard_Basis_Auswahl_2!J8)) -> 8186.578 | H11: =IF(OR(Auswahl_Periode=1,Auswahl_Periode=2),Dashboard_Basis_Auswahl_1!L8,IF(Auswahl_Periode=4,Dashboard_Basis_Auswahl_2!K8,Dashboard_Basis_Auswahl_2!K8)) -> 9667.193 | I11: =IF(OR(Auswahl_Periode=1,Auswahl_Periode=2),Dashboard_Basis_Auswahl_1!M8,IF(Auswahl_Periode=4,Dashboard_Basis_Auswahl_2!L8,Dashboard_Basis_Auswahl_2!L8)) -> 25611.1145
A12: Gesamtpersonal | B12: =IF(OR(Auswahl_Periode=1,Auswahl_Periode=2),Dashboard_Basis_Auswahl_1!F9,IF(Auswahl_Periode=4,Dashboard_Basis_Auswahl_2!E9,Dashboard_Basis_Auswahl_2!E9)) -> 465224 | C12: =IF(OR(Auswahl_Periode=1,Auswahl_Periode=2),Dashboard_Basis_Auswahl_1!G9,IF(Auswahl_Periode=4,Dashboard_Basis_Auswahl_2!F9,Dashboard_Basis_Auswahl_2!F9)) -> 465179 | D12: =IF(OR(Auswahl_Periode=1,Auswahl_Periode=2),Dashboard_Basis_Auswahl_1!H9,IF(Auswahl_Periode=4,Dashboard_Basis_Auswahl_2!G9,Dashboard_Basis_Auswahl_2!G9)) -> 465052 | E12: =IF(OR(Auswahl_Periode=1,Auswahl_Periode=2),Dashboard_Basis_Auswahl_1!I9,IF(Auswahl_Periode=4,Dashboard_Basis_Auswahl_2!H9,Dashboard_Basis_Auswahl_2!H9)) -> 465151.6667 | F12: =IF(OR(Auswahl_Periode=1,Auswahl_Periode=2),Dashboard_Basis_Auswahl_1!J9,IF(Auswahl_Periode=4,Dashboard_Basis_Auswahl_2!I9,Dashboard_Basis_Auswahl_2!I9)) -> 475202 | G12: =IF(OR(Auswahl_Periode=1,Auswahl_Periode=2),Dashboard_Basis_Auswahl_1!K9,IF(Auswahl_Periode=4,Dashboard_Basis_Auswahl_2!J9,Dashboard_Basis_Auswahl_2!J9)) -> 474453 | H12: =IF(OR(Auswahl_Periode=1,Auswahl_Periode=2),Dashboard_Basis_Auswahl_1!L9,IF(Auswahl_Periode=4,Dashboard_Basis_Auswahl_2!K9,Dashboard_Basis_Auswahl_2!K9)) -> 474951 | I12: =IF(OR(Auswahl_Periode=1,Auswahl_Periode=2),Dashboard_Basis_Auswahl_1!M9,IF(Auswahl_Periode=4,Dashboard_Basis_Auswahl_2!L9,Dashboard_Basis_Auswahl_2!L9)) -> 474868.6667
A13: Eigenpersonal | B13: =IF(OR(Auswahl_Periode=1,Auswahl_Periode=2),Dashboard_Basis_Auswahl_1!F10,IF(Auswahl_Periode=4,Dashboard_Basis_Auswahl_2!E10,Dashboard_Basis_Auswahl_2!E10)) -> 437090 | C13: =IF(OR(Auswahl_Periode=1,Auswahl_Periode=2),Dashboard_Basis_Auswahl_1!G10,IF(Auswahl_Periode=4,Dashboard_Basis_Auswahl_2!F10,Dashboard_Basis_Auswahl_2!F10)) -> 436483 | D13: =IF(OR(Auswahl_Periode=1,Auswahl_Periode=2),Dashboard_Basis_Auswahl_1!H10,IF(Auswahl_Periode=4,Dashboard_Basis_Auswahl_2!G10,Dashboard_Basis_Auswahl_2!G10)) -> 435842 | E13: =IF(OR(Auswahl_Periode=1,Auswahl_Periode=2),Dashboard_Basis_Auswahl_1!I10,IF(Auswahl_Periode=4,Dashboard_Basis_Auswahl_2!H10,Dashboard_Basis_Auswahl_2!H10)) -> 436471.6667 | F13: =IF(OR(Auswahl_Periode=1,Auswahl_Periode=2),Dashboard_Basis_Auswahl_1!J10,IF(Auswahl_Periode=4,Dashboard_Basis_Auswahl_2!I10,Dashboard_Basis_Auswahl_2!I10)) -> 444972 | G13: =IF(OR(Auswahl_Periode=1,Auswahl_Periode=2),Dashboard_Basis_Auswahl_1!K10,IF(Auswahl_Periode=4,Dashboard_Basis_Auswahl_2!J10,Dashboard_Basis_Auswahl_2!J10)) -> 443806 | H13: =IF(OR(Auswahl_Periode=1,Auswahl_Periode=2),Dashboard_Basis_Auswahl_1!L10,IF(Auswahl_Periode=4,Dashboard_Basis_Auswahl_2!K10,Dashboard_Basis_Auswahl_2!K10)) -> 444526 | I13: =IF(OR(Auswahl_Periode=1,Auswahl_Periode=2),Dashboard_Basis_Auswahl_1!M10,IF(Auswahl_Periode=4,Dashboard_Basis_Auswahl_2!L10,Dashboard_Basis_Auswahl_2!L10)) -> 444434.6667
A14: Fremdpersonal | B14: =IF(OR(Auswahl_Periode=1,Auswahl_Periode=2),Dashboard_Basis_Auswahl_1!F11,IF(Auswahl_Periode=4,Dashboard_Basis_Auswahl_2!E11,Dashboard_Basis_Auswahl_2!E11)) -> 28134 | C14: =IF(OR(Auswahl_Periode=1,Auswahl_Periode=2),Dashboard_Basis_Auswahl_1!G11,IF(Auswahl_Periode=4,Dashboard_Basis_Auswahl_2!F11,Dashboard_Basis_Auswahl_2!F11)) -> 28696 | D14: =IF(OR(Auswahl_Periode=1,Auswahl_Periode=2),Dashboard_Basis_Auswahl_1!H11,IF(Auswahl_Periode=4,Dashboard_Basis_Auswahl_2!G11,Dashboard_Basis_Auswahl_2!G11)) -> 29210 | E14: =IF(OR(Auswahl_Periode=1,Auswahl_Periode=2),Dashboard_Basis_Auswahl_1!I11,IF(Auswahl_Periode=4,Dashboard_Basis_Auswahl_2!H11,Dashboard_Basis_Auswahl_2!H11)) -> 28680 | F14: =IF(OR(Auswahl_Periode=1,Auswahl_Periode=2),Dashboard_Basis_Auswahl_1!J11,IF(Auswahl_Periode=4,Dashboard_Basis_Auswahl_2!I11,Dashboard_Basis_Auswahl_2!I11)) -> 30230 | G14: =IF(OR(Auswahl_Periode=1,Auswahl_Periode=2),Dashboard_Basis_Auswahl_1!K11,IF(Auswahl_Periode=4,Dashboard_Basis_Auswahl_2!J11,Dashboard_Basis_Auswahl_2!J11)) -> 30647 | H14: =IF(OR(Auswahl_Periode=1,Auswahl_Periode=2),Dashboard_Basis_Auswahl_1!L11,IF(Auswahl_Periode=4,Dashboard_Basis_Auswahl_2!K11,Dashboard_Basis_Auswahl_2!K11)) -> 30425 | I14: =IF(OR(Auswahl_Periode=1,Auswahl_Periode=2),Dashboard_Basis_Auswahl_1!M11,IF(Auswahl_Periode=4,Dashboard_Basis_Auswahl_2!L11,Dashboard_Basis_Auswahl_2!L11)) -> 30434
A17: Veränderung zur Vorjahresperiode in % | B17: =IF(OR(Auswahl_Periode=1,Auswahl_Periode=2),Dashboard_Basis_Auswahl_1!B13,IF(Auswahl_Periode=4,Dashboard_Basis_Auswahl_2!D13&" "&Dashboard_Basis_Auswahl_2!D14,Dashboard_Basis_Auswahl_2!D13)) -> Juli 2021/2020 | C17: =IF(OR(Auswahl_Periode=1,Auswahl_Periode=2),Dashboard_Basis_Auswahl_1!C13,IF(Auswahl_Periode=4,Dashboard_Basis_Auswahl_2!E13&" "&Dashboard_Basis_Auswahl_2!E14,Dashboard_Basis_Auswahl_2!E13)) -> August 2021/2020 | D17: =IF(OR(Auswahl_Periode=1,Auswahl_Periode=2),Dashboard_Basis_Auswahl_1!D13,IF(Auswahl_Periode=4,Dashboard_Basis_Auswahl_2!F13&" "&Dashboard_Basis_Auswahl_2!F14,Dashboard_Basis_Auswahl_2!F13)) -> September 2021/2020 | E17: =IF(OR(Auswahl_Periode=1,Auswahl_Periode=2),Dashboard_Basis_Auswahl_1!E13,IF(Auswahl_Periode=4,Dashboard_Basis_Auswahl_2!G13&" "&Dashboard_Basis_Auswahl_2!G14,Dashboard_Basis_Auswahl_2!G13)) -> 3. Quartal 2021/2020 | F17: =IF(OR(Auswahl_Periode=1,Auswahl_Periode=2),Dashboard_Basis_Auswahl_1!F13,IF(Auswahl_Periode=4,Dashboard_Basis_Auswahl_2!H13&" "&Dashboard_Basis_Auswahl_2!H14,Dashboard_Basis_Auswahl_2!H13)) -> Juli 2022/2021 | G17: =IF(OR(Auswahl_Periode=1,Auswahl_Periode=2),Dashboard_Basis_Auswahl_1!G13,IF(Auswahl_Periode=4,Dashboard_Basis_Auswahl_2!I13&" "&Dashboard_Basis_Auswahl_2!I14,Dashboard_Basis_Auswahl_2!I13)) -> August 2022/2021 | H17: =IF(OR(Auswahl_Periode=1,Auswahl_Periode=2),Dashboard_Basis_Auswahl_1!H13,IF(Auswahl_Periode=4,Dashboard_Basis_Auswahl_2!J13&" "&Dashboard_Basis_Auswahl_2!J14,Dashboard_Basis_Auswahl_2!J13)) -> September 2022/2021 | I17: =IF(OR(Auswahl_Periode=1,Auswahl_Periode=2),Dashboard_Basis_Auswahl_1!I13,IF(Auswahl_Periode=4,Dashboard_Basis_Auswahl_2!K13&" "&Dashboard_Basis_Auswahl_2!K14,Dashboard_Basis_Auswahl_2!K13)) -> 3. Quartal 2022/2021
A18: Abgesetzte Produktion | B18: =IF(OR(Auswahl_Periode=1,Auswahl_Periode=2),Dashboard_Basis_Auswahl_1!B16,IF(Auswahl_Periode=4,Dashboard_Basis_Auswahl_2!D16,Dashboard_Basis_Auswahl_2!D16)) -> 23.368644 | C18: =IF(OR(Auswahl_Periode=1,Auswahl_Periode=2),Dashboard_Basis_Auswahl_1!C16,IF(Auswahl_Periode=4,Dashboard_Basis_Auswahl_2!E16,Dashboard_Basis_Auswahl_2!E16)) -> 38.16320263 | D18: =IF(OR(Auswahl_Periode=1,Auswahl_Periode=2),Dashboard_Basis_Auswahl_1!D16,IF(Auswahl_Periode=4,Dashboard_Basis_Auswahl_2!F16,Dashboard_Basis_Auswahl_2!F16)) -> 25.69790045 | E18: =IF(OR(Auswahl_Periode=1,Auswahl_Periode=2),Dashboard_Basis_Auswahl_1!E16,IF(Auswahl_Periode=4,Dashboard_Basis_Auswahl_2!G16,Dashboard_Basis_Auswahl_2!G16)) -> 28.46987849 | F18: =IF(OR(Auswahl_Periode=1,Auswahl_Periode=2),Dashboard_Basis_Auswahl_1!F16,IF(Auswahl_Periode=4,Dashboard_Basis_Auswahl_2!H16,Dashboard_Basis_Auswahl_2!H16)) -> 24.54494695 | G18: =IF(OR(Auswahl_Periode=1,Auswahl_Periode=2),Dashboard_Basis_Auswahl_1!G16,IF(Auswahl_Periode=4,Dashboard_Basis_Auswahl_2!I16,Dashboard_Basis_Auswahl_2!I16)) -> 34.6337995 | H18: =IF(OR(Auswahl_Periode=1,Auswahl_Periode=2),Dashboard_Basis_Auswahl_1!H16,IF(Auswahl_Periode=4,Dashboard_Basis_Auswahl_2!J16,Dashboard_Basis_Auswahl_2!J16)) -> 24.65951507 | I18: =IF(OR(Auswahl_Periode=1,Auswahl_Periode=2),Dashboard_Basis_Auswahl_1!I16,IF(Auswahl_Periode=4,Dashboard_Basis_Auswahl_2!K16,Dashboard_Basis_Auswahl_2!K16)) -> 27.70158136
A19: Auftragseingänge, gesamt (bereinigt um Storni) | B19: =IF(OR(Auswahl_Periode=1,Auswahl_Periode=2),Dashboard_Basis_Auswahl_1!B17,IF(Auswahl_Periode=4,Dashboard_Basis_Auswahl_2!D17,Dashboard_Basis_Auswahl_2!D17)) -> 27.62415367 | C19: =IF(OR(Auswahl_Periode=1,Auswahl_Periode=2),Dashboard_Basis_Auswahl_1!C17,IF(Auswahl_Periode=4,Dashboard_Basis_Auswahl_2!E17,Dashboard_Basis_Auswahl_2!E17)) -> 17.0946407 | D19: =IF(OR(Auswahl_Periode=1,Auswahl_Periode=2),Dashboard_Basis_Auswahl_1!D17,IF(Auswahl_Periode=4,Dashboard_Basis_Auswahl_2!F17,Dashboard_Basis_Auswahl_2!F17)) -> 17.5478193 | E19: =IF(OR(Auswahl_Periode=1,Auswahl_Periode=2),Dashboard_Basis_Auswahl_1!E17,IF(Auswahl_Periode=4,Dashboard_Basis_Auswahl_2!G17,Dashboard_Basis_Auswahl_2!G17)) -> 20.6895937 | F19: =IF(OR(Auswahl_Periode=1,Auswahl_Periode=2),Dashboard_Basis_Auswahl_1!F17,IF(Auswahl_Periode=4,Dashboard_Basis_Auswahl_2!H17,Dashboard_Basis_Auswahl_2!H17)) -> 2.350920892 | G19: =IF(OR(Auswahl_Periode=1,Auswahl_Periode=2),Dashboard_Basis_Auswahl_1!G17,IF(Auswahl_Periode=4,Dashboard_Basis_Auswahl_2!I17,Dashboard_Basis_Auswahl_2!I17)) -> 19.72539217 | H19: =IF(OR(Auswahl_Periode=1,Auswahl_Periode=2),Dashboard_Basis_Auswahl_1!H17,IF(Auswahl_Periode=4,Dashboard_Basis_Auswahl_2!J17,Dashboard_Basis_Auswahl_2!J17)) -> 16.37998269 | I19: =IF(OR(Auswahl_Periode=1,Auswahl_Periode=2),Dashboard_Basis_Auswahl_1!I17,IF(Auswahl_Periode=4,Dashboard_Basis_Auswahl_2!K17,Dashboard_Basis_Auswahl_2!K17)) -> 12.55460064
A20: Auftragseingänge, Inland | B20: =IF(OR(Auswahl_Periode=1,Auswahl_Periode=2),Dashboard_Basis_Auswahl_1!B18,IF(Auswahl_Periode=4,Dashboard_Basis_Auswahl_2!D18,Dashboard_Basis_Auswahl_2!D18)) -> 26.86203695 | C20: =IF(OR(Auswahl_Periode=1,Auswahl_Periode=2),Dashboard_Basis_Auswahl_1!C18,IF(Auswahl_Periode=4,Dashboard_Basis_Auswahl_2!E18,Dashboard_Basis_Auswahl_2!E18)) -> 18.40227581 | D20: =IF(OR(Auswahl_Periode=1,Auswahl_Periode=2),Dashboard_Basis_Auswahl_1!D18,IF(Auswahl_Periode=4,Dashboard_Basis_Auswahl_2!F18,Dashboard_Basis_Auswahl_2!F18)) -> 26.08755095 | E20: =IF(OR(Auswahl_Periode=1,Auswahl_Periode=2),Dashboard_Basis_Auswahl_1!E18,IF(Auswahl_Periode=4,Dashboard_Basis_Auswahl_2!G18,Dashboard_Basis_Auswahl_2!G18)) -> 23.99856957 | F20: =IF(OR(Auswahl_Periode=1,Auswahl_Periode=2),Dashboard_Basis_Auswahl_1!F18,IF(Auswahl_Periode=4,Dashboard_Basis_Auswahl_2!H18,Dashboard_Basis_Auswahl_2!H18)) -> 2.961929302 | G20: =IF(OR(Auswahl_Periode=1,Auswahl_Periode=2),Dashboard_Basis_Auswahl_1!G18,IF(Auswahl_Periode=4,Dashboard_Basis_Auswahl_2!I18,Dashboard_Basis_Auswahl_2!I18)) -> 12.68746173 | H20: =IF(OR(Auswahl_Periode=1,Auswahl_Periode=2),Dashboard_Basis_Auswahl_1!H18,IF(Auswahl_Periode=4,Dashboard_Basis_Auswahl_2!J18,Dashboard_Basis_Auswahl_2!J18)) -> -7.283934839 | I20: =IF(OR(Auswahl_Periode=1,Auswahl_Periode=2),Dashboard_Basis_Auswahl_1!I18,IF(Auswahl_Periode=4,Dashboard_Basis_Auswahl_2!K18,Dashboard_Basis_Auswahl_2!K18)) -> 2.032389699
A21: Auftragseingänge, Ausland | B21: =IF(OR(Auswahl_Periode=1,Auswahl_Periode=2),Dashboard_Basis_Auswahl_1!B19,IF(Auswahl_Periode=4,Dashboard_Basis_Auswahl_2!D19,Dashboard_Basis_Auswahl_2!D19)) -> 27.91574927 | C21: =IF(OR(Auswahl_Periode=1,Auswahl_Periode=2),Dashboard_Basis_Auswahl_1!C19,IF(Auswahl_Periode=4,Dashboard_Basis_Auswahl_2!E19,Dashboard_Basis_Auswahl_2!E19)) -> 16.62009561 | D21: =IF(OR(Auswahl_Periode=1,Auswahl_Periode=2),Dashboard_Basis_Auswahl_1!D19,IF(Auswahl_Periode=4,Dashboard_Basis_Auswahl_2!F19,Dashboard_Basis_Auswahl_2!F19)) -> 14.40984402 | E21: =IF(OR(Auswahl_Periode=1,Auswahl_Periode=2),Dashboard_Basis_Auswahl_1!E19,IF(Auswahl_Periode=4,Dashboard_Basis_Auswahl_2!G19,Dashboard_Basis_Auswahl_2!G19)) -> 19.46219351 | F21: =IF(OR(Auswahl_Periode=1,Auswahl_Periode=2),Dashboard_Basis_Auswahl_1!F19,IF(Auswahl_Periode=4,Dashboard_Basis_Auswahl_2!H19,Dashboard_Basis_Auswahl_2!H19)) -> 2.119067034 | G21: =IF(OR(Auswahl_Periode=1,Auswahl_Periode=2),Dashboard_Basis_Auswahl_1!G19,IF(Auswahl_Periode=4,Dashboard_Basis_Auswahl_2!I19,Dashboard_Basis_Auswahl_2!I19)) -> 22.31851174 | H21: =IF(OR(Auswahl_Periode=1,Auswahl_Periode=2),Dashboard_Basis_Auswahl_1!H19,IF(Auswahl_Periode=4,Dashboard_Basis_Auswahl_2!J19,Dashboard_Basis_Auswahl_2!J19)) -> 25.96296648 | I21: =IF(OR(Auswahl_Periode=1,Auswahl_Periode=2),Dashboard_Basis_Auswahl_1!I19,IF(Auswahl_Periode=4,Dashboard_Basis_Auswahl_2!K19,Dashboard_Basis_Auswahl_2!K19)) -> 16.60582021
A22: Gesamtpersonal | B22: =IF(OR(Auswahl_Periode=1,Auswahl_Periode=2),Dashboard_Basis_Auswahl_1!B20,IF(Auswahl_Periode=4,Dashboard_Basis_Auswahl_2!D20,Dashboard_Basis_Auswahl_2!D20)) -> 1.20891863 | C22: =IF(OR(Auswahl_Periode=1,Auswahl_Periode=2),Dashboard_Basis_Auswahl_1!C20,IF(Auswahl_Periode=4,Dashboard_Basis_Auswahl_2!E20,Dashboard_Basis_Auswahl_2!E20)) -> 1.552167905 | D22: =IF(OR(Auswahl_Periode=1,Auswahl_Periode=2),Dashboard_Basis_Auswahl_1!D20,IF(Auswahl_Periode=4,Dashboard_Basis_Auswahl_2!F20,Dashboard_Basis_Auswahl_2!F20)) -> 1.426574281 | E22: =IF(OR(Auswahl_Periode=1,Auswahl_Periode=2),Dashboard_Basis_Auswahl_1!E20,IF(Auswahl_Periode=4,Dashboard_Basis_Auswahl_2!G20,Dashboard_Basis_Auswahl_2!G20)) -> 1.3956797 | F22: =IF(OR(Auswahl_Periode=1,Auswahl_Periode=2),Dashboard_Basis_Auswahl_1!F20,IF(Auswahl_Periode=4,Dashboard_Basis_Auswahl_2!H20,Dashboard_Basis_Auswahl_2!H20)) -> 2.144773271 | G22: =IF(OR(Auswahl_Periode=1,Auswahl_Periode=2),Dashboard_Basis_Auswahl_1!G20,IF(Auswahl_Periode=4,Dashboard_Basis_Auswahl_2!I20,Dashboard_Basis_Auswahl_2!I20)) -> 1.993641157 | H22: =IF(OR(Auswahl_Periode=1,Auswahl_Periode=2),Dashboard_Basis_Auswahl_1!H20,IF(Auswahl_Periode=4,Dashboard_Basis_Auswahl_2!J20,Dashboard_Basis_Auswahl_2!J20)) -> 2.12857917 | I22: =IF(OR(Auswahl_Periode=1,Auswahl_Periode=2),Dashboard_Basis_Auswahl_1!I20,IF(Auswahl_Periode=4,Dashboard_Basis_Auswahl_2!K20,Dashboard_Basis_Auswahl_2!K20)) -> 2.088996062
A23: Eigenpersonal | B23: =IF(OR(Auswahl_Periode=1,Auswahl_Periode=2),Dashboard_Basis_Auswahl_1!B21,IF(Auswahl_Periode=4,Dashboard_Basis_Auswahl_2!D21,Dashboard_Basis_Auswahl_2!D21)) -> 0.03753496015 | C23: =IF(OR(Auswahl_Periode=1,Auswahl_Periode=2),Dashboard_Basis_Auswahl_1!C21,IF(Auswahl_Periode=4,Dashboard_Basis_Auswahl_2!E21,Dashboard_Basis_Auswahl_2!E21)) -> 0.3893833805 | D23: =IF(OR(Auswahl_Periode=1,Auswahl_Periode=2),Dashboard_Basis_Auswahl_1!D21,IF(Auswahl_Periode=4,Dashboard_Basis_Auswahl_2!F21,Dashboard_Basis_Auswahl_2!F21)) -> 0.3839465653 | E23: =IF(OR(Auswahl_Periode=1,Auswahl_Periode=2),Dashboard_Basis_Auswahl_1!E21,IF(Auswahl_Periode=4,Dashboard_Basis_Auswahl_2!G21,Dashboard_Basis_Auswahl_2!G21)) -> 0.269854069 | F23: =IF(OR(Auswahl_Periode=1,Auswahl_Periode=2),Dashboard_Basis_Auswahl_1!F21,IF(Auswahl_Periode=4,Dashboard_Basis_Auswahl_2!H21,Dashboard_Basis_Auswahl_2!H21)) -> 1.80328994 | G23: =IF(OR(Auswahl_Periode=1,Auswahl_Periode=2),Dashboard_Basis_Auswahl_1!G21,IF(Auswahl_Periode=4,Dashboard_Basis_Auswahl_2!I21,Dashboard_Basis_Auswahl_2!I21)) -> 1.677728571 | H23: =IF(OR(Auswahl_Periode=1,Auswahl_Periode=2),Dashboard_Basis_Auswahl_1!H21,IF(Auswahl_Periode=4,Dashboard_Basis_Auswahl_2!J21,Dashboard_Basis_Auswahl_2!J21)) -> 1.992465159 | I23: =IF(OR(Auswahl_Periode=1,Auswahl_Periode=2),Dashboard_Basis_Auswahl_1!I21,IF(Auswahl_Periode=4,Dashboard_Basis_Auswahl_2!K21,Dashboard_Basis_Auswahl_2!K21)) -> 1.8244025
A24: Fremdpersonal | B24: =IF(OR(Auswahl_Periode=1,Auswahl_Periode=2),Dashboard_Basis_Auswahl_1!B22,IF(Auswahl_Periode=4,Dashboard_Basis_Auswahl_2!D22,Dashboard_Basis_Auswahl_2!D22)) -> 23.71487621 | C24: =IF(OR(Auswahl_Periode=1,Auswahl_Periode=2),Dashboard_Basis_Auswahl_1!C22,IF(Auswahl_Periode=4,Dashboard_Basis_Auswahl_2!E22,Dashboard_Basis_Auswahl_2!E22)) -> 23.26989991 | D24: =IF(OR(Auswahl_Periode=1,Auswahl_Periode=2),Dashboard_Basis_Auswahl_1!D22,IF(Auswahl_Periode=4,Dashboard_Basis_Auswahl_2!F22,Dashboard_Basis_Auswahl_2!F22)) -> 20.02794214 | E24: =IF(OR(Auswahl_Periode=1,Auswahl_Periode=2),Dashboard_Basis_Auswahl_1!E22,IF(Auswahl_Periode=4,Dashboard_Basis_Auswahl_2!G22,Dashboard_Basis_Auswahl_2!G22)) -> 22.2923418 | F24: =IF(OR(Auswahl_Periode=1,Auswahl_Periode=2),Dashboard_Basis_Auswahl_1!F22,IF(Auswahl_Periode=4,Dashboard_Basis_Auswahl_2!H22,Dashboard_Basis_Auswahl_2!H22)) -> 7.450060425 | G24: =IF(OR(Auswahl_Periode=1,Auswahl_Periode=2),Dashboard_Basis_Auswahl_1!G22,IF(Auswahl_Periode=4,Dashboard_Basis_Auswahl_2!I22,Dashboard_Basis_Auswahl_2!I22)) -> 6.798856984 | H24: =IF(OR(Auswahl_Periode=1,Auswahl_Periode=2),Dashboard_Basis_Auswahl_1!H22,IF(Auswahl_Periode=4,Dashboard_Basis_Auswahl_2!J22,Dashboard_Basis_Auswahl_2!J22)) -> 4.159534406 | I24: =IF(OR(Auswahl_Periode=1,Auswahl_Periode=2),Dashboard_Basis_Auswahl_1!I22,IF(Auswahl_Periode=4,Dashboard_Basis_Auswahl_2!K22,Dashboard_Basis_Auswahl_2!K22)) -> 6.115760112
A25: Q.: Statistik Austria; Konjunkturstatistik Produzierender Bereich, Sonderauswertung nach der Kammersystematik, bis 2021 endgültig, ab 2022 vorläufig
A26: Wien, BSI / SL mit Unterstützung der Abteilung Statistik, WKÖ | B26: Letztes Update: | C26: 2023-01-12
A59: =IF(LEFT(FVB_Code_Beschreibung,3)="IND","Industrie "&Auswahl_Bundesland,"Industrie "&Auswahl_Bundesland&CHAR(10)& FVB_Code_Beschreibung) -> Industrie Österreich | C59: Merkmal:
A60: Sonderauswertung der Konjunkturstatistik im Produzierenden Bereich
B62: =IF(OR(Auswahl_Periode=1,Auswahl_Periode=2),Dashboard_Basis_Auswahl_1!F2,IF(Auswahl_Periode=4,Dashboard_Basis_Auswahl_2!E2&" "&Dashboard_Basis_Auswahl_2!E3,Dashboard_Basis_Auswahl_2!E2)) -> Juli 2021 | C62: =IF(OR(Auswahl_Periode=1,Auswahl_Periode=2),Dashboard_Basis_Auswahl_1!G2,IF(Auswahl_Periode=4,Dashboard_Basis_Auswahl_2!F2&" "&Dashboard_Basis_Auswahl_2!F3,Dashboard_Basis_Auswahl_2!F2)) -> August 2021 | D62: =IF(OR(Auswahl_Periode=1,Auswahl_Periode=2),Dashboard_Basis_Auswahl_1!H2,IF(Auswahl_Periode=4,Dashboard_Basis_Auswahl_2!G2&" "&Dashboard_Basis_Auswahl_2!G3,Dashboard_Basis_Auswahl_2!G2)) -> September 2021 | E62: =IF(OR(Auswahl_Periode=1,Auswahl_Periode=2),Dashboard_Basis_Auswahl_1!I2,IF(Auswahl_Periode=4,Dashboard_Basis_Auswahl_2!H2&" "&Dashboard_Basis_Auswahl_2!H3,Dashboard_Basis_Auswahl_2!H2)) -> 3. Quartal 2021 | F62: =IF(OR(Auswahl_Periode=1,Auswahl_Periode=2),Dashboard_Basis_Auswahl_1!J2,IF(Auswahl_Periode=4,Dashboard_Basis_Auswahl_2!I2&" "&Dashboard_Basis_Auswahl_2!I3,Dashboard_Basis_Auswahl_2!I2)) -> Juli 2022 | G62: =IF(OR(Auswahl_Periode=1,Auswahl_Periode=2),Dashboard_Basis_Auswahl_1!K2,IF(Auswahl_Periode=4,Dashboard_Basis_Auswahl_2!J2&" "&Dashboard_Basis_Auswahl_2!J3,Dashboard_Basis_Auswahl_2!J2)) -> August 2022 | H62: =IF(OR(Auswahl_Periode=1,Auswahl_Periode=2),Dashboard_Basis_Auswahl_1!L2,IF(Auswahl_Periode=4,Dashboard_Basis_Auswahl_2!K2&" "&Dashboard_Basis_Auswahl_2!K3,Dashboard_Basis_Auswahl_2!K2)) -> September 2022 | I62: =IF(OR(Auswahl_Periode=1,Auswahl_Periode=2),Dashboard_Basis_Auswahl_1!M2,IF(Auswahl_Periode=4,Dashboard_Basis_Auswahl_2!L2&" "&Dashboard_Basis_Auswahl_2!L3,Dashboard_Basis_Auswahl_2!L2)) -> 3. Quartal 2022
A63: Bergwerke und Stahl | B63: =IF(OR(Auswahl_Periode=1,Auswahl_Periode=2),Dashboard_Basis_Auswahl_1!G26,IF(Auswahl_Periode=4,Dashboard_Basis_Auswahl_2!F26,Dashboard_Basis_Auswahl_2!F26)) -> 738.388 | C63: =IF(OR(Auswahl_Periode=1,Auswahl_Periode=2),Dashboard_Basis_Auswahl_1!H26,IF(Auswahl_Periode=4,Dashboard_Basis_Auswahl_2!G26,Dashboard_Basis_Auswahl_2!G26)) -> 731.6006 | D63: =IF(OR(Auswahl_Periode=1,Auswahl_Periode=2),Dashboard_Basis_Auswahl_1!I26,IF(Auswahl_Periode=4,Dashboard_Basis_Auswahl_2!H26,Dashboard_Basis_Auswahl_2!H26)) -> 843.1484 | E63: =IF(OR(Auswahl_Periode=1,Auswahl_Periode=2),Dashboard_Basis_Auswahl_1!J26,IF(Auswahl_Periode=4,Dashboard_Basis_Auswahl_2!I26,Dashboard_Basis_Auswahl_2!I26)) -> 2313.137 | F63: =IF(OR(Auswahl_Periode=1,Auswahl_Periode=2),Dashboard_Basis_Auswahl_1!K26,IF(Auswahl_Periode=4,Dashboard_Basis_Auswahl_2!J26,Dashboard_Basis_Auswahl_2!J26)) -> 999.2582 | G63: =IF(OR(Auswahl_Periode=1,Auswahl_Periode=2),Dashboard_Basis_Auswahl_1!L26,IF(Auswahl_Periode=4,Dashboard_Basis_Auswahl_2!K26,Dashboard_Basis_Auswahl_2!K26)) -> 928.7755 | H63: =IF(OR(Auswahl_Periode=1,Auswahl_Periode=2),Dashboard_Basis_Auswahl_1!M26,IF(Auswahl_Periode=4,Dashboard_Basis_Auswahl_2!L26,Dashboard_Basis_Auswahl_2!L26)) -> 1113.7545 | I63: =IF(OR(Auswahl_Periode=1,Auswahl_Periode=2),Dashboard_Basis_Auswahl_1!N26,IF(Auswahl_Periode=4,Dashboard_Basis_Auswahl_2!M26,Dashboard_Basis_Auswahl_2!M26)) -> 3041.7882
A64: Mineralölindustrie | B64: =IF(OR(Auswahl_Periode=1,Auswahl_Periode=2),Dashboard_Basis_Auswahl_1!G27,IF(Auswahl_Periode=4,Dashboard_Basis_Auswahl_2!F27,Dashboard_Basis_Auswahl_2!F27)) -> 817.0172 | C64: =IF(OR(Auswahl_Periode=1,Auswahl_Periode=2),Dashboard_Basis_Auswahl_1!H27,IF(Auswahl_Periode=4,Dashboard_Basis_Auswahl_2!G27,Dashboard_Basis_Auswahl_2!G27)) -> 790.3063 | D64: =IF(OR(Auswahl_Periode=1,Auswahl_Periode=2),Dashboard_Basis_Auswahl_1!I27,IF(Auswahl_Periode=4,Dashboard_Basis_Auswahl_2!H27,Dashboard_Basis_Auswahl_2!H27)) -> 821.0394 | E64: =IF(OR(Auswahl_Periode=1,Auswahl_Periode=2),Dashboard_Basis_Auswahl_1!J27,IF(Auswahl_Periode=4,Dashboard_Basis_Auswahl_2!I27,Dashboard_Basis_Auswahl_2!I27)) -> 2428.3629 | F64: =IF(OR(Auswahl_Periode=1,Auswahl_Periode=2),Dashboard_Basis_Auswahl_1!K27,IF(Auswahl_Periode=4,Dashboard_Basis_Auswahl_2!J27,Dashboard_Basis_Auswahl_2!J27)) -> 858.4196 | G64: =IF(OR(Auswahl_Periode=1,Auswahl_Periode=2),Dashboard_Basis_Auswahl_1!L27,IF(Auswahl_Periode=4,Dashboard_Basis_Auswahl_2!K27,Dashboard_Basis_Auswahl_2!K27)) -> 841.4293 | H64: =IF(OR(Auswahl_Periode=1,Auswahl_Periode=2),Dashboard_Basis_Auswahl_1!M27,IF(Auswahl_Periode=4,Dashboard_Basis_Auswahl_2!L27,Dashboard_Basis_Auswahl_2!L27)) -> 806.1644 | I64: =IF(OR(Auswahl_Periode=1,Auswahl_Periode=2),Dashboard_Basis_Auswahl_1!N27,IF(Auswahl_Periode=4,Dashboard_Basis_Auswahl_2!M27,Dashboard_Basis_Auswahl_2!M27)) -> 2506.0133
A65: Stein- u. keramische Industrie | B65: =IF(OR(Auswahl_Periode=1,Auswahl_Periode=2),Dashboard_Basis_Auswahl_1!G28,IF(Auswahl_Periode=4,Dashboard_Basis_Auswahl_2!F28,Dashboard_Basis_Auswahl_2!F28)) -> 369.3548 | C65: =IF(OR(Auswahl_Periode=1,Auswahl_Periode=2),Dashboard_Basis_Auswahl_1!H28,IF(Auswahl_Periode=4,Dashboard_Basis_Auswahl_2!G28,Dashboard_Basis_Auswahl_2!G28)) -> 323.4636 | D65: =IF(OR(Auswahl_Periode=1,Auswahl_Periode=2),Dashboard_Basis_Auswahl_1!I28,IF(Auswahl_Periode=4,Dashboard_Basis_Auswahl_2!H28,Dashboard_Basis_Auswahl_2!H28)) -> 365.4666 | E65: =IF(OR(Auswahl_Periode=1,Auswahl_Periode=2),Dashboard_Basis_Auswahl_1!J28,IF(Auswahl_Periode=4,Dashboard_Basis_Auswahl_2!I28,Dashboard_Basis_Auswahl_2!I28)) -> 1058.285 | F65: =IF(OR(Auswahl_Periode=1,Auswahl_Periode=2),Dashboard_Basis_Auswahl_1!K28,IF(Auswahl_Periode=4,Dashboard_Basis_Auswahl_2!J28,Dashboard_Basis_Auswahl_2!J28)) -> 368.7324 | G65: =IF(OR(Auswahl_Periode=1,Auswahl_Periode=2),Dashboard_Basis_Auswahl_1!L28,IF(Auswahl_Periode=4,Dashboard_Basis_Auswahl_2!K28,Dashboard_Basis_Auswahl_2!K28)) -> 342.2503 | H65: =IF(OR(Auswahl_Periode=1,Auswahl_Periode=2),Dashboard_Basis_Auswahl_1!M28,IF(Auswahl_Periode=4,Dashboard_Basis_Auswahl_2!L28,Dashboard_Basis_Auswahl_2!L28)) -> 390.647 | I65: =IF(OR(Auswahl_Periode=1,Auswahl_Periode=2),Dashboard_Basis_Auswahl_1!N28,IF(Auswahl_Periode=4,Dashboard_Basis_Auswahl_2!M28,Dashboard_Basis_Auswahl_2!M28)) -> 1101.6297
A66: Glasindustrie | B66: =IF(OR(Auswahl_Periode=1,Auswahl_Periode=2),Dashboard_Basis_Auswahl_1!G29,IF(Auswahl_Periode=4,Dashboard_Basis_Auswahl_2!F29,Dashboard_Basis_Auswahl_2!F29)) -> 101.5319 | C66: =IF(OR(Auswahl_Periode=1,Auswahl_Periode=2),Dashboard_Basis_Auswahl_1!H29,IF(Auswahl_Periode=4,Dashboard_Basis_Auswahl_2!G29,Dashboard_Basis_Auswahl_2!G29)) -> 85.4261 | D66: =IF(OR(Auswahl_Periode=1,Auswahl_Periode=2),Dashboard_Basis_Auswahl_1!I29,IF(Auswahl_Periode=4,Dashboard_Basis_Auswahl_2!H29,Dashboard_Basis_Auswahl_2!H29)) -> 97.9742 | E66: =IF(OR(Auswahl_Periode=1,Auswahl_Periode=2),Dashboard_Basis_Auswahl_1!J29,IF(Auswahl_Periode=4,Dashboard_Basis_Auswahl_2!I29,Dashboard_Basis_Auswahl_2!I29)) -> 284.9322 | F66: =IF(OR(Auswahl_Periode=1,Auswahl_Periode=2),Dashboard_Basis_Auswahl_1!K29,IF(Auswahl_Periode=4,Dashboard_Basis_Auswahl_2!J29,Dashboard_Basis_Auswahl_2!J29)) -> 105.7816 | G66: =IF(OR(Auswahl_Periode=1,Auswahl_Periode=2),Dashboard_Basis_Auswahl_1!L29,IF(Auswahl_Periode=4,Dashboard_Basis_Auswahl_2!K29,Dashboard_Basis_Auswahl_2!K29)) -> 100.3929 | H66: =IF(OR(Auswahl_Periode=1,Auswahl_Periode=2),Dashboard_Basis_Auswahl_1!M29,IF(Auswahl_Periode=4,Dashboard_Basis_Auswahl_2!L29,Dashboard_Basis_Auswahl_2!L29)) -> 113.5499 | I66: =IF(OR(Auswahl_Periode=1,Auswahl_Periode=2),Dashboard_Basis_Auswahl_1!N29,IF(Auswahl_Periode=4,Dashboard_Basis_Auswahl_2!M29,Dashboard_Basis_Auswahl_2!M29)) -> 319.7244
A67: Chemische Industrie | B67: =IF(OR(Auswahl_Periode=1,Auswahl_Periode=2),Dashboard_Basis_Auswahl_1!G30,IF(Auswahl_Periode=4,Dashboard_Basis_Auswahl_2!F30,Dashboard_Basis_Auswahl_2!F30)) -> 1479.7654 | C67: =IF(OR(Auswahl_Periode=1,Auswahl_Periode=2),Dashboard_Basis_Auswahl_1!H30,IF(Auswahl_Periode=4,Dashboard_Basis_Auswahl_2!G30,Dashboard_Basis_Auswahl_2!G30)) -> 1390.5428 | D67: =IF(OR(Auswahl_Periode=1,Auswahl_Periode=2),Dashboard_Basis_Auswahl_1!I30,IF(Auswahl_Periode=4,Dashboard_Basis_Auswahl_2!H30,Dashboard_Basis_Auswahl_2!H30)) -> 1572.0948 | E67: =IF(OR(Auswahl_Periode=1,Auswahl_Periode=2),Dashboard_Basis_Auswahl_1!J30,IF(Auswahl_Periode=4,Dashboard_Basis_Auswahl_2!I30,Dashboard_Basis_Auswahl_2!I30)) -> 4442.403 | F67: =IF(OR(Auswahl_Periode=1,Auswahl_Periode=2),Dashboard_Basis_Auswahl_1!K30,IF(Auswahl_Periode=4,Dashboard_Basis_Auswahl_2!J30,Dashboard_Basis_Auswahl_2!J30)) -> 1666.4556 | G67: =IF(OR(Auswahl_Periode=1,Auswahl_Periode=2),Dashboard_Basis_Auswahl_1!L30,IF(Auswahl_Periode=4,Dashboard_Basis_Auswahl_2!K30,Dashboard_Basis_Auswahl_2!K30)) -> 1614.3331 | H67: =IF(OR(Auswahl_Periode=1,Auswahl_Periode=2),Dashboard_Basis_Auswahl_1!M30,IF(Auswahl_Periode=4,Dashboard_Basis_Auswahl_2!L30,Dashboard_Basis_Auswahl_2!L30)) -> 1727.0538 | I67: =IF(OR(Auswahl_Periode=1,Auswahl_Periode=2),Dashboard_Basis_Auswahl_1!N30,IF(Auswahl_Periode=4,Dashboard_Basis_Auswahl_2!M30,Dashboard_Basis_Auswahl_2!M30)) -> 5007.8425
A68: Papierindustrie | B68: =IF(OR(Auswahl_Periode=1,Auswahl_Periode=2),Dashboard_Basis_Auswahl_1!G31,IF(Auswahl_Periode=4,Dashboard_Basis_Auswahl_2!F31,Dashboard_Basis_Auswahl_2!F31)) -> 305.9476 | C68: =IF(OR(Auswahl_Periode=1,Auswahl_Periode=2),Dashboard_Basis_Auswahl_1!H31,IF(Auswahl_Periode=4,Dashboard_Basis_Auswahl_2!G31,Dashboard_Basis_Auswahl_2!G31)) -> 298.9892 | D68: =IF(OR(Auswahl_Periode=1,Auswahl_Periode=2),Dashboard_Basis_Auswahl_1!I31,IF(Auswahl_Periode=4,Dashboard_Basis_Auswahl_2!H31,Dashboard_Basis_Auswahl_2!H31)) -> 336.5566 | E68: =IF(OR(Auswahl_Periode=1,Auswahl_Periode=2),Dashboard_Basis_Auswahl_1!J31,IF(Auswahl_Periode=4,Dashboard_Basis_Auswahl_2!I31,Dashboard_Basis_Auswahl_2!I31)) -> 941.4934 | F68: =IF(OR(Auswahl_Periode=1,Auswahl_Periode=2),Dashboard_Basis_Auswahl_1!K31,IF(Auswahl_Periode=4,Dashboard_Basis_Auswahl_2!J31,Dashboard_Basis_Auswahl_2!J31)) -> 450.5763 | G68: =IF(OR(Auswahl_Periode=1,Auswahl_Periode=2),Dashboard_Basis_Auswahl_1!L31,IF(Auswahl_Periode=4,Dashboard_Basis_Auswahl_2!K31,Dashboard_Basis_Auswahl_2!K31)) -> 448.4029 | H68: =IF(OR(Auswahl_Periode=1,Auswahl_Periode=2),Dashboard_Basis_Auswahl_1!M31,IF(Auswahl_Periode=4,Dashboard_Basis_Auswahl_2!L31,Dashboard_Basis_Auswahl_2!L31)) -> 492.2681 | I68: =IF(OR(Auswahl_Periode=1,Auswahl_Periode=2),Dashboard_Basis_Auswahl_1!N31,IF(Auswahl_Periode=4,Dashboard_Basis_Auswahl_2!M31,Dashboard_Basis_Auswahl_2!M31)) -> 1391.2473
A69: PROPAK - Produkte aus Papier & Karton | B69: =IF(OR(Auswahl_Periode=1,Auswahl_Periode=2),Dashboard_Basis_Auswahl_1!G32,IF(Auswahl_Periode=4,Dashboard_Basis_Auswahl_2!F32,Dashboard_Basis_Auswahl_2!F32)) -> 229.5659 | C69: =IF(OR(Auswahl_Periode=1,Auswahl_Periode=2),Dashboard_Basis_Auswahl_1!H32,IF(Auswahl_Periode=4,Dashboard_Basis_Auswahl_2!G32,Dashboard_Basis_Auswahl_2!G32)) -> 224.8514 | D69: =IF(OR(Auswahl_Periode=1,Auswahl_Periode=2),Dashboard_Basis_Auswahl_1!I32,IF(Auswahl_Periode=4,Dashboard_Basis_Auswahl_2!H32,Dashboard_Basis_Auswahl_2!H32)) -> 246.9971 | E69: =IF(OR(Auswahl_Periode=1,Auswahl_Periode=2),Dashboard_Basis_Auswahl_1!J32,IF(Auswahl_Periode=4,Dashboard_Basis_Auswahl_2!I32,Dashboard_Basis_Auswahl_2!I32)) -> 701.4144 | F69: =IF(OR(Auswahl_Periode=1,Auswahl_Periode=2),Dashboard_Basis_Auswahl_1!K32,IF(Auswahl_Periode=4,Dashboard_Basis_Auswahl_2!J32,Dashboard_Basis_Auswahl_2!J32)) -> 265.4827 | G69: =IF(OR(Auswahl_Periode=1,Auswahl_Periode=2),Dashboard_Basis_Auswahl_1!L32,IF(Auswahl_Periode=4,Dashboard_Basis_Auswahl_2!K32,Dashboard_Basis_Auswahl_2!K32)) -> 269.7217 | H69: =IF(OR(Auswahl_Periode=1,Auswahl_Periode=2),Dashboard_Basis_Auswahl_1!M32,IF(Auswahl_Periode=4,Dashboard_Basis_Auswahl_2!L32,Dashboard_Basis_Auswahl_2!L32)) -> 290.706 | I69: =IF(OR(Auswahl_Periode=1,Auswahl_Periode=2),Dashboard_Basis_Auswahl_1!N32,IF(Auswahl_Periode=4,Dashboard_Basis_Auswahl_2!M32,Dashboard_Basis_Auswahl_2!M32)) -> 825.9104
A70: Bauindustrie | B70: =IF(OR(Auswahl_Periode=1,Auswahl_Periode=2),Dashboard_Basis_Auswahl_1!G33,IF(Auswahl_Periode=4,Dashboard_Basis_Auswahl_2!F33,Dashboard_Basis_Auswahl_2!F33)) -> 800.0264 | C70: =IF(OR(Auswahl_Periode=1,Auswahl_Periode=2),Dashboard_Basis_Auswahl_1!H33,IF(Auswahl_Periode=4,Dashboard_Basis_Auswahl_2!G33,Dashboard_Basis_Auswahl_2!G33)) -> 778.5062 | D70: =IF(OR(Auswahl_Periode=1,Auswahl_Periode=2),Dashboard_Basis_Auswahl_1!I33,IF(Auswahl_Periode=4,Dashboard_Basis_Auswahl_2!H33,Dashboard_Basis_Auswahl_2!H33)) -> 874.4197 | E70: =IF(OR(Auswahl_Periode=1,Auswahl_Periode=2),Dashboard_Basis_Auswahl_1!J33,IF(Auswahl_Periode=4,Dashboard_Basis_Auswahl_2!I33,Dashboard_Basis_Auswahl_2!I33)) -> 2452.9523 | F70: =IF(OR(Auswahl_Periode=1,Auswahl_Periode=2),Dashboard_Basis_Auswahl_1!K33,IF(Auswahl_Periode=4,Dashboard_Basis_Auswahl_2!J33,Dashboard_Basis_Auswahl_2!J33)) -> 869.894 | G70: =IF(OR(Auswahl_Periode=1,Auswahl_Periode=2),Dashboard_Basis_Auswahl_1!L33,IF(Auswahl_Periode=4,Dashboard_Basis_Auswahl_2!K33,Dashboard_Basis_Auswahl_2!K33)) -> 830.2252 | H70: =IF(OR(Auswahl_Periode=1,Auswahl_Periode=2),Dashboard_Basis_Auswahl_1!M33,IF(Auswahl_Periode=4,Dashboard_Basis_Auswahl_2!L33,Dashboard_Basis_Auswahl_2!L33)) -> 883.2852 | I70: =IF(OR(Auswahl_Periode=1,Auswahl_Periode=2),Dashboard_Basis_Auswahl_1!N33,IF(Auswahl_Periode=4,Dashboard_Basis_Auswahl_2!M33,Dashboard_Basis_Auswahl_2!M33)) -> 2583.4044
A71: Holzindustrie | B71: =IF(OR(Auswahl_Periode=1,Auswahl_Periode=2),Dashboard_Basis_Auswahl_1!G34,IF(Auswahl_Periode=4,Dashboard_Basis_Auswahl_2!F34,Dashboard_Basis_Auswahl_2!F34)) -> 1037.1696 | C71: =IF(OR(Auswahl_Periode=1,Auswahl_Periode=2),Dashboard_Basis_Auswahl_1!H34,IF(Auswahl_Periode=4,Dashboard_Basis_Auswahl_2!G34,Dashboard_Basis_Auswahl_2!G34)) -> 845.2721 | D71: =IF(OR(Auswahl_Periode=1,Auswahl_Periode=2),Dashboard_Basis_Auswahl_1!I34,IF(Auswahl_Periode=4,Dashboard_Basis_Auswahl_2!H34,Dashboard_Basis_Auswahl_2!H34)) -> 1025.696 | E71: =IF(OR(Auswahl_Periode=1,Auswahl_Periode=2),Dashboard_Basis_Auswahl_1!J34,IF(Auswahl_Periode=4,Dashboard_Basis_Auswahl_2!I34,Dashboard_Basis_Auswahl_2!I34)) -> 2908.1377 | F71: =IF(OR(Auswahl_Periode=1,Auswahl_Periode=2),Dashboard_Basis_Auswahl_1!K34,IF(Auswahl_Periode=4,Dashboard_Basis_Auswahl_2!J34,Dashboard_Basis_Auswahl_2!J34)) -> 950.4414 | G71: =IF(OR(Auswahl_Periode=1,Auswahl_Periode=2),Dashboard_Basis_Auswahl_1!L34,IF(Auswahl_Periode=4,Dashboard_Basis_Auswahl_2!K34,Dashboard_Basis_Auswahl_2!K34)) -> 790.9411 | H71: =IF(OR(Auswahl_Periode=1,Auswahl_Periode=2),Dashboard_Basis_Auswahl_1!M34,IF(Auswahl_Periode=4,Dashboard_Basis_Auswahl_2!L34,Dashboard_Basis_Auswahl_2!L34)) -> 1048.2699 | I71: =IF(OR(Auswahl_Periode=1,Auswahl_Periode=2),Dashboard_Basis_Auswahl_1!N34,IF(Auswahl_Periode=4,Dashboard_Basis_Auswahl_2!M34,Dashboard_Basis_Auswahl_2!M34)) -> 2789.6524
A72: Nahrungs- u. Genussmittelindustrie (Lebensmittelindustrie) | B72: =IF(OR(Auswahl_Periode=1,Auswahl_Periode=2),Dashboard_Basis_Auswahl_1!G35,IF(Auswahl_Periode=4,Dashboard_Basis_Auswahl_2!F35,Dashboard_Basis_Auswahl_2!F35)) -> 912.2739 | C72: =IF(OR(Auswahl_Periode=1,Auswahl_Periode=2),Dashboard_Basis_Auswahl_1!H35,IF(Auswahl_Periode=4,Dashboard_Basis_Auswahl_2!G35,Dashboard_Basis_Auswahl_2!G35)) -> 904.144 | D72: =IF(OR(Auswahl_Periode=1,Auswahl_Periode=2),Dashboard_Basis_Auswahl_1!I35,IF(Auswahl_Periode=4,Dashboard_Basis_Auswahl_2!H35,Dashboard_Basis_Auswahl_2!H35)) -> 938.9021 | E72: =IF(OR(Auswahl_Periode=1,Auswahl_Periode=2),Dashboard_Basis_Auswahl_1!J35,IF(Auswahl_Periode=4,Dashboard_Basis_Auswahl_2!I35,Dashboard_Basis_Auswahl_2!I35)) -> 2755.32 | F72: =IF(OR(Auswahl_Periode=1,Auswahl_Periode=2),Dashboard_Basis_Auswahl_1!K35,IF(Auswahl_Periode=4,Dashboard_Basis_Auswahl_2!J35,Dashboard_Basis_Auswahl_2!J35)) -> 1056.2339 | G72: =IF(OR(Auswahl_Periode=1,Auswahl_Periode=2),Dashboard_Basis_Auswahl_1!L35,IF(Auswahl_Periode=4,Dashboard_Basis_Auswahl_2!K35,Dashboard_Basis_Auswahl_2!K35)) -> 1111.9017 | H72: =IF(OR(Auswahl_Periode=1,Auswahl_Periode=2),Dashboard_Basis_Auswahl_1!M35,IF(Auswahl_Periode=4,Dashboard_Basis_Auswahl_2!L35,Dashboard_Basis_Auswahl_2!L35)) -> 1120.0819 | I72: =IF(OR(Auswahl_Periode=1,Auswahl_Periode=2),Dashboard_Basis_Auswahl_1!N35,IF(Auswahl_Periode=4,Dashboard_Basis_Auswahl_2!M35,Dashboard_Basis_Auswahl_2!M35)) -> 3288.2175
A73: Textil-, Bekleidungs-, Schuh- und Lederindustrie | B73: =IF(OR(Auswahl_Periode=1,Auswahl_Periode=2),Dashboard_Basis_Auswahl_1!G36,IF(Auswahl_Periode=4,Dashboard_Basis_Auswahl_2!F36,Dashboard_Basis_Auswahl_2!F36)) -> 212.2585 | C73: =IF(OR(Auswahl_Periode=1,Auswahl_Periode=2),Dashboard_Basis_Auswahl_1!H36,IF(Auswahl_Periode=4,Dashboard_Basis_Auswahl_2!G36,Dashboard_Basis_Auswahl_2!G36)) -> 167.6497 | D73: =IF(OR(Auswahl_Periode=1,Auswahl_Periode=2),Dashboard_Basis_Auswahl_1!I36,IF(Auswahl_Periode=4,Dashboard_Basis_Auswahl_2!H36,Dashboard_Basis_Auswahl_2!H36)) -> 240.9704 | E73: =IF(OR(Auswahl_Periode=1,Auswahl_Periode=2),Dashboard_Basis_Auswahl_1!J36,IF(Auswahl_Periode=4,Dashboard_Basis_Auswahl_2!I36,Dashboard_Basis_Auswahl_2!I36)) -> 620.8786 | F73: =IF(OR(Auswahl_Periode=1,Auswahl_Periode=2),Dashboard_Basis_Auswahl_1!K36,IF(Auswahl_Periode=4,Dashboard_Basis_Auswahl_2!J36,Dashboard_Basis_Auswahl_2!J36)) -> 227.4749 | G73: =IF(OR(Auswahl_Periode=1,Auswahl_Periode=2),Dashboard_Basis_Auswahl_1!L36,IF(Auswahl_Periode=4,Dashboard_Basis_Auswahl_2!K36,Dashboard_Basis_Auswahl_2!K36)) -> 191.8618 | H73: =IF(OR(Auswahl_Periode=1,Auswahl_Periode=2),Dashboard_Basis_Auswahl_1!M36,IF(Auswahl_Periode=4,Dashboard_Basis_Auswahl_2!L36,Dashboard_Basis_Auswahl_2!L36)) -> 258.6492 | I73: =IF(OR(Auswahl_Periode=1,Auswahl_Periode=2),Dashboard_Basis_Auswahl_1!N36,IF(Auswahl_Periode=4,Dashboard_Basis_Auswahl_2!M36,Dashboard_Basis_Auswahl_2!M36)) -> 677.9859
A74: Gas- u. Wärmeversorgungsunternehmungen | B74: =IF(OR(Auswahl_Periode=1,Auswahl_Periode=2),Dashboard_Basis_Auswahl_1!G37,IF(Auswahl_Periode=4,Dashboard_Basis_Auswahl_2!F37,Dashboard_Basis_Auswahl_2!F37)) -> 2585.9898 | C74: =IF(OR(Auswahl_Periode=1,Auswahl_Periode=2),Dashboard_Basis_Auswahl_1!H37,IF(Auswahl_Periode=4,Dashboard_Basis_Auswahl_2!G37,Dashboard_Basis_Auswahl_2!G37)) -> 2776.2526 | D74: =IF(OR(Auswahl_Periode=1,Auswahl_Periode=2),Dashboard_Basis_Auswahl_1!I37,IF(Auswahl_Periode=4,Dashboard_Basis_Auswahl_2!H37,Dashboard_Basis_Auswahl_2!H37)) -> 3100.3799 | E74: =IF(OR(Auswahl_Periode=1,Auswahl_Periode=2),Dashboard_Basis_Auswahl_1!J37,IF(Auswahl_Periode=4,Dashboard_Basis_Auswahl_2!I37,Dashboard_Basis_Auswahl_2!I37)) -> 8462.6223 | F74: =IF(OR(Auswahl_Periode=1,Auswahl_Periode=2),Dashboard_Basis_Auswahl_1!K37,IF(Auswahl_Periode=4,Dashboard_Basis_Auswahl_2!J37,Dashboard_Basis_Auswahl_2!J37)) -> 5276.4715 | G74: =IF(OR(Auswahl_Periode=1,Auswahl_Periode=2),Dashboard_Basis_Auswahl_1!L37,IF(Auswahl_Periode=4,Dashboard_Basis_Auswahl_2!K37,Dashboard_Basis_Auswahl_2!K37)) -> 6350.5038 | H74: =IF(OR(Auswahl_Periode=1,Auswahl_Periode=2),Dashboard_Basis_Auswahl_1!M37,IF(Auswahl_Periode=4,Dashboard_Basis_Auswahl_2!L37,Dashboard_Basis_Auswahl_2!L37)) -> 5050.8946 | I74: =IF(OR(Auswahl_Periode=1,Auswahl_Periode=2),Dashboard_Basis_Auswahl_1!N37,IF(Auswahl_Periode=4,Dashboard_Basis_Auswahl_2!M37,Dashboard_Basis_Auswahl_2!M37)) -> 16677.8699
A75: NE-Metallindustrie | B75: =IF(OR(Auswahl_Periode=1,Auswahl_Periode=2),Dashboard_Basis_Auswahl_1!G38,IF(Auswahl_Periode=4,Dashboard_Basis_Auswahl_2!F38,Dashboard_Basis_Auswahl_2!F38)) -> 508.363 | C75: =IF(OR(Auswahl_Periode=1,Auswahl_Periode=2),Dashboard_Basis_Auswahl_1!H38,IF(Auswahl_Periode=4,Dashboard_Basis_Auswahl_2!G38,Dashboard_Basis_Auswahl_2!G38)) -> 457.2787 | D75: =IF(OR(Auswahl_Periode=1,Auswahl_Periode=2),Dashboard_Basis_Auswahl_1!I38,IF(Auswahl_Periode=4,Dashboard_Basis_Auswahl_2!H38,Dashboard_Basis_Auswahl_2!H38)) -> 523.1455 | E75: =IF(OR(Auswahl_Periode=1,Auswahl_Periode=2),Dashboard_Basis_Auswahl_1!J38,IF(Auswahl_Periode=4,Dashboard_Basis_Auswahl_2!I38,Dashboard_Basis_Auswahl_2!I38)) -> 1488.7872 | F75: =IF(OR(Auswahl_Periode=1,Auswahl_Periode=2),Dashboard_Basis_Auswahl_1!K38,IF(Auswahl_Periode=4,Dashboard_Basis_Auswahl_2!J38,Dashboard_Basis_Auswahl_2!J38)) -> 586.1648 | G75: =IF(OR(Auswahl_Periode=1,Auswahl_Periode=2),Dashboard_Basis_Auswahl_1!L38,IF(Auswahl_Periode=4,Dashboard_Basis_Auswahl_2!K38,Dashboard_Basis_Auswahl_2!K38)) -> 533.4366 | H75: =IF(OR(Auswahl_Periode=1,Auswahl_Periode=2),Dashboard_Basis_Auswahl_1!M38,IF(Auswahl_Periode=4,Dashboard_Basis_Auswahl_2!L38,Dashboard_Basis_Auswahl_2!L38)) -> 584.8233 | I75: =IF(OR(Auswahl_Periode=1,Auswahl_Periode=2),Dashboard_Basis_Auswahl_1!N38,IF(Auswahl_Periode=4,Dashboard_Basis_Auswahl_2!M38,Dashboard_Basis_Auswahl_2!M38)) -> 1704.4247
A76: Maschinen-, Metallwaren- und Gießereiindustrie | B76: =IF(OR(Auswahl_Periode=1,Auswahl_Periode=2),Dashboard_Basis_Auswahl_1!G39,IF(Auswahl_Periode=4,Dashboard_Basis_Auswahl_2!F39,Dashboard_Basis_Auswahl_2!F39)) -> 3675.8187 | C76: =IF(OR(Auswahl_Periode=1,Auswahl_Periode=2),Dashboard_Basis_Auswahl_1!H39,IF(Auswahl_Periode=4,Dashboard_Basis_Auswahl_2!G39,Dashboard_Basis_Auswahl_2!G39)) -> 3188.7396 | D76: =IF(OR(Auswahl_Periode=1,Auswahl_Periode=2),Dashboard_Basis_Auswahl_1!I39,IF(Auswahl_Periode=4,Dashboard_Basis_Auswahl_2!H39,Dashboard_Basis_Auswahl_2!H39)) -> 3846.0182 | E76: =IF(OR(Auswahl_Periode=1,Auswahl_Periode=2),Dashboard_Basis_Auswahl_1!J39,IF(Auswahl_Periode=4,Dashboard_Basis_Auswahl_2!I39,Dashboard_Basis_Auswahl_2!I39)) -> 10710.5765 | F76: =IF(OR(Auswahl_Periode=1,Auswahl_Periode=2),Dashboard_Basis_Auswahl_1!K39,IF(Auswahl_Periode=4,Dashboard_Basis_Auswahl_2!J39,Dashboard_Basis_Auswahl_2!J39)) -> 3869.7141 | G76: =IF(OR(Auswahl_Periode=1,Auswahl_Periode=2),Dashboard_Basis_Auswahl_1!L39,IF(Auswahl_Periode=4,Dashboard_Basis_Auswahl_2!K39,Dashboard_Basis_Auswahl_2!K39)) -> 3586.4079 | H76: =IF(OR(Auswahl_Periode=1,Auswahl_Periode=2),Dashboard_Basis_Auswahl_1!M39,IF(Auswahl_Periode=4,Dashboard_Basis_Auswahl_2!L39,Dashboard_Basis_Auswahl_2!L39)) -> 4492.7289 | I76: =IF(OR(Auswahl_Periode=1,Auswahl_Periode=2),Dashboard_Basis_Auswahl_1!N39,IF(Auswahl_Periode=4,Dashboard_Basis_Auswahl_2!M39,Dashboard_Basis_Auswahl_2!M39)) -> 11948.8509
A77: Fahrzeugindustrie | B77: =IF(OR(Auswahl_Periode=1,Auswahl_Periode=2),Dashboard_Basis_Auswahl_1!G40,IF(Auswahl_Periode=4,Dashboard_Basis_Auswahl_2!F40,Dashboard_Basis_Auswahl_2!F40)) -> 1393.1451 | C77: =IF(OR(Auswahl_Periode=1,Auswahl_Periode=2),Dashboard_Basis_Auswahl_1!H40,IF(Auswahl_Periode=4,Dashboard_Basis_Auswahl_2!G40,Dashboard_Basis_Auswahl_2!G40)) -> 1064.7762 | D77: =IF(OR(Auswahl_Periode=1,Auswahl_Periode=2),Dashboard_Basis_Auswahl_1!I40,IF(Auswahl_Periode=4,Dashboard_Basis_Auswahl_2!H40,Dashboard_Basis_Auswahl_2!H40)) -> 1352.1598 | E77: =IF(OR(Auswahl_Periode=1,Auswahl_Periode=2),Dashboard_Basis_Auswahl_1!J40,IF(Auswahl_Periode=4,Dashboard_Basis_Auswahl_2!I40,Dashboard_Basis_Auswahl_2!I40)) -> 3810.0811 | F77: =IF(OR(Auswahl_Periode=1,Auswahl_Periode=2),Dashboard_Basis_Auswahl_1!K40,IF(Auswahl_Periode=4,Dashboard_Basis_Auswahl_2!J40,Dashboard_Basis_Auswahl_2!J40)) -> 1349.092 | G77: =IF(OR(Auswahl_Periode=1,Auswahl_Periode=2),Dashboard_Basis_Auswahl_1!L40,IF(Auswahl_Periode=4,Dashboard_Basis_Auswahl_2!K40,Dashboard_Basis_Auswahl_2!K40)) -> 956.5755 | H77: =IF(OR(Auswahl_Periode=1,Auswahl_Periode=2),Dashboard_Basis_Auswahl_1!M40,IF(Auswahl_Periode=4,Dashboard_Basis_Auswahl_2!L40,Dashboard_Basis_Auswahl_2!L40)) -> 1720.2911 | I77: =IF(OR(Auswahl_Periode=1,Auswahl_Periode=2),Dashboard_Basis_Auswahl_1!N40,IF(Auswahl_Periode=4,Dashboard_Basis_Auswahl_2!M40,Dashboard_Basis_Auswahl_2!M40)) -> 4025.9586
A78: Elektro- u. Elektronikindustrie | B78: =IF(OR(Auswahl_Periode=1,Auswahl_Periode=2),Dashboard_Basis_Auswahl_1!G41,IF(Auswahl_Periode=4,Dashboard_Basis_Auswahl_2!F41,Dashboard_Basis_Auswahl_2!F41)) -> 1600.9182 | C78: =IF(OR(Auswahl_Periode=1,Auswahl_Periode=2),Dashboard_Basis_Auswahl_1!H41,IF(Auswahl_Periode=4,Dashboard_Basis_Auswahl_2!G41,Dashboard_Basis_Auswahl_2!G41)) -> 1527.6998 | D78: =IF(OR(Auswahl_Periode=1,Auswahl_Periode=2),Dashboard_Basis_Auswahl_1!I41,IF(Auswahl_Periode=4,Dashboard_Basis_Auswahl_2!H41,Dashboard_Basis_Auswahl_2!H41)) -> 1863.6641 | E78: =IF(OR(Auswahl_Periode=1,Auswahl_Periode=2),Dashboard_Basis_Auswahl_1!J41,IF(Auswahl_Periode=4,Dashboard_Basis_Auswahl_2!I41,Dashboard_Basis_Auswahl_2!I41)) -> 4992.2821 | F78: =IF(OR(Auswahl_Periode=1,Auswahl_Periode=2),Dashboard_Basis_Auswahl_1!K41,IF(Auswahl_Periode=4,Dashboard_Basis_Auswahl_2!J41,Dashboard_Basis_Auswahl_2!J41)) -> 1982.9232 | G78: =IF(OR(Auswahl_Periode=1,Auswahl_Periode=2),Dashboard_Basis_Auswahl_1!L41,IF(Auswahl_Periode=4,Dashboard_Basis_Auswahl_2!K41,Dashboard_Basis_Auswahl_2!K41)) -> 2045.7999 | H78: =IF(OR(Auswahl_Periode=1,Auswahl_Periode=2),Dashboard_Basis_Auswahl_1!M41,IF(Auswahl_Periode=4,Dashboard_Basis_Auswahl_2!L41,Dashboard_Basis_Auswahl_2!L41)) -> 2406.1703 | I78: =IF(OR(Auswahl_Periode=1,Auswahl_Periode=2),Dashboard_Basis_Auswahl_1!N41,IF(Auswahl_Periode=4,Dashboard_Basis_Auswahl_2!M41,Dashboard_Basis_Auswahl_2!M41)) -> 6434.8934
A79: Industrie insgesamt [inkl. Bauind.] | B79: =IF(OR(Auswahl_Periode=1,Auswahl_Periode=2),Dashboard_Basis_Auswahl_1!G42,IF(Auswahl_Periode=4,Dashboard_Basis_Auswahl_2!F42,Dashboard_Basis_Auswahl_2!F42)) -> 16767.5339 | C79: =IF(OR(Auswahl_Periode=1,Auswahl_Periode=2),Dashboard_Basis_Auswahl_1!H42,IF(Auswahl_Periode=4,Dashboard_Basis_Auswahl_2!G42,Dashboard_Basis_Auswahl_2!G42)) -> 15555.4989 | D79: =IF(OR(Auswahl_Periode=1,Auswahl_Periode=2),Dashboard_Basis_Auswahl_1!I42,IF(Auswahl_Periode=4,Dashboard_Basis_Auswahl_2!H42,Dashboard_Basis_Auswahl_2!H42)) -> 18048.6327 | E79: =IF(OR(Auswahl_Periode=1,Auswahl_Periode=2),Dashboard_Basis_Auswahl_1!J42,IF(Auswahl_Periode=4,Dashboard_Basis_Auswahl_2!I42,Dashboard_Basis_Auswahl_2!I42)) -> 50371.6655 | F79: =IF(OR(Auswahl_Periode=1,Auswahl_Periode=2),Dashboard_Basis_Auswahl_1!K42,IF(Auswahl_Periode=4,Dashboard_Basis_Auswahl_2!J42,Dashboard_Basis_Auswahl_2!J42)) -> 20883.1162 | G79: =IF(OR(Auswahl_Periode=1,Auswahl_Periode=2),Dashboard_Basis_Auswahl_1!L42,IF(Auswahl_Periode=4,Dashboard_Basis_Auswahl_2!K42,Dashboard_Basis_Auswahl_2!K42)) -> 20942.9592 | H79: =IF(OR(Auswahl_Periode=1,Auswahl_Periode=2),Dashboard_Basis_Auswahl_1!M42,IF(Auswahl_Periode=4,Dashboard_Basis_Auswahl_2!L42,Dashboard_Basis_Auswahl_2!L42)) -> 22499.338 | I79: =IF(OR(Auswahl_Periode=1,Auswahl_Periode=2),Dashboard_Basis_Auswahl_1!N42,IF(Auswahl_Periode=4,Dashboard_Basis_Auswahl_2!M42,Dashboard_Basis_Auswahl_2!M42)) -> 64325.4134
A82: Veränderung zur Vorjahresperiode in % | B82: =IF(OR(Auswahl_Periode=1,Auswahl_Periode=2),Dashboard_Basis_Auswahl_1!B13,IF(Auswahl_Periode=4,Dashboard_Basis_Auswahl_2!D13&" "&Dashboard_Basis_Auswahl_2!D14,Dashboard_Basis_Auswahl_2!D13)) -> Juli 2021/2020 | C82: =IF(OR(Auswahl_Periode=1,Auswahl_Periode=2),Dashboard_Basis_Auswahl_1!C13,IF(Auswahl_Periode=4,Dashboard_Basis_Auswahl_2!E13&" "&Dashboard_Basis_Auswahl_2!E14,Dashboard_Basis_Auswahl_2!E13)) -> August 2021/2020 | D82: =IF(OR(Auswahl_Periode=1,Auswahl_Periode=2),Dashboard_Basis_Auswahl_1!D13,IF(Auswahl_Periode=4,Dashboard_Basis_Auswahl_2!F13&" "&Dashboard_Basis_Auswahl_2!F14,Dashboard_Basis_Auswahl_2!F13)) -> September 2021/2020 | E82: =IF(OR(Auswahl_Periode=1,Auswahl_Periode=2),Dashboard_Basis_Auswahl_1!E13,IF(Auswahl_Periode=4,Dashboard_Basis_Auswahl_2!G13&" "&Dashboard_Basis_Auswahl_2!G14,Dashboard_Basis_Auswahl_2!G13)) -> 3. Quartal 2021/2020 | F82: =IF(OR(Auswahl_Periode=1,Auswahl_Periode=2),Dashboard_Basis_Auswahl_1!F13,IF(Auswahl_Periode=4,Dashboard_Basis_Auswahl_2!H13&" "&Dashboard_Basis_Auswahl_2!H14,Dashboard_Basis_Auswahl_2!H13)) -> Juli 2022/2021 | G82: =IF(OR(Auswahl_Periode=1,Auswahl_Periode=2),Dashboard_Basis_Auswahl_1!G13,IF(Auswahl_Periode=4,Dashboard_Basis_Auswahl_2!I13&" "&Dashboard_Basis_Auswahl_2!I14,Dashboard_Basis_Auswahl_2!I13)) -> August 2022/2021 | H82: =IF(OR(Auswahl_Periode=1,Auswahl_Periode=2),Dashboard_Basis_Auswahl_1!H13,IF(Auswahl_Periode=4,Dashboard_Basis_Auswahl_2!J13&" "&Dashboard_Basis_Auswahl_2!J14,Dashboard_Basis_Auswahl_2!J13)) -> September 2022/2021 | I82: =IF(OR(Auswahl_Periode=1,Auswahl_Periode=2),Dashboard_Basis_Auswahl_1!I13,IF(Auswahl_Periode=4,Dashboard_Basis_Auswahl_2!K13&" "&Dashboard_Basis_Auswahl_2!K14,Dashboard_Basis_Auswahl_2!K13)) -> 3. Quartal 2022/2021
A83: Bergwerke und Stahl | B83: =IF(OR(Auswahl_Periode=1,Auswahl_Periode=2),Dashboard_Basis_Auswahl_1!C45,IF(Auswahl_Periode=4,Dashboard_Basis_Auswahl_2!D45,Dashboard_Basis_Auswahl_2!D45)) -> 43.09478905 | C83: =IF(OR(Auswahl_Periode=1,Auswahl_Periode=2),Dashboard_Basis_Auswahl_1!D45,IF(Auswahl_Periode=4,Dashboard_Basis_Auswahl_2!E45,Dashboard_Basis_Auswahl_2!E45)) -> 62.48666582 | D83: =IF(OR(Auswahl_Periode=1,Auswahl_Periode=2),Dashboard_Basis_Auswahl_1!E45,IF(Auswahl_Periode=4,Dashboard_Basis_Auswahl_2!F45,Dashboard_Basis_Auswahl_2!F45)) -> 44.48586139 | E83: =IF(OR(Auswahl_Periode=1,Auswahl_Periode=2),Dashboard_Basis_Auswahl_1!F45,IF(Auswahl_Periode=4,Dashboard_Basis_Auswahl_2!G45,Dashboard_Basis_Auswahl_2!G45)) -> 49.25229545 | F83: =IF(OR(Auswahl_Periode=1,Auswahl_Periode=2),Dashboard_Basis_Auswahl_1!G45,IF(Auswahl_Periode=4,Dashboard_Basis_Auswahl_2!H45,Dashboard_Basis_Auswahl_2!H45)) -> 35.32969117 | G83: =IF(OR(Auswahl_Periode=1,Auswahl_Periode=2),Dashboard_Basis_Auswahl_1!H45,IF(Auswahl_Periode=4,Dashboard_Basis_Auswahl_2!I45,Dashboard_Basis_Auswahl_2!I45)) -> 26.95116707 | H83: =IF(OR(Auswahl_Periode=1,Auswahl_Periode=2),Dashboard_Basis_Auswahl_1!I45,IF(Auswahl_Periode=4,Dashboard_Basis_Auswahl_2!J45,Dashboard_Basis_Auswahl_2!J45)) -> 32.09471785 | I83: =IF(OR(Auswahl_Periode=1,Auswahl_Periode=2),Dashboard_Basis_Auswahl_1!J45,IF(Auswahl_Periode=4,Dashboard_Basis_Auswahl_2!K45,Dashboard_Basis_Auswahl_2!K45)) -> 31.50056395
A84: Mineralölindustrie | B84: =IF(OR(Auswahl_Periode=1,Auswahl_Periode=2),Dashboard_Basis_Auswahl_1!C46,IF(Auswahl_Periode=4,Dashboard_Basis_Auswahl_2!D46,Dashboard_Basis_Auswahl_2!D46)) -> 48.63576345 | C84: =IF(OR(Auswahl_Periode=1,Auswahl_Periode=2),Dashboard_Basis_Auswahl_1!D46,IF(Auswahl_Periode=4,Dashboard_Basis_Auswahl_2!E46,Dashboard_Basis_Auswahl_2!E46)) -> 50.65879096 | D84: =IF(OR(Auswahl_Periode=1,Auswahl_Periode=2),Dashboard_Basis_Auswahl_1!E46,IF(Auswahl_Periode=4,Dashboard_Basis_Auswahl_2!F46,Dashboard_Basis_Auswahl_2!F46)) -> 58.7429937 | E84: =IF(OR(Auswahl_Periode=1,Auswahl_Periode=2),Dashboard_Basis_Auswahl_1!F46,IF(Auswahl_Periode=4,Dashboard_Basis_Auswahl_2!G46,Dashboard_Basis_Auswahl_2!G46)) -> 52.58736426 | F84: =IF(OR(Auswahl_Periode=1,Auswahl_Periode=2),Dashboard_Basis_Auswahl_1!G46,IF(Auswahl_Periode=4,Dashboard_Basis_Auswahl_2!H46,Dashboard_Basis_Auswahl_2!H46)) -> 5.067506535 | G84: =IF(OR(Auswahl_Periode=1,Auswahl_Periode=2),Dashboard_Basis_Auswahl_1!H46,IF(Auswahl_Periode=4,Dashboard_Basis_Auswahl_2!I46,Dashboard_Basis_Auswahl_2!I46)) -> 6.468757746 | H84: =IF(OR(Auswahl_Periode=1,Auswahl_Periode=2),Dashboard_Basis_Auswahl_1!I46,IF(Auswahl_Periode=4,Dashboard_Basis_Auswahl_2!J46,Dashboard_Basis_Auswahl_2!J46)) -> -1.811727915 | I84: =IF(OR(Auswahl_Periode=1,Auswahl_Periode=2),Dashboard_Basis_Auswahl_1!J46,IF(Auswahl_Periode=4,Dashboard_Basis_Auswahl_2!K46,Dashboard_Basis_Auswahl_2!K46)) -> 3.197643977
A85: Stein- u. keramische Industrie | B85: =IF(OR(Auswahl_Periode=1,Auswahl_Periode=2),Dashboard_Basis_Auswahl_1!C47,IF(Auswahl_Periode=4,Dashboard_Basis_Auswahl_2!D47,Dashboard_Basis_Auswahl_2!D47)) -> 8.034680627 | C85: =IF(OR(Auswahl_Periode=1,Auswahl_Periode=2),Dashboard_Basis_Auswahl_1!D47,IF(Auswahl_Periode=4,Dashboard_Basis_Auswahl_2!E47,Dashboard_Basis_Auswahl_2!E47)) -> 14.20015414 | D85: =IF(OR(Auswahl_Periode=1,Auswahl_Periode=2),Dashboard_Basis_Auswahl_1!E47,IF(Auswahl_Periode=4,Dashboard_Basis_Auswahl_2!F47,Dashboard_Basis_Auswahl_2!F47)) -> 9.322649146 | E85: =IF(OR(Auswahl_Periode=1,Auswahl_Periode=2),Dashboard_Basis_Auswahl_1!F47,IF(Auswahl_Periode=4,Dashboard_Basis_Auswahl_2!G47,Dashboard_Basis_Auswahl_2!G47)) -> 10.30362851 | F85: =IF(OR(Auswahl_Periode=1,Auswahl_Periode=2),Dashboard_Basis_Auswahl_1!G47,IF(Auswahl_Periode=4,Dashboard_Basis_Auswahl_2!H47,Dashboard_Basis_Auswahl_2!H47)) -> -0.1685100613 | G85: =IF(OR(Auswahl_Periode=1,Auswahl_Periode=2),Dashboard_Basis_Auswahl_1!H47,IF(Auswahl_Periode=4,Dashboard_Basis_Auswahl_2!I47,Dashboard_Basis_Auswahl_2!I47)) -> 5.80797963 | H85: =IF(OR(Auswahl_Periode=1,Auswahl_Periode=2),Dashboard_Basis_Auswahl_1!I47,IF(Auswahl_Periode=4,Dashboard_Basis_Auswahl_2!J47,Dashboard_Basis_Auswahl_2!J47)) -> 6.889931939 | I85: =IF(OR(Auswahl_Periode=1,Auswahl_Periode=2),Dashboard_Basis_Auswahl_1!J47,IF(Auswahl_Periode=4,Dashboard_Basis_Auswahl_2!K47,Dashboard_Basis_Auswahl_2!K47)) -> 4.095749255
A86: Glasindustrie | B86: =IF(OR(Auswahl_Periode=1,Auswahl_Periode=2),Dashboard_Basis_Auswahl_1!C48,IF(Auswahl_Periode=4,Dashboard_Basis_Auswahl_2!D48,Dashboard_Basis_Auswahl_2!D48)) -> 18.76548438 | C86: =IF(OR(Auswahl_Periode=1,Auswahl_Periode=2),Dashboard_Basis_Auswahl_1!D48,IF(Auswahl_Periode=4,Dashboard_Basis_Auswahl_2!E48,Dashboard_Basis_Auswahl_2!E48)) -> 12.36594852 | D86: =IF(OR(Auswahl_Periode=1,Auswahl_Periode=2),Dashboard_Basis_Auswahl_1!E48,IF(Auswahl_Periode=4,Dashboard_Basis_Auswahl_2!F48,Dashboard_Basis_Auswahl_2!F48)) -> 11.77009454 | E86: =IF(OR(Auswahl_Periode=1,Auswahl_Periode=2),Dashboard_Basis_Auswahl_1!F48,IF(Auswahl_Periode=4,Dashboard_Basis_Auswahl_2!G48,Dashboard_Basis_Auswahl_2!G48)) -> 14.35197968 | F86: =IF(OR(Auswahl_Periode=1,Auswahl_Periode=2),Dashboard_Basis_Auswahl_1!G48,IF(Auswahl_Periode=4,Dashboard_Basis_Auswahl_2!H48,Dashboard_Basis_Auswahl_2!H48)) -> 4.185581083 | G86: =IF(OR(Auswahl_Periode=1,Auswahl_Periode=2),Dashboard_Basis_Auswahl_1!H48,IF(Auswahl_Periode=4,Dashboard_Basis_Auswahl_2!I48,Dashboard_Basis_Auswahl_2!I48)) -> 17.52017241 | H86: =IF(OR(Auswahl_Periode=1,Auswahl_Periode=2),Dashboard_Basis_Auswahl_1!I48,IF(Auswahl_Periode=4,Dashboard_Basis_Auswahl_2!J48,Dashboard_Basis_Auswahl_2!J48)) -> 15.89775676 | I86: =IF(OR(Auswahl_Periode=1,Auswahl_Periode=2),Dashboard_Basis_Auswahl_1!J48,IF(Auswahl_Periode=4,Dashboard_Basis_Auswahl_2!K48,Dashboard_Basis_Auswahl_2!K48)) -> 12.21069433
A87: Chemische Industrie | B87: =IF(OR(Auswahl_Periode=1,Auswahl_Periode=2),Dashboard_Basis_Auswahl_1!C49,IF(Auswahl_Periode=4,Dashboard_Basis_Auswahl_2!D49,Dashboard_Basis_Auswahl_2!D49)) -> 18.19873316 | C87: =IF(OR(Auswahl_Periode=1,Auswahl_Periode=2),Dashboard_Basis_Auswahl_1!D49,IF(Auswahl_Periode=4,Dashboard_Basis_Auswahl_2!E49,Dashboard_Basis_Auswahl_2!E49)) -> 26.41914188 | D87: =IF(OR(Auswahl_Periode=1,Auswahl_Periode=2),Dashboard_Basis_Auswahl_1!E49,IF(Auswahl_Periode=4,Dashboard_Basis_Auswahl_2!F49,Dashboard_Basis_Auswahl_2!F49)) -> 23.58339092 | E87: =IF(OR(Auswahl_Periode=1,Auswahl_Periode=2),Dashboard_Basis_Auswahl_1!F49,IF(Auswahl_Periode=4,Dashboard_Basis_Auswahl_2!G49,Dashboard_Basis_Auswahl_2!G49)) -> 22.58392298 | F87: =IF(OR(Auswahl_Periode=1,Auswahl_Periode=2),Dashboard_Basis_Auswahl_1!G49,IF(Auswahl_Periode=4,Dashboard_Basis_Auswahl_2!H49,Dashboard_Basis_Auswahl_2!H49)) -> 12.61620254 | G87: =IF(OR(Auswahl_Periode=1,Auswahl_Periode=2),Dashboard_Basis_Auswahl_1!H49,IF(Auswahl_Periode=4,Dashboard_Basis_Auswahl_2!I49,Dashboard_Basis_Auswahl_2!I49)) -> 16.09373692 | H87: =IF(OR(Auswahl_Periode=1,Auswahl_Periode=2),Dashboard_Basis_Auswahl_1!I49,IF(Auswahl_Periode=4,Dashboard_Basis_Auswahl_2!J49,Dashboard_Basis_Auswahl_2!J49)) -> 9.856848327 | I87: =IF(OR(Auswahl_Periode=1,Auswahl_Periode=2),Dashboard_Basis_Auswahl_1!J49,IF(Auswahl_Periode=4,Dashboard_Basis_Auswahl_2!K49,Dashboard_Basis_Auswahl_2!K49)) -> 12.72823515
A88: Papierindustrie | B88: =IF(OR(Auswahl_Periode=1,Auswahl_Periode=2),Dashboard_Basis_Auswahl_1!C50,IF(Auswahl_Periode=4,Dashboard_Basis_Auswahl_2!D50,Dashboard_Basis_Auswahl_2!D50)) -> 22.27158773 | C88: =IF(OR(Auswahl_Periode=1,Auswahl_Periode=2),Dashboard_Basis_Auswahl_1!D50,IF(Auswahl_Periode=4,Dashboard_Basis_Auswahl_2!E50,Dashboard_Basis_Auswahl_2!E50)) -> 27.52242279 | D88: =IF(OR(Auswahl_Periode=1,Auswahl_Periode=2),Dashboard_Basis_Auswahl_1!E50,IF(Auswahl_Periode=4,Dashboard_Basis_Auswahl_2!F50,Dashboard_Basis_Auswahl_2!F50)) -> 22.50124028 | E88: =IF(OR(Auswahl_Periode=1,Auswahl_Periode=2),Dashboard_Basis_Auswahl_1!F50,IF(Auswahl_Periode=4,Dashboard_Basis_Auswahl_2!G50,Dashboard_Basis_Auswahl_2!G50)) -> 23.9757967 | F88: =IF(OR(Auswahl_Periode=1,Auswahl_Periode=2),Dashboard_Basis_Auswahl_1!G50,IF(Auswahl_Periode=4,Dashboard_Basis_Auswahl_2!H50,Dashboard_Basis_Auswahl_2!H50)) -> 47.27237605 | G88: =IF(OR(Auswahl_Periode=1,Auswahl_Periode=2),Dashboard_Basis_Auswahl_1!H50,IF(Auswahl_Periode=4,Dashboard_Basis_Auswahl_2!I50,Dashboard_Basis_Auswahl_2!I50)) -> 49.97294217 | H88: =IF(OR(Auswahl_Periode=1,Auswahl_Periode=2),Dashboard_Basis_Auswahl_1!I50,IF(Auswahl_Periode=4,Dashboard_Basis_Auswahl_2!J50,Dashboard_Basis_Auswahl_2!J50)) -> 46.26606639 | I88: =IF(OR(Auswahl_Periode=1,Auswahl_Periode=2),Dashboard_Basis_Auswahl_1!J50,IF(Auswahl_Periode=4,Dashboard_Basis_Auswahl_2!K50,Dashboard_Basis_Auswahl_2!K50)) -> 47.77026584
A89: PROPAK - Produkte aus Papier & Karton | B89: =IF(OR(Auswahl_Periode=1,Auswahl_Periode=2),Dashboard_Basis_Auswahl_1!C51,IF(Auswahl_Periode=4,Dashboard_Basis_Auswahl_2!D51,Dashboard_Basis_Auswahl_2!D51)) -> 6.661280153 | C89: =IF(OR(Auswahl_Periode=1,Auswahl_Periode=2),Dashboard_Basis_Auswahl_1!D51,IF(Auswahl_Periode=4,Dashboard_Basis_Auswahl_2!E51,Dashboard_Basis_Auswahl_2!E51)) -> 14.09415589 | D89: =IF(OR(Auswahl_Periode=1,Auswahl_Periode=2),Dashboard_Basis_Auswahl_1!E51,IF(Auswahl_Periode=4,Dashboard_Basis_Auswahl_2!F51,Dashboard_Basis_Auswahl_2!F51)) -> 8.929837776 | E89: =IF(OR(Auswahl_Periode=1,Auswahl_Periode=2),Dashboard_Basis_Auswahl_1!F51,IF(Auswahl_Periode=4,Dashboard_Basis_Auswahl_2!G51,Dashboard_Basis_Auswahl_2!G51)) -> 9.758408145 | F89: =IF(OR(Auswahl_Periode=1,Auswahl_Periode=2),Dashboard_Basis_Auswahl_1!G51,IF(Auswahl_Periode=4,Dashboard_Basis_Auswahl_2!H51,Dashboard_Basis_Auswahl_2!H51)) -> 15.64552924 | G89: =IF(OR(Auswahl_Periode=1,Auswahl_Periode=2),Dashboard_Basis_Auswahl_1!H51,IF(Auswahl_Periode=4,Dashboard_Basis_Auswahl_2!I51,Dashboard_Basis_Auswahl_2!I51)) -> 19.95553508 | H89: =IF(OR(Auswahl_Periode=1,Auswahl_Periode=2),Dashboard_Basis_Auswahl_1!I51,IF(Auswahl_Periode=4,Dashboard_Basis_Auswahl_2!J51,Dashboard_Basis_Auswahl_2!J51)) -> 17.6961187 | I89: =IF(OR(Auswahl_Periode=1,Auswahl_Periode=2),Dashboard_Basis_Auswahl_1!J51,IF(Auswahl_Periode=4,Dashboard_Basis_Auswahl_2!K51,Dashboard_Basis_Auswahl_2!K51)) -> 17.74927917
A90: Bauindustrie | B90: =IF(OR(Auswahl_Periode=1,Auswahl_Periode=2),Dashboard_Basis_Auswahl_1!C52,IF(Auswahl_Periode=4,Dashboard_Basis_Auswahl_2!D52,Dashboard_Basis_Auswahl_2!D52)) -> 0.1420718761 | C90: =IF(OR(Auswahl_Periode=1,Auswahl_Periode=2),Dashboard_Basis_Auswahl_1!D52,IF(Auswahl_Periode=4,Dashboard_Basis_Auswahl_2!E52,Dashboard_Basis_Auswahl_2!E52)) -> 6.870357062 | D90: =IF(OR(Auswahl_Periode=1,Auswahl_Periode=2),Dashboard_Basis_Auswahl_1!E52,IF(Auswahl_Periode=4,Dashboard_Basis_Auswahl_2!F52,Dashboard_Basis_Auswahl_2!F52)) -> 7.956594624 | E90: =IF(OR(Auswahl_Periode=1,Auswahl_Periode=2),Dashboard_Basis_Auswahl_1!F52,IF(Auswahl_Periode=4,Dashboard_Basis_Auswahl_2!G52,Dashboard_Basis_Auswahl_2!G52)) -> 4.947069154 | F90: =IF(OR(Auswahl_Periode=1,Auswahl_Periode=2),Dashboard_Basis_Auswahl_1!G52,IF(Auswahl_Periode=4,Dashboard_Basis_Auswahl_2!H52,Dashboard_Basis_Auswahl_2!H52)) -> 8.733161806 | G90: =IF(OR(Auswahl_Periode=1,Auswahl_Periode=2),Dashboard_Basis_Auswahl_1!H52,IF(Auswahl_Periode=4,Dashboard_Basis_Auswahl_2!I52,Dashboard_Basis_Auswahl_2!I52)) -> 6.643363919 | H90: =IF(OR(Auswahl_Periode=1,Auswahl_Periode=2),Dashboard_Basis_Auswahl_1!I52,IF(Auswahl_Periode=4,Dashboard_Basis_Auswahl_2!J52,Dashboard_Basis_Auswahl_2!J52)) -> 1.0138724 | I90: =IF(OR(Auswahl_Periode=1,Auswahl_Periode=2),Dashboard_Basis_Auswahl_1!J52,IF(Auswahl_Periode=4,Dashboard_Basis_Auswahl_2!K52,Dashboard_Basis_Auswahl_2!K52)) -> 5.31816701
A91: Holzindustrie | B91: =IF(OR(Auswahl_Periode=1,Auswahl_Periode=2),Dashboard_Basis_Auswahl_1!C53,IF(Auswahl_Periode=4,Dashboard_Basis_Auswahl_2!D53,Dashboard_Basis_Auswahl_2!D53)) -> 34.4894858 | C91: =IF(OR(Auswahl_Periode=1,Auswahl_Periode=2),Dashboard_Basis_Auswahl_1!D53,IF(Auswahl_Periode=4,Dashboard_Basis_Auswahl_2!E53,Dashboard_Basis_Auswahl_2!E53)) -> 39.8279231 | D91: =IF(OR(Auswahl_Periode=1,Auswahl_Periode=2),Dashboard_Basis_Auswahl_1!E53,IF(Auswahl_Periode=4,Dashboard_Basis_Auswahl_2!F53,Dashboard_Basis_Auswahl_2!F53)) -> 24.50799606 | E91: =IF(OR(Auswahl_Periode=1,Auswahl_Periode=2),Dashboard_Basis_Auswahl_1!F53,IF(Auswahl_Periode=4,Dashboard_Basis_Auswahl_2!G53,Dashboard_Basis_Auswahl_2!G53)) -> 32.21823505 | F91: =IF(OR(Auswahl_Periode=1,Auswahl_Periode=2),Dashboard_Basis_Auswahl_1!G53,IF(Auswahl_Periode=4,Dashboard_Basis_Auswahl_2!H53,Dashboard_Basis_Auswahl_2!H53)) -> -8.362007525 | G91: =IF(OR(Auswahl_Periode=1,Auswahl_Periode=2),Dashboard_Basis_Auswahl_1!H53,IF(Auswahl_Periode=4,Dashboard_Basis_Auswahl_2!I53,Dashboard_Basis_Auswahl_2!I53)) -> -6.427634368 | H91: =IF(OR(Auswahl_Periode=1,Auswahl_Periode=2),Dashboard_Basis_Auswahl_1!I53,IF(Auswahl_Periode=4,Dashboard_Basis_Auswahl_2!J53,Dashboard_Basis_Auswahl_2!J53)) -> 2.200837285 | I91: =IF(OR(Auswahl_Periode=1,Auswahl_Periode=2),Dashboard_Basis_Auswahl_1!J53,IF(Auswahl_Periode=4,Dashboard_Basis_Auswahl_2!K53,Dashboard_Basis_Auswahl_2!K53)) -> -4.074267185
A92: Nahrungs- u. Genussmittelindustrie (Lebensmittelindustrie) | B92: =IF(OR(Auswahl_Periode=1,Auswahl_Periode=2),Dashboard_Basis_Auswahl_1!C54,IF(Auswahl_Periode=4,Dashboard_Basis_Auswahl_2!D54,Dashboard_Basis_Auswahl_2!D54)) -> 1.701540082 | C92: =IF(OR(Auswahl_Periode=1,Auswahl_Periode=2),Dashboard_Basis_Auswahl_1!D54,IF(Auswahl_Periode=4,Dashboard_Basis_Auswahl_2!E54,Dashboard_Basis_Auswahl_2!E54)) -> 10.72919976 | D92: =IF(OR(Auswahl_Periode=1,Auswahl_Periode=2),Dashboard_Basis_Auswahl_1!E54,IF(Auswahl_Periode=4,Dashboard_Basis_Auswahl_2!F54,Dashboard_Basis_Auswahl_2!F54)) -> 5.098326434 | E92: =IF(OR(Auswahl_Periode=1,Auswahl_Periode=2),Dashboard_Basis_Auswahl_1!F54,IF(Auswahl_Periode=4,Dashboard_Basis_Auswahl_2!G54,Dashboard_Basis_Auswahl_2!G54)) -> 5.693230627 | F92: =IF(OR(Auswahl_Periode=1,Auswahl_Periode=2),Dashboard_Basis_Auswahl_1!G54,IF(Auswahl_Periode=4,Dashboard_Basis_Auswahl_2!H54,Dashboard_Basis_Auswahl_2!H54)) -> 15.78034842 | G92: =IF(OR(Auswahl_Periode=1,Auswahl_Periode=2),Dashboard_Basis_Auswahl_1!H54,IF(Auswahl_Periode=4,Dashboard_Basis_Auswahl_2!I54,Dashboard_Basis_Auswahl_2!I54)) -> 22.97838619 | H92: =IF(OR(Auswahl_Periode=1,Auswahl_Periode=2),Dashboard_Basis_Auswahl_1!I54,IF(Auswahl_Periode=4,Dashboard_Basis_Auswahl_2!J54,Dashboard_Basis_Auswahl_2!J54)) -> 19.29698528 | I92: =IF(OR(Auswahl_Periode=1,Auswahl_Periode=2),Dashboard_Basis_Auswahl_1!J54,IF(Auswahl_Periode=4,Dashboard_Basis_Auswahl_2!K54,Dashboard_Basis_Auswahl_2!K54)) -> 19.34067549
A93: Textil-, Bekleidungs-, Schuh- und Lederindustrie | B93: =IF(OR(Auswahl_Periode=1,Auswahl_Periode=2),Dashboard_Basis_Auswahl_1!C55,IF(Auswahl_Periode=4,Dashboard_Basis_Auswahl_2!D55,Dashboard_Basis_Auswahl_2!D55)) -> -3.190459272 | C93: =IF(OR(Auswahl_Periode=1,Auswahl_Periode=2),Dashboard_Basis_Auswahl_1!D55,IF(Auswahl_Periode=4,Dashboard_Basis_Auswahl_2!E55,Dashboard_Basis_Auswahl_2!E55)) -> -5.089993416 | D93: =IF(OR(Auswahl_Periode=1,Auswahl_Periode=2),Dashboard_Basis_Auswahl_1!E55,IF(Auswahl_Periode=4,Dashboard_Basis_Auswahl_2!F55,Dashboard_Basis_Auswahl_2!F55)) -> 4.020205709 | E93: =IF(OR(Auswahl_Periode=1,Auswahl_Periode=2),Dashboard_Basis_Auswahl_1!F55,IF(Auswahl_Periode=4,Dashboard_Basis_Auswahl_2!G55,Dashboard_Basis_Auswahl_2!G55)) -> -1.063354621 | F93: =IF(OR(Auswahl_Periode=1,Auswahl_Periode=2),Dashboard_Basis_Auswahl_1!G55,IF(Auswahl_Periode=4,Dashboard_Basis_Auswahl_2!H55,Dashboard_Basis_Auswahl_2!H55)) -> 7.168805961 | G93: =IF(OR(Auswahl_Periode=1,Auswahl_Periode=2),Dashboard_Basis_Auswahl_1!H55,IF(Auswahl_Periode=4,Dashboard_Basis_Auswahl_2!I55,Dashboard_Basis_Auswahl_2!I55)) -> 14.44207774 | H93: =IF(OR(Auswahl_Periode=1,Auswahl_Periode=2),Dashboard_Basis_Auswahl_1!I55,IF(Auswahl_Periode=4,Dashboard_Basis_Auswahl_2!J55,Dashboard_Basis_Auswahl_2!J55)) -> 7.336502741 | I93: =IF(OR(Auswahl_Periode=1,Auswahl_Periode=2),Dashboard_Basis_Auswahl_1!J55,IF(Auswahl_Periode=4,Dashboard_Basis_Auswahl_2!K55,Dashboard_Basis_Auswahl_2!K55)) -> 9.197820637
A94: Gas- u. Wärmeversorgungsunternehmungen | B94: =IF(OR(Auswahl_Periode=1,Auswahl_Periode=2),Dashboard_Basis_Auswahl_1!C56,IF(Auswahl_Periode=4,Dashboard_Basis_Auswahl_2!D56,Dashboard_Basis_Auswahl_2!D56)) -> 129.7213316 | C94: =IF(OR(Auswahl_Periode=1,Auswahl_Periode=2),Dashboard_Basis_Auswahl_1!D56,IF(Auswahl_Periode=4,Dashboard_Basis_Auswahl_2!E56,Dashboard_Basis_Auswahl_2!E56)) -> 147.9058815 | D94: =IF(OR(Auswahl_Periode=1,Auswahl_Periode=2),Dashboard_Basis_Auswahl_1!E56,IF(Auswahl_Periode=4,Dashboard_Basis_Auswahl_2!F56,Dashboard_Basis_Auswahl_2!F56)) -> 144.1536808 | E94: =IF(OR(Auswahl_Periode=1,Auswahl_Periode=2),Dashboard_Basis_Auswahl_1!F56,IF(Auswahl_Periode=4,Dashboard_Basis_Auswahl_2!G56,Dashboard_Basis_Auswahl_2!G56)) -> 140.7274834 | F94: =IF(OR(Auswahl_Periode=1,Auswahl_Periode=2),Dashboard_Basis_Auswahl_1!G56,IF(Auswahl_Periode=4,Dashboard_Basis_Auswahl_2!H56,Dashboard_Basis_Auswahl_2!H56)) -> 104.0406927 | G94: =IF(OR(Auswahl_Periode=1,Auswahl_Periode=2),Dashboard_Basis_Auswahl_1!H56,IF(Auswahl_Periode=4,Dashboard_Basis_Auswahl_2!I56,Dashboard_Basis_Auswahl_2!I56)) -> 128.7437317 | H94: =IF(OR(Auswahl_Periode=1,Auswahl_Periode=2),Dashboard_Basis_Auswahl_1!I56,IF(Auswahl_Periode=4,Dashboard_Basis_Auswahl_2!J56,Dashboard_Basis_Auswahl_2!J56)) -> 62.91211925 | I94: =IF(OR(Auswahl_Periode=1,Auswahl_Periode=2),Dashboard_Basis_Auswahl_1!J56,IF(Auswahl_Periode=4,Dashboard_Basis_Auswahl_2!K56,Dashboard_Basis_Auswahl_2!K56)) -> 97.07685524
A95: NE-Metallindustrie | B95: =IF(OR(Auswahl_Periode=1,Auswahl_Periode=2),Dashboard_Basis_Auswahl_1!C57,IF(Auswahl_Periode=4,Dashboard_Basis_Auswahl_2!D57,Dashboard_Basis_Auswahl_2!D57)) -> 50.64325856 | C95: =IF(OR(Auswahl_Periode=1,Auswahl_Periode=2),Dashboard_Basis_Auswahl_1!D57,IF(Auswahl_Periode=4,Dashboard_Basis_Auswahl_2!E57,Dashboard_Basis_Auswahl_2!E57)) -> 58.88087479 | D95: =IF(OR(Auswahl_Periode=1,Auswahl_Periode=2),Dashboard_Basis_Auswahl_1!E57,IF(Auswahl_Periode=4,Dashboard_Basis_Auswahl_2!F57,Dashboard_Basis_Auswahl_2!F57)) -> 53.11161835 | E95: =IF(OR(Auswahl_Periode=1,Auswahl_Periode=2),Dashboard_Basis_Auswahl_1!F57,IF(Auswahl_Periode=4,Dashboard_Basis_Auswahl_2!G57,Dashboard_Basis_Auswahl_2!G57)) -> 53.96738838 | F95: =IF(OR(Auswahl_Periode=1,Auswahl_Periode=2),Dashboard_Basis_Auswahl_1!G57,IF(Auswahl_Periode=4,Dashboard_Basis_Auswahl_2!H57,Dashboard_Basis_Auswahl_2!H57)) -> 15.30437896 | G95: =IF(OR(Auswahl_Periode=1,Auswahl_Periode=2),Dashboard_Basis_Auswahl_1!H57,IF(Auswahl_Periode=4,Dashboard_Basis_Auswahl_2!I57,Dashboard_Basis_Auswahl_2!I57)) -> 16.65459161 | H95: =IF(OR(Auswahl_Periode=1,Auswahl_Periode=2),Dashboard_Basis_Auswahl_1!I57,IF(Auswahl_Periode=4,Dashboard_Basis_Auswahl_2!J57,Dashboard_Basis_Auswahl_2!J57)) -> 11.78979844 | I95: =IF(OR(Auswahl_Periode=1,Auswahl_Periode=2),Dashboard_Basis_Auswahl_1!J57,IF(Auswahl_Periode=4,Dashboard_Basis_Auswahl_2!K57,Dashboard_Basis_Auswahl_2!K57)) -> 14.48410491
A96: Maschinen-, Metallwaren- und Gießereiindustrie | B96: =IF(OR(Auswahl_Periode=1,Auswahl_Periode=2),Dashboard_Basis_Auswahl_1!C58,IF(Auswahl_Periode=4,Dashboard_Basis_Auswahl_2!D58,Dashboard_Basis_Auswahl_2!D58)) -> 16.14795641 | C96: =IF(OR(Auswahl_Periode=1,Auswahl_Periode=2),Dashboard_Basis_Auswahl_1!D58,IF(Auswahl_Periode=4,Dashboard_Basis_Auswahl_2!E58,Dashboard_Basis_Auswahl_2!E58)) -> 25.53822561 | D96: =IF(OR(Auswahl_Periode=1,Auswahl_Periode=2),Dashboard_Basis_Auswahl_1!E58,IF(Auswahl_Periode=4,Dashboard_Basis_Auswahl_2!F58,Dashboard_Basis_Auswahl_2!F58)) -> 17.00205169 | E96: =IF(OR(Auswahl_Periode=1,Auswahl_Periode=2),Dashboard_Basis_Auswahl_1!F58,IF(Auswahl_Periode=4,Dashboard_Basis_Auswahl_2!G58,Dashboard_Basis_Auswahl_2!G58)) -> 19.11275074 | F96: =IF(OR(Auswahl_Periode=1,Auswahl_Periode=2),Dashboard_Basis_Auswahl_1!G58,IF(Auswahl_Periode=4,Dashboard_Basis_Auswahl_2!H58,Dashboard_Basis_Auswahl_2!H58)) -> 5.27489019 | G96: =IF(OR(Auswahl_Periode=1,Auswahl_Periode=2),Dashboard_Basis_Auswahl_1!H58,IF(Auswahl_Periode=4,Dashboard_Basis_Auswahl_2!I58,Dashboard_Basis_Auswahl_2!I58)) -> 12.47101833 | H96: =IF(OR(Auswahl_Periode=1,Auswahl_Periode=2),Dashboard_Basis_Auswahl_1!I58,IF(Auswahl_Periode=4,Dashboard_Basis_Auswahl_2!J58,Dashboard_Basis_Auswahl_2!J58)) -> 16.81507123 | I96: =IF(OR(Auswahl_Periode=1,Auswahl_Periode=2),Dashboard_Basis_Auswahl_1!J58,IF(Auswahl_Periode=4,Dashboard_Basis_Auswahl_2!K58,Dashboard_Basis_Auswahl_2!K58)) -> 11.56123015
A97: Fahrzeugindustrie | B97: =IF(OR(Auswahl_Periode=1,Auswahl_Periode=2),Dashboard_Basis_Auswahl_1!C59,IF(Auswahl_Periode=4,Dashboard_Basis_Auswahl_2!D59,Dashboard_Basis_Auswahl_2!D59)) -> -13.4082416 | C97: =IF(OR(Auswahl_Periode=1,Auswahl_Periode=2),Dashboard_Basis_Auswahl_1!D59,IF(Auswahl_Periode=4,Dashboard_Basis_Auswahl_2!E59,Dashboard_Basis_Auswahl_2!E59)) -> 31.72326659 | D97: =IF(OR(Auswahl_Periode=1,Auswahl_Periode=2),Dashboard_Basis_Auswahl_1!E59,IF(Auswahl_Periode=4,Dashboard_Basis_Auswahl_2!F59,Dashboard_Basis_Auswahl_2!F59)) -> -17.27423153 | E97: =IF(OR(Auswahl_Periode=1,Auswahl_Periode=2),Dashboard_Basis_Auswahl_1!F59,IF(Auswahl_Periode=4,Dashboard_Basis_Auswahl_2!G59,Dashboard_Basis_Auswahl_2!G59)) -> -5.963804091 | F97: =IF(OR(Auswahl_Periode=1,Auswahl_Periode=2),Dashboard_Basis_Auswahl_1!G59,IF(Auswahl_Periode=4,Dashboard_Basis_Auswahl_2!H59,Dashboard_Basis_Auswahl_2!H59)) -> -3.162132932 | G97: =IF(OR(Auswahl_Periode=1,Auswahl_Periode=2),Dashboard_Basis_Auswahl_1!H59,IF(Auswahl_Periode=4,Dashboard_Basis_Auswahl_2!I59,Dashboard_Basis_Auswahl_2!I59)) -> -10.16182556 | H97: =IF(OR(Auswahl_Periode=1,Auswahl_Periode=2),Dashboard_Basis_Auswahl_1!I59,IF(Auswahl_Periode=4,Dashboard_Basis_Auswahl_2!J59,Dashboard_Basis_Auswahl_2!J59)) -> 27.22542853 | I97: =IF(OR(Auswahl_Periode=1,Auswahl_Periode=2),Dashboard_Basis_Auswahl_1!J59,IF(Auswahl_Periode=4,Dashboard_Basis_Auswahl_2!K59,Dashboard_Basis_Auswahl_2!K59)) -> 5.665955509
A98: Elektro- u. Elektronikindustrie | B98: =IF(OR(Auswahl_Periode=1,Auswahl_Periode=2),Dashboard_Basis_Auswahl_1!C60,IF(Auswahl_Periode=4,Dashboard_Basis_Auswahl_2!D60,Dashboard_Basis_Auswahl_2!D60)) -> 9.81670169 | C98: =IF(OR(Auswahl_Periode=1,Auswahl_Periode=2),Dashboard_Basis_Auswahl_1!D60,IF(Auswahl_Periode=4,Dashboard_Basis_Auswahl_2!E60,Dashboard_Basis_Auswahl_2!E60)) -> 16.53110272 | D98: =IF(OR(Auswahl_Periode=1,Auswahl_Periode=2),Dashboard_Basis_Auswahl_1!E60,IF(Auswahl_Periode=4,Dashboard_Basis_Auswahl_2!F60,Dashboard_Basis_Auswahl_2!F60)) -> 5.263044634 | E98: =IF(OR(Auswahl_Periode=1,Auswahl_Periode=2),Dashboard_Basis_Auswahl_1!F60,IF(Auswahl_Periode=4,Dashboard_Basis_Auswahl_2!G60,Dashboard_Basis_Auswahl_2!G60)) -> 9.979784206 | F98: =IF(OR(Auswahl_Periode=1,Auswahl_Periode=2),Dashboard_Basis_Auswahl_1!G60,IF(Auswahl_Periode=4,Dashboard_Basis_Auswahl_2!H60,Dashboard_Basis_Auswahl_2!H60)) -> 23.86161891 | G98: =IF(OR(Auswahl_Periode=1,Auswahl_Periode=2),Dashboard_Basis_Auswahl_1!H60,IF(Auswahl_Periode=4,Dashboard_Basis_Auswahl_2!I60,Dashboard_Basis_Auswahl_2!I60)) -> 33.9137375 | H98: =IF(OR(Auswahl_Periode=1,Auswahl_Periode=2),Dashboard_Basis_Auswahl_1!I60,IF(Auswahl_Periode=4,Dashboard_Basis_Auswahl_2!J60,Dashboard_Basis_Auswahl_2!J60)) -> 29.10965554 | I98: =IF(OR(Auswahl_Periode=1,Auswahl_Periode=2),Dashboard_Basis_Auswahl_1!J60,IF(Auswahl_Periode=4,Dashboard_Basis_Auswahl_2!K60,Dashboard_Basis_Auswahl_2!K60)) -> 28.89683057
A99: Industrie insgesamt [inkl. Bauind.] | B99: =IF(OR(Auswahl_Periode=1,Auswahl_Periode=2),Dashboard_Basis_Auswahl_1!C61,IF(Auswahl_Periode=4,Dashboard_Basis_Auswahl_2!D61,Dashboard_Basis_Auswahl_2!D61)) -> 23.368644 | C99: =IF(OR(Auswahl_Periode=1,Auswahl_Periode=2),Dashboard_Basis_Auswahl_1!D61,IF(Auswahl_Periode=4,Dashboard_Basis_Auswahl_2!E61,Dashboard_Basis_Auswahl_2!E61)) -> 38.16320263 | D99: =IF(OR(Auswahl_Periode=1,Auswahl_Periode=2),Dashboard_Basis_Auswahl_1!E61,IF(Auswahl_Periode=4,Dashboard_Basis_Auswahl_2!F61,Dashboard_Basis_Auswahl_2!F61)) -> 25.69790045 | E99: =IF(OR(Auswahl_Periode=1,Auswahl_Periode=2),Dashboard_Basis_Auswahl_1!F61,IF(Auswahl_Periode=4,Dashboard_Basis_Auswahl_2!G61,Dashboard_Basis_Auswahl_2!G61)) -> 28.46987849 | F99: =IF(OR(Auswahl_Periode=1,Auswahl_Periode=2),Dashboard_Basis_Auswahl_1!G61,IF(Auswahl_Periode=4,Dashboard_Basis_Auswahl_2!H61,Dashboard_Basis_Auswahl_2!H61)) -> 24.54494695 | G99: =IF(OR(Auswahl_Periode=1,Auswahl_Periode=2),Dashboard_Basis_Auswahl_1!H61,IF(Auswahl_Periode=4,Dashboard_Basis_Auswahl_2!I61,Dashboard_Basis_Auswahl_2!I61)) -> 34.6337995 | H99: =IF(OR(Auswahl_Periode=1,Auswahl_Periode=2),Dashboard_Basis_Auswahl_1!I61,IF(Auswahl_Periode=4,Dashboard_Basis_Auswahl_2!J61,Dashboard_Basis_Auswahl_2!J61)) -> 24.65951507 | I99: =IF(OR(Auswahl_Periode=1,Auswahl_Periode=2),Dashboard_Basis_Auswahl_1!J61,IF(Auswahl_Periode=4,Dashboard_Basis_Auswahl_2!K61,Dashboard_Basis_Auswahl_2!K61)) -> 27.70158136
A100: Q.: Statistik Austria; Konjunkturstatistik Produzierender Bereich, Sonderauswertung nach der Kammersystematik, bis 2021 endgültig, ab 2022 vorläufig
A101: Wien, BSI / SL mit Unterstützung der Abteilung Statistik, WKÖ | B101: =B26 -> Letztes Update: | C101: =C26 -> 2023-01-12

Sheet Auswahl (hidden)
C1: =COUNTA(C2:C14)-1 -> 12 | D1: =COUNTA(D2:D14)-1 -> 12 | E1: =COUNTA(E2:E14)-1 -> 12 | K1: =INDEX($K$3:$K$14,K2) -> Jänner
A2: Periode | B2: Q | C2: Monat | D2: Quartal | E2: Jahr | I2: MIN_Jahr | J2: MAX_Jahr | K2: 1 | M2: FVB-Code | N2: FVB-Beschreibung | O2: Kombination | V2: Auswahl | W2: Auswahl_Bundesland | AB2: Matrix | AC2: Auswahl | AD2: Auswahl_Merkmal
A3: 1 | B3: 1 | C3: Jänner | D3: 1. Quartal | E3: 2019 | F3: =IF(Auswahl_Periode=1,C3,IF(Auswahl_Periode=2,D3,E3)) -> Jänner | G3: 9 | H3: =INDEX($F$3:$F$14,G3) -> September | I3: =MIN($E$3:$E$14) -> 2019 | J3: =MAX($E$3:$E$14) -> 2022 | K3: Jänner | M3: 2010 | N3: Bergwerke und Stahl | O3: =M3& " - " &N3 -> 2010 - Bergwerke und Stahl | P3: 17 | Q3: =INDEX(O3:O19,P3) -> IND - Industrie insgesamt [inkl. Bauind.] | R3: =IF(LEFT(FVB_Code_Beschreibung,3)="IND","IND",VALUE(LEFT(FVB_Code_Beschreibung,4))) -> IND | T3: 1 | U3: Österreich | V3: 1 | W3: =LOOKUP(V3,T3:U12) -> Österreich | Y3: 1 | Z3: Abgesetzte Produktion in Mio. Euro | AA3: Abgesetzte Produktion | AB3: Matrix_2 | AC3: 1 | AD3: =LOOKUP(AC3,Y3:Z9) -> Abgesetzte Produktion in Mio. Euro | AE3: =LOOKUP(AC3,Y3:AB9) -> Matrix_2
B4: 1 | C4: Februar | D4: 2. Quartal | E4: 2020 | F4: Februar | K4: ="Jänner bis " &C4 -> Jänner bis Februar | M4: 2020 | N4: Mineralölindustrie | O4: =M4& " - " &N4 -> 2020 - Mineralölindustrie | T4: 2 | U4: Burgenland | Y4: 2 | Z4: Auftragseingänge, gesamt (bereinigt um Storni) in Mio. Euro | AA4: Auftragseingänge, gesamt (bereinigt um Storni) | AB4: Matrix_3 | AD4: =VLOOKUP(AC3,Y3:AA9,3,FALSE) -> Abgesetzte Produktion
B5: 1 | C5: März | D5: 3. Quartal | E5: 2021 | F5: März | K5: ="Jänner bis " &C5 -> Jänner bis März | M5: 2030 | N5: Stein- u. keramische Industrie | O5: 2030 - Stein- u. keramische Industrie | T5: 3 | U5: Kärnten | Y5: 3 | Z5: Auftragseingänge, Inland in Mio. Euro | AA5: Auftragseingänge, Inland | AB5: Matrix_4
B6: 2 | C6: April | D6: 4. Quartal | E6: 2022 | F6: April | G6: Q/M | H6: 1 | I6: 2 | J6: 3 | K6: Jänner bis April | M6: 2040 | N6: Glasindustrie | O6: 2040 - Glasindustrie | T6: 4 | U6: Niederösterreich | Y6: 4 | Z6: Auftragseingänge, Ausland in Mio. Euro | AA6: Auftragseingänge, Ausland | AB6: Matrix_5
B7: 2 | C7: Mai | F7: Mai | G7: =INDEX($B$3:$B$14,G3) -> 3 | H7: =VLOOKUP(H6,$A$22:$E$25,$G$7+1,FALSE) -> 7 | I7: =VLOOKUP(I6,$A$22:$E$25,$G$7+1,FALSE) -> 8 | J7: =VLOOKUP(J6,$A$22:$E$25,$G$7+1,FALSE) -> 9 | K7: Jänner bis Mai | M7: 2050 | N7: Chemische Industrie | O7: 2050 - Chemische Industrie | T7: 5 | U7: Oberösterreich | Y7: 5 | Z7: Gesamtpersonal | AA7: Gesamtpersonal | AB7: Matrix_1
B8: 2 | C8: Juni | F8: Juni | K8: Jänner bis Juni | M8: 2060 | N8: Papierindustrie | O8: 2060 - Papierindustrie | T8: 6 | U8: Salzburg | Y8: 6 | Z8: Eigenpersonal | AA8: Eigenpersonal | AB8: Matrix_6
B9: 3 | C9: Juli | F9: Juli | K9: Jänner bis Juli | M9: 2070 | N9: PROPAK - Produkte aus Papier & Karton | O9: 2070 - PROPAK - Produkte aus Papier & Karton | T9: 7 | U9: Steiermark | Y9: 7 | Z9: Fremdpersonal | AA9: Fremdpersonal | AB9: Matrix_7
B10: 3 | C10: August | F10: August | K10: Jänner bis August | M10: 2090 | N10: Bauindustrie | O10: 2090 - Bauindustrie | T10: 8 | U10: Tirol
B11: 3 | C11: September | F11: September | K11: Jänner bis September | M11: 2100 | N11: Holzindustrie | O11: 2100 - Holzindustrie | T11: 9 | U11: Vorarlberg
B12: 4 | C12: Oktober | F12: Oktober | K12: Jänner bis Oktober | M12: 2110 | N12: Nahrungs- u. Genussmittelindustrie (Lebensmittelindustrie) | O12: 2110 - Nahrungs- u. Genussmittelindustrie (Lebensmittelindustrie) | T12: 10 | U12: Wien
B13: 4 | C13: November | F13: November | K13: Jänner bis November | M13: 2120 | N13: Textil-, Bekleidungs-, Schuh- und Lederindustrie | O13: 2120 - Textil-, Bekleidungs-, Schuh- und Lederindustrie
B14: 4 | C14: Dezember | F14: Dezember | K14: Jänner bis Dezember | M14: 2130 | N14: Gas- u. Wärmeversorgungsunternehmungen | O14: 2130 - Gas- u. Wärmeversorgungsunternehmungen
M15: 2150 | N15: NE-Metallindustrie | O15: 2150 - NE-Metallindustrie
M16: 2160 | N16: Maschinen-, Metallwaren- und Gießereiindustrie | O16: 2160 - Maschinen-, Metallwaren- und Gießereiindustrie
M17: 2170 | N17: Fahrzeugindustrie | O17: 2170 - Fahrzeugindustrie
M18: 2180 | N18: Elektro- u. Elektronikindustrie | O18: 2180 - Elektro- u. Elektronikindustrie
M19: IND | N19: Industrie insgesamt [inkl. Bauind.] | O19: IND - Industrie insgesamt [inkl. Bauind.]
A22: M/Q | B22: 1 | C22: 2 | D22: 3 | E22: 4
A23: 1 | B23: 1 | C23: 4 | D23: 7 | E23: 10
A24: 2 | B24: 2 | C24: 5 | D24: 8 | E24: 11
A25: 3 | B25: 3 | C25: 6 | D25: 9 | E25: 12

Sheet Zeitraum (hidden)
A1: ID | B1: Jahr | C1: M/Q/J | D1: Spaltennummer | G1: Spalten aus dem Registerblatt "Dashboard_Basis"
A2: =B2&C2 -> FVB | C2: FVB | D2: 1
A3: =B3&C3 -> Bezeichnung | C3: Bezeichnung | D3: 2
A4: 20111 | B4: 2011 | C4: 1 | D4: 3
A5: 20112 | B5: 2011 | C5: 2 | D5: 4
A6: 20113 | B6: 2011 | C6: 3 | D6: 5
A7: 20114 | B7: 2011 | C7: 4 | D7: 6
A8: 20115 | B8: 2011 | C8: 5 | D8: 7
A9: 20116 | B9: 2011 | C9: 6 | D9: 8
A10: 20117 | B10: 2011 | C10: 7 | D10: 9
A11: 20118 | B11: 2011 | C11: 8 | D11: 10
A12: 20119 | B12: 2011 | C12: 9 | D12: 11
A13: 201110 | B13: 2011 | C13: 10 | D13: 12
A14: 201111 | B14: 2011 | C14: 11 | D14: 13
A15: 201112 | B15: 2011 | C15: 12 | D15: 14
A16: 2011Q1 | B16: 2011 | C16: Q1 | D16: 15
A17: 2011Q2 | B17: 2011 | C17: Q2 | D17: 16
A18: 2011Q3 | B18: 2011 | C18: Q3 | D18: 17
A19: 2011Q4 | B19: 2011 | C19: Q4 | D19: 18
A20: 2011Q1-Q2 | B20: 2011 | C20: Q1-Q2 | D20: 19
A21: 2011Q1-Q3 | B21: 2011 | C21: Q1-Q3 | D21: 20
A22: 2011M1-1 | B22: 2011 | C22: ="M1-"&Anzahl_Monate -> M1-1 | D22: 21
A23: 2011J | B23: 2011 | C23: J | D23: 22
A24: 20121 | B24: 2012 | C24: 1 | D24: 23
A25: 20122 | B25: 2012 | C25: 2 | D25: 24
A26: 20123 | B26: 2012 | C26: 3 | D26: 25
A27: 20124 | B27: 2012 | C27: 4 | D27: 26
A28: 20125 | B28: 2012 | C28: 5 | D28: 27
A29: 20126 | B29: 2012 | C29: 6 | D29: 28
A30: 20127 | B30: 2012 | C30: 7 | D30: 29
A31: 20128 | B31: 2012 | C31: 8 | D31: 30
A32: 20129 | B32: 2012 | C32: 9 | D32: 31
A33: 201210 | B33: 2012 | C33: 10 | D33: 32
A34: 201211 | B34: 2012 | C34: 11 | D34: 33
A35: 201212 | B35: 2012 | C35: 12 | D35: 34
A36: 2012Q1 | B36: 2012 | C36: Q1 | D36: 35
A37: 2012Q2 | B37: 2012 | C37: Q2 | D37: 36
A38: 2012Q3 | B38: 2012 | C38: Q3 | D38: 37
A39: 2012Q4 | B39: 2012 | C39: Q4 | D39: 38
A40: 2012Q1-Q2 | B40: 2012 | C40: Q1-Q2 | D40: 39
A41: 2012Q1-Q3 | B41: 2012 | C41: Q1-Q3 | D41: 40
A42: 2012M1-1 | B42: 2012 | C42: ="M1-"&Anzahl_Monate -> M1-1 | D42: 41
A43: 2012J | B43: 2012 | C43: J | D43: 42
A44: 20131 | B44: 2013 | C44: 1 | D44: 43
A45: 20132 | B45: 2013 | C45: 2 | D45: 44
A46: 20133 | B46: 2013 | C46: 3 | D46: 45
A47: 20134 | B47: 2013 | C47: 4 | D47: 46
A48: 20135 | B48: 2013 | C48: 5 | D48: 47
A49: 20136 | B49: 2013 | C49: 6 | D49: 48
A50: 20137 | B50: 2013 | C50: 7 | D50: 49
A51: 20138 | B51: 2013 | C51: 8 | D51: 50
A52: 20139 | B52: 2013 | C52: 9 | D52: 51
A53: 201310 | B53: 2013 | C53: 10 | D53: 52
A54: 201311 | B54: 2013 | C54: 11 | D54: 53
A55: 201312 | B55: 2013 | C55: 12 | D55: 54
A56: 2013Q1 | B56: 2013 | C56: Q1 | D56: 55
A57: 2013Q2 | B57: 2013 | C57: Q2 | D57: 56
A58: 2013Q3 | B58: 2013 | C58: Q3 | D58: 57
A59: 2013Q4 | B59: 2013 | C59: Q4 | D59: 58
A60: 2013Q1-Q2 | B60: 2013 | C60: Q1-Q2 | D60: 59
A61: =B61&C61 -> 2013Q1-Q3 | B61: 2013 | C61: Q1-Q3 | D61: 60
A62: 2013M1-1 | B62: 2013 | C62: ="M1-"&Anzahl_Monate -> M1-1 | D62: 61
A63: 2013J | B63: 2013 | C63: J | D63: 62
A64: 20141 | B64: 2014 | C64: 1 | D64: 63
A65: 20142 | B65: 2014 | C65: 2 | D65: 64
A66: 20143 | B66: 2014 | C66: 3 | D66: 65
A67: 20144 | B67: 2014 | C67: 4 | D67: 66
A68: 20145 | B68: 2014 | C68: 5 | D68: 67
A69: 20146 | B69: 2014 | C69: 6 | D69: 68
A70: 20147 | B70: 2014 | C70: 7 | D70: 69
A71: 20148 | B71: 2014 | C71: 8 | D71: 70
A72: 20149 | B72: 2014 | C72: 9 | D72: 71
A73: 201410 | B73: 2014 | C73: 10 | D73: 72
A74: 201411 | B74: 2014 | C74: 11 | D74: 73
A75: 201412 | B75: 2014 | C75: 12 | D75: 74
A76: 2014Q1 | B76: 2014 | C76: Q1 | D76: 75
A77: 2014Q2 | B77: 2014 | C77: Q2 | D77: 76
A78: 2014Q3 | B78: 2014 | C78: Q3 | D78: 77
A79: 2014Q4 | B79: 2014 | C79: Q4 | D79: 78
A80: 2014Q1-Q2 | B80: 2014 | C80: Q1-Q2 | D80: 79
A81: 2014Q1-Q3 | B81: 2014 | C81: Q1-Q3 | D81: 80
A82: 2014M1-1 | B82: 2014 | C82: ="M1-"&Anzahl_Monate -> M1-1 | D82: 81
A83: 2014J | B83: 2014 | C83: J | D83: 82
A84: 20151 | B84: 2015 | C84: 1 | D84: 83
A85: 20152 | B85: 2015 | C85: 2 | D85: 84
A86: 20153 | B86: 2015 | C86: 3 | D86: 85
A87: 20154 | B87: 2015 | C87: 4 | D87: 86
A88: 20155 | B88: 2015 | C88: 5 | D88: 87
A89: 20156 | B89: 2015 | C89: 6 | D89: 88
A90: 20157 | B90: 2015 | C90: 7 | D90: 89
A91: 20158 | B91: 2015 | C91: 8 | D91: 90
A92: 20159 | B92: 2015 | C92: 9 | D92: 91
A93: 201510 | B93: 2015 | C93: 10 | D93: 92
A94: 201511 | B94: 2015 | C94: 11 | D94: 93
A95: 201512 | B95: 2015 | C95: 12 | D95: 94
A96: 2015Q1 | B96: 2015 | C96: Q1 | D96: 95
A97: 2015Q2 | B97: 2015 | C97: Q2 | D97: 96
A98: 2015Q3 | B98: 2015 | C98: Q3 | D98: 97
A99: 2015Q4 | B99: 2015 | C99: Q4 | D99: 98
A100: 2015Q1-Q2 | B100: 2015 | C100: Q1-Q2 | D100: 99
A101: 2015Q1-Q3 | B101: 2015 | C101: Q1-Q3 | D101: 100
A102: 2015M1-1 | B102: 2015 | C102: ="M1-"&Anzahl_Monate -> M1-1 | D102: 101
A103: 2015J | B103: 2015 | C103: J | D103: 102
A104: 20161 | B104: 2016 | C104: 1 | D104: 103
A105: 20162 | B105: 2016 | C105: 2 | D105: 104
A106: 20163 | B106: 2016 | C106: 3 | D106: 105
A107: 20164 | B107: 2016 | C107: 4 | D107: 106
A108: 20165 | B108: 2016 | C108: 5 | D108: 107
A109: 20166 | B109: 2016 | C109: 6 | D109: 108
A110: 20167 | B110: 2016 | C110: 7 | D110: 109
A111: 20168 | B111: 2016 | C111: 8 | D111: 110
A112: 20169 | B112: 2016 | C112: 9 | D112: 111
A113: 201610 | B113: 2016 | C113: 10 | D113: 112
A114: 201611 | B114: 2016 | C114: 11 | D114: 113
A115: 201612 | B115: 2016 | C115: 12 | D115: 114
A116: 2016Q1 | B116: 2016 | C116: Q1 | D116: 115
A117: 2016Q2 | B117: 2016 | C117: Q2 | D117: 116
A118: 2016Q3 | B118: 2016 | C118: Q3 | D118: 117
A119: 2016Q4 | B119: 2016 | C119: Q4 | D119: 118
A120: 2016Q1-Q2 | B120: 2016 | C120: Q1-Q2 | D120: 119
A121: 2016Q1-Q3 | B121: 2016 | C121: Q1-Q3 | D121: 120
A122: 2016M1-1 | B122: 2016 | C122: ="M1-"&Anzahl_Monate -> M1-1 | D122: 121
A123: 2016J | B123: 2016 | C123: J | D123: 122
A124: 20171 | B124: 2017 | C124: 1 | D124: 123
A125: =B125&C125 -> 20172 | B125: 2017 | C125: 2 | D125: 124
A126: 20173 | B126: 2017 | C126: 3 | D126: 125
A127: 20174 | B127: 2017 | C127: 4 | D127: 126
A128: 20175 | B128: 2017 | C128: 5 | D128: 127
A129: 20176 | B129: 2017 | C129: 6 | D129: 128
A130: 20177 | B130: 2017 | C130: 7 | D130: 129
A131: 20178 | B131: 2017 | C131: 8 | D131: 130
A132: 20179 | B132: 2017 | C132: 9 | D132: 131
A133: 201710 | B133: 2017 | C133: 10 | D133: 132
A134: 201711 | B134: 2017 | C134: 11 | D134: 133
A135: 201712 | B135: 2017 | C135: 12 | D135: 134
A136: 2017Q1 | B136: 2017 | C136: Q1 | D136: 135
A137: 2017Q2 | B137: 2017 | C137: Q2 | D137: 136
A138: 2017Q3 | B138: 2017 | C138: Q3 | D138: 137
A139: 2017Q4 | B139: 2017 | C139: Q4 | D139: 138
A140: 2017Q1-Q2 | B140: 2017 | C140: Q1-Q2 | D140: 139
A141: 2017Q1-Q3 | B141: 2017 | C141: Q1-Q3 | D141: 140
A142: 2017M1-1 | B142: 2017 | C142: ="M1-"&Anzahl_Monate -> M1-1 | D142: 141
A143: 2017J | B143: 2017 | C143: J | D143: 142
A144: 20181 | B144: 2018 | C144: 1 | D144: 143
A145: 20182 | B145: 2018 | C145: 2 | D145: 144
A146: 20183 | B146: 2018 | C146: 3 | D146: 145
A147: 20184 | B147: 2018 | C147: 4 | D147: 146
A148: 20185 | B148: 2018 | C148: 5 | D148: 147
A149: 20186 | B149: 2018 | C149: 6 | D149: 148
A150: 20187 | B150: 2018 | C150: 7 | D150: 149
A151: 20188 | B151: 2018 | C151: 8 | D151: 150
A152: 20189 | B152: 2018 | C152: 9 | D152: 151
A153: 201810 | B153: 2018 | C153: 10 | D153: 152
A154: 201811 | B154: 2018 | C154: 11 | D154: 153
A155: 201812 | B155: 2018 | C155: 12 | D155: 154
A156: 2018Q1 | B156: 2018 | C156: Q1 | D156: 155
A157: 2018Q2 | B157: 2018 | C157: Q2 | D157: 156
A158: 2018Q3 | B158: 2018 | C158: Q3 | D158: 157
A159: 2018Q4 | B159: 2018 | C159: Q4 | D159: 158
A160: 2018Q1-Q2 | B160: 2018 | C160: Q1-Q2 | D160: 159
A161: 2018Q1-Q3 | B161: 2018 | C161: Q1-Q3 | D161: 160
A162: 2018M1-1 | B162: 2018 | C162: ="M1-"&Anzahl_Monate -> M1-1 | D162: 161
A163: 2018J | B163: 2018 | C163: J | D163: 162
A164: 20191 | B164: 2019 | C164: 1 | D164: 163
A165: 20192 | B165: 2019 | C165: 2 | D165: 164
A166: 20193 | B166: 2019 | C166: 3 | D166: 165
A167: 20194 | B167: 2019 | C167: 4 | D167: 166
A168: 20195 | B168: 2019 | C168: 5 | D168: 167
A169: 20196 | B169: 2019 | C169: 6 | D169: 168
A170: 20197 | B170: 2019 | C170: 7 | D170: 169
A171: 20198 | B171: 2019 | C171: 8 | D171: 170
A172: 20199 | B172: 2019 | C172: 9 | D172: 171
A173: 201910 | B173: 2019 | C173: 10 | D173: 172
A174: 201911 | B174: 2019 | C174: 11 | D174: 173
A175: 201912 | B175: 2019 | C175: 12 | D175: 174
A176: 2019Q1 | B176: 2019 | C176: Q1 | D176: 175
A177: 2019Q2 | B177: 2019 | C177: Q2 | D177: 176
A178: 2019Q3 | B178: 2019 | C178: Q3 | D178: 177
A179: 2019Q4 | B179: 2019 | C179: Q4 | D179: 178
A180: 2019Q1-Q2 | B180: 2019 | C180: Q1-Q2 | D180: 179
A181: 2019Q1-Q3 | B181: 2019 | C181: Q1-Q3 | D181: 180
A182: 2019M1-1 | B182: 2019 | C182: ="M1-"&Anzahl_Monate -> M1-1 | D182: 181
A183: 2019J | B183: 2019 | C183: J | D183: 182
A184: 20201 | B184: 2020 | C184: 1 | D184: 183
A185: 20202 | B185: 2020 | C185: 2 | D185: 184
A186: 20203 | B186: 2020 | C186: 3 | D186: 185
A187: 20204 | B187: 2020 | C187: 4 | D187: 186
A188: 20205 | B188: 2020 | C188: 5 | D188: 187
A189: =B189&C189 -> 20206 | B189: 2020 | C189: 6 | D189: 188
A190: 20207 | B190: 2020 | C190: 7 | D190: 189
A191: 20208 | B191: 2020 | C191: 8 | D191: 190
A192: 20209 | B192: 2020 | C192: 9 | D192: 191
A193: 202010 | B193: 2020 | C193: 10 | D193: 192
A194: 202011 | B194: 2020 | C194: 11 | D194: 193
A195: 202012 | B195: 2020 | C195: 12 | D195: 194
A196: 2020Q1 | B196: 2020 | C196: Q1 | D196: 195
A197: 2020Q2 | B197: 2020 | C197: Q2 | D197: 196
A198: 2020Q3 | B198: 2020 | C198: Q3 | D198: 197
A199: 2020Q4 | B199: 2020 | C199: Q4 | D199: 198
A200: 2020Q1-Q2 | B200: 2020 | C200: Q1-Q2 | D200: 199
... 63 more rows

Sheet Dashboard_Basis_Auswahl_1 (hidden)
A1: =Auswahl_Periode -> 1 | B1: =VLOOKUP(B3&B4,Matrix_Zeitraum,4,FALSE) -> 189 | C1: 190 | D1: 191 | E1: 197 | F1: 209 | G1: 210 | H1: 211 | I1: 217 | J1: 229 | K1: 230 | L1: 231 | M1: 237 | O1: Diagramm_Untertitel_Teil1 | P1: =IF(AND($A$1=1,LEFT(J$4,1)<>"Q"),INDEX(Auswahl!$F$3:$F$14,J$4),IF(AND($A$1=1,LEFT(J$4,1)="Q"),RIGHT(J$4,1)&". ",IF($A$1=2,RIGHT(J$4,1)&". ",IF(AND($A$1=3,J$4="Q1"),RIGHT(J$4,1)&". Quartal "&J3,IF(AND($A$1=3,J$4="Q1-Q2"),"1. ",IF(AND($A$1=3,J$4="Q1-Q3"),"1.-3. ",IF(AND($A$1=3,J$4="J"),J3))))))) -> Juli
A2: =Auswahl_Monat_Quartal_Jahr -> 9 | B2: =IF(AND($A$1=1,LEFT(B$4,1)<>"Q"),INDEX(Auswahl!$F$3:$F$14,B$4)&" "&B3,IF(AND($A$1=1,LEFT(B$4,1)="Q"),RIGHT(B$4,1)&". Quartal "&B3,IF($A$1=2,RIGHT(B$4,1)&". Quartal "&B3,IF(AND($A$1=3,B$4="Q1"),RIGHT(B$4,1)&". Quartal "&B3,IF(AND($A$1=3,B$4="Q1-Q2"),"1. Halbjahr "&B3,IF(AND($A$1=3,B$4="Q1-Q3"),"1.-3. Quartal "&B3,IF(AND($A$1=3,B$4="J"),"Jahr "&B3))))))) -> Juli 2020 | C2: =IF(AND($A$1=1,LEFT(C$4,1)<>"Q"),INDEX(Auswahl!$F$3:$F$14,C$4)&" "&C3,IF(AND($A$1=1,LEFT(C$4,1)="Q"),RIGHT(C$4,1)&". Quartal "&C3,IF($A$1=2,RIGHT(C$4,1)&". Quartal "&C3,IF(AND($A$1=3,C$4="Q1"),RIGHT(C$4,1)&". Quartal "&C3,IF(AND($A$1=3,C$4="Q1-Q2"),"1. Halbjahr "&C3,IF(AND($A$1=3,C$4="Q1-Q3"),"1.-3. Quartal "&C3,IF(AND($A$1=3,C$4="J"),"Jahr "&C3))))))) -> August 2020 | D2: =IF(AND($A$1=1,LEFT(D$4,1)<>"Q"),INDEX(Auswahl!$F$3:$F$14,D$4)&" "&D3,IF(AND($A$1=1,LEFT(D$4,1)="Q"),RIGHT(D$4,1)&". Quartal "&D3,IF($A$1=2,RIGHT(D$4,1)&". Quartal "&D3,IF(AND($A$1=3,D$4="Q1"),RIGHT(D$4,1)&". Quartal "&D3,IF(AND($A$1=3,D$4="Q1-Q2"),"1. Halbjahr "&D3,IF(AND($A$1=3,D$4="Q1-Q3"),"1.-3. Quartal "&D3,IF(AND($A$1=3,D$4="J"),"Jahr "&D3))))))) -> September 2020 | E2: =IF(AND($A$1=1,LEFT(E$4,1)<>"Q"),INDEX(Auswahl!$F$3:$F$14,E$4)&" "&E3,IF(AND($A$1=1,LEFT(E$4,1)="Q"),RIGHT(E$4,1)&". Quartal "&E3,IF($A$1=2,RIGHT(E$4,1)&". Quartal "&E3,IF(AND($A$1=3,E$4="Q1"),RIGHT(E$4,1)&". Quartal "&E3,IF(AND($A$1=3,E$4="Q1-Q2"),"1. Halbjahr "&E3,IF(AND($A$1=3,E$4="Q1-Q3"),"1.-3. Quartal "&E3,IF(AND($A$1=3,E$4="J"),"Jahr "&E3))))))) -> 3. Quartal 2020 | F2: =IF(AND($A$1=1,LEFT(F$4,1)<>"Q"),INDEX(Auswahl!$F$3:$F$14,F$4)&" "&F3,IF(AND($A$1=1,LEFT(F$4,1)="Q"),RIGHT(F$4,1)&". Quartal "&F3,IF($A$1=2,RIGHT(F$4,1)&". Quartal "&F3,IF(AND($A$1=3,F$4="Q1"),RIGHT(F$4,1)&". Quartal "&F3,IF(AND($A$1=3,F$4="Q1-Q2"),"1. Halbjahr "&F3,IF(AND($A$1=3,F$4="Q1-Q3"),"1.-3. Quartal "&F3,IF(AND($A$1=3,F$4="J"),"Jahr "&F3))))))) -> Juli 2021 | G2: =IF(AND($A$1=1,LEFT(G$4,1)<>"Q"),INDEX(Auswahl!$F$3:$F$14,G$4)&" "&G3,IF(AND($A$1=1,LEFT(G$4,1)="Q"),RIGHT(G$4,1)&". Quartal "&G3,IF($A$1=2,RIGHT(G$4,1)&". Quartal "&G3,IF(AND($A$1=3,G$4="Q1"),RIGHT(G$4,1)&". Quartal "&G3,IF(AND($A$1=3,G$4="Q1-Q2"),"1. Halbjahr "&G3,IF(AND($A$1=3,G$4="Q1-Q3"),"1.-3. Quartal "&G3,IF(AND($A$1=3,G$4="J"),"Jahr "&G3))))))) -> August 2021 | H2: =IF(AND($A$1=1,LEFT(H$4,1)<>"Q"),INDEX(Auswahl!$F$3:$F$14,H$4)&" "&H3,IF(AND($A$1=1,LEFT(H$4,1)="Q"),RIGHT(H$4,1)&". Quartal "&H3,IF($A$1=2,RIGHT(H$4,1)&". Quartal "&H3,IF(AND($A$1=3,H$4="Q1"),RIGHT(H$4,1)&". Quartal "&H3,IF(AND($A$1=3,H$4="Q1-Q2"),"1. Halbjahr "&H3,IF(AND($A$1=3,H$4="Q1-Q3"),"1.-3. Quartal "&H3,IF(AND($A$1=3,H$4="J"),"Jahr "&H3))))))) -> September 2021 | I2: =IF(AND($A$1=1,LEFT(I$4,1)<>"Q"),INDEX(Auswahl!$F$3:$F$14,I$4)&" "&I3,IF(AND($A$1=1,LEFT(I$4,1)="Q"),RIGHT(I$4,1)&". Quartal "&I3,IF($A$1=2,RIGHT(I$4,1)&". Quartal "&I3,IF(AND($A$1=3,I$4="Q1"),RIGHT(I$4,1)&". Quartal "&I3,IF(AND($A$1=3,I$4="Q1-Q2"),"1. Halbjahr "&I3,IF(AND($A$1=3,I$4="Q1-Q3"),"1.-3. Quartal "&I3,IF(AND($A$1=3,I$4="J"),"Jahr "&I3))))))) -> 3. Quartal 2021 | J2: =IF(AND($A$1=1,LEFT(J$4,1)<>"Q"),INDEX(Auswahl!$F$3:$F$14,J$4)&" "&J3,IF(AND($A$1=1,LEFT(J$4,1)="Q"),RIGHT(J$4,1)&". Quartal "&J3,IF($A$1=2,RIGHT(J$4,1)&". Quartal "&J3,IF(AND($A$1=3,J$4="Q1"),RIGHT(J$4,1)&". Quartal "&J3,IF(AND($A$1=3,J$4="Q1-Q2"),"1. Halbjahr "&J3,IF(AND($A$1=3,J$4="Q1-Q3"),"1.-3. Quartal "&J3,IF(AND($A$1=3,J$4="J"),"Jahr "&J3))))))) -> Juli 2022 | K2: =IF(AND($A$1=1,LEFT(K$4,1)<>"Q"),INDEX(Auswahl!$F$3:$F$14,K$4)&" "&K3,IF(AND($A$1=1,LEFT(K$4,1)="Q"),RIGHT(K$4,1)&". Quartal "&K3,IF($A$1=2,RIGHT(K$4,1)&". Quartal "&K3,IF(AND($A$1=3,K$4="Q1"),RIGHT(K$4,1)&". Quartal "&K3,IF(AND($A$1=3,K$4="Q1-Q2"),"1. Halbjahr "&K3,IF(AND($A$1=3,K$4="Q1-Q3"),"1.-3. Quartal "&K3,IF(AND($A$1=3,K$4="J"),"Jahr "&K3))))))) -> August 2022 | L2: =IF(AND($A$1=1,LEFT(L$4,1)<>"Q"),INDEX(Auswahl!$F$3:$F$14,L$4)&" "&L3,IF(AND($A$1=1,LEFT(L$4,1)="Q"),RIGHT(L$4,1)&". Quartal "&L3,IF($A$1=2,RIGHT(L$4,1)&". Quartal "&L3,IF(AND($A$1=3,L$4="Q1"),RIGHT(L$4,1)&". Quartal "&L3,IF(AND($A$1=3,L$4="Q1-Q2"),"1. Halbjahr "&L3,IF(AND($A$1=3,L$4="Q1-Q3"),"1.-3. Quartal "&L3,IF(AND($A$1=3,L$4="J"),"Jahr "&L3))))))) -> September 2022 | M2: =IF(AND($A$1=1,LEFT(M$4,1)<>"Q"),INDEX(Auswahl!$F$3:$F$14,M$4)&" "&M3,IF(AND($A$1=1,LEFT(M$4,1)="Q"),RIGHT(M$4,1)&". Quartal "&M3,IF($A$1=2,RIGHT(M$4,1)&". Quartal "&M3,IF(AND($A$1=3,M$4="Q1"),RIGHT(M$4,1)&". Quartal "&M3,IF(AND($A$1=3,M$4="Q1-Q2"),"1. Halbjahr "&M3,IF(AND($A$1=3,M$4="Q1-Q3"),"1.-3. Quartal "&M3,IF(AND($A$1=3,M$4="J"),"Jahr "&M3))))))) -> 3. Quartal 2022 | O2: Diagramm_Untertitel_Teil2 | P2: =IF(AND($A$1=1,LEFT(M$4,1)<>"Q"),INDEX(Auswahl!$F$3:$F$14,M$4)&" "&M3,IF(AND($A$1=1,LEFT(M$4,1)="Q"),INDEX(Auswahl!$F$3:$F$14,L$4)&" "&L3,IF(AND($A$1=2,LEFT(M$4,1)="Q"),RIGHT(M$4,1)&". Quartal "&M$3,IF(AND($A$1=3,M$4="J"),"Jahr " & M3)))) -> September 2022
B3: =MAX_Jahr-2 -> 2020 | C3: =MAX_Jahr-2 -> 2020 | D3: =MAX_Jahr-2 -> 2020 | E3: =MAX_Jahr-2 -> 2020 | F3: =MAX_Jahr-1 -> 2021 | G3: =MAX_Jahr-1 -> 2021 | H3: =MAX_Jahr-1 -> 2021 | I3: =MAX_Jahr-1 -> 2021 | J3: =MAX_Jahr -> 2022 | K3: =MAX_Jahr -> 2022 | L3: =MAX_Jahr -> 2022 | M3: =L3 -> 2022
A4: =FVB_Code -> IND | B4: =IF($A$1=1,Monat1,IF($A$1=2,"Q1",IF($A$1=3,"Q1",))) -> 7 | C4: =IF($A$1=1,Monat2,IF($A$1=2,"Q2",IF($A$1=3,"Q1-Q2",))) -> 8 | D4: =IF($A$1=1,Monat3,IF($A$1=2,"Q3",IF($A$1=3,"Q1-Q3",))) -> 9 | E4: =IF($A$1=1,"Q"&Q,IF($A$1=2,"Q4",IF($A$1=3,"J",))) -> Q3 | F4: =IF($A$1=1,Monat1,IF($A$1=2,"Q1",IF($A$1=3,"Q1",))) -> 7 | G4: =IF($A$1=1,Monat2,IF($A$1=2,"Q2",IF($A$1=3,"Q1-Q2",))) -> 8 | H4: =IF($A$1=1,Monat3,IF($A$1=2,"Q3",IF($A$1=3,"Q1-Q3",))) -> 9 | I4: =IF($A$1=1,"Q"&Q,IF($A$1=2,"Q4",IF($A$1=3,"J",))) -> Q3 | J4: =IF($A$1=1,Monat1,IF($A$1=2,"Q1",IF($A$1=3,"Q1",))) -> 7 | K4: =IF($A$1=1,Monat2,IF($A$1=2,"Q2",IF($A$1=3,"Q1-Q2",))) -> 8 | L4: =IF($A$1=1,Monat3,IF($A$1=2,"Q3",IF($A$1=3,"Q1-Q3",))) -> 9 | M4: =IF($A$1=1,"Q"&Q,IF($A$1=2,"Q4",IF($A$1=3,"J",))) -> Q3 | O4: Diagramm_Untertitel | P4: =IF(OR(Auswahl_Periode=1,Auswahl_Periode=2),Diagramm_Untertitel1_Teil1&" bis "&Diagramm_Untertitel1_Teil2&", Veränderung zur Vorjahresperiode in %",Diagramm_Untertitel2_Teil1&Diagramm_Untertitel2_Teil2&", Veränderung zur Vorjahresperiode in %") -> Juli bis September 2022, Veränderung zur Vorjahresperiode in %
A5: Abgesetzte Produktion in Mio. Euro | B5: =IF(VLOOKUP($A$4,Matrix_2,B$1,FALSE)=0,"-",IF(ISERROR(VLOOKUP($A$4,Matrix_2,B$1,FALSE)/1000),"-",VLOOKUP($A$4,Matrix_2,B$1,FALSE)/1000)) -> 13591.4065 | C5: 11258.7857 | D5: 14358.7384 | E5: 39208.9306 | F5: 16767.5339 | G5: 15555.4989 | H5: 18048.6327 | I5: 50371.6655 | J5: 20883.1162 | K5: 20942.9592 | L5: 22499.338 | M5: 64325.4134
A6: Auftragseingänge, gesamt (bereinigt um Storni) in Mio. Euro | B6: =IF(OR($A$4=2100,$A$4=2110),"-",IF(VLOOKUP($A$4,Matrix_3,B$1,FALSE)=0,"-",IF(ISERROR(VLOOKUP($A$4,Matrix_3,B$1,FALSE)/1000),"-",VLOOKUP($A$4,Matrix_3,B$1,FALSE)/1000))) -> 8210.7482 | C6: 7821.7128 | D6: 9172.917 | E6: 25205.378 | F6: 10478.8979 | G6: 9158.8065 | H6: 10782.5639 | I6: 30420.2683 | J6: 10725.2485 | K6: 10965.417 | L6: 12548.746 | M6: 34239.4115
A7: Auftragseingänge, Inland in Mio. Euro | B7: =IF(OR($A$4=2100,$A$4=2110),"-",IF(VLOOKUP($A$4,Matrix_4,B$1,FALSE)=0,"-",IF(ISERROR(VLOOKUP($A$4,Matrix_4,B$1,FALSE)/1000),"-",VLOOKUP($A$4,Matrix_4,B$1,FALSE)/1000))) -> 2272.1743 | C7: 2082.7049 | D7: 2464.9006 | E7: 6819.7798 | F7: 2882.5266 | G7: 2465.97 | H7: 3107.9328 | I7: 8456.4294 | J7: 2967.905 | K7: 2778.839 | L7: 2881.553 | M7: 8628.297
A8: Auftragseingänge, Ausland in Mio. Euro | B8: =IF(OR($A$4=2100,$A$4=2110),"-",IF(VLOOKUP($A$4,Matrix_5,B$1,FALSE)=0,"-",IF(ISERROR(VLOOKUP($A$4,Matrix_5,B$1,FALSE)/1000),"-",VLOOKUP($A$4,Matrix_5,B$1,FALSE)/1000))) -> 5938.5739 | C8: 5739.0079 | D8: 6708.0164 | E8: 18385.5982 | F8: 7596.3713 | G8: 6692.8365 | H8: 7674.6311 | I8: 21963.8389 | J8: 7757.3435 | K8: 8186.578 | L8: 9667.193 | M8: 25611.1145
A9: Gesamtpersonal | B9: =IF(VLOOKUP($A$4,Matrix_1,B$1,FALSE)=0,"-",IF(ISERROR(VLOOKUP($A$4,Matrix_1,B$1,FALSE)),"-",VLOOKUP($A$4,Matrix_1,B$1,FALSE))) -> 459667 | C9: 458069 | D9: 458511 | E9: 458749 | F9: 465224 | G9: 465179 | H9: 465052 | I9: 465151.6667 | J9: 475202 | K9: 474453 | L9: 474951 | M9: 474868.6667
A10: Eigenpersonal | B10: =IF(VLOOKUP($A$4,Matrix_6,B$1,FALSE)=0,"-",IF(ISERROR(VLOOKUP($A$4,Matrix_6,B$1,FALSE)),"-",VLOOKUP($A$4,Matrix_6,B$1,FALSE))) -> 436926 | C10: 434790 | D10: 434175 | E10: 435297 | F10: 437090 | G10: 436483 | H10: 435842 | I10: 436471.6667 | J10: 444972 | K10: 443806 | L10: 444526 | M10: 444434.6667
A11: Fremdpersonal | B11: =IF(VLOOKUP($A$4,Matrix_7,B$1,FALSE)=0,"-",IF(ISERROR(VLOOKUP($A$4,Matrix_7,B$1,FALSE)),"-",VLOOKUP($A$4,Matrix_7,B$1,FALSE))) -> 22741 | C11: 23279 | D11: 24336 | E11: 23452 | F11: 28134 | G11: 28696 | H11: 29210 | I11: 28680 | J11: 30230 | K11: 30647 | L11: 30425 | M11: 30434
B13: =IF(AND($A$1=1,LEFT(B$4,1)<>"Q"),INDEX(Auswahl!$F$3:$F$14,B$4)&" "&B14,IF(AND($A$1=1,LEFT(B$4,1)="Q"),RIGHT(B$4,1)&". Quartal "&B14,IF($A$1=2,RIGHT(B$4,1)&". Quartal "&B14,IF(AND($A$1=3,B$4="Q1"),RIGHT(B$4,1)&". Quartal "&B14,IF(AND($A$1=3,B$4="Q1-Q2"),"1. Halbjahr "&B14,IF(AND($A$1=3,B$4="Q1-Q3"),"1.-3. Quartal "&B14,IF(AND($A$1=3,B$4="J"),"Jahr "&B14))))))) -> Juli 2021/2020 | C13: =IF(AND($A$1=1,LEFT(C$4,1)<>"Q"),INDEX(Auswahl!$F$3:$F$14,C$4)&" "&C14,IF(AND($A$1=1,LEFT(C$4,1)="Q"),RIGHT(C$4,1)&". Quartal "&C14,IF($A$1=2,RIGHT(C$4,1)&". Quartal "&C14,IF(AND($A$1=3,C$4="Q1"),RIGHT(C$4,1)&". Quartal "&C14,IF(AND($A$1=3,C$4="Q1-Q2"),"1. Halbjahr "&C14,IF(AND($A$1=3,C$4="Q1-Q3"),"1.-3. Quartal "&C14,IF(AND($A$1=3,C$4="J"),"Jahr "&C14))))))) -> August 2021/2020 | D13: =IF(AND($A$1=1,LEFT(D$4,1)<>"Q"),INDEX(Auswahl!$F$3:$F$14,D$4)&" "&D14,IF(AND($A$1=1,LEFT(D$4,1)="Q"),RIGHT(D$4,1)&". Quartal "&D14,IF($A$1=2,RIGHT(D$4,1)&". Quartal "&D14,IF(AND($A$1=3,D$4="Q1"),RIGHT(D$4,1)&". Quartal "&D14,IF(AND($A$1=3,D$4="Q1-Q2"),"1. Halbjahr "&D14,IF(AND($A$1=3,D$4="Q1-Q3"),"1.-3. Quartal "&D14,IF(AND($A$1=3,D$4="J"),"Jahr "&D14))))))) -> September 2021/2020 | E13: =IF(AND($A$1=1,LEFT(E$4,1)<>"Q"),INDEX(Auswahl!$F$3:$F$14,E$4)&" "&E14,IF(AND($A$1=1,LEFT(E$4,1)="Q"),RIGHT(E$4,1)&". Quartal "&E14,IF($A$1=2,RIGHT(E$4,1)&". Quartal "&E14,IF(AND($A$1=3,E$4="Q1"),RIGHT(E$4,1)&". Quartal "&E14,IF(AND($A$1=3,E$4="Q1-Q2"),"1. Halbjahr "&E14,IF(AND($A$1=3,E$4="Q1-Q3"),"1.-3. Quartal "&E14,IF(AND($A$1=3,E$4="J"),"Jahr "&E14))))))) -> 3. Quartal 2021/2020 | F13: =IF(AND($A$1=1,LEFT(F$4,1)<>"Q"),INDEX(Auswahl!$F$3:$F$14,F$4)&" "&F14,IF(AND($A$1=1,LEFT(F$4,1)="Q"),RIGHT(F$4,1)&". Quartal "&F14,IF($A$1=2,RIGHT(F$4,1)&". Quartal "&F14,IF(AND($A$1=3,F$4="Q1"),RIGHT(F$4,1)&". Quartal "&F14,IF(AND($A$1=3,F$4="Q1-Q2"),"1. Halbjahr "&F14,IF(AND($A$1=3,F$4="Q1-Q3"),"1.-3. Quartal "&F14,IF(AND($A$1=3,F$4="J"),"Jahr "&F14))))))) -> Juli 2022/2021 | G13: =IF(AND($A$1=1,LEFT(G$4,1)<>"Q"),INDEX(Auswahl!$F$3:$F$14,G$4)&" "&G14,IF(AND($A$1=1,LEFT(G$4,1)="Q"),RIGHT(G$4,1)&". Quartal "&G14,IF($A$1=2,RIGHT(G$4,1)&". Quartal "&G14,IF(AND($A$1=3,G$4="Q1"),RIGHT(G$4,1)&". Quartal "&G14,IF(AND($A$1=3,G$4="Q1-Q2"),"1. Halbjahr "&G14,IF(AND($A$1=3,G$4="Q1-Q3"),"1.-3. Quartal "&G14,IF(AND($A$1=3,G$4="J"),"Jahr "&G14))))))) -> August 2022/2021 | H13: =IF(AND($A$1=1,LEFT(H$4,1)<>"Q"),INDEX(Auswahl!$F$3:$F$14,H$4)&" "&H14,IF(AND($A$1=1,LEFT(H$4,1)="Q"),RIGHT(H$4,1)&". Quartal "&H14,IF($A$1=2,RIGHT(H$4,1)&". Quartal "&H14,IF(AND($A$1=3,H$4="Q1"),RIGHT(H$4,1)&". Quartal "&H14,IF(AND($A$1=3,H$4="Q1-Q2"),"1. Halbjahr "&H14,IF(AND($A$1=3,H$4="Q1-Q3"),"1.-3. Quartal "&H14,IF(AND($A$1=3,H$4="J"),"Jahr "&H14))))))) -> September 2022/2021 | I13: =IF(AND($A$1=1,LEFT(I$4,1)<>"Q"),INDEX(Auswahl!$F$3:$F$14,I$4)&" "&I14,IF(AND($A$1=1,LEFT(I$4,1)="Q"),RIGHT(I$4,1)&". Quartal "&I14,IF($A$1=2,RIGHT(I$4,1)&". Quartal "&I14,IF(AND($A$1=3,I$4="Q1"),RIGHT(I$4,1)&". Quartal "&I14,IF(AND($A$1=3,I$4="Q1-Q2"),"1. Halbjahr "&I14,IF(AND($A$1=3,I$4="Q1-Q3"),"1.-3. Quartal "&I14,IF(AND($A$1=3,I$4="J"),"Jahr "&I14))))))) -> 3. Quartal 2022/2021
A14: Veränderung zur Vorjahresperiode in % | B14: =F3&"/"&B3 -> 2021/2020 | C14: =G3&"/"&C3 -> 2021/2020 | D14: =H3&"/"&D3 -> 2021/2020 | E14: =D14 -> 2021/2020 | F14: =J3&"/"&F3 -> 2022/2021 | G14: =K3&"/"&G3 -> 2022/2021 | H14: =L3&"/"&H3 -> 2022/2021 | I14: =H14 -> 2022/2021
A15: =FVB_Code -> IND | B15: =B4 -> 7 | C15: =C4 -> 8 | D15: 9 | E15: Q3 | F15: 7 | G15: 8 | H15: 9 | I15: Q3
A16: Abgesetzte Produktion in Mio. Euro | B16: =IF(ISERROR((F5*100/B5)-100),"-",(F5*100/B5)-100) -> 23.368644 | C16: =IF(ISERROR((G5*100/C5)-100),"-",(G5*100/C5)-100) -> 38.16320263 | D16: 25.69790045 | E16: 28.46987849 | F16: 24.54494695 | G16: 34.6337995 | H16: 24.65951507 | I16: 27.70158136
A17: Auftragseingänge, gesamt (bereinigt um Storni) in Mio. Euro | B17: =IF(ISERROR((F6*100/B6)-100),"-",(F6*100/B6)-100) -> 27.62415367 | C17: =IF(ISERROR((G6*100/C6)-100),"-",(G6*100/C6)-100) -> 17.0946407 | D17: =IF(ISERROR((H6*100/D6)-100),"-",(H6*100/D6)-100) -> 17.5478193 | E17: =IF(ISERROR((I6*100/E6)-100),"-",(I6*100/E6)-100) -> 20.6895937 | F17: =IF(ISERROR((J6*100/F6)-100),"-",(J6*100/F6)-100) -> 2.350920892 | G17: =IF(ISERROR((K6*100/G6)-100),"-",(K6*100/G6)-100) -> 19.72539217 | H17: =IF(ISERROR((L6*100/H6)-100),"-",(L6*100/H6)-100) -> 16.37998269 | I17: =IF(ISERROR((M6*100/I6)-100),"-",(M6*100/I6)-100) -> 12.55460064
A18: Auftragseingänge, Inland in Mio. Euro | B18: 26.86203695 | C18: 18.40227581 | D18: 26.08755095 | E18: 23.99856957 | F18: 2.961929302 | G18: 12.68746173 | H18: -7.283934839 | I18: 2.032389699
A19: Auftragseingänge, Ausland in Mio. Euro | B19: 27.91574927 | C19: 16.62009561 | D19: 14.40984402 | E19: 19.46219351 | F19: 2.119067034 | G19: 22.31851174 | H19: 25.96296648 | I19: 16.60582021
A20: Gesamtpersonal | B20: 1.20891863 | C20: 1.552167905 | D20: 1.426574281 | E20: 1.3956797 | F20: 2.144773271 | G20: 1.993641157 | H20: 2.12857917 | I20: 2.088996062
A21: Eigenpersonal | B21: 0.03753496015 | C21: 0.3893833805 | D21: 0.3839465653 | E21: 0.269854069 | F21: 1.80328994 | G21: 1.677728571 | H21: 1.992465159 | I21: 1.8244025
A22: Fremdpersonal | B22: 23.71487621 | C22: 23.26989991 | D22: 20.02794214 | E22: 22.2923418 | F22: 7.450060425 | G22: 6.798856984 | H22: 4.159534406 | I22: 6.115760112
A24: =INDIRECT("Auswahl_Matrix") -> Matrix_2
A25: FVB | B25: Bezeichnung | C25: =B2 -> Juli 2020 | D25: =C2 -> August 2020 | E25: September 2020 | F25: 3. Quartal 2020 | G25: Juli 2021 | H25: August 2021 | I25: September 2021 | J25: 3. Quartal 2021 | K25: Juli 2022 | L25: August 2022 | M25: September 2022 | N25: 3. Quartal 2022
A26: 2010 | B26: Bergwerke und Stahl | C26: =IF(OR(VLOOKUP($A26,INDIRECT($A$24),B$1,FALSE)="-",VLOOKUP($A26,INDIRECT($A$24),B$1,FALSE)=0),"-",IF(ISERROR(VLOOKUP($A26,INDIRECT($A$24),B$1,FALSE)),"-",IF(OR($A$24="Matrix_1",$A$24="Matrix_6",$A$24="Matrix_7"),VLOOKUP($A26,INDIRECT($A$24),B$1,FALSE),VLOOKUP($A26,INDIRECT($A$24),B$1,FALSE)/1000))) -> 516.0132 | D26: =IF(OR(VLOOKUP($A26,INDIRECT($A$24),C$1,FALSE)="-",VLOOKUP($A26,INDIRECT($A$24),C$1,FALSE)=0),"-",IF(ISERROR(VLOOKUP($A26,INDIRECT($A$24),C$1,FALSE)),"-",IF(OR($A$24="Matrix_1",$A$24="Matrix_6",$A$24="Matrix_7"),VLOOKUP($A26,INDIRECT($A$24),C$1,FALSE),VLOOKUP($A26,INDIRECT($A$24),C$1,FALSE)/1000))) -> 450.2527 | E26: 583.5508 | F26: 1549.8167 | G26: 738.388 | H26: 731.6006 | I26: 843.1484 | J26: 2313.137 | K26: 999.2582 | L26: 928.7755 | M26: 1113.7545 | N26: 3041.7882
A27: 2020 | B27: Mineralölindustrie | C27: =IF(OR(VLOOKUP($A27,INDIRECT($A$24),B$1,FALSE)="-",VLOOKUP($A27,INDIRECT($A$24),B$1,FALSE)=0),"-",IF(ISERROR(VLOOKUP($A27,INDIRECT($A$24),B$1,FALSE)),"-",IF(OR($A$24="Matrix_1",$A$24="Matrix_6",$A$24="Matrix_7"),VLOOKUP($A27,INDIRECT($A$24),B$1,FALSE),VLOOKUP($A27,INDIRECT($A$24),B$1,FALSE)/1000))) -> 549.6774 | D27: 524.567 | E27: 517.213 | F27: 1591.4574 | G27: 817.0172 | H27: 790.3063 | I27: 821.0394 | J27: 2428.3629 | K27: 858.4196 | L27: 841.4293 | M27: 806.1644 | N27: 2506.0133
A28: 2030 | B28: Stein- u. keramische Industrie | C28: 341.8854 | D28: 283.2427 | E28: 334.3009 | F28: 959.429 | G28: 369.3548 | H28: 323.4636 | I28: 365.4666 | J28: 1058.285 | K28: 368.7324 | L28: 342.2503 | M28: 390.647 | N28: 1101.6297
A29: 2040 | B29: Glasindustrie | C29: 85.4894 | D29: 76.0249 | E29: 87.6569 | F29: 249.1712 | G29: 101.5319 | H29: 85.4261 | I29: 97.9742 | J29: 284.9322 | K29: 105.7816 | L29: 100.3929 | M29: 113.5499 | N29: 319.7244
A30: 2050 | B30: Chemische Industrie | C30: 1251.93 | D30: 1099.9464 | E30: 1272.0923 | F30: 3623.9687 | G30: 1479.7654 | H30: 1390.5428 | I30: 1572.0948 | J30: 4442.403 | K30: 1666.4556 | L30: 1614.3331 | M30: 1727.0538 | N30: 5007.8425
A31: 2060 | B31: Papierindustrie | C31: 250.2197 | D31: 234.4601 | E31: 274.7373 | F31: 759.4171 | G31: 305.9476 | H31: 298.9892 | I31: 336.5566 | J31: 941.4934 | K31: 450.5763 | L31: 448.4029 | M31: 492.2681 | N31: 1391.2473
A32: 2070 | B32: PROPAK - Produkte aus Papier & Karton | C32: 215.2289 | D32: 197.0753 | E32: 226.7488 | F32: 639.053 | G32: 229.5659 | H32: 224.8514 | I32: 246.9971 | J32: 701.4144 | K32: 265.4827 | L32: 269.7217 | M32: 290.706 | N32: 825.9104
A33: 2090 | B33: Bauindustrie | C33: 798.8914 | D33: 728.4585 | E33: 809.9734 | F33: 2337.3233 | G33: 800.0264 | H33: 778.5062 | I33: 874.4197 | J33: 2452.9523 | K33: 869.894 | L33: 830.2252 | M33: 883.2852 | N33: 2583.4044
A34: 2100 | B34: Holzindustrie | C34: =IF(OR($A$24="Matrix_3",$A$24="Matrix_4",$A$24="Matrix_5"),"-",IF(OR(VLOOKUP($A34,INDIRECT($A$24),B$1,FALSE)="-",VLOOKUP($A34,INDIRECT($A$24),B$1,FALSE)=0),"-",IF(ISERROR(VLOOKUP($A34,INDIRECT($A$24),B$1,FALSE)),"-",IF(OR($A$24="Matrix_1",$A$24="Matrix_6",$A$24="Matrix_7"),VLOOKUP($A34,INDIRECT($A$24),B$1,FALSE),VLOOKUP($A34,INDIRECT($A$24),B$1,FALSE)/1000)))) -> 771.1901 | D34: =IF(OR($A$24="Matrix_3",$A$24="Matrix_4",$A$24="Matrix_5"),"-",IF(OR(VLOOKUP($A34,INDIRECT($A$24),C$1,FALSE)="-",VLOOKUP($A34,INDIRECT($A$24),C$1,FALSE)=0),"-",IF(ISERROR(VLOOKUP($A34,INDIRECT($A$24),C$1,FALSE)),"-",IF(OR($A$24="Matrix_1",$A$24="Matrix_6",$A$24="Matrix_7"),VLOOKUP($A34,INDIRECT($A$24),C$1,FALSE),VLOOKUP($A34,INDIRECT($A$24),C$1,FALSE)/1000)))) -> 604.5088 | E34: 823.7993 | F34: 2199.4982 | G34: 1037.1696 | H34: 845.2721 | I34: 1025.696 | J34: 2908.1377 | K34: 950.4414 | L34: 790.9411 | M34: 1048.2699 | N34: 2789.6524
A35: 2110 | B35: Nahrungs- u. Genussmittelindustrie (Lebensmittelindustrie) | C35: =IF(OR($A$24="Matrix_3",$A$24="Matrix_4",$A$24="Matrix_5"),"-",IF(OR(VLOOKUP($A35,INDIRECT($A$24),B$1,FALSE)="-",VLOOKUP($A35,INDIRECT($A$24),B$1,FALSE)=0),"-",IF(ISERROR(VLOOKUP($A35,INDIRECT($A$24),B$1,FALSE)),"-",IF(OR($A$24="Matrix_1",$A$24="Matrix_6",$A$24="Matrix_7"),VLOOKUP($A35,INDIRECT($A$24),B$1,FALSE),VLOOKUP($A35,INDIRECT($A$24),B$1,FALSE)/1000)))) -> 897.0109 | D35: =IF(OR($A$24="Matrix_3",$A$24="Matrix_4",$A$24="Matrix_5"),"-",IF(OR(VLOOKUP($A35,INDIRECT($A$24),C$1,FALSE)="-",VLOOKUP($A35,INDIRECT($A$24),C$1,FALSE)=0),"-",IF(ISERROR(VLOOKUP($A35,INDIRECT($A$24),C$1,FALSE)),"-",IF(OR($A$24="Matrix_1",$A$24="Matrix_6",$A$24="Matrix_7"),VLOOKUP($A35,INDIRECT($A$24),C$1,FALSE),VLOOKUP($A35,INDIRECT($A$24),C$1,FALSE)/1000)))) -> 816.5362 | E35: 893.3559 | F35: 2606.903 | G35: 912.2739 | H35: 904.144 | I35: 938.9021 | J35: 2755.32 | K35: 1056.2339 | L35: 1111.9017 | M35: 1120.0819 | N35: 3288.2175
A36: 2120 | B36: Textil-, Bekleidungs-, Schuh- und Lederindustrie | C36: 219.2537 | D36: =IF(OR(VLOOKUP($A36,INDIRECT($A$24),C$1,FALSE)="-",VLOOKUP($A36,INDIRECT($A$24),C$1,FALSE)=0),"-",IF(ISERROR(VLOOKUP($A36,INDIRECT($A$24),C$1,FALSE)),"-",IF(OR($A$24="Matrix_1",$A$24="Matrix_6",$A$24="Matrix_7"),VLOOKUP($A36,INDIRECT($A$24),C$1,FALSE),VLOOKUP($A36,INDIRECT($A$24),C$1,FALSE)/1000))) -> 176.6407 | E36: =IF(OR(VLOOKUP($A36,INDIRECT($A$24),D$1,FALSE)="-",VLOOKUP($A36,INDIRECT($A$24),D$1,FALSE)=0),"-",IF(ISERROR(VLOOKUP($A36,INDIRECT($A$24),D$1,FALSE)),"-",IF(OR($A$24="Matrix_1",$A$24="Matrix_6",$A$24="Matrix_7"),VLOOKUP($A36,INDIRECT($A$24),D$1,FALSE),VLOOKUP($A36,INDIRECT($A$24),D$1,FALSE)/1000))) -> 231.6573 | F36: =IF(OR(VLOOKUP($A36,INDIRECT($A$24),E$1,FALSE)="-",VLOOKUP($A36,INDIRECT($A$24),E$1,FALSE)=0),"-",IF(ISERROR(VLOOKUP($A36,INDIRECT($A$24),E$1,FALSE)),"-",IF(OR($A$24="Matrix_1",$A$24="Matrix_6",$A$24="Matrix_7"),VLOOKUP($A36,INDIRECT($A$24),E$1,FALSE),VLOOKUP($A36,INDIRECT($A$24),E$1,FALSE)/1000))) -> 627.5517 | G36: =IF(OR(VLOOKUP($A36,INDIRECT($A$24),F$1,FALSE)="-",VLOOKUP($A36,INDIRECT($A$24),F$1,FALSE)=0),"-",IF(ISERROR(VLOOKUP($A36,INDIRECT($A$24),F$1,FALSE)),"-",IF(OR($A$24="Matrix_1",$A$24="Matrix_6",$A$24="Matrix_7"),VLOOKUP($A36,INDIRECT($A$24),F$1,FALSE),VLOOKUP($A36,INDIRECT($A$24),F$1,FALSE)/1000))) -> 212.2585 | H36: =IF(OR(VLOOKUP($A36,INDIRECT($A$24),G$1,FALSE)="-",VLOOKUP($A36,INDIRECT($A$24),G$1,FALSE)=0),"-",IF(ISERROR(VLOOKUP($A36,INDIRECT($A$24),G$1,FALSE)),"-",IF(OR($A$24="Matrix_1",$A$24="Matrix_6",$A$24="Matrix_7"),VLOOKUP($A36,INDIRECT($A$24),G$1,FALSE),VLOOKUP($A36,INDIRECT($A$24),G$1,FALSE)/1000))) -> 167.6497 | I36: =IF(OR(VLOOKUP($A36,INDIRECT($A$24),H$1,FALSE)="-",VLOOKUP($A36,INDIRECT($A$24),H$1,FALSE)=0),"-",IF(ISERROR(VLOOKUP($A36,INDIRECT($A$24),H$1,FALSE)),"-",IF(OR($A$24="Matrix_1",$A$24="Matrix_6",$A$24="Matrix_7"),VLOOKUP($A36,INDIRECT($A$24),H$1,FALSE),VLOOKUP($A36,INDIRECT($A$24),H$1,FALSE)/1000))) -> 240.9704 | J36: =IF(OR(VLOOKUP($A36,INDIRECT($A$24),I$1,FALSE)="-",VLOOKUP($A36,INDIRECT($A$24),I$1,FALSE)=0),"-",IF(ISERROR(VLOOKUP($A36,INDIRECT($A$24),I$1,FALSE)),"-",IF(OR($A$24="Matrix_1",$A$24="Matrix_6",$A$24="Matrix_7"),VLOOKUP($A36,INDIRECT($A$24),I$1,FALSE),VLOOKUP($A36,INDIRECT($A$24),I$1,FALSE)/1000))) -> 620.8786 | K36: =IF(OR(VLOOKUP($A36,INDIRECT($A$24),J$1,FALSE)="-",VLOOKUP($A36,INDIRECT($A$24),J$1,FALSE)=0),"-",IF(ISERROR(VLOOKUP($A36,INDIRECT($A$24),J$1,FALSE)),"-",IF(OR($A$24="Matrix_1",$A$24="Matrix_6",$A$24="Matrix_7"),VLOOKUP($A36,INDIRECT($A$24),J$1,FALSE),VLOOKUP($A36,INDIRECT($A$24),J$1,FALSE)/1000))) -> 227.4749 | L36: =IF(OR(VLOOKUP($A36,INDIRECT($A$24),K$1,FALSE)="-",VLOOKUP($A36,INDIRECT($A$24),K$1,FALSE)=0),"-",IF(ISERROR(VLOOKUP($A36,INDIRECT($A$24),K$1,FALSE)),"-",IF(OR($A$24="Matrix_1",$A$24="Matrix_6",$A$24="Matrix_7"),VLOOKUP($A36,INDIRECT($A$24),K$1,FALSE),VLOOKUP($A36,INDIRECT($A$24),K$1,FALSE)/1000))) -> 191.8618 | M36: =IF(OR(VLOOKUP($A36,INDIRECT($A$24),L$1,FALSE)="-",VLOOKUP($A36,INDIRECT($A$24),L$1,FALSE)=0),"-",IF(ISERROR(VLOOKUP($A36,INDIRECT($A$24),L$1,FALSE)),"-",IF(OR($A$24="Matrix_1",$A$24="Matrix_6",$A$24="Matrix_7"),VLOOKUP($A36,INDIRECT($A$24),L$1,FALSE),VLOOKUP($A36,INDIRECT($A$24),L$1,FALSE)/1000))) -> 258.6492 | N36: =IF(OR(VLOOKUP($A36,INDIRECT($A$24),M$1,FALSE)="-",VLOOKUP($A36,INDIRECT($A$24),M$1,FALSE)=0),"-",IF(ISERROR(VLOOKUP($A36,INDIRECT($A$24),M$1,FALSE)),"-",IF(OR($A$24="Matrix_1",$A$24="Matrix_6",$A$24="Matrix_7"),VLOOKUP($A36,INDIRECT($A$24),M$1,FALSE),VLOOKUP($A36,INDIRECT($A$24),M$1,FALSE)/1000))) -> 677.9859
A37: 2130 | B37: Gas- u. Wärmeversorgungsunternehmungen | C37: 1125.7073 | D37: 1119.8817 | E37: 1269.8477 | F37: 3515.4367 | G37: 2585.9898 | H37: 2776.2526 | I37: 3100.3799 | J37: 8462.6223 | K37: 5276.4715 | L37: 6350.5038 | M37: 5050.8946 | N37: 16677.8699
A38: 2150 | B38: NE-Metallindustrie | C38: 337.4615 | D38: 287.8123 | E38: 341.6759 | F38: 966.9497 | G38: 508.363 | H38: 457.2787 | I38: 523.1455 | J38: 1488.7872 | K38: 586.1648 | L38: 533.4366 | M38: 584.8233 | N38: 1704.4247
A39: 2160 | B39: Maschinen-, Metallwaren- und Gießereiindustrie | C39: 3164.7726 | D39: 2540.0547 | E39: 3287.1374 | F39: 8991.9647 | G39: 3675.8187 | H39: 3188.7396 | I39: 3846.0182 | J39: 10710.5765 | K39: 3869.7141 | L39: 3586.4079 | M39: 4492.7289 | N39: 11948.8509
A40: 2170 | B40: Fahrzeugindustrie | C40: 1608.8657 | D40: 808.3433 | E40: 1634.5086 | F40: 4051.7176 | G40: 1393.1451 | H40: 1064.7762 | I40: 1352.1598 | J40: 3810.0811 | K40: 1349.092 | L40: 956.5755 | M40: 1720.2911 | N40: 4025.9586
A41: 2180 | B41: Elektro- u. Elektronikindustrie | C41: 1457.8094 | D41: 1310.9803 | E41: 1770.4828 | F41: 4539.2725 | G41: 1600.9182 | H41: 1527.6998 | I41: 1863.6641 | J41: 4992.2821 | K41: 1982.9232 | L41: 2045.7999 | M41: 2406.1703 | N41: 6434.8934
A42: IND | B42: Industrie insgesamt [inkl. Bauind.] | C42: 13591.4065 | D42: 11258.7857 | E42: 14358.7384 | F42: 39208.9306 | G42: 16767.5339 | H42: 15555.4989 | I42: 18048.6327 | J42: 50371.6655 | K42: 20883.1162 | L42: 20942.9592 | M42: 22499.338 | N42: 64325.4134
A44: FVB | B44: Bezeichnung | C44: =B13 -> Juli 2021/2020 | D44: =C13 -> August 2021/2020 | E44: September 2021/2020 | F44: 3. Quartal 2021/2020 | G44: Juli 2022/2021 | H44: August 2022/2021 | I44: September 2022/2021 | J44: 3. Quartal 2022/2021
A45: 2010 | B45: Bergwerke und Stahl | C45: =IF(ISERROR((G26*100/C26)-100),"-",(G26*100/C26)-100) -> 43.09478905 | D45: =IF(ISERROR((H26*100/D26)-100),"-",(H26*100/D26)-100) -> 62.48666582 | E45: 44.48586139 | F45: 49.25229545 | G45: 35.32969117 | H45: 26.95116707 | I45: 32.09471785 | J45: 31.50056395
A46: 2020 | B46: Mineralölindustrie | C46: =IF(ISERROR((G27*100/C27)-100),"-",(G27*100/C27)-100) -> 48.63576345 | D46: 50.65879096 | E46: 58.7429937 | F46: 52.58736426 | G46: 5.067506535 | H46: 6.468757746 | I46: -1.811727915 | J46: 3.197643977
A47: 2030 | B47: Stein- u. keramische Industrie | C47: 8.034680627 | D47: 14.20015414 | E47: 9.322649146 | F47: 10.30362851 | G47: -0.1685100613 | H47: 5.80797963 | I47: 6.889931939 | J47: 4.095749255
A48: 2040 | B48: Glasindustrie | C48: 18.76548438 | D48: 12.36594852 | E48: 11.77009454 | F48: 14.35197968 | G48: 4.185581083 | H48: 17.52017241 | I48: 15.89775676 | J48: 12.21069433
A49: 2050 | B49: Chemische Industrie | C49: 18.19873316 | D49: 26.41914188 | E49: 23.58339092 | F49: 22.58392298 | G49: 12.61620254 | H49: 16.09373692 | I49: 9.856848327 | J49: 12.72823515
A50: 2060 | B50: Papierindustrie | C50: 22.27158773 | D50: 27.52242279 | E50: 22.50124028 | F50: 23.9757967 | G50: 47.27237605 | H50: 49.97294217 | I50: 46.26606639 | J50: 47.77026584
A51: 2070 | B51: PROPAK - Produkte aus Papier & Karton | C51: 6.661280153 | D51: 14.09415589 | E51: 8.929837776 | F51: 9.758408145 | G51: 15.64552924 | H51: 19.95553508 | I51: 17.6961187 | J51: 17.74927917
A52: 2090 | B52: Bauindustrie | C52: 0.1420718761 | D52: 6.870357062 | E52: 7.956594624 | F52: 4.947069154 | G52: 8.733161806 | H52: 6.643363919 | I52: 1.0138724 | J52: 5.31816701
A53: 2100 | B53: Holzindustrie | C53: 34.4894858 | D53: 39.8279231 | E53: 24.50799606 | F53: 32.21823505 | G53: -8.362007525 | H53: -6.427634368 | I53: 2.200837285 | J53: -4.074267185
A54: 2110 | B54: Nahrungs- u. Genussmittelindustrie (Lebensmittelindustrie) | C54: 1.701540082 | D54: 10.72919976 | E54: 5.098326434 | F54: 5.693230627 | G54: 15.78034842 | H54: 22.97838619 | I54: 19.29698528 | J54: 19.34067549
A55: 2120 | B55: Textil-, Bekleidungs-, Schuh- und Lederindustrie | C55: -3.190459272 | D55: -5.089993416 | E55: 4.020205709 | F55: -1.063354621 | G55: 7.168805961 | H55: 14.44207774 | I55: 7.336502741 | J55: 9.197820637
A56: 2130 | B56: Gas- u. Wärmeversorgungsunternehmungen | C56: 129.7213316 | D56: 147.9058815 | E56: 144.1536808 | F56: 140.7274834 | G56: 104.0406927 | H56: 128.7437317 | I56: 62.91211925 | J56: 97.07685524
A57: 2150 | B57: NE-Metallindustrie | C57: 50.64325856 | D57: 58.88087479 | E57: 53.11161835 | F57: 53.96738838 | G57: 15.30437896 | H57: 16.65459161 | I57: 11.78979844 | J57: 14.48410491
A58: 2160 | B58: Maschinen-, Metallwaren- und Gießereiindustrie | C58: 16.14795641 | D58: 25.53822561 | E58: 17.00205169 | F58: 19.11275074 | G58: 5.27489019 | H58: 12.47101833 | I58: 16.81507123 | J58: 11.56123015
A59: 2170 | B59: Fahrzeugindustrie | C59: -13.4082416 | D59: 31.72326659 | E59: -17.27423153 | F59: -5.963804091 | G59: -3.162132932 | H59: -10.16182556 | I59: 27.22542853 | J59: 5.665955509
A60: 2180 | B60: Elektro- u. Elektronikindustrie | C60: 9.81670169 | D60: 16.53110272 | E60: 5.263044634 | F60: 9.979784206 | G60: 23.86161891 | H60: 33.9137375 | I60: 29.10965554 | J60: 28.89683057
A61: IND | B61: Industrie insgesamt [inkl. Bauind.] | C61: 23.368644 | D61: =IF(ISERROR((H42*100/D42)-100),"-",(H42*100/D42)-100) -> 38.16320263 | E61: 25.69790045 | F61: 28.46987849 | G61: 24.54494695 | H61: 34.6337995 | I61: 24.65951507 | J61: 27.70158136

Sheet Dashboard_Basis_Auswahl_2 (hidden)
A1: =Auswahl_Periode -> 1 | B1: =VLOOKUP(B3&B4,Matrix_Zeitraum,4,FALSE) ->  | N1: Diagramm_Untertitel_Teil1 | O1: =IF(AND($A$1=3,I$4="J"),"Jahr "&I3,IF($A$1=4,Auswahl!K1&" "&I3,)) -> 0
A2: =Auswahl_Monat_Quartal_Jahr -> 9 | B2: =IF(AND($A$1=3,B$4="Q1"),RIGHT(B$4,1)&". Quartal "&B3,IF(AND($A$1=3,B$4="Q1-Q2"),"1. Halbjahr "&B3,IF(AND($A$1=3,B$4="Q1-Q3"),"1.-3. Quartal "&B3,IF(AND($A$1=3,B$4="J"),"Jahr "&B3,IF($A$1=4,Auswahl!$K$1))))) -> FALSE | C2: =IF(AND($A$1=3,C$4="Q1"),RIGHT(C$4,1)&". Quartal "&C3,IF(AND($A$1=3,C$4="Q1-Q2"),"1. Halbjahr "&C3,IF(AND($A$1=3,C$4="Q1-Q3"),"1.-3. Quartal "&C3,IF(AND($A$1=3,C$4="J"),"Jahr "&C3,IF($A$1=4,Auswahl!$K$1))))) -> FALSE | D2: =IF(AND($A$1=3,D$4="Q1"),RIGHT(D$4,1)&". Quartal "&D3,IF(AND($A$1=3,D$4="Q1-Q2"),"1. Halbjahr "&D3,IF(AND($A$1=3,D$4="Q1-Q3"),"1.-3. Quartal "&D3,IF(AND($A$1=3,D$4="J"),"Jahr "&D3,IF($A$1=4,Auswahl!$K$1))))) -> FALSE | E2: =IF(AND($A$1=3,E$4="Q1"),RIGHT(E$4,1)&". Quartal "&E3,IF(AND($A$1=3,E$4="Q1-Q2"),"1. Halbjahr "&E3,IF(AND($A$1=3,E$4="Q1-Q3"),"1.-3. Quartal "&E3,IF(AND($A$1=3,E$4="J"),"Jahr "&E3,IF($A$1=4,Auswahl!$K$1))))) -> FALSE | F2: =IF(AND($A$1=3,F$4="Q1"),RIGHT(F$4,1)&". Quartal "&F3,IF(AND($A$1=3,F$4="Q1-Q2"),"1. Halbjahr "&F3,IF(AND($A$1=3,F$4="Q1-Q3"),"1.-3. Quartal "&F3,IF(AND($A$1=3,F$4="J"),"Jahr "&F3,IF($A$1=4,Auswahl!$K$1))))) -> FALSE | G2: =IF(AND($A$1=3,G$4="Q1"),RIGHT(G$4,1)&". Quartal "&G3,IF(AND($A$1=3,G$4="Q1-Q2"),"1. Halbjahr "&G3,IF(AND($A$1=3,G$4="Q1-Q3"),"1.-3. Quartal "&G3,IF(AND($A$1=3,G$4="J"),"Jahr "&G3,IF($A$1=4,Auswahl!$K$1))))) -> FALSE | H2: =IF(AND($A$1=3,H$4="Q1"),RIGHT(H$4,1)&". Quartal "&H3,IF(AND($A$1=3,H$4="Q1-Q2"),"1. Halbjahr "&H3,IF(AND($A$1=3,H$4="Q1-Q3"),"1.-3. Quartal "&H3,IF(AND($A$1=3,H$4="J"),"Jahr "&H3,IF($A$1=4,Auswahl!$K$1))))) -> FALSE | I2: =IF(AND($A$1=3,I$4="Q1"),RIGHT(I$4,1)&". Quartal "&I3,IF(AND($A$1=3,I$4="Q1-Q2"),"1. Halbjahr "&I3,IF(AND($A$1=3,I$4="Q1-Q3"),"1.-3. Quartal "&I3,IF(AND($A$1=3,I$4="J"),"Jahr "&I3,IF($A$1=4,Auswahl!$K$1))))) -> FALSE | J2: =IF(AND($A$1=3,J$4="Q1"),RIGHT(J$4,1)&". Quartal "&J3,IF(AND($A$1=3,J$4="Q1-Q2"),"1. Halbjahr "&J3,IF(AND($A$1=3,J$4="Q1-Q3"),"1.-3. Quartal "&J3,IF(AND($A$1=3,J$4="J"),"Jahr "&J3,IF($A$1=4,Auswahl!$K$1))))) -> FALSE | K2: =IF(AND($A$1=3,K$4="Q1"),RIGHT(K$4,1)&". Quartal "&K3,IF(AND($A$1=3,K$4="Q1-Q2"),"1. Halbjahr "&K3,IF(AND($A$1=3,K$4="Q1-Q3"),"1.-3. Quartal "&K3,IF(AND($A$1=3,K$4="J"),"Jahr "&K3,IF($A$1=4,Auswahl!$K$1))))) -> FALSE | L2: =IF(AND($A$1=3,L$4="Q1"),RIGHT(L$4,1)&". Quartal "&L3,IF(AND($A$1=3,L$4="Q1-Q2"),"1. Halbjahr "&L3,IF(AND($A$1=3,L$4="Q1-Q3"),"1.-3. Quartal "&L3,IF(AND($A$1=3,L$4="J"),"Jahr "&L3,IF($A$1=4,Auswahl!$K$1))))) -> FALSE | N2: Diagramm_Untertitel_Teil2 | O2: =IF(AND($A$1=3,L$4="J"),"-"&L3,IF($A$1=4,"-" &L3,)) -> 0
B3: =C3-1 -> 2012 | C3: 2013 | D3: 2014 | E3: 2015 | F3: 2016 | G3: 2017 | H3: 2018 | I3: 2019 | J3: 2020 | K3: =L3-1 -> 2021 | L3: =MAX_Jahr -> 2022
A4: =FVB_Code -> IND | B4: =IF($A$1=3,"J",IF($A$1=4,"M1-"&Anzahl_Monate,)) -> 0 | C4: 0 | D4: 0 | E4: 0 | F4: 0 | G4: 0 | H4: 0 | I4: 0 | J4: 0 | K4: 0 | L4: 0 | O4: =IF(OR(Auswahl_Periode=1,Auswahl_Periode=2),Diagramm_Untertitel,IF(AND($A$1=3,E$4="J"),"Jahr "&E3,IF($A$1=4,Auswahl!K1&" "&E3,))&Diagramm_Untertitel2_Teil2&", Veränderung zur Vorjahresperiode in %") -> Juli bis September 2022, Veränderung zur Vorjahresperiode in %
A5: Abgesetzte Produktion in Mio. Euro | B5: =IF(VLOOKUP($A$4,Matrix_2,B$1,FALSE)=0,"-",IF(ISERROR(VLOOKUP($A$4,Matrix_2,B$1,FALSE)/1000),"-",VLOOKUP($A$4,Matrix_2,B$1,FALSE)/1000)) -> 
A6: Auftragseingänge, gesamt (bereinigt um Storni) in Mio. Euro | B6: =IF(OR($A$4=2100,$A$4=2110),"-",IF(VLOOKUP($A$4,Matrix_3,B$1,FALSE)=0,"-",IF(ISERROR(VLOOKUP($A$4,Matrix_3,B$1,FALSE)/1000),"-",VLOOKUP($A$4,Matrix_3,B$1,FALSE)/1000))) -> 
A7: Auftragseingänge, Inland in Mio. Euro | B7: =IF(OR($A$4=2100,$A$4=2110),"-",IF(VLOOKUP($A$4,Matrix_4,B$1,FALSE)=0,"-",IF(ISERROR(VLOOKUP($A$4,Matrix_4,B$1,FALSE)/1000),"-",VLOOKUP($A$4,Matrix_4,B$1,FALSE)/1000))) -> 
A8: Auftragseingänge, Ausland in Mio. Euro | B8: =IF(OR($A$4=2100,$A$4=2110),"-",IF(VLOOKUP($A$4,Matrix_5,B$1,FALSE)=0,"-",IF(ISERROR(VLOOKUP($A$4,Matrix_5,B$1,FALSE)/1000),"-",VLOOKUP($A$4,Matrix_5,B$1,FALSE)/1000))) -> 
A9: Gesamtpersonal | B9: =IF(VLOOKUP($A$4,Matrix_1,B$1,FALSE)=0,"-",IF(ISERROR(VLOOKUP($A$4,Matrix_1,B$1,FALSE)),"",VLOOKUP($A$4,Matrix_1,B$1,FALSE))) -> 
A10: Eigenpersonal | B10: =IF(VLOOKUP($A$4,Matrix_6,B$1,FALSE)=0,"-",IF(ISERROR(VLOOKUP($A$4,Matrix_6,B$1,FALSE)),"",VLOOKUP($A$4,Matrix_6,B$1,FALSE))) -> 
A11: Fremdpersonal | B11: =IF(VLOOKUP($A$4,Matrix_7,B$1,FALSE)=0,"-",IF(ISERROR(VLOOKUP($A$4,Matrix_7,B$1,FALSE)),"",VLOOKUP($A$4,Matrix_7,B$1,FALSE))) -> 
B13: =IF(AND($A$1=3,B$4="Q1"),RIGHT(B$4,1)&". Quartal "&B14,IF(AND($A$1=3,B$4="Q1-Q2"),"1. Halbjahr "&B14,IF(AND($A$1=3,B$4="Q1-Q3"),"1.-3. Quartal "&B14,IF(AND($A$1=3,B$4="J"),"Jahr "&B14,IF($A$1=4,Auswahl!$K$1))))) -> FALSE | C13: =IF(AND($A$1=3,C$4="Q1"),RIGHT(C$4,1)&". Quartal "&C14,IF(AND($A$1=3,C$4="Q1-Q2"),"1. Halbjahr "&C14,IF(AND($A$1=3,C$4="Q1-Q3"),"1.-3. Quartal "&C14,IF(AND($A$1=3,C$4="J"),"Jahr "&C14,IF($A$1=4,Auswahl!$K$1))))) -> FALSE | D13: =IF(AND($A$1=3,D$4="Q1"),RIGHT(D$4,1)&". Quartal "&D14,IF(AND($A$1=3,D$4="Q1-Q2"),"1. Halbjahr "&D14,IF(AND($A$1=3,D$4="Q1-Q3"),"1.-3. Quartal "&D14,IF(AND($A$1=3,D$4="J"),"Jahr "&D14,IF($A$1=4,Auswahl!$K$1))))) -> FALSE | E13: =IF(AND($A$1=3,E$4="Q1"),RIGHT(E$4,1)&". Quartal "&E14,IF(AND($A$1=3,E$4="Q1-Q2"),"1. Halbjahr "&E14,IF(AND($A$1=3,E$4="Q1-Q3"),"1.-3. Quartal "&E14,IF(AND($A$1=3,E$4="J"),"Jahr "&E14,IF($A$1=4,Auswahl!$K$1))))) -> FALSE | F13: =IF(AND($A$1=3,F$4="Q1"),RIGHT(F$4,1)&". Quartal "&F14,IF(AND($A$1=3,F$4="Q1-Q2"),"1. Halbjahr "&F14,IF(AND($A$1=3,F$4="Q1-Q3"),"1.-3. Quartal "&F14,IF(AND($A$1=3,F$4="J"),"Jahr "&F14,IF($A$1=4,Auswahl!$K$1))))) -> FALSE | G13: =IF(AND($A$1=3,G$4="Q1"),RIGHT(G$4,1)&". Quartal "&G14,IF(AND($A$1=3,G$4="Q1-Q2"),"1. Halbjahr "&G14,IF(AND($A$1=3,G$4="Q1-Q3"),"1.-3. Quartal "&G14,IF(AND($A$1=3,G$4="J"),"Jahr "&G14,IF($A$1=4,Auswahl!$K$1))))) -> FALSE | H13: =IF(AND($A$1=3,H$4="Q1"),RIGHT(H$4,1)&". Quartal "&H14,IF(AND($A$1=3,H$4="Q1-Q2"),"1. Halbjahr "&H14,IF(AND($A$1=3,H$4="Q1-Q3"),"1.-3. Quartal "&H14,IF(AND($A$1=3,H$4="J"),"Jahr "&H14,IF($A$1=4,Auswahl!$K$1))))) -> FALSE | I13: =IF(AND($A$1=3,I$4="Q1"),RIGHT(I$4,1)&". Quartal "&I14,IF(AND($A$1=3,I$4="Q1-Q2"),"1. Halbjahr "&I14,IF(AND($A$1=3,I$4="Q1-Q3"),"1.-3. Quartal "&I14,IF(AND($A$1=3,I$4="J"),"Jahr "&I14,IF($A$1=4,Auswahl!$K$1))))) -> FALSE | J13: =IF(AND($A$1=3,J$4="Q1"),RIGHT(J$4,1)&". Quartal "&J14,IF(AND($A$1=3,J$4="Q1-Q2"),"1. Halbjahr "&J14,IF(AND($A$1=3,J$4="Q1-Q3"),"1.-3. Quartal "&J14,IF(AND($A$1=3,J$4="J"),"Jahr "&J14,IF($A$1=4,Auswahl!$K$1))))) -> FALSE | K13: =IF(AND($A$1=3,K$4="Q1"),RIGHT(K$4,1)&". Quartal "&K14,IF(AND($A$1=3,K$4="Q1-Q2"),"1. Halbjahr "&K14,IF(AND($A$1=3,K$4="Q1-Q3"),"1.-3. Quartal "&K14,IF(AND($A$1=3,K$4="J"),"Jahr "&K14,IF($A$1=4,Auswahl!$K$1))))) -> FALSE
A14: Veränderung zur Vorjahresperiode in % | B14: =C3&"/"&B3 -> 2013/2012 | C14: =D3&"/"&C3 -> 2014/2013 | D14: 2015/2014 | E14: 2016/2015 | F14: 2017/2016 | G14: 2018/2017 | H14: 2019/2018 | I14: 2020/2019 | J14: 2021/2020 | K14: =L3&"/"&K3 -> 2022/2021
A15: =FVB_Code -> IND | B15: =B4 -> 0 | C15: =C4 -> 0 | D15: 0 | E15: 0 | F15: 0 | G15: 0 | H15: 0 | I15: 0 | J15: =J4 -> 0 | K15: 0
A16: Abgesetzte Produktion in Mio. Euro | B16: =IF(ISERROR((C5*100/B5)-100),"-",(C5*100/B5)-100) -> - | C16: =IF(ISERROR((D5*100/C5)-100),"-",(D5*100/C5)-100) -> - | D16: - | E16: - | F16: - | G16: - | H16: - | I16: - | J16: - | K16: =IF(ISERROR((L5*100/K5)-100),"-",(L5*100/K5)-100) -> -
A17: Auftragseingänge, gesamt (bereinigt um Storni) in Mio. Euro | B17: =IF(ISERROR((C6*100/B6)-100),"-",(C6*100/B6)-100) -> - | C17: - | D17: - | E17: - | F17: - | G17: - | H17: - | I17: - | J17: - | K17: =IF(ISERROR((L6*100/K6)-100),"-",(L6*100/K6)-100) -> -
A18: Auftragseingänge, Inland in Mio. Euro | B18: - | C18: - | D18: - | E18: - | F18: - | G18: - | H18: - | I18: - | J18: - | K18: =IF(ISERROR((L7*100/K7)-100),"-",(L7*100/K7)-100) -> -
A19: Auftragseingänge, Ausland in Mio. Euro | B19: - | C19: - | D19: - | E19: - | F19: - | G19: - | H19: - | I19: - | J19: - | K19: =IF(ISERROR((L8*100/K8)-100),"-",(L8*100/K8)-100) -> -
A20: Gesamtpersonal | B20: - | C20: - | D20: - | E20: - | F20: - | G20: - | H20: - | I20: - | J20: - | K20: =IF(ISERROR((L9*100/K9)-100),"-",(L9*100/K9)-100) -> -
A21: Eigenpersonal | B21: - | C21: - | D21: - | E21: - | F21: - | G21: - | H21: - | I21: - | J21: - | K21: =IF(ISERROR((L10*100/K10)-100),"-",(L10*100/K10)-100) -> -
A22: Fremdpersonal | B22: - | C22: - | D22: - | E22: - | F22: - | G22: - | H22: - | I22: - | J22: - | K22: =IF(ISERROR((L11*100/K11)-100),"-",(L11*100/K11)-100) -> -
A24: =INDIRECT("Auswahl_Matrix") -> Matrix_2
A25: FVB | B25: Bezeichnung
A26: 2010 | B26: Bergwerke und Stahl | C26: =IF(OR(VLOOKUP($A26,INDIRECT($A$24),B$1,FALSE)="-",VLOOKUP($A26,INDIRECT($A$24),B$1,FALSE)=0),"-",IF(ISERROR(VLOOKUP($A26,INDIRECT($A$24),B$1,FALSE)),"-",IF(OR($A$24="Matrix_1",$A$24="Matrix_6",$A$24="Matrix_7"),VLOOKUP($A26,INDIRECT($A$24),B$1,FALSE),VLOOKUP($A26,INDIRECT($A$24),B$1,FALSE)/1000))) ->  | D26: =IF(OR(VLOOKUP($A26,INDIRECT($A$24),C$1,FALSE)="-",VLOOKUP($A26,INDIRECT($A$24),C$1,FALSE)=0),"-",IF(ISERROR(VLOOKUP($A26,INDIRECT($A$24),C$1,FALSE)),"-",IF(OR($A$24="Matrix_1",$A$24="Matrix_6",$A$24="Matrix_7"),VLOOKUP($A26,INDIRECT($A$24),C$1,FALSE),VLOOKUP($A26,INDIRECT($A$24),C$1,FALSE)/1000))) -> 
A27: 2020 | B27: Mineralölindustrie | C27: =IF(OR(VLOOKUP($A27,INDIRECT($A$24),B$1,FALSE)="-",VLOOKUP($A27,INDIRECT($A$24),B$1,FALSE)=0),"-",IF(ISERROR(VLOOKUP($A27,INDIRECT($A$24),B$1,FALSE)),"-",IF(OR($A$24="Matrix_1",$A$24="Matrix_6",$A$24="Matrix_7"),VLOOKUP($A27,INDIRECT($A$24),B$1,FALSE),VLOOKUP($A27,INDIRECT($A$24),B$1,FALSE)/1000))) -> 
A28: 2030 | B28: Stein- u. keramische Industrie
A29: 2040 | B29: Glasindustrie
A30: 2050 | B30: Chemische Industrie
A31: 2060 | B31: Papierindustrie
A32: 2070 | B32: PROPAK - Produkte aus Papier & Karton
A33: 2090 | B33: Bauindustrie
A34: 2100 | B34: Holzindustrie | C34: =IF(OR($A$24="Matrix_3",$A$24="Matrix_4",$A$24="Matrix_5"),"-",IF(OR(VLOOKUP($A34,INDIRECT($A$24),B$1,FALSE)="-",VLOOKUP($A34,INDIRECT($A$24),B$1,FALSE)=0),"-",IF(ISERROR(VLOOKUP($A34,INDIRECT($A$24),B$1,FALSE)),"-",IF(OR($A$24="Matrix_1",$A$24="Matrix_6",$A$24="Matrix_7"),VLOOKUP($A34,INDIRECT($A$24),B$1,FALSE),VLOOKUP($A34,INDIRECT($A$24),B$1,FALSE)/1000)))) ->  | D34: =IF(OR($A$24="Matrix_3",$A$24="Matrix_4",$A$24="Matrix_5"),"-",IF(OR(VLOOKUP($A34,INDIRECT($A$24),C$1,FALSE)="-",VLOOKUP($A34,INDIRECT($A$24),C$1,FALSE)=0),"-",IF(ISERROR(VLOOKUP($A34,INDIRECT($A$24),C$1,FALSE)),"-",IF(OR($A$24="Matrix_1",$A$24="Matrix_6",$A$24="Matrix_7"),VLOOKUP($A34,INDIRECT($A$24),C$1,FALSE),VLOOKUP($A34,INDIRECT($A$24),C$1,FALSE)/1000)))) -> 
A35: 2110 | B35: Nahrungs- u. Genussmittelindustrie (Lebensmittelindustrie) | C35: =IF(OR($A$24="Matrix_3",$A$24="Matrix_4",$A$24="Matrix_5"),"-",IF(OR(VLOOKUP($A35,INDIRECT($A$24),B$1,FALSE)="-",VLOOKUP($A35,INDIRECT($A$24),B$1,FALSE)=0),"-",IF(ISERROR(VLOOKUP($A35,INDIRECT($A$24),B$1,FALSE)),"-",IF(OR($A$24="Matrix_1",$A$24="Matrix_6",$A$24="Matrix_7"),VLOOKUP($A35,INDIRECT($A$24),B$1,FALSE),VLOOKUP($A35,INDIRECT($A$24),B$1,FALSE)/1000)))) ->  | D35: =IF(OR($A$24="Matrix_3",$A$24="Matrix_4",$A$24="Matrix_5"),"-",IF(OR(VLOOKUP($A35,INDIRECT($A$24),C$1,FALSE)="-",VLOOKUP($A35,INDIRECT($A$24),C$1,FALSE)=0),"-",IF(ISERROR(VLOOKUP($A35,INDIRECT($A$24),C$1,FALSE)),"-",IF(OR($A$24="Matrix_1",$A$24="Matrix_6",$A$24="Matrix_7"),VLOOKUP($A35,INDIRECT($A$24),C$1,FALSE),VLOOKUP($A35,INDIRECT($A$24),C$1,FALSE)/1000)))) -> 
A36: 2120 | B36: Textil-, Bekleidungs-, Schuh- und Lederindustrie | C36: =IF(OR($A$24="Matrix_3",$A$24="Matrix_4",$A$24="Matrix_5"),"-",IF(OR(VLOOKUP($A36,INDIRECT($A$24),B$1,FALSE)="-",VLOOKUP($A36,INDIRECT($A$24),B$1,FALSE)=0),"-",IF(ISERROR(VLOOKUP($A36,INDIRECT($A$24),B$1,FALSE)),"-",IF(OR($A$24="Matrix_1",$A$24="Matrix_6",$A$24="Matrix_7"),VLOOKUP($A36,INDIRECT($A$24),B$1,FALSE),VLOOKUP($A36,INDIRECT($A$24),B$1,FALSE)/1000)))) ->  | D36: =IF(OR($A$24="Matrix_3",$A$24="Matrix_4",$A$24="Matrix_5"),"-",IF(OR(VLOOKUP($A36,INDIRECT($A$24),C$1,FALSE)="-",VLOOKUP($A36,INDIRECT($A$24),C$1,FALSE)=0),"-",IF(ISERROR(VLOOKUP($A36,INDIRECT($A$24),C$1,FALSE)),"-",IF(OR($A$24="Matrix_1",$A$24="Matrix_6",$A$24="Matrix_7"),VLOOKUP($A36,INDIRECT($A$24),C$1,FALSE),VLOOKUP($A36,INDIRECT($A$24),C$1,FALSE)/1000)))) -> 
A37: 2130 | B37: Gas- u. Wärmeversorgungsunternehmungen | D37: =IF(OR(VLOOKUP($A37,INDIRECT($A$24),C$1,FALSE)="-",VLOOKUP($A37,INDIRECT($A$24),C$1,FALSE)=0),"-",IF(ISERROR(VLOOKUP($A37,INDIRECT($A$24),C$1,FALSE)),"-",IF(OR($A$24="Matrix_1",$A$24="Matrix_6",$A$24="Matrix_7"),VLOOKUP($A37,INDIRECT($A$24),C$1,FALSE),VLOOKUP($A37,INDIRECT($A$24),C$1,FALSE)/1000))) ->  | E37: =IF(OR(VLOOKUP($A37,INDIRECT($A$24),D$1,FALSE)="-",VLOOKUP($A37,INDIRECT($A$24),D$1,FALSE)=0),"-",IF(ISERROR(VLOOKUP($A37,INDIRECT($A$24),D$1,FALSE)),"-",IF(OR($A$24="Matrix_1",$A$24="Matrix_6",$A$24="Matrix_7"),VLOOKUP($A37,INDIRECT($A$24),D$1,FALSE),VLOOKUP($A37,INDIRECT($A$24),D$1,FALSE)/1000))) ->  | F37: =IF(OR(VLOOKUP($A37,INDIRECT($A$24),E$1,FALSE)="-",VLOOKUP($A37,INDIRECT($A$24),E$1,FALSE)=0),"-",IF(ISERROR(VLOOKUP($A37,INDIRECT($A$24),E$1,FALSE)),"-",IF(OR($A$24="Matrix_1",$A$24="Matrix_6",$A$24="Matrix_7"),VLOOKUP($A37,INDIRECT($A$24),E$1,FALSE),VLOOKUP($A37,INDIRECT($A$24),E$1,FALSE)/1000))) ->  | G37: =IF(OR(VLOOKUP($A37,INDIRECT($A$24),F$1,FALSE)="-",VLOOKUP($A37,INDIRECT($A$24),F$1,FALSE)=0),"-",IF(ISERROR(VLOOKUP($A37,INDIRECT($A$24),F$1,FALSE)),"-",IF(OR($A$24="Matrix_1",$A$24="Matrix_6",$A$24="Matrix_7"),VLOOKUP($A37,INDIRECT($A$24),F$1,FALSE),VLOOKUP($A37,INDIRECT($A$24),F$1,FALSE)/1000))) ->  | H37: =IF(OR(VLOOKUP($A37,INDIRECT($A$24),G$1,FALSE)="-",VLOOKUP($A37,INDIRECT($A$24),G$1,FALSE)=0),"-",IF(ISERROR(VLOOKUP($A37,INDIRECT($A$24),G$1,FALSE)),"-",IF(OR($A$24="Matrix_1",$A$24="Matrix_6",$A$24="Matrix_7"),VLOOKUP($A37,INDIRECT($A$24),G$1,FALSE),VLOOKUP($A37,INDIRECT($A$24),G$1,FALSE)/1000))) ->  | I37: =IF(OR(VLOOKUP($A37,INDIRECT($A$24),H$1,FALSE)="-",VLOOKUP($A37,INDIRECT($A$24),H$1,FALSE)=0),"-",IF(ISERROR(VLOOKUP($A37,INDIRECT($A$24),H$1,FALSE)),"-",IF(OR($A$24="Matrix_1",$A$24="Matrix_6",$A$24="Matrix_7"),VLOOKUP($A37,INDIRECT($A$24),H$1,FALSE),VLOOKUP($A37,INDIRECT($A$24),H$1,FALSE)/1000))) ->  | J37: =IF(OR(VLOOKUP($A37,INDIRECT($A$24),I$1,FALSE)="-",VLOOKUP($A37,INDIRECT($A$24),I$1,FALSE)=0),"-",IF(ISERROR(VLOOKUP($A37,INDIRECT($A$24),I$1,FALSE)),"-",IF(OR($A$24="Matrix_1",$A$24="Matrix_6",$A$24="Matrix_7"),VLOOKUP($A37,INDIRECT($A$24),I$1,FALSE),VLOOKUP($A37,INDIRECT($A$24),I$1,FALSE)/1000))) ->  | K37: =IF(OR(VLOOKUP($A37,INDIRECT($A$24),J$1,FALSE)="-",VLOOKUP($A37,INDIRECT($A$24),J$1,FALSE)=0),"-",IF(ISERROR(VLOOKUP($A37,INDIRECT($A$24),J$1,FALSE)),"-",IF(OR($A$24="Matrix_1",$A$24="Matrix_6",$A$24="Matrix_7"),VLOOKUP($A37,INDIRECT($A$24),J$1,FALSE),VLOOKUP($A37,INDIRECT($A$24),J$1,FALSE)/1000))) ->  | L37: =IF(OR(VLOOKUP($A37,INDIRECT($A$24),K$1,FALSE)="-",VLOOKUP($A37,INDIRECT($A$24),K$1,FALSE)=0),"-",IF(ISERROR(VLOOKUP($A37,INDIRECT($A$24),K$1,FALSE)),"-",IF(OR($A$24="Matrix_1",$A$24="Matrix_6",$A$24="Matrix_7"),VLOOKUP($A37,INDIRECT($A$24),K$1,FALSE),VLOOKUP($A37,INDIRECT($A$24),K$1,FALSE)/1000))) ->  | M37: =IF(OR(VLOOKUP($A37,INDIRECT($A$24),L$1,FALSE)="-",VLOOKUP($A37,INDIRECT($A$24),L$1,FALSE)=0),"-",IF(ISERROR(VLOOKUP($A37,INDIRECT($A$24),L$1,FALSE)),"-",IF(OR($A$24="Matrix_1",$A$24="Matrix_6",$A$24="Matrix_7"),VLOOKUP($A37,INDIRECT($A$24),L$1,FALSE),VLOOKUP($A37,INDIRECT($A$24),L$1,FALSE)/1000))) -> 
A38: 2150 | B38: NE-Metallindustrie
A39: 2160 | B39: Maschinen-, Metallwaren- und Gießereiindustrie
A40: 2170 | B40: Fahrzeugindustrie
A41: 2180 | B41: Elektro- u. Elektronikindustrie
A42: IND | B42: Industrie insgesamt [inkl. Bauind.]
A44: FVB | B44: Bezeichnung
A45: 2010 | B45: Bergwerke und Stahl | C45: =IF(ISERROR((E26*100/D26)-100),"-",(E26*100/D26)-100) -> - | D45: =IF(ISERROR((F26*100/E26)-100),"-",(F26*100/E26)-100) -> - | E45: =IF(ISERROR((G26*100/F26)-100),"-",(G26*100/F26)-100) -> - | F45: - | G45: - | H45: - | I45: - | J45: - | K45: -
A46: 2020 | B46: Mineralölindustrie | C46: =IF(ISERROR((E27*100/D27)-100),"-",(E27*100/D27)-100) -> - | D46: - | E46: - | F46: - | G46: - | H46: - | I46: - | J46: - | K46: -
A47: 2030 | B47: Stein- u. keramische Industrie | C47: - | D47: - | E47: - | F47: - | G47: - | H47: - | I47: - | J47: - | K47: -
A48: 2040 | B48: Glasindustrie | C48: - | D48: - | E48: - | F48: - | G48: - | H48: - | I48: - | J48: - | K48: -
A49: 2050 | B49: Chemische Industrie | C49: - | D49: - | E49: - | F49: - | G49: - | H49: - | I49: - | J49: - | K49: -
A50: 2060 | B50: Papierindustrie | C50: - | D50: - | E50: - | F50: - | G50: - | H50: - | I50: - | J50: - | K50: -
A51: 2070 | B51: PROPAK - Produkte aus Papier & Karton | C51: - | D51: - | E51: - | F51: - | G51: - | H51: - | I51: - | J51: - | K51: -
A52: 2090 | B52: Bauindustrie | C52: - | D52: - | E52: - | F52: - | G52: - | H52: - | I52: - | J52: - | K52: -
A53: 2100 | B53: Holzindustrie | C53: - | D53: - | E53: - | F53: - | G53: - | H53: - | I53: - | J53: - | K53: -
A54: 2110 | B54: Nahrungs- u. Genussmittelindustrie (Lebensmittelindustrie) | C54: - | D54: - | E54: - | F54: - | G54: - | H54: - | I54: - | J54: - | K54: -
A55: 2120 | B55: Textil-, Bekleidungs-, Schuh- und Lederindustrie | C55: - | D55: - | E55: - | F55: - | G55: - | H55: - | I55: - | J55: - | K55: -
A56: 2130 | B56: Gas- u. Wärmeversorgungsunternehmungen | C56: - | D56: - | E56: - | F56: - | G56: - | H56: - | I56: - | J56: - | K56: -
A57: 2150 | B57: NE-Metallindustrie | C57: - | D57: - | E57: - | F57: - | G57: - | H57: - | I57: - | J57: - | K57: -
A58: 2160 | B58: Maschinen-, Metallwaren- und Gießereiindustrie | C58: - | D58: - | E58: - | F58: - | G58: - | H58: - | I58: - | J58: - | K58: -
A59: 2170 | B59: Fahrzeugindustrie | C59: - | D59: - | E59: - | F59: - | G59: - | H59: - | I59: - | J59: - | K59: -
A60: 2180 | B60: Elektro- u. Elektronikindustrie | C60: - | D60: - | E60: - | F60: - | G60: - | H60: - | I60: - | J60: - | K60: -
A61: IND | B61: Industrie insgesamt [inkl. Bauind.] | C61: - | D61: =IF(ISERROR((F42*100/E42)-100),"-",(F42*100/E42)-100) -> - | E61: =IF(ISERROR((G42*100/F42)-100),"-",(G42*100/F42)-100) -> - | F61: =IF(ISERROR((H42*100/G42)-100),"-",(H42*100/G42)-100) -> - | G61: =IF(ISERROR((I42*100/H42)-100),"-",(I42*100/H42)-100) -> - | H61: =IF(ISERROR((J42*100/I42)-100),"-",(J42*100/I42)-100) -> - | I61: =IF(ISERROR((K42*100/J42)-100),"-",(K42*100/J42)-100) -> - | J61: =IF(ISERROR((L42*100/K42)-100),"-",(L42*100/K42)-100) -> - | K61: -

Sheet Dashboard_Basis (hidden)
A1: EP INS m + EP INS w + FP ARB + FP ANG | C1: 2011 | D1: 2011 | E1: 2011 | F1: 2011 | G1: 2011 | H1: 2011 | I1: 2011 | J1: 2011 | K1: 2011 | L1: 2011 | M1: 2011 | N1: 2011 | O1: 2011 | P1: 2011 | Q1: 2011 | R1: 2011 | S1: 2011 | T1: 2011 | U1: 2011 | V1: 2011 | W1: 2012 | X1: 2012 | Y1: 2012 | Z1: 2012 | AA1: 2012 | AB1: 2012 | AC1: 2012 | AD1: 2012 | AE1: 2012 | AF1: 2012 | AG1: 2012 | AH1: 2012 | AI1: 2012 | AJ1: 2012 | AK1: 2012 | AL1: 2012 | AM1: 2012 | AN1: 2012 | AO1: 2012 | AP1: 2012 | AQ1: 2013 | AR1: 2013 | AS1: 2013 | AT1: 2013 | AU1: 2013 | AV1: 2013 | AW1: 2013 | AX1: 2013 | AY1: 2013 | AZ1: 2013 | BA1: 2013 | BB1: 2013 | BC1: 2013 | BD1: 2013 | BE1: 2013 | BF1: 2013 | BG1: 2013 | BH1: 2013 | BI1: 2013 | BJ1: 2013 | BK1: 2014 | BL1: 2014 | BM1: 2014 | BN1: 2014 | BO1: 2014 | BP1: 2014 | BQ1: 2014 | BR1: 2014 | BS1: 2014 | BT1: 2014 | BU1: 2014 | BV1: 2014 | BW1: 2014 | BX1: 2014 | BY1: 2014 | BZ1: 2014 | CA1: 2014 | CB1: 2014 | CC1: 2014 | CD1: 2014 | CE1: 2015 | CF1: 2015 | CG1: 2015 | CH1: 2015 | CI1: 2015 | CJ1: 2015 | CK1: 2015 | CL1: 2015 | CM1: 2015 | CN1: 2015 | CO1: 2015 | CP1: 2015 | CQ1: 2015 | CR1: 2015 | CS1: 2015 | CT1: 2015 | CU1: 2015 | CV1: 2015 | CW1: 2015 | CX1: 2015 | CY1: 2016 | CZ1: 2016 | DA1: 2016 | DB1: 2016 | DC1: 2016 | DD1: 2016 | DE1: 2016 | DF1: 2016 | DG1: 2016 | DH1: 2016 | DI1: 2016 | DJ1: 2016 | DK1: 2016 | DL1: 2016 | DM1: 2016 | DN1: 2016 | DO1: 2016 | DP1: 2016 | DQ1: 2016 | DR1: 2016 | DS1: 2017 | DT1: 2017 | DU1: 2017 | DV1: 2017 | DW1: 2017 | DX1: 2017 | DY1: 2017 | DZ1: 2017 | EA1: 2017 | EB1: 2017 | EC1: 2017 | ED1: 2017 | EE1: 2017 | EF1: 2017 | EG1: 2017 | EH1: 2017 | EI1: 2017 | EJ1: 2017 | EK1: 2017 | EL1: 2017 | EM1: 2018 | EN1: 2018 | EO1: 2018 | EP1: 2018 | EQ1: 2018 | ER1: 2018 | ES1: 2018 | ET1: 2018 | EU1: 2018 | EV1: 2018 | EW1: 2018 | EX1: 2018 | EY1: 2018 | EZ1: 2018 | FA1: 2018 | FB1: 2018 | FC1: 2018 | FD1: 2018 | FE1: 2018 | FF1: 2018 | FG1: 2019 | FH1: 2019 | FI1: 2019 | FJ1: 2019 | FK1: 2019 | FL1: 2019 | FM1: 2019 | FN1: 2019 | FO1: 2019 | FP1: 2019 | FQ1: 2019 | FR1: 2019 | FS1: 2019 | FT1: 2019 | FU1: 2019 | FV1: 2019 | FW1: 2019 | FX1: 2019 | FY1: 2019 | FZ1: 2019 | GA1: 2020 | GB1: 2020 | GC1: 2020 | GD1: 2020 | GE1: 2020 | GF1: 2020 | GG1: 2020 | GH1: 2020 | GI1: 2020 | GJ1: 2020 | GK1: 2020 | GL1: 2020 | GM1: 2020 | GN1: 2020 | GO1: 2020 | GP1: 2020 | GQ1: 2020 | GR1: 2020 | GS1: 2020 | GT1: 2020 | GU1: 2021 | GV1: 2021 | GW1: 2021 | GX1: 2021 | GY1: 2021 | GZ1: 2021 | HA1: 2021 | HB1: 2021 | HC1: 2021 | HD1: 2021 | HE1: 2021 | HF1: 2021 | HG1: 2021 | HH1: 2021 | HI1: 2021 | HJ1: 2021 | HK1: 2021 | HL1: 2021 | HM1: 2021 | HN1: 2021 | HO1: 2022 | HP1: 2022 | HQ1: 2022 | HR1: 2022 | HS1: 2022 | HT1: 2022 | HU1: 2022 | HV1: 2022 | HW1: 2022 | HX1: 2022 | HY1: 2022 | HZ1: 2022 | IA1: 2022 | IB1: 2022 | IC1: 2022 | ID1: 2022 | IE1: 2022 | IF1: 2022 | IG1: 2022 | IH1: 2022 | II1: 2023 | IJ1: 2023 | IK1: 2023 | IL1: 2023 | IM1: 2023 | IN1: 2023 | IO1: 2023 | IP1: 2023 | IQ1: 2023 | IR1: 2023 | IS1: 2023 | IT1: 2023 | IU1: 2023 | IV1: 2023 | IW1: 2023 | IX1: 2023 | IY1: 2023 | IZ1: 2023 | JA1: 2023 | JB1: 2023
A2: FVB | B2: Bezeichnung | C2: 1 | D2: 2 | E2: 3 | F2: 4 | G2: 5 | H2: 6 | I2: 7 | J2: 8 | K2: 9 | L2: 10 | M2: 11 | N2: 12 | O2: Q1 | P2: Q2 | Q2: Q3 | R2: Q4 | S2: Q1-Q2 | T2: Q1-Q3 | U2: ="M1-"&Anzahl_Monate -> M1-1 | V2: J | W2: 1 | X2: 2 | Y2: 3 | Z2: 4 | AA2: 5 | AB2: 6 | AC2: 7 | AD2: 8 | AE2: 9 | AF2: 10 | AG2: 11 | AH2: 12 | AI2: Q1 | AJ2: Q2 | AK2: Q3 | AL2: Q4 | AM2: Q1-Q2 | AN2: Q1-Q3 | AO2: ="M1-"&Anzahl_Monate -> M1-1 | AP2: J | AQ2: 1 | AR2: 2 | AS2: 3 | AT2: 4 | AU2: 5 | AV2: 6 | AW2: 7 | AX2: 8 | AY2: 9 | AZ2: 10 | BA2: 11 | BB2: 12 | BC2: Q1 | BD2: Q2 | BE2: Q3 | BF2: Q4 | BG2: Q1-Q2 | BH2: Q1-Q3 | BI2: ="M1-"&Anzahl_Monate -> M1-1 | BJ2: J | BK2: 1 | BL2: 2 | BM2: 3 | BN2: 4 | BO2: 5 | BP2: 6 | BQ2: 7 | BR2: 8 | BS2: 9 | BT2: 10 | BU2: 11 | BV2: 12 | BW2: Q1 | BX2: Q2 | BY2: Q3 | BZ2: Q4 | CA2: Q1-Q2 | CB2: Q1-Q3 | CC2: ="M1-"&Anzahl_Monate -> M1-1 | CD2: J | CE2: 1 | CF2: 2 | CG2: 3 | CH2: 4 | CI2: 5 | CJ2: 6 | CK2: 7 | CL2: 8 | CM2: 9 | CN2: 10 | CO2: 11 | CP2: 12 | CQ2: Q1 | CR2: Q2 | CS2: Q3 | CT2: Q4 | CU2: Q1-Q2 | CV2: Q1-Q3 | CW2: ="M1-"&Anzahl_Monate -> M1-1 | CX2: J | CY2: 1 | CZ2: 2 | DA2: 3 | DB2: 4 | DC2: 5 | DD2: 6 | DE2: 7 | DF2: 8 | DG2: 9 | DH2: 10 | DI2: 11 | DJ2: 12 | DK2: Q1 | DL2: Q2 | DM2: Q3 | DN2: Q4 | DO2: Q1-Q2 | DP2: Q1-Q3 | DQ2: ="M1-"&Anzahl_Monate -> M1-1 | DR2: J | DS2: 1 | DT2: 2 | DU2: 3 | DV2: 4 | DW2: 5 | DX2: 6 | DY2: 7 | DZ2: 8 | EA2: 9 | EB2: 10 | EC2: 11 | ED2: 12 | EE2: Q1 | EF2: Q2 | EG2: Q3 | EH2: Q4 | EI2: Q1-Q2 | EJ2: Q1-Q3 | EK2: ="M1-"&Anzahl_Monate -> M1-1 | EL2: J | EM2: 1 | EN2: 2 | EO2: 3 | EP2: 4 | EQ2: 5 | ER2: 6 | ES2: 7 | ET2: 8 | EU2: 9 | EV2: 10 | EW2: 11 | EX2: 12 | EY2: Q1 | EZ2: Q2 | FA2: Q3 | FB2: Q4 | FC2: Q1-Q2 | FD2: Q1-Q3 | FE2: ="M1-"&Anzahl_Monate -> M1-1 | FF2: J | FG2: 1 | FH2: 2 | FI2: 3 | FJ2: 4 | FK2: 5 | FL2: 6 | FM2: 7 | FN2: 8 | FO2: 9 | FP2: 10 | FQ2: 11 | FR2: 12 | FS2: Q1 | FT2: Q2 | FU2: Q3 | FV2: Q4 | FW2: Q1-Q2 | FX2: Q1-Q3 | FY2: ="M1-"&Anzahl_Monate -> M1-1 | FZ2: J | GA2: 1 | GB2: 2 | GC2: 3 | GD2: 4 | GE2: 5 | GF2: 6 | GG2: 7 | GH2: 8 | GI2: 9 | GJ2: 10 | GK2: 11 | GL2: 12 | GM2: Q1 | GN2: Q2 | GO2: Q3 | GP2: Q4 | GQ2: Q1-Q2 | GR2: Q1-Q3 | GS2: ="M1-"&Anzahl_Monate -> M1-1 | GT2: J | GU2: 1 | GV2: 2 | GW2: 3 | GX2: 4 | GY2: 5 | GZ2: 6 | HA2: 7 | HB2: 8 | HC2: 9 | HD2: 10 | HE2: 11 | HF2: 12 | HG2: Q1 | HH2: Q2 | HI2: Q3 | HJ2: Q4 | HK2: Q1-Q2 | HL2: Q1-Q3 | HM2: ="M1-"&Anzahl_Monate -> M1-1 | HN2: J | HO2: 1 | HP2: 2 | HQ2: 3 | HR2: 4 | HS2: 5 | HT2: 6 | HU2: 7 | HV2: 8 | HW2: 9 | HX2: 10 | HY2: 11 | HZ2: 12 | IA2: Q1 | IB2: Q2 | IC2: Q3 | ID2: Q4 | IE2: Q1-Q2 | IF2: Q1-Q3 | IG2: ="M1-"&Anzahl_Monate -> M1-1 | IH2: J | II2: 1 | IJ2: 2 | IK2: 3 | IL2: 4 | IM2: 5 | IN2: 6 | IO2: 7 | IP2: 8 | IQ2: 9 | IR2: 10 | IS2: 11 | IT2: 12 | IU2: Q1 | IV2: Q2 | IW2: Q3 | IX2: Q4 | IY2: Q1-Q2 | IZ2: Q1-Q3 | JA2: ="M1-"&Anzahl_Monate -> M1-1 | JB2: J
A3: 2010 | B3: Bergwerke und Stahl | C3: =IF(ISERROR(INDEX(Spalte_GP,MATCH(Dashboard_Basis!C$2&Dashboard_Basis!C$1&Dashboard_Basis!$A3&Auswahl_Bundesland,Basisdaten!$A:$A,0))),"-",INDEX(Spalte_GP,MATCH(Dashboard_Basis!C$2&Dashboard_Basis!C$1&Dashboard_Basis!$A3&Auswahl_Bundesland,Basisdaten!$A:$A,0))) -> 16733 | D3: =IF(ISERROR(INDEX(Spalte_GP,MATCH(Dashboard_Basis!D$2&Dashboard_Basis!D$1&Dashboard_Basis!$A3&Auswahl_Bundesland,Basisdaten!$A:$A,0))),"-",INDEX(Spalte_GP,MATCH(Dashboard_Basis!D$2&Dashboard_Basis!D$1&Dashboard_Basis!$A3&Auswahl_Bundesland,Basisdaten!$A:$A,0))) -> 16828 | E3: =IF(ISERROR(INDEX(Spalte_GP,MATCH(Dashboard_Basis!E$2&Dashboard_Basis!E$1&Dashboard_Basis!$A3&Auswahl_Bundesland,Basisdaten!$A:$A,0))),"-",INDEX(Spalte_GP,MATCH(Dashboard_Basis!E$2&Dashboard_Basis!E$1&Dashboard_Basis!$A3&Auswahl_Bundesland,Basisdaten!$A:$A,0))) -> 16895 | F3: =IF(ISERROR(INDEX(Spalte_GP,MATCH(Dashboard_Basis!F$2&Dashboard_Basis!F$1&Dashboard_Basis!$A3&Auswahl_Bundesland,Basisdaten!$A:$A,0))),"-",INDEX(Spalte_GP,MATCH(Dashboard_Basis!F$2&Dashboard_Basis!F$1&Dashboard_Basis!$A3&Auswahl_Bundesland,Basisdaten!$A:$A,0))) -> 16513 | G3: =IF(ISERROR(INDEX(Spalte_GP,MATCH(Dashboard_Basis!G$2&Dashboard_Basis!G$1&Dashboard_Basis!$A3&Auswahl_Bundesland,Basisdaten!$A:$A,0))),"-",INDEX(Spalte_GP,MATCH(Dashboard_Basis!G$2&Dashboard_Basis!G$1&Dashboard_Basis!$A3&Auswahl_Bundesland,Basisdaten!$A:$A,0))) -> 16586 | H3: =IF(ISERROR(INDEX(Spalte_GP,MATCH(Dashboard_Basis!H$2&Dashboard_Basis!H$1&Dashboard_Basis!$A3&Auswahl_Bundesland,Basisdaten!$A:$A,0))),"-",INDEX(Spalte_GP,MATCH(Dashboard_Basis!H$2&Dashboard_Basis!H$1&Dashboard_Basis!$A3&Auswahl_Bundesland,Basisdaten!$A:$A,0))) -> 16595 | I3: =IF(ISERROR(INDEX(Spalte_GP,MATCH(Dashboard_Basis!I$2&Dashboard_Basis!I$1&Dashboard_Basis!$A3&Auswahl_Bundesland,Basisdaten!$A:$A,0))),"-",INDEX(Spalte_GP,MATCH(Dashboard_Basis!I$2&Dashboard_Basis!I$1&Dashboard_Basis!$A3&Auswahl_Bundesland,Basisdaten!$A:$A,0))) -> 16738 | J3: =IF(ISERROR(INDEX(Spalte_GP,MATCH(Dashboard_Basis!J$2&Dashboard_Basis!J$1&Dashboard_Basis!$A3&Auswahl_Bundesland,Basisdaten!$A:$A,0))),"-",INDEX(Spalte_GP,MATCH(Dashboard_Basis!J$2&Dashboard_Basis!J$1&Dashboard_Basis!$A3&Auswahl_Bundesland,Basisdaten!$A:$A,0))) -> 16781 | K3: =IF(ISERROR(INDEX(Spalte_GP,MATCH(Dashboard_Basis!K$2&Dashboard_Basis!K$1&Dashboard_Basis!$A3&Auswahl_Bundesland,Basisdaten!$A:$A,0))),"-",INDEX(Spalte_GP,MATCH(Dashboard_Basis!K$2&Dashboard_Basis!K$1&Dashboard_Basis!$A3&Auswahl_Bundesland,Basisdaten!$A:$A,0))) -> 17010 | L3: =IF(ISERROR(INDEX(Spalte_GP,MATCH(Dashboard_Basis!L$2&Dashboard_Basis!L$1&Dashboard_Basis!$A3&Auswahl_Bundesland,Basisdaten!$A:$A,0))),"-",INDEX(Spalte_GP,MATCH(Dashboard_Basis!L$2&Dashboard_Basis!L$1&Dashboard_Basis!$A3&Auswahl_Bundesland,Basisdaten!$A:$A,0))) -> 16992 | M3: =IF(ISERROR(INDEX(Spalte_GP,MATCH(Dashboard_Basis!M$2&Dashboard_Basis!M$1&Dashboard_Basis!$A3&Auswahl_Bundesland,Basisdaten!$A:$A,0))),"-",INDEX(Spalte_GP,MATCH(Dashboard_Basis!M$2&Dashboard_Basis!M$1&Dashboard_Basis!$A3&Auswahl_Bundesland,Basisdaten!$A:$A,0))) -> 16999 | N3: =IF(ISERROR(INDEX(Spalte_GP,MATCH(Dashboard_Basis!N$2&Dashboard_Basis!N$1&Dashboard_Basis!$A3&Auswahl_Bundesland,Basisdaten!$A:$A,0))),"-",INDEX(Spalte_GP,MATCH(Dashboard_Basis!N$2&Dashboard_Basis!N$1&Dashboard_Basis!$A3&Auswahl_Bundesland,Basisdaten!$A:$A,0))) -> 16914 | O3: =IF(COUNT(C3:E3)=3,SUM(C3:E3)/3,"-") -> 16818.66667 | P3: =IF(COUNT(F3:H3)=3,SUM(F3:H3)/3,"-") -> 16564.66667 | Q3: =IF(COUNT(I3:K3)=3,SUM(I3:K3)/3,"-") -> 16843 | R3: =IF(COUNT(L3:N3)=3,SUM(L3:N3)/3,"-") -> 16968.33333 | S3: =IF(COUNT(P3,O3)=2,SUM(P3,O3)/2,"-") -> 16691.66667 | T3: =IF(COUNT(O3,Q3,P3)=3,SUM(O3,Q3,P3)/3,"-") -> 16742.11111 | U3: =IF(COUNT(OFFSET(C3,,,,Anzahl_Monate))=Anzahl_Monate,SUM(OFFSET(C3,,,,Anzahl_Monate))/Anzahl_Monate,"-") -> 16733 | V3: =IF(COUNT(R3,Q3,P3,O3)=4,SUM(R3,Q3,P3,O3)/4,"-") -> 16798.66667 | W3: =IF(ISERROR(INDEX(Spalte_GP,MATCH(Dashboard_Basis!W$2&Dashboard_Basis!W$1&Dashboard_Basis!$A3&Auswahl_Bundesland,Basisdaten!$A:$A,0))),"-",INDEX(Spalte_GP,MATCH(Dashboard_Basis!W$2&Dashboard_Basis!W$1&Dashboard_Basis!$A3&Auswahl_Bundesland,Basisdaten!$A:$A,0))) -> 16978 | X3: =IF(ISERROR(INDEX(Spalte_GP,MATCH(Dashboard_Basis!X$2&Dashboard_Basis!X$1&Dashboard_Basis!$A3&Auswahl_Bundesland,Basisdaten!$A:$A,0))),"-",INDEX(Spalte_GP,MATCH(Dashboard_Basis!X$2&Dashboard_Basis!X$1&Dashboard_Basis!$A3&Auswahl_Bundesland,Basisdaten!$A:$A,0))) -> 16949 | Y3: =IF(ISERROR(INDEX(Spalte_GP,MATCH(Dashboard_Basis!Y$2&Dashboard_Basis!Y$1&Dashboard_Basis!$A3&Auswahl_Bundesland,Basisdaten!$A:$A,0))),"-",INDEX(Spalte_GP,MATCH(Dashboard_Basis!Y$2&Dashboard_Basis!Y$1&Dashboard_Basis!$A3&Auswahl_Bundesland,Basisdaten!$A:$A,0))) -> 16928 | Z3: =IF(ISERROR(INDEX(Spalte_GP,MATCH(Dashboard_Basis!Z$2&Dashboard_Basis!Z$1&Dashboard_Basis!$A3&Auswahl_Bundesland,Basisdaten!$A:$A,0))),"-",INDEX(Spalte_GP,MATCH(Dashboard_Basis!Z$2&Dashboard_Basis!Z$1&Dashboard_Basis!$A3&Auswahl_Bundesland,Basisdaten!$A:$A,0))) -> 16941 | AA3: =IF(ISERROR(INDEX(Spalte_GP,MATCH(Dashboard_Basis!AA$2&Dashboard_Basis!AA$1&Dashboard_Basis!$A3&Auswahl_Bundesland,Basisdaten!$A:$A,0))),"-",INDEX(Spalte_GP,MATCH(Dashboard_Basis!AA$2&Dashboard_Basis!AA$1&Dashboard_Basis!$A3&Auswahl_Bundesland,Basisdaten!$A:$A,0))) -> 16905 | AB3: =IF(ISERROR(INDEX(Spalte_GP,MATCH(Dashboard_Basis!AB$2&Dashboard_Basis!AB$1&Dashboard_Basis!$A3&Auswahl_Bundesland,Basisdaten!$A:$A,0))),"-",INDEX(Spalte_GP,MATCH(Dashboard_Basis!AB$2&Dashboard_Basis!AB$1&Dashboard_Basis!$A3&Auswahl_Bundesland,Basisdaten!$A:$A,0))) -> 16891 | AC3: =IF(ISERROR(INDEX(Spalte_GP,MATCH(Dashboard_Basis!AC$2&Dashboard_Basis!AC$1&Dashboard_Basis!$A3&Auswahl_Bundesland,Basisdaten!$A:$A,0))),"-",INDEX(Spalte_GP,MATCH(Dashboard_Basis!AC$2&Dashboard_Basis!AC$1&Dashboard_Basis!$A3&Auswahl_Bundesland,Basisdaten!$A:$A,0))) -> 17094 | AD3: =IF(ISERROR(INDEX(Spalte_GP,MATCH(Dashboard_Basis!AD$2&Dashboard_Basis!AD$1&Dashboard_Basis!$A3&Auswahl_Bundesland,Basisdaten!$A:$A,0))),"-",INDEX(Spalte_GP,MATCH(Dashboard_Basis!AD$2&Dashboard_Basis!AD$1&Dashboard_Basis!$A3&Auswahl_Bundesland,Basisdaten!$A:$A,0))) -> 17013 | AE3: =IF(ISERROR(INDEX(Spalte_GP,MATCH(Dashboard_Basis!AE$2&Dashboard_Basis!AE$1&Dashboard_Basis!$A3&Auswahl_Bundesland,Basisdaten!$A:$A,0))),"-",INDEX(Spalte_GP,MATCH(Dashboard_Basis!AE$2&Dashboard_Basis!AE$1&Dashboard_Basis!$A3&Auswahl_Bundesland,Basisdaten!$A:$A,0))) -> 17183 | AF3: =IF(ISERROR(INDEX(Spalte_GP,MATCH(Dashboard_Basis!AF$2&Dashboard_Basis!AF$1&Dashboard_Basis!$A3&Auswahl_Bundesland,Basisdaten!$A:$A,0))),"-",INDEX(Spalte_GP,MATCH(Dashboard_Basis!AF$2&Dashboard_Basis!AF$1&Dashboard_Basis!$A3&Auswahl_Bundesland,Basisdaten!$A:$A,0))) -> 17126 | AG3: =IF(ISERROR(INDEX(Spalte_GP,MATCH(Dashboard_Basis!AG$2&Dashboard_Basis!AG$1&Dashboard_Basis!$A3&Auswahl_Bundesland,Basisdaten!$A:$A,0))),"-",INDEX(Spalte_GP,MATCH(Dashboard_Basis!AG$2&Dashboard_Basis!AG$1&Dashboard_Basis!$A3&Auswahl_Bundesland,Basisdaten!$A:$A,0))) -> 17115 | AH3: =IF(ISERROR(INDEX(Spalte_GP,MATCH(Dashboard_Basis!AH$2&Dashboard_Basis!AH$1&Dashboard_Basis!$A3&Auswahl_Bundesland,Basisdaten!$A:$A,0))),"-",INDEX(Spalte_GP,MATCH(Dashboard_Basis!AH$2&Dashboard_Basis!AH$1&Dashboard_Basis!$A3&Auswahl_Bundesland,Basisdaten!$A:$A,0))) -> 15654 | AI3: =IF(COUNT(W3:Y3)=3,SUM(W3:Y3)/3,"-") -> 16951.66667 | AJ3: =IF(COUNT(Z3:AB3)=3,SUM(Z3:AB3)/3,"-") -> 16912.33333 | AK3: =IF(COUNT(AC3:AE3)=3,SUM(AC3:AE3)/3,"-") -> 17096.66667 | AL3: =IF(COUNT(AF3:AH3)=3,SUM(AF3:AH3)/3,"-") -> 16631.66667 | AM3: =IF(COUNT(AJ3,AI3)=2,SUM(AJ3,AI3)/2,"-") -> 16932 | AN3: =IF(COUNT(AI3,AK3,AJ3)=3,SUM(AI3,AK3,AJ3)/3,"-") -> 16986.88889 | AO3: =IF(COUNT(OFFSET(W3,,,,Anzahl_Monate))=Anzahl_Monate,SUM(OFFSET(W3,,,,Anzahl_Monate))/Anzahl_Monate,"-") -> 16978 | AP3: =IF(COUNT(AL3,AK3,AJ3,AI3)=4,SUM(AL3,AK3,AJ3,AI3)/4,"-") -> 16898.08333 | AQ3: =IF(ISERROR(INDEX(Spalte_GP,MATCH(Dashboard_Basis!AQ$2&Dashboard_Basis!AQ$1&Dashboard_Basis!$A3&Auswahl_Bundesland,Basisdaten!$A:$A,0))),"-",INDEX(Spalte_GP,MATCH(Dashboard_Basis!AQ$2&Dashboard_Basis!AQ$1&Dashboard_Basis!$A3&Auswahl_Bundesland,Basisdaten!$A:$A,0))) -> 17116 | AR3: =IF(ISERROR(INDEX(Spalte_GP,MATCH(Dashboard_Basis!AR$2&Dashboard_Basis!AR$1&Dashboard_Basis!$A3&Auswahl_Bundesland,Basisdaten!$A:$A,0))),"-",INDEX(Spalte_GP,MATCH(Dashboard_Basis!AR$2&Dashboard_Basis!AR$1&Dashboard_Basis!$A3&Auswahl_Bundesland,Basisdaten!$A:$A,0))) -> 17055 | AS3: =IF(ISERROR(INDEX(Spalte_GP,MATCH(Dashboard_Basis!AS$2&Dashboard_Basis!AS$1&Dashboard_Basis!$A3&Auswahl_Bundesland,Basisdaten!$A:$A,0))),"-",INDEX(Spalte_GP,MATCH(Dashboard_Basis!AS$2&Dashboard_Basis!AS$1&Dashboard_Basis!$A3&Auswahl_Bundesland,Basisdaten!$A:$A,0))) -> 17087 | AT3: =IF(ISERROR(INDEX(Spalte_GP,MATCH(Dashboard_Basis!AT$2&Dashboard_Basis!AT$1&Dashboard_Basis!$A3&Auswahl_Bundesland,Basisdaten!$A:$A,0))),"-",INDEX(Spalte_GP,MATCH(Dashboard_Basis!AT$2&Dashboard_Basis!AT$1&Dashboard_Basis!$A3&Auswahl_Bundesland,Basisdaten!$A:$A,0))) -> 17123 | AU3: =IF(ISERROR(INDEX(Spalte_GP,MATCH(Dashboard_Basis!AU$2&Dashboard_Basis!AU$1&Dashboard_Basis!$A3&Auswahl_Bundesland,Basisdaten!$A:$A,0))),"-",INDEX(Spalte_GP,MATCH(Dashboard_Basis!AU$2&Dashboard_Basis!AU$1&Dashboard_Basis!$A3&Auswahl_Bundesland,Basisdaten!$A:$A,0))) -> 17146 | AV3: =IF(ISERROR(INDEX(Spalte_GP,MATCH(Dashboard_Basis!AV$2&Dashboard_Basis!AV$1&Dashboard_Basis!$A3&Auswahl_Bundesland,Basisdaten!$A:$A,0))),"-",INDEX(Spalte_GP,MATCH(Dashboard_Basis!AV$2&Dashboard_Basis!AV$1&Dashboard_Basis!$A3&Auswahl_Bundesland,Basisdaten!$A:$A,0))) -> 17172 | AW3: =IF(ISERROR(INDEX(Spalte_GP,MATCH(Dashboard_Basis!AW$2&Dashboard_Basis!AW$1&Dashboard_Basis!$A3&Auswahl_Bundesland,Basisdaten!$A:$A,0))),"-",INDEX(Spalte_GP,MATCH(Dashboard_Basis!AW$2&Dashboard_Basis!AW$1&Dashboard_Basis!$A3&Auswahl_Bundesland,Basisdaten!$A:$A,0))) -> 17375 | AX3: =IF(ISERROR(INDEX(Spalte_GP,MATCH(Dashboard_Basis!AX$2&Dashboard_Basis!AX$1&Dashboard_Basis!$A3&Auswahl_Bundesland,Basisdaten!$A:$A,0))),"-",INDEX(Spalte_GP,MATCH(Dashboard_Basis!AX$2&Dashboard_Basis!AX$1&Dashboard_Basis!$A3&Auswahl_Bundesland,Basisdaten!$A:$A,0))) -> 17364 | AY3: =IF(ISERROR(INDEX(Spalte_GP,MATCH(Dashboard_Basis!AY$2&Dashboard_Basis!AY$1&Dashboard_Basis!$A3&Auswahl_Bundesland,Basisdaten!$A:$A,0))),"-",INDEX(Spalte_GP,MATCH(Dashboard_Basis!AY$2&Dashboard_Basis!AY$1&Dashboard_Basis!$A3&Auswahl_Bundesland,Basisdaten!$A:$A,0))) -> 17540 | AZ3: =IF(ISERROR(INDEX(Spalte_GP,MATCH(Dashboard_Basis!AZ$2&Dashboard_Basis!AZ$1&Dashboard_Basis!$A3&Auswahl_Bundesland,Basisdaten!$A:$A,0))),"-",INDEX(Spalte_GP,MATCH(Dashboard_Basis!AZ$2&Dashboard_Basis!AZ$1&Dashboard_Basis!$A3&Auswahl_Bundesland,Basisdaten!$A:$A,0))) -> 17537 | BA3: =IF(ISERROR(INDEX(Spalte_GP,MATCH(Dashboard_Basis!BA$2&Dashboard_Basis!BA$1&Dashboard_Basis!$A3&Auswahl_Bundesland,Basisdaten!$A:$A,0))),"-",INDEX(Spalte_GP,MATCH(Dashboard_Basis!BA$2&Dashboard_Basis!BA$1&Dashboard_Basis!$A3&Auswahl_Bundesland,Basisdaten!$A:$A,0))) -> 17575 | BB3: =IF(ISERROR(INDEX(Spalte_GP,MATCH(Dashboard_Basis!BB$2&Dashboard_Basis!BB$1&Dashboard_Basis!$A3&Auswahl_Bundesland,Basisdaten!$A:$A,0))),"-",INDEX(Spalte_GP,MATCH(Dashboard_Basis!BB$2&Dashboard_Basis!BB$1&Dashboard_Basis!$A3&Auswahl_Bundesland,Basisdaten!$A:$A,0))) -> 17542 | BC3: =IF(COUNT(AQ3:AS3)=3,SUM(AQ3:AS3)/3,"-") -> 17086 | BD3: =IF(COUNT(AT3:AV3)=3,SUM(AT3:AV3)/3,"-") -> 17147 | BE3: =IF(COUNT(AW3:AY3)=3,SUM(AW3:AY3)/3,"-") -> 17426.33333 | BF3: =IF(COUNT(AZ3:BB3)=3,SUM(AZ3:BB3)/3,"-") -> 17551.33333 | BG3: =IF(COUNT(BD3,BC3)=2,SUM(BD3,BC3)/2,"-") -> 17116.5 | BH3: =IF(COUNT(BC3,BE3,BD3)=3,SUM(BC3,BE3,BD3)/3,"-") -> 17219.77778 | BI3: =IF(COUNT(OFFSET(AQ3,,,,Anzahl_Monate))=Anzahl_Monate,SUM(OFFSET(AQ3,,,,Anzahl_Monate))/Anzahl_Monate,"-") -> 17116 | BJ3: =IF(COUNT(BF3,BE3,BD3,BC3)=4,SUM(BF3,BE3,BD3,BC3)/4,"-") -> 17302.66667 | BK3: =IF(ISERROR(INDEX(Spalte_GP,MATCH(Dashboard_Basis!BK$2&Dashboard_Basis!BK$1&Dashboard_Basis!$A3&Auswahl_Bundesland,Basisdaten!$A:$A,0))),"-",INDEX(Spalte_GP,MATCH(Dashboard_Basis!BK$2&Dashboard_Basis!BK$1&Dashboard_Basis!$A3&Auswahl_Bundesland,Basisdaten!$A:$A,0))) -> 17526 | BL3: =IF(ISERROR(INDEX(Spalte_GP,MATCH(Dashboard_Basis!BL$2&Dashboard_Basis!BL$1&Dashboard_Basis!$A3&Auswahl_Bundesland,Basisdaten!$A:$A,0))),"-",INDEX(Spalte_GP,MATCH(Dashboard_Basis!BL$2&Dashboard_Basis!BL$1&Dashboard_Basis!$A3&Auswahl_Bundesland,Basisdaten!$A:$A,0))) -> 17538 | BM3: =IF(ISERROR(INDEX(Spalte_GP,MATCH(Dashboard_Basis!BM$2&Dashboard_Basis!BM$1&Dashboard_Basis!$A3&Auswahl_Bundesland,Basisdaten!$A:$A,0))),"-",INDEX(Spalte_GP,MATCH(Dashboard_Basis!BM$2&Dashboard_Basis!BM$1&Dashboard_Basis!$A3&Auswahl_Bundesland,Basisdaten!$A:$A,0))) -> 17568 | BN3: =IF(ISERROR(INDEX(Spalte_GP,MATCH(Dashboard_Basis!BN$2&Dashboard_Basis!BN$1&Dashboard_Basis!$A3&Auswahl_Bundesland,Basisdaten!$A:$A,0))),"-",INDEX(Spalte_GP,MATCH(Dashboard_Basis!BN$2&Dashboard_Basis!BN$1&Dashboard_Basis!$A3&Auswahl_Bundesland,Basisdaten!$A:$A,0))) -> 17558 | BO3: =IF(ISERROR(INDEX(Spalte_GP,MATCH(Dashboard_Basis!BO$2&Dashboard_Basis!BO$1&Dashboard_Basis!$A3&Auswahl_Bundesland,Basisdaten!$A:$A,0))),"-",INDEX(Spalte_GP,MATCH(Dashboard_Basis!BO$2&Dashboard_Basis!BO$1&Dashboard_Basis!$A3&Auswahl_Bundesland,Basisdaten!$A:$A,0))) -> 17590 | BP3: =IF(ISERROR(INDEX(Spalte_GP,MATCH(Dashboard_Basis!BP$2&Dashboard_Basis!BP$1&Dashboard_Basis!$A3&Auswahl_Bundesland,Basisdaten!$A:$A,0))),"-",INDEX(Spalte_GP,MATCH(Dashboard_Basis!BP$2&Dashboard_Basis!BP$1&Dashboard_Basis!$A3&Auswahl_Bundesland,Basisdaten!$A:$A,0))) -> 17582 | BQ3: =IF(ISERROR(INDEX(Spalte_GP,MATCH(Dashboard_Basis!BQ$2&Dashboard_Basis!BQ$1&Dashboard_Basis!$A3&Auswahl_Bundesland,Basisdaten!$A:$A,0))),"-",INDEX(Spalte_GP,MATCH(Dashboard_Basis!BQ$2&Dashboard_Basis!BQ$1&Dashboard_Basis!$A3&Auswahl_Bundesland,Basisdaten!$A:$A,0))) -> 17759 | BR3: =IF(ISERROR(INDEX(Spalte_GP,MATCH(Dashboard_Basis!BR$2&Dashboard_Basis!BR$1&Dashboard_Basis!$A3&Auswahl_Bundesland,Basisdaten!$A:$A,0))),"-",INDEX(Spalte_GP,MATCH(Dashboard_Basis!BR$2&Dashboard_Basis!BR$1&Dashboard_Basis!$A3&Auswahl_Bundesland,Basisdaten!$A:$A,0))) -> 17610 | BS3: =IF(ISERROR(INDEX(Spalte_GP,MATCH(Dashboard_Basis!BS$2&Dashboard_Basis!BS$1&Dashboard_Basis!$A3&Auswahl_Bundesland,Basisdaten!$A:$A,0))),"-",INDEX(Spalte_GP,MATCH(Dashboard_Basis!BS$2&Dashboard_Basis!BS$1&Dashboard_Basis!$A3&Auswahl_Bundesland,Basisdaten!$A:$A,0))) -> 17779 | BT3: =IF(ISERROR(INDEX(Spalte_GP,MATCH(Dashboard_Basis!BT$2&Dashboard_Basis!BT$1&Dashboard_Basis!$A3&Auswahl_Bundesland,Basisdaten!$A:$A,0))),"-",INDEX(Spalte_GP,MATCH(Dashboard_Basis!BT$2&Dashboard_Basis!BT$1&Dashboard_Basis!$A3&Auswahl_Bundesland,Basisdaten!$A:$A,0))) -> 17836 | BU3: =IF(ISERROR(INDEX(Spalte_GP,MATCH(Dashboard_Basis!BU$2&Dashboard_Basis!BU$1&Dashboard_Basis!$A3&Auswahl_Bundesland,Basisdaten!$A:$A,0))),"-",INDEX(Spalte_GP,MATCH(Dashboard_Basis!BU$2&Dashboard_Basis!BU$1&Dashboard_Basis!$A3&Auswahl_Bundesland,Basisdaten!$A:$A,0))) -> 17862 | BV3: =IF(ISERROR(INDEX(Spalte_GP,MATCH(Dashboard_Basis!BV$2&Dashboard_Basis!BV$1&Dashboard_Basis!$A3&Auswahl_Bundesland,Basisdaten!$A:$A,0))),"-",INDEX(Spalte_GP,MATCH(Dashboard_Basis!BV$2&Dashboard_Basis!BV$1&Dashboard_Basis!$A3&Auswahl_Bundesland,Basisdaten!$A:$A,0))) -> 17812 | BW3: =IF(COUNT(BK3:BM3)=3,SUM(BK3:BM3)/3,"-") -> 17544 | BX3: =IF(COUNT(BN3:BP3)=3,SUM(BN3:BP3)/3,"-") -> 17576.66667 | BY3: =IF(COUNT(BQ3:BS3)=3,SUM(BQ3:BS3)/3,"-") -> 17716 | BZ3: =IF(COUNT(BT3:BV3)=3,SUM(BT3:BV3)/3,"-") -> 17836.66667 | CA3: =IF(COUNT(BX3,BW3)=2,SUM(BX3,BW3)/2,"-") -> 17560.33333 | CB3: =IF(COUNT(BW3,BY3,BX3)=3,SUM(BW3,BY3,BX3)/3,"-") -> 17612.22222 | CC3: =IF(COUNT(OFFSET(BK3,,,,Anzahl_Monate))=Anzahl_Monate,SUM(OFFSET(BK3,,,,Anzahl_Monate))/Anzahl_Monate,"-") -> 17526 | CD3: =IF(COUNT(BZ3,BY3,BX3,BW3)=4,SUM(BZ3,BY3,BX3,BW3)/4,"-") -> 17668.33333 | CE3: =IF(ISERROR(INDEX(Spalte_GP,MATCH(Dashboard_Basis!CE$2&Dashboard_Basis!CE$1&Dashboard_Basis!$A3&Auswahl_Bundesland,Basisdaten!$A:$A,0))),"-",INDEX(Spalte_GP,MATCH(Dashboard_Basis!CE$2&Dashboard_Basis!CE$1&Dashboard_Basis!$A3&Auswahl_Bundesland,Basisdaten!$A:$A,0))) -> 17777 | CF3: =IF(ISERROR(INDEX(Spalte_GP,MATCH(Dashboard_Basis!CF$2&Dashboard_Basis!CF$1&Dashboard_Basis!$A3&Auswahl_Bundesland,Basisdaten!$A:$A,0))),"-",INDEX(Spalte_GP,MATCH(Dashboard_Basis!CF$2&Dashboard_Basis!CF$1&Dashboard_Basis!$A3&Auswahl_Bundesland,Basisdaten!$A:$A,0))) -> 17818 | CG3: =IF(ISERROR(INDEX(Spalte_GP,MATCH(Dashboard_Basis!CG$2&Dashboard_Basis!CG$1&Dashboard_Basis!$A3&Auswahl_Bundesland,Basisdaten!$A:$A,0))),"-",INDEX(Spalte_GP,MATCH(Dashboard_Basis!CG$2&Dashboard_Basis!CG$1&Dashboard_Basis!$A3&Auswahl_Bundesland,Basisdaten!$A:$A,0))) -> 17858 | CH3: =IF(ISERROR(INDEX(Spalte_GP,MATCH(Dashboard_Basis!CH$2&Dashboard_Basis!CH$1&Dashboard_Basis!$A3&Auswahl_Bundesland,Basisdaten!$A:$A,0))),"-",INDEX(Spalte_GP,MATCH(Dashboard_Basis!CH$2&Dashboard_Basis!CH$1&Dashboard_Basis!$A3&Auswahl_Bundesland,Basisdaten!$A:$A,0))) -> 17834 | CI3: =IF(ISERROR(INDEX(Spalte_GP,MATCH(Dashboard_Basis!CI$2&Dashboard_Basis!CI$1&Dashboard_Basis!$A3&Auswahl_Bundesland,Basisdaten!$A:$A,0))),"-",INDEX(Spalte_GP,MATCH(Dashboard_Basis!CI$2&Dashboard_Basis!CI$1&Dashboard_Basis!$A3&Auswahl_Bundesland,Basisdaten!$A:$A,0))) -> 17776 | CJ3: =IF(ISERROR(INDEX(Spalte_GP,MATCH(Dashboard_Basis!CJ$2&Dashboard_Basis!CJ$1&Dashboard_Basis!$A3&Auswahl_Bundesland,Basisdaten!$A:$A,0))),"-",INDEX(Spalte_GP,MATCH(Dashboard_Basis!CJ$2&Dashboard_Basis!CJ$1&Dashboard_Basis!$A3&Auswahl_Bundesland,Basisdaten!$A:$A,0))) -> 17785 | CK3: =IF(ISERROR(INDEX(Spalte_GP,MATCH(Dashboard_Basis!CK$2&Dashboard_Basis!CK$1&Dashboard_Basis!$A3&Auswahl_Bundesland,Basisdaten!$A:$A,0))),"-",INDEX(Spalte_GP,MATCH(Dashboard_Basis!CK$2&Dashboard_Basis!CK$1&Dashboard_Basis!$A3&Auswahl_Bundesland,Basisdaten!$A:$A,0))) -> 17883 | CL3: =IF(ISERROR(INDEX(Spalte_GP,MATCH(Dashboard_Basis!CL$2&Dashboard_Basis!CL$1&Dashboard_Basis!$A3&Auswahl_Bundesland,Basisdaten!$A:$A,0))),"-",INDEX(Spalte_GP,MATCH(Dashboard_Basis!CL$2&Dashboard_Basis!CL$1&Dashboard_Basis!$A3&Auswahl_Bundesland,Basisdaten!$A:$A,0))) -> 17824 | CM3: =IF(ISERROR(INDEX(Spalte_GP,MATCH(Dashboard_Basis!CM$2&Dashboard_Basis!CM$1&Dashboard_Basis!$A3&Auswahl_Bundesland,Basisdaten!$A:$A,0))),"-",INDEX(Spalte_GP,MATCH(Dashboard_Basis!CM$2&Dashboard_Basis!CM$1&Dashboard_Basis!$A3&Auswahl_Bundesland,Basisdaten!$A:$A,0))) -> 17950 | CN3: =IF(ISERROR(INDEX(Spalte_GP,MATCH(Dashboard_Basis!CN$2&Dashboard_Basis!CN$1&Dashboard_Basis!$A3&Auswahl_Bundesland,Basisdaten!$A:$A,0))),"-",INDEX(Spalte_GP,MATCH(Dashboard_Basis!CN$2&Dashboard_Basis!CN$1&Dashboard_Basis!$A3&Auswahl_Bundesland,Basisdaten!$A:$A,0))) -> 17908 | CO3: =IF(ISERROR(INDEX(Spalte_GP,MATCH(Dashboard_Basis!CO$2&Dashboard_Basis!CO$1&Dashboard_Basis!$A3&Auswahl_Bundesland,Basisdaten!$A:$A,0))),"-",INDEX(Spalte_GP,MATCH(Dashboard_Basis!CO$2&Dashboard_Basis!CO$1&Dashboard_Basis!$A3&Auswahl_Bundesland,Basisdaten!$A:$A,0))) -> 17925 | CP3: =IF(ISERROR(INDEX(Spalte_GP,MATCH(Dashboard_Basis!CP$2&Dashboard_Basis!CP$1&Dashboard_Basis!$A3&Auswahl_Bundesland,Basisdaten!$A:$A,0))),"-",INDEX(Spalte_GP,MATCH(Dashboard_Basis!CP$2&Dashboard_Basis!CP$1&Dashboard_Basis!$A3&Auswahl_Bundesland,Basisdaten!$A:$A,0))) -> 17841 | CQ3: =IF(COUNT(CE3:CG3)=3,SUM(CE3:CG3)/3,"-") -> 17817.66667 | CR3: =IF(COUNT(CH3:CJ3)=3,SUM(CH3:CJ3)/3,"-") -> 17798.33333 | CS3: =IF(COUNT(CK3:CM3)=3,SUM(CK3:CM3)/3,"-") -> 17885.66667 | CT3: =IF(COUNT(CN3:CP3)=3,SUM(CN3:CP3)/3,"-") -> 17891.33333 | CU3: =IF(COUNT(CR3,CQ3)=2,SUM(CR3,CQ3)/2,"-") -> 17808 | CV3: =IF(COUNT(CQ3,CS3,CR3)=3,SUM(CQ3,CS3,CR3)/3,"-") -> 17833.88889 | CW3: =IF(COUNT(OFFSET(CE3,,,,Anzahl_Monate))=Anzahl_Monate,SUM(OFFSET(CE3,,,,Anzahl_Monate))/Anzahl_Monate,"-") -> 17777 | CX3: =IF(COUNT(CT3,CS3,CR3,CQ3)=4,SUM(CT3,CS3,CR3,CQ3)/4,"-") -> 17848.25 | CY3: =IF(ISERROR(INDEX(Spalte_GP,MATCH(Dashboard_Basis!CY$2&Dashboard_Basis!CY$1&Dashboard_Basis!$A3&Auswahl_Bundesland,Basisdaten!$A:$A,0))),"-",INDEX(Spalte_GP,MATCH(Dashboard_Basis!CY$2&Dashboard_Basis!CY$1&Dashboard_Basis!$A3&Auswahl_Bundesland,Basisdaten!$A:$A,0))) -> 17838 | CZ3: =IF(ISERROR(INDEX(Spalte_GP,MATCH(Dashboard_Basis!CZ$2&Dashboard_Basis!CZ$1&Dashboard_Basis!$A3&Auswahl_Bundesland,Basisdaten!$A:$A,0))),"-",INDEX(Spalte_GP,MATCH(Dashboard_Basis!CZ$2&Dashboard_Basis!CZ$1&Dashboard_Basis!$A3&Auswahl_Bundesland,Basisdaten!$A:$A,0))) -> 17819 | DA3: =IF(ISERROR(INDEX(Spalte_GP,MATCH(Dashboard_Basis!DA$2&Dashboard_Basis!DA$1&Dashboard_Basis!$A3&Auswahl_Bundesland,Basisdaten!$A:$A,0))),"-",INDEX(Spalte_GP,MATCH(Dashboard_Basis!DA$2&Dashboard_Basis!DA$1&Dashboard_Basis!$A3&Auswahl_Bundesland,Basisdaten!$A:$A,0))) -> 17736 | DB3: =IF(ISERROR(INDEX(Spalte_GP,MATCH(Dashboard_Basis!DB$2&Dashboard_Basis!DB$1&Dashboard_Basis!$A3&Auswahl_Bundesland,Basisdaten!$A:$A,0))),"-",INDEX(Spalte_GP,MATCH(Dashboard_Basis!DB$2&Dashboard_Basis!DB$1&Dashboard_Basis!$A3&Auswahl_Bundesland,Basisdaten!$A:$A,0))) -> 17713 | DC3: =IF(ISERROR(INDEX(Spalte_GP,MATCH(Dashboard_Basis!DC$2&Dashboard_Basis!DC$1&Dashboard_Basis!$A3&Auswahl_Bundesland,Basisdaten!$A:$A,0))),"-",INDEX(Spalte_GP,MATCH(Dashboard_Basis!DC$2&Dashboard_Basis!DC$1&Dashboard_Basis!$A3&Auswahl_Bundesland,Basisdaten!$A:$A,0))) -> 17681 | DD3: =IF(ISERROR(INDEX(Spalte_GP,MATCH(Dashboard_Basis!DD$2&Dashboard_Basis!DD$1&Dashboard_Basis!$A3&Auswahl_Bundesland,Basisdaten!$A:$A,0))),"-",INDEX(Spalte_GP,MATCH(Dashboard_Basis!DD$2&Dashboard_Basis!DD$1&Dashboard_Basis!$A3&Auswahl_Bundesland,Basisdaten!$A:$A,0))) -> 17685 | DE3: =IF(ISERROR(INDEX(Spalte_GP,MATCH(Dashboard_Basis!DE$2&Dashboard_Basis!DE$1&Dashboard_Basis!$A3&Auswahl_Bundesland,Basisdaten!$A:$A,0))),"-",INDEX(Spalte_GP,MATCH(Dashboard_Basis!DE$2&Dashboard_Basis!DE$1&Dashboard_Basis!$A3&Auswahl_Bundesland,Basisdaten!$A:$A,0))) -> 17743 | DF3: =IF(ISERROR(INDEX(Spalte_GP,MATCH(Dashboard_Basis!DF$2&Dashboard_Basis!DF$1&Dashboard_Basis!$A3&Auswahl_Bundesland,Basisdaten!$A:$A,0))),"-",INDEX(Spalte_GP,MATCH(Dashboard_Basis!DF$2&Dashboard_Basis!DF$1&Dashboard_Basis!$A3&Auswahl_Bundesland,Basisdaten!$A:$A,0))) -> 17733 | DG3: =IF(ISERROR(INDEX(Spalte_GP,MATCH(Dashboard_Basis!DG$2&Dashboard_Basis!DG$1&Dashboard_Basis!$A3&Auswahl_Bundesland,Basisdaten!$A:$A,0))),"-",INDEX(Spalte_GP,MATCH(Dashboard_Basis!DG$2&Dashboard_Basis!DG$1&Dashboard_Basis!$A3&Auswahl_Bundesland,Basisdaten!$A:$A,0))) -> 17864 | DH3: =IF(ISERROR(INDEX(Spalte_GP,MATCH(Dashboard_Basis!DH$2&Dashboard_Basis!DH$1&Dashboard_Basis!$A3&Auswahl_Bundesland,Basisdaten!$A:$A,0))),"-",INDEX(Spalte_GP,MATCH(Dashboard_Basis!DH$2&Dashboard_Basis!DH$1&Dashboard_Basis!$A3&Auswahl_Bundesland,Basisdaten!$A:$A,0))) -> 17949 | DI3: =IF(ISERROR(INDEX(Spalte_GP,MATCH(Dashboard_Basis!DI$2&Dashboard_Basis!DI$1&Dashboard_Basis!$A3&Auswahl_Bundesland,Basisdaten!$A:$A,0))),"-",INDEX(Spalte_GP,MATCH(Dashboard_Basis!DI$2&Dashboard_Basis!DI$1&Dashboard_Basis!$A3&Auswahl_Bundesland,Basisdaten!$A:$A,0))) -> 17964 | DJ3: =IF(ISERROR(INDEX(Spalte_GP,MATCH(Dashboard_Basis!DJ$2&Dashboard_Basis!DJ$1&Dashboard_Basis!$A3&Auswahl_Bundesland,Basisdaten!$A:$A,0))),"-",INDEX(Spalte_GP,MATCH(Dashboard_Basis!DJ$2&Dashboard_Basis!DJ$1&Dashboard_Basis!$A3&Auswahl_Bundesland,Basisdaten!$A:$A,0))) -> 17850 | DK3: =IF(COUNT(CY3:DA3)=3,SUM(CY3:DA3)/3,"-") -> 17797.66667 | DL3: =IF(COUNT(DB3:DD3)=3,SUM(DB3:DD3)/3,"-") -> 17693 | DM3: =IF(COUNT(DE3:DG3)=3,SUM(DE3:DG3)/3,"-") -> 17780 | DN3: =IF(COUNT(DH3:DJ3)=3,SUM(DH3:DJ3)/3,"-") -> 17921 | DO3: =IF(COUNT(DL3,DK3)=2,SUM(DL3,DK3)/2,"-") -> 17745.33333 | DP3: =IF(COUNT(DK3,DM3,DL3)=3,SUM(DK3,DM3,DL3)/3,"-") -> 17756.88889 | DQ3: =IF(COUNT(OFFSET(CY3,,,,Anzahl_Monate))=Anzahl_Monate,SUM(OFFSET(CY3,,,,Anzahl_Monate))/Anzahl_Monate,"-") -> 17838 | DR3: =IF(COUNT(DN3,DM3,DL3,DK3)=4,SUM(DN3,DM3,DL3,DK3)/4,"-") -> 17797.91667 | DS3: =IF(ISERROR(INDEX(Spalte_GP,MATCH(Dashboard_Basis!DS$2&Dashboard_Basis!DS$1&Dashboard_Basis!$A3&Auswahl_Bundesland,Basisdaten!$A:$A,0))),"-",INDEX(Spalte_GP,MATCH(Dashboard_Basis!DS$2&Dashboard_Basis!DS$1&Dashboard_Basis!$A3&Auswahl_Bundesland,Basisdaten!$A:$A,0))) -> 17845 | DT3: =IF(ISERROR(INDEX(Spalte_GP,MATCH(Dashboard_Basis!DT$2&Dashboard_Basis!DT$1&Dashboard_Basis!$A3&Auswahl_Bundesland,Basisdaten!$A:$A,0))),"-",INDEX(Spalte_GP,MATCH(Dashboard_Basis!DT$2&Dashboard_Basis!DT$1&Dashboard_Basis!$A3&Auswahl_Bundesland,Basisdaten!$A:$A,0))) -> 17876 | DU3: =IF(ISERROR(INDEX(Spalte_GP,MATCH(Dashboard_Basis!DU$2&Dashboard_Basis!DU$1&Dashboard_Basis!$A3&Auswahl_Bundesland,Basisdaten!$A:$A,0))),"-",INDEX(Spalte_GP,MATCH(Dashboard_Basis!DU$2&Dashboard_Basis!DU$1&Dashboard_Basis!$A3&Auswahl_Bundesland,Basisdaten!$A:$A,0))) -> 17848 | DV3: =IF(ISERROR(INDEX(Spalte_GP,MATCH(Dashboard_Basis!DV$2&Dashboard_Basis!DV$1&Dashboard_Basis!$A3&Auswahl_Bundesland,Basisdaten!$A:$A,0))),"-",INDEX(Spalte_GP,MATCH(Dashboard_Basis!DV$2&Dashboard_Basis!DV$1&Dashboard_Basis!$A3&Auswahl_Bundesland,Basisdaten!$A:$A,0))) -> 17794 | DW3: =IF(ISERROR(INDEX(Spalte_GP,MATCH(Dashboard_Basis!DW$2&Dashboard_Basis!DW$1&Dashboard_Basis!$A3&Auswahl_Bundesland,Basisdaten!$A:$A,0))),"-",INDEX(Spalte_GP,MATCH(Dashboard_Basis!DW$2&Dashboard_Basis!DW$1&Dashboard_Basis!$A3&Auswahl_Bundesland,Basisdaten!$A:$A,0))) -> 17817 | DX3: =IF(ISERROR(INDEX(Spalte_GP,MATCH(Dashboard_Basis!DX$2&Dashboard_Basis!DX$1&Dashboard_Basis!$A3&Auswahl_Bundesland,Basisdaten!$A:$A,0))),"-",INDEX(Spalte_GP,MATCH(Dashboard_Basis!DX$2&Dashboard_Basis!DX$1&Dashboard_Basis!$A3&Auswahl_Bundesland,Basisdaten!$A:$A,0))) -> 17850 | DY3: =IF(ISERROR(INDEX(Spalte_GP,MATCH(Dashboard_Basis!DY$2&Dashboard_Basis!DY$1&Dashboard_Basis!$A3&Auswahl_Bundesland,Basisdaten!$A:$A,0))),"-",INDEX(Spalte_GP,MATCH(Dashboard_Basis!DY$2&Dashboard_Basis!DY$1&Dashboard_Basis!$A3&Auswahl_Bundesland,Basisdaten!$A:$A,0))) -> 17944 | DZ3: =IF(ISERROR(INDEX(Spalte_GP,MATCH(Dashboard_Basis!DZ$2&Dashboard_Basis!DZ$1&Dashboard_Basis!$A3&Auswahl_Bundesland,Basisdaten!$A:$A,0))),"-",INDEX(Spalte_GP,MATCH(Dashboard_Basis!DZ$2&Dashboard_Basis!DZ$1&Dashboard_Basis!$A3&Auswahl_Bundesland,Basisdaten!$A:$A,0))) -> 17888 | EA3: =IF(ISERROR(INDEX(Spalte_GP,MATCH(Dashboard_Basis!EA$2&Dashboard_Basis!EA$1&Dashboard_Basis!$A3&Auswahl_Bundesland,Basisdaten!$A:$A,0))),"-",INDEX(Spalte_GP,MATCH(Dashboard_Basis!EA$2&Dashboard_Basis!EA$1&Dashboard_Basis!$A3&Auswahl_Bundesland,Basisdaten!$A:$A,0))) -> 18053 | EB3: =IF(ISERROR(INDEX(Spalte_GP,MATCH(Dashboard_Basis!EB$2&Dashboard_Basis!EB$1&Dashboard_Basis!$A3&Auswahl_Bundesland,Basisdaten!$A:$A,0))),"-",INDEX(Spalte_GP,MATCH(Dashboard_Basis!EB$2&Dashboard_Basis!EB$1&Dashboard_Basis!$A3&Auswahl_Bundesland,Basisdaten!$A:$A,0))) -> 18046 | EC3: =IF(ISERROR(INDEX(Spalte_GP,MATCH(Dashboard_Basis!EC$2&Dashboard_Basis!EC$1&Dashboard_Basis!$A3&Auswahl_Bundesland,Basisdaten!$A:$A,0))),"-",INDEX(Spalte_GP,MATCH(Dashboard_Basis!EC$2&Dashboard_Basis!EC$1&Dashboard_Basis!$A3&Auswahl_Bundesland,Basisdaten!$A:$A,0))) -> 18075 | ED3: =IF(ISERROR(INDEX(Spalte_GP,MATCH(Dashboard_Basis!ED$2&Dashboard_Basis!ED$1&Dashboard_Basis!$A3&Auswahl_Bundesland,Basisdaten!$A:$A,0))),"-",INDEX(Spalte_GP,MATCH(Dashboard_Basis!ED$2&Dashboard_Basis!ED$1&Dashboard_Basis!$A3&Auswahl_Bundesland,Basisdaten!$A:$A,0))) -> 18018 | EE3: =IF(COUNT(DS3:DU3)=3,SUM(DS3:DU3)/3,"-") -> 17856.33333 | EF3: =IF(COUNT(DV3:DX3)=3,SUM(DV3:DX3)/3,"-") -> 17820.33333 | EG3: =IF(COUNT(DY3:EA3)=3,SUM(DY3:EA3)/3,"-") -> 17961.66667 | EH3: =IF(COUNT(EB3:ED3)=3,SUM(EB3:ED3)/3,"-") -> 18046.33333 | EI3: =IF(COUNT(EF3,EE3)=2,SUM(EF3,EE3)/2,"-") -> 17838.33333 | EJ3: =IF(COUNT(EE3,EG3,EF3)=3,SUM(EE3,EG3,EF3)/3,"-") -> 17879.44444 | EK3: =IF(COUNT(OFFSET(DS3,,,,Anzahl_Monate))=Anzahl_Monate,SUM(OFFSET(DS3,,,,Anzahl_Monate))/Anzahl_Monate,"-") -> 17845 | EL3: =IF(COUNT(EH3,EG3,EF3,EE3)=4,SUM(EH3,EG3,EF3,EE3)/4,"-") -> 17921.16667 | EM3: =IF(ISERROR(INDEX(Spalte_GP,MATCH(Dashboard_Basis!EM$2&Dashboard_Basis!EM$1&Dashboard_Basis!$A3&Auswahl_Bundesland,Basisdaten!$A:$A,0))),"-",INDEX(Spalte_GP,MATCH(Dashboard_Basis!EM$2&Dashboard_Basis!EM$1&Dashboard_Basis!$A3&Auswahl_Bundesland,Basisdaten!$A:$A,0))) -> 18128 | EN3: =IF(ISERROR(INDEX(Spalte_GP,MATCH(Dashboard_Basis!EN$2&Dashboard_Basis!EN$1&Dashboard_Basis!$A3&Auswahl_Bundesland,Basisdaten!$A:$A,0))),"-",INDEX(Spalte_GP,MATCH(Dashboard_Basis!EN$2&Dashboard_Basis!EN$1&Dashboard_Basis!$A3&Auswahl_Bundesland,Basisdaten!$A:$A,0))) -> 18121 | EO3: =IF(ISERROR(INDEX(Spalte_GP,MATCH(Dashboard_Basis!EO$2&Dashboard_Basis!EO$1&Dashboard_Basis!$A3&Auswahl_Bundesland,Basisdaten!$A:$A,0))),"-",INDEX(Spalte_GP,MATCH(Dashboard_Basis!EO$2&Dashboard_Basis!EO$1&Dashboard_Basis!$A3&Auswahl_Bundesland,Basisdaten!$A:$A,0))) -> 18264 | EP3: =IF(ISERROR(INDEX(Spalte_GP,MATCH(Dashboard_Basis!EP$2&Dashboard_Basis!EP$1&Dashboard_Basis!$A3&Auswahl_Bundesland,Basisdaten!$A:$A,0))),"-",INDEX(Spalte_GP,MATCH(Dashboard_Basis!EP$2&Dashboard_Basis!EP$1&Dashboard_Basis!$A3&Auswahl_Bundesland,Basisdaten!$A:$A,0))) -> 18265 | EQ3: =IF(ISERROR(INDEX(Spalte_GP,MATCH(Dashboard_Basis!EQ$2&Dashboard_Basis!EQ$1&Dashboard_Basis!$A3&Auswahl_Bundesland,Basisdaten!$A:$A,0))),"-",INDEX(Spalte_GP,MATCH(Dashboard_Basis!EQ$2&Dashboard_Basis!EQ$1&Dashboard_Basis!$A3&Auswahl_Bundesland,Basisdaten!$A:$A,0))) -> 18251 | ER3: =IF(ISERROR(INDEX(Spalte_GP,MATCH(Dashboard_Basis!ER$2&Dashboard_Basis!ER$1&Dashboard_Basis!$A3&Auswahl_Bundesland,Basisdaten!$A:$A,0))),"-",INDEX(Spalte_GP,MATCH(Dashboard_Basis!ER$2&Dashboard_Basis!ER$1&Dashboard_Basis!$A3&Auswahl_Bundesland,Basisdaten!$A:$A,0))) -> 18284 | ES3: =IF(ISERROR(INDEX(Spalte_GP,MATCH(Dashboard_Basis!ES$2&Dashboard_Basis!ES$1&Dashboard_Basis!$A3&Auswahl_Bundesland,Basisdaten!$A:$A,0))),"-",INDEX(Spalte_GP,MATCH(Dashboard_Basis!ES$2&Dashboard_Basis!ES$1&Dashboard_Basis!$A3&Auswahl_Bundesland,Basisdaten!$A:$A,0))) -> 18534 | ET3: =IF(ISERROR(INDEX(Spalte_GP,MATCH(Dashboard_Basis!ET$2&Dashboard_Basis!ET$1&Dashboard_Basis!$A3&Auswahl_Bundesland,Basisdaten!$A:$A,0))),"-",INDEX(Spalte_GP,MATCH(Dashboard_Basis!ET$2&Dashboard_Basis!ET$1&Dashboard_Basis!$A3&Auswahl_Bundesland,Basisdaten!$A:$A,0))) -> 18477 | EU3: =IF(ISERROR(INDEX(Spalte_GP,MATCH(Dashboard_Basis!EU$2&Dashboard_Basis!EU$1&Dashboard_Basis!$A3&Auswahl_Bundesland,Basisdaten!$A:$A,0))),"-",INDEX(Spalte_GP,MATCH(Dashboard_Basis!EU$2&Dashboard_Basis!EU$1&Dashboard_Basis!$A3&Auswahl_Bundesland,Basisdaten!$A:$A,0))) -> 18474 | EV3: =IF(ISERROR(INDEX(Spalte_GP,MATCH(Dashboard_Basis!EV$2&Dashboard_Basis!EV$1&Dashboard_Basis!$A3&Auswahl_Bundesland,Basisdaten!$A:$A,0))),"-",INDEX(Spalte_GP,MATCH(Dashboard_Basis!EV$2&Dashboard_Basis!EV$1&Dashboard_Basis!$A3&Auswahl_Bundesland,Basisdaten!$A:$A,0))) -> 18502 | EW3: =IF(ISERROR(INDEX(Spalte_GP,MATCH(Dashboard_Basis!EW$2&Dashboard_Basis!EW$1&Dashboard_Basis!$A3&Auswahl_Bundesland,Basisdaten!$A:$A,0))),"-",INDEX(Spalte_GP,MATCH(Dashboard_Basis!EW$2&Dashboard_Basis!EW$1&Dashboard_Basis!$A3&Auswahl_Bundesland,Basisdaten!$A:$A,0))) -> 18513 | EX3: =IF(ISERROR(INDEX(Spalte_GP,MATCH(Dashboard_Basis!EX$2&Dashboard_Basis!EX$1&Dashboard_Basis!$A3&Auswahl_Bundesland,Basisdaten!$A:$A,0))),"-",INDEX(Spalte_GP,MATCH(Dashboard_Basis!EX$2&Dashboard_Basis!EX$1&Dashboard_Basis!$A3&Auswahl_Bundesland,Basisdaten!$A:$A,0))) -> 18443 | EY3: =IF(COUNT(EM3:EO3)=3,SUM(EM3:EO3)/3,"-") -> 18171 | EZ3: =IF(COUNT(EP3:ER3)=3,SUM(EP3:ER3)/3,"-") -> 18266.66667 | FA3: =IF(COUNT(ES3:EU3)=3,SUM(ES3:EU3)/3,"-") -> 18495 | FB3: =IF(COUNT(EV3:EX3)=3,SUM(EV3:EX3)/3,"-") -> 18486 | FC3: =IF(COUNT(EZ3,EY3)=2,SUM(EZ3,EY3)/2,"-") -> 18218.83333 | FD3: =IF(COUNT(EY3,FA3,EZ3)=3,SUM(EY3,FA3,EZ3)/3,"-") -> 18310.88889 | FE3: =IF(COUNT(OFFSET(EM3,,,,Anzahl_Monate))=Anzahl_Monate,SUM(OFFSET(EM3,,,,Anzahl_Monate))/Anzahl_Monate,"-") -> 18128 | FF3: =IF(COUNT(FB3,FA3,EZ3,EY3)=4,SUM(FB3,FA3,EZ3,EY3)/4,"-") -> 18354.66667 | FG3: =IF(ISERROR(INDEX(Spalte_GP,MATCH(Dashboard_Basis!FG$2&Dashboard_Basis!FG$1&Dashboard_Basis!$A3&Auswahl_Bundesland,Basisdaten!$A:$A,0))),"-",INDEX(Spalte_GP,MATCH(Dashboard_Basis!FG$2&Dashboard_Basis!FG$1&Dashboard_Basis!$A3&Auswahl_Bundesland,Basisdaten!$A:$A,0))) -> 18432 | FH3: =IF(ISERROR(INDEX(Spalte_GP,MATCH(Dashboard_Basis!FH$2&Dashboard_Basis!FH$1&Dashboard_Basis!$A3&Auswahl_Bundesland,Basisdaten!$A:$A,0))),"-",INDEX(Spalte_GP,MATCH(Dashboard_Basis!FH$2&Dashboard_Basis!FH$1&Dashboard_Basis!$A3&Auswahl_Bundesland,Basisdaten!$A:$A,0))) -> 18391 | FI3: =IF(ISERROR(INDEX(Spalte_GP,MATCH(Dashboard_Basis!FI$2&Dashboard_Basis!FI$1&Dashboard_Basis!$A3&Auswahl_Bundesland,Basisdaten!$A:$A,0))),"-",INDEX(Spalte_GP,MATCH(Dashboard_Basis!FI$2&Dashboard_Basis!FI$1&Dashboard_Basis!$A3&Auswahl_Bundesland,Basisdaten!$A:$A,0))) -> 18375 | FJ3: =IF(ISERROR(INDEX(Spalte_GP,MATCH(Dashboard_Basis!FJ$2&Dashboard_Basis!FJ$1&Dashboard_Basis!$A3&Auswahl_Bundesland,Basisdaten!$A:$A,0))),"-",INDEX(Spalte_GP,MATCH(Dashboard_Basis!FJ$2&Dashboard_Basis!FJ$1&Dashboard_Basis!$A3&Auswahl_Bundesland,Basisdaten!$A:$A,0))) -> 18396 | FK3: =IF(ISERROR(INDEX(Spalte_GP,MATCH(Dashboard_Basis!FK$2&Dashboard_Basis!FK$1&Dashboard_Basis!$A3&Auswahl_Bundesland,Basisdaten!$A:$A,0))),"-",INDEX(Spalte_GP,MATCH(Dashboard_Basis!FK$2&Dashboard_Basis!FK$1&Dashboard_Basis!$A3&Auswahl_Bundesland,Basisdaten!$A:$A,0))) -> 18370 | FL3: =IF(ISERROR(INDEX(Spalte_GP,MATCH(Dashboard_Basis!FL$2&Dashboard_Basis!FL$1&Dashboard_Basis!$A3&Auswahl_Bundesland,Basisdaten!$A:$A,0))),"-",INDEX(Spalte_GP,MATCH(Dashboard_Basis!FL$2&Dashboard_Basis!FL$1&Dashboard_Basis!$A3&Auswahl_Bundesland,Basisdaten!$A:$A,0))) -> 18326 | FM3: =IF(ISERROR(INDEX(Spalte_GP,MATCH(Dashboard_Basis!FM$2&Dashboard_Basis!FM$1&Dashboard_Basis!$A3&Auswahl_Bundesland,Basisdaten!$A:$A,0))),"-",INDEX(Spalte_GP,MATCH(Dashboard_Basis!FM$2&Dashboard_Basis!FM$1&Dashboard_Basis!$A3&Auswahl_Bundesland,Basisdaten!$A:$A,0))) -> 18436 | FN3: =IF(ISERROR(INDEX(Spalte_GP,MATCH(Dashboard_Basis!FN$2&Dashboard_Basis!FN$1&Dashboard_Basis!$A3&Auswahl_Bundesland,Basisdaten!$A:$A,0))),"-",INDEX(Spalte_GP,MATCH(Dashboard_Basis!FN$2&Dashboard_Basis!FN$1&Dashboard_Basis!$A3&Auswahl_Bundesland,Basisdaten!$A:$A,0))) -> 18162 | FO3: =IF(ISERROR(INDEX(Spalte_GP,MATCH(Dashboard_Basis!FO$2&Dashboard_Basis!FO$1&Dashboard_Basis!$A3&Auswahl_Bundesland,Basisdaten!$A:$A,0))),"-",INDEX(Spalte_GP,MATCH(Dashboard_Basis!FO$2&Dashboard_Basis!FO$1&Dashboard_Basis!$A3&Auswahl_Bundesland,Basisdaten!$A:$A,0))) -> 18248 | FP3: =IF(ISERROR(INDEX(Spalte_GP,MATCH(Dashboard_Basis!FP$2&Dashboard_Basis!FP$1&Dashboard_Basis!$A3&Auswahl_Bundesland,Basisdaten!$A:$A,0))),"-",INDEX(Spalte_GP,MATCH(Dashboard_Basis!FP$2&Dashboard_Basis!FP$1&Dashboard_Basis!$A3&Auswahl_Bundesland,Basisdaten!$A:$A,0))) -> 18098 | FQ3: =IF(ISERROR(INDEX(Spalte_GP,MATCH(Dashboard_Basis!FQ$2&Dashboard_Basis!FQ$1&Dashboard_Basis!$A3&Auswahl_Bundesland,Basisdaten!$A:$A,0))),"-",INDEX(Spalte_GP,MATCH(Dashboard_Basis!FQ$2&Dashboard_Basis!FQ$1&Dashboard_Basis!$A3&Auswahl_Bundesland,Basisdaten!$A:$A,0))) -> 17922 | FR3: =IF(ISERROR(INDEX(Spalte_GP,MATCH(Dashboard_Basis!FR$2&Dashboard_Basis!FR$1&Dashboard_Basis!$A3&Auswahl_Bundesland,Basisdaten!$A:$A,0))),"-",INDEX(Spalte_GP,MATCH(Dashboard_Basis!FR$2&Dashboard_Basis!FR$1&Dashboard_Basis!$A3&Auswahl_Bundesland,Basisdaten!$A:$A,0))) -> 17873 | FS3: =IF(COUNT(FG3:FI3)=3,SUM(FG3:FI3)/3,"-") -> 18399.33333 | FT3: =IF(COUNT(FJ3:FL3)=3,SUM(FJ3:FL3)/3,"-") -> 18364 | FU3: =IF(COUNT(FM3:FO3)=3,SUM(FM3:FO3)/3,"-") -> 18282 | FV3: =IF(COUNT(FP3:FR3)=3,SUM(FP3:FR3)/3,"-") -> 17964.33333 | FW3: =IF(COUNT(FT3,FS3)=2,SUM(FT3,FS3)/2,"-") -> 18381.66667 | FX3: =IF(COUNT(FS3,FU3,FT3)=3,SUM(FS3,FU3,FT3)/3,"-") -> 18348.44444 | FY3: =IF(COUNT(OFFSET(FG3,,,,Anzahl_Monate))=Anzahl_Monate,SUM(OFFSET(FG3,,,,Anzahl_Monate))/Anzahl_Monate,"-") -> 18432 | FZ3: =IF(COUNT(FV3,FU3,FT3,FS3)=4,SUM(FV3,FU3,FT3,FS3)/4,"-") -> 18252.41667 | GA3: =IF(ISERROR(INDEX(Spalte_GP,MATCH(Dashboard_Basis!GA$2&Dashboard_Basis!GA$1&Dashboard_Basis!$A3&Auswahl_Bundesland,Basisdaten!$A:$A,0))),"-",INDEX(Spalte_GP,MATCH(Dashboard_Basis!GA$2&Dashboard_Basis!GA$1&Dashboard_Basis!$A3&Auswahl_Bundesland,Basisdaten!$A:$A,0))) -> 17752 | GB3: =IF(ISERROR(INDEX(Spalte_GP,MATCH(Dashboard_Basis!GB$2&Dashboard_Basis!GB$1&Dashboard_Basis!$A3&Auswahl_Bundesland,Basisdaten!$A:$A,0))),"-",INDEX(Spalte_GP,MATCH(Dashboard_Basis!GB$2&Dashboard_Basis!GB$1&Dashboard_Basis!$A3&Auswahl_Bundesland,Basisdaten!$A:$A,0))) -> 17612 | GC3: =IF(ISERROR(INDEX(Spalte_GP,MATCH(Dashboard_Basis!GC$2&Dashboard_Basis!GC$1&Dashboard_Basis!$A3&Auswahl_Bundesland,Basisdaten!$A:$A,0))),"-",INDEX(Spalte_GP,MATCH(Dashboard_Basis!GC$2&Dashboard_Basis!GC$1&Dashboard_Basis!$A3&Auswahl_Bundesland,Basisdaten!$A:$A,0))) -> 17595 | GD3: =IF(ISERROR(INDEX(Spalte_GP,MATCH(Dashboard_Basis!GD$2&Dashboard_Basis!GD$1&Dashboard_Basis!$A3&Auswahl_Bundesland,Basisdaten!$A:$A,0))),"-",INDEX(Spalte_GP,MATCH(Dashboard_Basis!GD$2&Dashboard_Basis!GD$1&Dashboard_Basis!$A3&Auswahl_Bundesland,Basisdaten!$A:$A,0))) -> 17423 | GE3: =IF(ISERROR(INDEX(Spalte_GP,MATCH(Dashboard_Basis!GE$2&Dashboard_Basis!GE$1&Dashboard_Basis!$A3&Auswahl_Bundesland,Basisdaten!$A:$A,0))),"-",INDEX(Spalte_GP,MATCH(Dashboard_Basis!GE$2&Dashboard_Basis!GE$1&Dashboard_Basis!$A3&Auswahl_Bundesland,Basisdaten!$A:$A,0))) -> 17336 | GF3: =IF(ISERROR(INDEX(Spalte_GP,MATCH(Dashboard_Basis!GF$2&Dashboard_Basis!GF$1&Dashboard_Basis!$A3&Auswahl_Bundesland,Basisdaten!$A:$A,0))),"-",INDEX(Spalte_GP,MATCH(Dashboard_Basis!GF$2&Dashboard_Basis!GF$1&Dashboard_Basis!$A3&Auswahl_Bundesland,Basisdaten!$A:$A,0))) -> 17239 | GG3: =IF(ISERROR(INDEX(Spalte_GP,MATCH(Dashboard_Basis!GG$2&Dashboard_Basis!GG$1&Dashboard_Basis!$A3&Auswahl_Bundesland,Basisdaten!$A:$A,0))),"-",INDEX(Spalte_GP,MATCH(Dashboard_Basis!GG$2&Dashboard_Basis!GG$1&Dashboard_Basis!$A3&Auswahl_Bundesland,Basisdaten!$A:$A,0))) -> 17143 | GH3: =IF(ISERROR(INDEX(Spalte_GP,MATCH(Dashboard_Basis!GH$2&Dashboard_Basis!GH$1&Dashboard_Basis!$A3&Auswahl_Bundesland,Basisdaten!$A:$A,0))),"-",INDEX(Spalte_GP,MATCH(Dashboard_Basis!GH$2&Dashboard_Basis!GH$1&Dashboard_Basis!$A3&Auswahl_Bundesland,Basisdaten!$A:$A,0))) -> 16912 | GI3: =IF(ISERROR(INDEX(Spalte_GP,MATCH(Dashboard_Basis!GI$2&Dashboard_Basis!GI$1&Dashboard_Basis!$A3&Auswahl_Bundesland,Basisdaten!$A:$A,0))),"-",INDEX(Spalte_GP,MATCH(Dashboard_Basis!GI$2&Dashboard_Basis!GI$1&Dashboard_Basis!$A3&Auswahl_Bundesland,Basisdaten!$A:$A,0))) -> 16946 | GJ3: =IF(ISERROR(INDEX(Spalte_GP,MATCH(Dashboard_Basis!GJ$2&Dashboard_Basis!GJ$1&Dashboard_Basis!$A3&Auswahl_Bundesland,Basisdaten!$A:$A,0))),"-",INDEX(Spalte_GP,MATCH(Dashboard_Basis!GJ$2&Dashboard_Basis!GJ$1&Dashboard_Basis!$A3&Auswahl_Bundesland,Basisdaten!$A:$A,0))) -> 16809 | GK3: =IF(ISERROR(INDEX(Spalte_GP,MATCH(Dashboard_Basis!GK$2&Dashboard_Basis!GK$1&Dashboard_Basis!$A3&Auswahl_Bundesland,Basisdaten!$A:$A,0))),"-",INDEX(Spalte_GP,MATCH(Dashboard_Basis!GK$2&Dashboard_Basis!GK$1&Dashboard_Basis!$A3&Auswahl_Bundesland,Basisdaten!$A:$A,0))) -> 16748 | GL3: =IF(ISERROR(INDEX(Spalte_GP,MATCH(Dashboard_Basis!GL$2&Dashboard_Basis!GL$1&Dashboard_Basis!$A3&Auswahl_Bundesland,Basisdaten!$A:$A,0))),"-",INDEX(Spalte_GP,MATCH(Dashboard_Basis!GL$2&Dashboard_Basis!GL$1&Dashboard_Basis!$A3&Auswahl_Bundesland,Basisdaten!$A:$A,0))) -> 16707 | GM3: =IF(COUNT(GA3:GC3)=3,SUM(GA3:GC3)/3,"-") -> 17653 | GN3: =IF(COUNT(GD3:GF3)=3,SUM(GD3:GF3)/3,"-") -> 17332.66667 | GO3: =IF(COUNT(GG3:GI3)=3,SUM(GG3:GI3)/3,"-") -> 17000.33333 | GP3: =IF(COUNT(GJ3:GL3)=3,SUM(GJ3:GL3)/3,"-") -> 16754.66667 | GQ3: =IF(COUNT(GN3,GM3)=2,SUM(GN3,GM3)/2,"-") -> 17492.83333 | GR3: =IF(COUNT(GM3,GO3,GN3)=3,SUM(GM3,GO3,GN3)/3,"-") -> 17328.66667 | GS3: =IF(COUNT(OFFSET(GA3,,,,Anzahl_Monate))=Anzahl_Monate,SUM(OFFSET(GA3,,,,Anzahl_Monate))/Anzahl_Monate,"-") -> 17752 | GT3: =IF(COUNT(GP3,GO3,GN3,GM3)=4,SUM(GP3,GO3,GN3,GM3)/4,"-") -> 17185.16667 | GU3: =IF(ISERROR(INDEX(Spalte_GP,MATCH(Dashboard_Basis!GU$2&Dashboard_Basis!GU$1&Dashboard_Basis!$A3&Auswahl_Bundesland,Basisdaten!$A:$A,0))),"-",INDEX(Spalte_GP,MATCH(Dashboard_Basis!GU$2&Dashboard_Basis!GU$1&Dashboard_Basis!$A3&Auswahl_Bundesland,Basisdaten!$A:$A,0))) -> 16679 | GV3: =IF(ISERROR(INDEX(Spalte_GP,MATCH(Dashboard_Basis!GV$2&Dashboard_Basis!GV$1&Dashboard_Basis!$A3&Auswahl_Bundesland,Basisdaten!$A:$A,0))),"-",INDEX(Spalte_GP,MATCH(Dashboard_Basis!GV$2&Dashboard_Basis!GV$1&Dashboard_Basis!$A3&Auswahl_Bundesland,Basisdaten!$A:$A,0))) -> 16702 | GW3: =IF(ISERROR(INDEX(Spalte_GP,MATCH(Dashboard_Basis!GW$2&Dashboard_Basis!GW$1&Dashboard_Basis!$A3&Auswahl_Bundesland,Basisdaten!$A:$A,0))),"-",INDEX(Spalte_GP,MATCH(Dashboard_Basis!GW$2&Dashboard_Basis!GW$1&Dashboard_Basis!$A3&Auswahl_Bundesland,Basisdaten!$A:$A,0))) -> 16715 | GX3: =IF(ISERROR(INDEX(Spalte_GP,MATCH(Dashboard_Basis!GX$2&Dashboard_Basis!GX$1&Dashboard_Basis!$A3&Auswahl_Bundesland,Basisdaten!$A:$A,0))),"-",INDEX(Spalte_GP,MATCH(Dashboard_Basis!GX$2&Dashboard_Basis!GX$1&Dashboard_Basis!$A3&Auswahl_Bundesland,Basisdaten!$A:$A,0))) -> 16754 | GY3: =IF(ISERROR(INDEX(Spalte_GP,MATCH(Dashboard_Basis!GY$2&Dashboard_Basis!GY$1&Dashboard_Basis!$A3&Auswahl_Bundesland,Basisdaten!$A:$A,0))),"-",INDEX(Spalte_GP,MATCH(Dashboard_Basis!GY$2&Dashboard_Basis!GY$1&Dashboard_Basis!$A3&Auswahl_Bundesland,Basisdaten!$A:$A,0))) -> 16765 | GZ3: =IF(ISERROR(INDEX(Spalte_GP,MATCH(Dashboard_Basis!GZ$2&Dashboard_Basis!GZ$1&Dashboard_Basis!$A3&Auswahl_Bundesland,Basisdaten!$A:$A,0))),"-",INDEX(Spalte_GP,MATCH(Dashboard_Basis!GZ$2&Dashboard_Basis!GZ$1&Dashboard_Basis!$A3&Auswahl_Bundesland,Basisdaten!$A:$A,0))) -> 16808 | HA3: =IF(ISERROR(INDEX(Spalte_GP,MATCH(Dashboard_Basis!HA$2&Dashboard_Basis!HA$1&Dashboard_Basis!$A3&Auswahl_Bundesland,Basisdaten!$A:$A,0))),"-",INDEX(Spalte_GP,MATCH(Dashboard_Basis!HA$2&Dashboard_Basis!HA$1&Dashboard_Basis!$A3&Auswahl_Bundesland,Basisdaten!$A:$A,0))) -> 16894 | HB3: =IF(ISERROR(INDEX(Spalte_GP,MATCH(Dashboard_Basis!HB$2&Dashboard_Basis!HB$1&Dashboard_Basis!$A3&Auswahl_Bundesland,Basisdaten!$A:$A,0))),"-",INDEX(Spalte_GP,MATCH(Dashboard_Basis!HB$2&Dashboard_Basis!HB$1&Dashboard_Basis!$A3&Auswahl_Bundesland,Basisdaten!$A:$A,0))) -> 16855 | HC3: =IF(ISERROR(INDEX(Spalte_GP,MATCH(Dashboard_Basis!HC$2&Dashboard_Basis!HC$1&Dashboard_Basis!$A3&Auswahl_Bundesland,Basisdaten!$A:$A,0))),"-",INDEX(Spalte_GP,MATCH(Dashboard_Basis!HC$2&Dashboard_Basis!HC$1&Dashboard_Basis!$A3&Auswahl_Bundesland,Basisdaten!$A:$A,0))) -> 17046 | HD3: =IF(ISERROR(INDEX(Spalte_GP,MATCH(Dashboard_Basis!HD$2&Dashboard_Basis!HD$1&Dashboard_Basis!$A3&Auswahl_Bundesland,Basisdaten!$A:$A,0))),"-",INDEX(Spalte_GP,MATCH(Dashboard_Basis!HD$2&Dashboard_Basis!HD$1&Dashboard_Basis!$A3&Auswahl_Bundesland,Basisdaten!$A:$A,0))) -> 17097 | HE3: =IF(ISERROR(INDEX(Spalte_GP,MATCH(Dashboard_Basis!HE$2&Dashboard_Basis!HE$1&Dashboard_Basis!$A3&Auswahl_Bundesland,Basisdaten!$A:$A,0))),"-",INDEX(Spalte_GP,MATCH(Dashboard_Basis!HE$2&Dashboard_Basis!HE$1&Dashboard_Basis!$A3&Auswahl_Bundesland,Basisdaten!$A:$A,0))) -> 17132 | HF3: =IF(ISERROR(INDEX(Spalte_GP,MATCH(Dashboard_Basis!HF$2&Dashboard_Basis!HF$1&Dashboard_Basis!$A3&Auswahl_Bundesland,Basisdaten!$A:$A,0))),"-",INDEX(Spalte_GP,MATCH(Dashboard_Basis!HF$2&Dashboard_Basis!HF$1&Dashboard_Basis!$A3&Auswahl_Bundesland,Basisdaten!$A:$A,0))) -> 17110 | HG3: =IF(COUNT(GU3:GW3)=3,SUM(GU3:GW3)/3,"-") -> 16698.66667 | HH3: =IF(COUNT(GX3:GZ3)=3,SUM(GX3:GZ3)/3,"-") -> 16775.66667 | HI3: =IF(COUNT(HA3:HC3)=3,SUM(HA3:HC3)/3,"-") -> 16931.66667 | HJ3: =IF(COUNT(HD3:HF3)=3,SUM(HD3:HF3)/3,"-") -> 17113 | HK3: =IF(COUNT(HH3,HG3)=2,SUM(HH3,HG3)/2,"-") -> 16737.16667 | HL3: =IF(COUNT(HG3,HI3,HH3)=3,SUM(HG3,HI3,HH3)/3,"-") -> 16802 | HM3: =IF(COUNT(OFFSET(GU3,,,,Anzahl_Monate))=Anzahl_Monate,SUM(OFFSET(GU3,,,,Anzahl_Monate))/Anzahl_Monate,"-") -> 16679 | HN3: =IF(COUNT(HJ3,HI3,HH3,HG3)=4,SUM(HJ3,HI3,HH3,HG3)/4,"-") -> 16879.75 | HO3: =IF(ISERROR(INDEX(Spalte_GP,MATCH(Dashboard_Basis!HO$2&Dashboard_Basis!HO$1&Dashboard_Basis!$A3&Auswahl_Bundesland,Basisdaten!$A:$A,0))),"-",INDEX(Spalte_GP,MATCH(Dashboard_Basis!HO$2&Dashboard_Basis!HO$1&Dashboard_Basis!$A3&Auswahl_Bundesland,Basisdaten!$A:$A,0))) -> 17176 | HP3: =IF(ISERROR(INDEX(Spalte_GP,MATCH(Dashboard_Basis!HP$2&Dashboard_Basis!HP$1&Dashboard_Basis!$A3&Auswahl_Bundesland,Basisdaten!$A:$A,0))),"-",INDEX(Spalte_GP,MATCH(Dashboard_Basis!HP$2&Dashboard_Basis!HP$1&Dashboard_Basis!$A3&Auswahl_Bundesland,Basisdaten!$A:$A,0))) -> 17194 | HQ3: =IF(ISERROR(INDEX(Spalte_GP,MATCH(Dashboard_Basis!HQ$2&Dashboard_Basis!HQ$1&Dashboard_Basis!$A3&Auswahl_Bundesland,Basisdaten!$A:$A,0))),"-",INDEX(Spalte_GP,MATCH(Dashboard_Basis!HQ$2&Dashboard_Basis!HQ$1&Dashboard_Basis!$A3&Auswahl_Bundesland,Basisdaten!$A:$A,0))) -> 17247 | HR3: =IF(ISERROR(INDEX(Spalte_GP,MATCH(Dashboard_Basis!HR$2&Dashboard_Basis!HR$1&Dashboard_Basis!$A3&Auswahl_Bundesland,Basisdaten!$A:$A,0))),"-",INDEX(Spalte_GP,MATCH(Dashboard_Basis!HR$2&Dashboard_Basis!HR$1&Dashboard_Basis!$A3&Auswahl_Bundesland,Basisdaten!$A:$A,0))) -> 17234 | HS3: =IF(ISERROR(INDEX(Spalte_GP,MATCH(Dashboard_Basis!HS$2&Dashboard_Basis!HS$1&Dashboard_Basis!$A3&Auswahl_Bundesland,Basisdaten!$A:$A,0))),"-",INDEX(Spalte_GP,MATCH(Dashboard_Basis!HS$2&Dashboard_Basis!HS$1&Dashboard_Basis!$A3&Auswahl_Bundesland,Basisdaten!$A:$A,0))) -> 17312 | HT3: =IF(ISERROR(INDEX(Spalte_GP,MATCH(Dashboard_Basis!HT$2&Dashboard_Basis!HT$1&Dashboard_Basis!$A3&Auswahl_Bundesland,Basisdaten!$A:$A,0))),"-",INDEX(Spalte_GP,MATCH(Dashboard_Basis!HT$2&Dashboard_Basis!HT$1&Dashboard_Basis!$A3&Auswahl_Bundesland,Basisdaten!$A:$A,0))) -> 17321 | HU3: =IF(ISERROR(INDEX(Spalte_GP,MATCH(Dashboard_Basis!HU$2&Dashboard_Basis!HU$1&Dashboard_Basis!$A3&Auswahl_Bundesland,Basisdaten!$A:$A,0))),"-",INDEX(Spalte_GP,MATCH(Dashboard_Basis!HU$2&Dashboard_Basis!HU$1&Dashboard_Basis!$A3&Auswahl_Bundesland,Basisdaten!$A:$A,0))) -> 17373 | HV3: =IF(ISERROR(INDEX(Spalte_GP,MATCH(Dashboard_Basis!HV$2&Dashboard_Basis!HV$1&Dashboard_Basis!$A3&Auswahl_Bundesland,Basisdaten!$A:$A,0))),"-",INDEX(Spalte_GP,MATCH(Dashboard_Basis!HV$2&Dashboard_Basis!HV$1&Dashboard_Basis!$A3&Auswahl_Bundesland,Basisdaten!$A:$A,0))) -> 17328 | HW3: =IF(ISERROR(INDEX(Spalte_GP,MATCH(Dashboard_Basis!HW$2&Dashboard_Basis!HW$1&Dashboard_Basis!$A3&Auswahl_Bundesland,Basisdaten!$A:$A,0))),"-",INDEX(Spalte_GP,MATCH(Dashboard_Basis!HW$2&Dashboard_Basis!HW$1&Dashboard_Basis!$A3&Auswahl_Bundesland,Basisdaten!$A:$A,0))) -> 17576 | HX3: =IF(ISERROR(INDEX(Spalte_GP,MATCH(Dashboard_Basis!HX$2&Dashboard_Basis!HX$1&Dashboard_Basis!$A3&Auswahl_Bundesland,Basisdaten!$A:$A,0))),"-",INDEX(Spalte_GP,MATCH(Dashboard_Basis!HX$2&Dashboard_Basis!HX$1&Dashboard_Basis!$A3&Auswahl_Bundesland,Basisdaten!$A:$A,0))) -> - | HY3: =IF(ISERROR(INDEX(Spalte_GP,MATCH(Dashboard_Basis!HY$2&Dashboard_Basis!HY$1&Dashboard_Basis!$A3&Auswahl_Bundesland,Basisdaten!$A:$A,0))),"-",INDEX(Spalte_GP,MATCH(Dashboard_Basis!HY$2&Dashboard_Basis!HY$1&Dashboard_Basis!$A3&Auswahl_Bundesland,Basisdaten!$A:$A,0))) -> - | HZ3: =IF(ISERROR(INDEX(Spalte_GP,MATCH(Dashboard_Basis!HZ$2&Dashboard_Basis!HZ$1&Dashboard_Basis!$A3&Auswahl_Bundesland,Basisdaten!$A:$A,0))),"-",INDEX(Spalte_GP,MATCH(Dashboard_Basis!HZ$2&Dashboard_Basis!HZ$1&Dashboard_Basis!$A3&Auswahl_Bundesland,Basisdaten!$A:$A,0))) -> - | IA3: =IF(COUNT(HO3:HQ3)=3,SUM(HO3:HQ3)/3,"-") -> 17205.66667 | IB3: =IF(COUNT(HR3:HT3)=3,SUM(HR3:HT3)/3,"-") -> 17289 | IC3: =IF(COUNT(HU3:HW3)=3,SUM(HU3:HW3)/3,"-") -> 17425.66667 | ID3: =IF(COUNT(HX3:HZ3)=3,SUM(HX3:HZ3)/3,"-") -> - | IE3: =IF(COUNT(IB3,IA3)=2,SUM(IB3,IA3)/2,"-") -> 17247.33333 | IF3: =IF(COUNT(IA3,IC3,IB3)=3,SUM(IA3,IC3,IB3)/3,"-") -> 17306.77778 | IG3: =IF(COUNT(OFFSET(HO3,,,,Anzahl_Monate))=Anzahl_Monate,SUM(OFFSET(HO3,,,,Anzahl_Monate))/Anzahl_Monate,"-") -> 17176 | IH3: =IF(COUNT(ID3,IC3,IB3,IA3)=4,SUM(ID3,IC3,IB3,IA3)/4,"-") -> - | II3: =IF(ISERROR(INDEX(Spalte_GP,MATCH(Dashboard_Basis!II$2&Dashboard_Basis!II$1&Dashboard_Basis!$A3&Auswahl_Bundesland,Basisdaten!$A:$A,0))),"-",INDEX(Spalte_GP,MATCH(Dashboard_Basis!II$2&Dashboard_Basis!II$1&Dashboard_Basis!$A3&Auswahl_Bundesland,Basisdaten!$A:$A,0))) -> - | IJ3: =IF(ISERROR(INDEX(Spalte_GP,MATCH(Dashboard_Basis!IJ$2&Dashboard_Basis!IJ$1&Dashboard_Basis!$A3&Auswahl_Bundesland,Basisdaten!$A:$A,0))),"-",INDEX(Spalte_GP,MATCH(Dashboard_Basis!IJ$2&Dashboard_Basis!IJ$1&Dashboard_Basis!$A3&Auswahl_Bundesland,Basisdaten!$A:$A,0))) -> - | IK3: =IF(ISERROR(INDEX(Spalte_GP,MATCH(Dashboard_Basis!IK$2&Dashboard_Basis!IK$1&Dashboard_Basis!$A3&Auswahl_Bundesland,Basisdaten!$A:$A,0))),"-",INDEX(Spalte_GP,MATCH(Dashboard_Basis!IK$2&Dashboard_Basis!IK$1&Dashboard_Basis!$A3&Auswahl_Bundesland,Basisdaten!$A:$A,0))) -> - | IL3: =IF(ISERROR(INDEX(Spalte_GP,MATCH(Dashboard_Basis!IL$2&Dashboard_Basis!IL$1&Dashboard_Basis!$A3&Auswahl_Bundesland,Basisdaten!$A:$A,0))),"-",INDEX(Spalte_GP,MATCH(Dashboard_Basis!IL$2&Dashboard_Basis!IL$1&Dashboard_Basis!$A3&Auswahl_Bundesland,Basisdaten!$A:$A,0))) -> - | IM3: =IF(ISERROR(INDEX(Spalte_GP,MATCH(Dashboard_Basis!IM$2&Dashboard_Basis!IM$1&Dashboard_Basis!$A3&Auswahl_Bundesland,Basisdaten!$A:$A,0))),"-",INDEX(Spalte_GP,MATCH(Dashboard_Basis!IM$2&Dashboard_Basis!IM$1&Dashboard_Basis!$A3&Auswahl_Bundesland,Basisdaten!$A:$A,0))) -> - | IN3: =IF(ISERROR(INDEX(Spalte_GP,MATCH(Dashboard_Basis!IN$2&Dashboard_Basis!IN$1&Dashboard_Basis!$A3&Auswahl_Bundesland,Basisdaten!$A:$A,0))),"-",INDEX(Spalte_GP,MATCH(Dashboard_Basis!IN$2&Dashboard_Basis!IN$1&Dashboard_Basis!$A3&Auswahl_Bundesland,Basisdaten!$A:$A,0))) -> - | IO3: =IF(ISERROR(INDEX(Spalte_GP,MATCH(Dashboard_Basis!IO$2&Dashboard_Basis!IO$1&Dashboard_Basis!$A3&Auswahl_Bundesland,Basisdaten!$A:$A,0))),"-",INDEX(Spalte_GP,MATCH(Dashboard_Basis!IO$2&Dashboard_Basis!IO$1&Dashboard_Basis!$A3&Auswahl_Bundesland,Basisdaten!$A:$A,0))) -> - | IP3: =IF(ISERROR(INDEX(Spalte_GP,MATCH(Dashboard_Basis!IP$2&Dashboard_Basis!IP$1&Dashboard_Basis!$A3&Auswahl_Bundesland,Basisdaten!$A:$A,0))),"-",INDEX(Spalte_GP,MATCH(Dashboard_Basis!IP$2&Dashboard_Basis!IP$1&Dashboard_Basis!$A3&Auswahl_Bundesland,Basisdaten!$A:$A,0))) -> - | IQ3: =IF(ISERROR(INDEX(Spalte_GP,MATCH(Dashboard_Basis!IQ$2&Dashboard_Basis!IQ$1&Dashboard_Basis!$A3&Auswahl_Bundesland,Basisdaten!$A:$A,0))),"-",INDEX(Spalte_GP,MATCH(Dashboard_Basis!IQ$2&Dashboard_Basis!IQ$1&Dashboard_Basis!$A3&Auswahl_Bundesland,Basisdaten!$A:$A,0))) -> - | IR3: =IF(ISERROR(INDEX(Spalte_GP,MATCH(Dashboard_Basis!IR$2&Dashboard_Basis!IR$1&Dashboard_Basis!$A3&Auswahl_Bundesland,Basisdaten!$A:$A,0))),"-",INDEX(Spalte_GP,MATCH(Dashboard_Basis!IR$2&Dashboard_Basis!IR$1&Dashboard_Basis!$A3&Auswahl_Bundesland,Basisdaten!$A:$A,0))) -> - | IS3: =IF(ISERROR(INDEX(Spalte_GP,MATCH(Dashboard_Basis!IS$2&Dashboard_Basis!IS$1&Dashboard_Basis!$A3&Auswahl_Bundesland,Basisdaten!$A:$A,0))),"-",INDEX(Spalte_GP,MATCH(Dashboard_Basis!IS$2&Dashboard_Basis!IS$1&Dashboard_Basis!$A3&Auswahl_Bundesland,Basisdaten!$A:$A,0))) -> - | IT3: =IF(ISERROR(INDEX(Spalte_GP,MATCH(Dashboard_Basis!IT$2&Dashboard_Basis!IT$1&Dashboard_Basis!$A3&Auswahl_Bundesland,Basisdaten!$A:$A,0))),"-",INDEX(Spalte_GP,MATCH(Dashboard_Basis!IT$2&Dashboard_Basis!IT$1&Dashboard_Basis!$A3&Auswahl_Bundesland,Basisdaten!$A:$A,0))) -> - | IU3: =IF(COUNT(II3:IK3)=3,SUM(II3:IK3)/3,"-") -> - | IV3: =IF(COUNT(IL3:IN3)=3,SUM(IL3:IN3)/3,"-") -> - | IW3: =IF(COUNT(IO3:IQ3)=3,SUM(IO3:IQ3)/3,"-") -> - | IX3: =IF(COUNT(IR3:IT3)=3,SUM(IR3:IT3)/3,"-") -> - | IY3: =IF(COUNT(IV3,IU3)=2,SUM(IV3,IU3)/2,"-") -> - | IZ3: =IF(COUNT(IU3,IW3,IV3)=3,SUM(IU3,IW3,IV3)/3,"-") -> - | JA3: =IF(COUNT(OFFSET(II3,,,,Anzahl_Monate))=Anzahl_Monate,SUM(OFFSET(II3,,,,Anzahl_Monate))/Anzahl_Monate,"-") -> - | JB3: =IF(COUNT(IX3,IW3,IV3,IU3)=4,SUM(IX3,IW3,IV3,IU3)/4,"-") -> -
A4: 2020 | B4: Mineralölindustrie | C4: =IF(ISERROR(INDEX(Spalte_GP,MATCH(Dashboard_Basis!C$2&Dashboard_Basis!C$1&Dashboard_Basis!$A4&Auswahl_Bundesland,Basisdaten!$A:$A,0))),"-",INDEX(Spalte_GP,MATCH(Dashboard_Basis!C$2&Dashboard_Basis!C$1&Dashboard_Basis!$A4&Auswahl_Bundesland,Basisdaten!$A:$A,0))) -> 2347 | D4: =IF(ISERROR(INDEX(Spalte_GP,MATCH(Dashboard_Basis!D$2&Dashboard_Basis!D$1&Dashboard_Basis!$A4&Auswahl_Bundesland,Basisdaten!$A:$A,0))),"-",INDEX(Spalte_GP,MATCH(Dashboard_Basis!D$2&Dashboard_Basis!D$1&Dashboard_Basis!$A4&Auswahl_Bundesland,Basisdaten!$A:$A,0))) -> 2343 | E4: =IF(ISERROR(INDEX(Spalte_GP,MATCH(Dashboard_Basis!E$2&Dashboard_Basis!E$1&Dashboard_Basis!$A4&Auswahl_Bundesland,Basisdaten!$A:$A,0))),"-",INDEX(Spalte_GP,MATCH(Dashboard_Basis!E$2&Dashboard_Basis!E$1&Dashboard_Basis!$A4&Auswahl_Bundesland,Basisdaten!$A:$A,0))) -> 2340 | F4: =IF(ISERROR(INDEX(Spalte_GP,MATCH(Dashboard_Basis!F$2&Dashboard_Basis!F$1&Dashboard_Basis!$A4&Auswahl_Bundesland,Basisdaten!$A:$A,0))),"-",INDEX(Spalte_GP,MATCH(Dashboard_Basis!F$2&Dashboard_Basis!F$1&Dashboard_Basis!$A4&Auswahl_Bundesland,Basisdaten!$A:$A,0))) -> 2372 | G4: =IF(ISERROR(INDEX(Spalte_GP,MATCH(Dashboard_Basis!G$2&Dashboard_Basis!G$1&Dashboard_Basis!$A4&Auswahl_Bundesland,Basisdaten!$A:$A,0))),"-",INDEX(Spalte_GP,MATCH(Dashboard_Basis!G$2&Dashboard_Basis!G$1&Dashboard_Basis!$A4&Auswahl_Bundesland,Basisdaten!$A:$A,0))) -> 2341 | H4: =IF(ISERROR(INDEX(Spalte_GP,MATCH(Dashboard_Basis!H$2&Dashboard_Basis!H$1&Dashboard_Basis!$A4&Auswahl_Bundesland,Basisdaten!$A:$A,0))),"-",INDEX(Spalte_GP,MATCH(Dashboard_Basis!H$2&Dashboard_Basis!H$1&Dashboard_Basis!$A4&Auswahl_Bundesland,Basisdaten!$A:$A,0))) -> 2335 | I4: =IF(ISERROR(INDEX(Spalte_GP,MATCH(Dashboard_Basis!I$2&Dashboard_Basis!I$1&Dashboard_Basis!$A4&Auswahl_Bundesland,Basisdaten!$A:$A,0))),"-",INDEX(Spalte_GP,MATCH(Dashboard_Basis!I$2&Dashboard_Basis!I$1&Dashboard_Basis!$A4&Auswahl_Bundesland,Basisdaten!$A:$A,0))) -> 2358 | J4: =IF(ISERROR(INDEX(Spalte_GP,MATCH(Dashboard_Basis!J$2&Dashboard_Basis!J$1&Dashboard_Basis!$A4&Auswahl_Bundesland,Basisdaten!$A:$A,0))),"-",INDEX(Spalte_GP,MATCH(Dashboard_Basis!J$2&Dashboard_Basis!J$1&Dashboard_Basis!$A4&Auswahl_Bundesland,Basisdaten!$A:$A,0))) -> 2341 | K4: =IF(ISERROR(INDEX(Spalte_GP,MATCH(Dashboard_Basis!K$2&Dashboard_Basis!K$1&Dashboard_Basis!$A4&Auswahl_Bundesland,Basisdaten!$A:$A,0))),"-",INDEX(Spalte_GP,MATCH(Dashboard_Basis!K$2&Dashboard_Basis!K$1&Dashboard_Basis!$A4&Auswahl_Bundesland,Basisdaten!$A:$A,0))) -> 2354 | L4: =IF(ISERROR(INDEX(Spalte_GP,MATCH(Dashboard_Basis!L$2&Dashboard_Basis!L$1&Dashboard_Basis!$A4&Auswahl_Bundesland,Basisdaten!$A:$A,0))),"-",INDEX(Spalte_GP,MATCH(Dashboard_Basis!L$2&Dashboard_Basis!L$1&Dashboard_Basis!$A4&Auswahl_Bundesland,Basisdaten!$A:$A,0))) -> 2341 | M4: =IF(ISERROR(INDEX(Spalte_GP,MATCH(Dashboard_Basis!M$2&Dashboard_Basis!M$1&Dashboard_Basis!$A4&Auswahl_Bundesland,Basisdaten!$A:$A,0))),"-",INDEX(Spalte_GP,MATCH(Dashboard_Basis!M$2&Dashboard_Basis!M$1&Dashboard_Basis!$A4&Auswahl_Bundesland,Basisdaten!$A:$A,0))) -> 2332 | N4: =IF(ISERROR(INDEX(Spalte_GP,MATCH(Dashboard_Basis!N$2&Dashboard_Basis!N$1&Dashboard_Basis!$A4&Auswahl_Bundesland,Basisdaten!$A:$A,0))),"-",INDEX(Spalte_GP,MATCH(Dashboard_Basis!N$2&Dashboard_Basis!N$1&Dashboard_Basis!$A4&Auswahl_Bundesland,Basisdaten!$A:$A,0))) -> 2259 | O4: 2343.333333 | P4: 2349.333333 | Q4: 2351 | R4: 2310.666667 | S4: 2346.333333 | T4: 2347.888889 | U4: =IF(COUNT(OFFSET(C4,,,,Anzahl_Monate))=Anzahl_Monate,SUM(OFFSET(C4,,,,Anzahl_Monate))/Anzahl_Monate,"-") -> 2347 | V4: 2338.583333 | W4: =IF(ISERROR(INDEX(Spalte_GP,MATCH(Dashboard_Basis!W$2&Dashboard_Basis!W$1&Dashboard_Basis!$A4&Auswahl_Bundesland,Basisdaten!$A:$A,0))),"-",INDEX(Spalte_GP,MATCH(Dashboard_Basis!W$2&Dashboard_Basis!W$1&Dashboard_Basis!$A4&Auswahl_Bundesland,Basisdaten!$A:$A,0))) -> 2261 | X4: =IF(ISERROR(INDEX(Spalte_GP,MATCH(Dashboard_Basis!X$2&Dashboard_Basis!X$1&Dashboard_Basis!$A4&Auswahl_Bundesland,Basisdaten!$A:$A,0))),"-",INDEX(Spalte_GP,MATCH(Dashboard_Basis!X$2&Dashboard_Basis!X$1&Dashboard_Basis!$A4&Auswahl_Bundesland,Basisdaten!$A:$A,0))) -> 2273 | Y4: =IF(ISERROR(INDEX(Spalte_GP,MATCH(Dashboard_Basis!Y$2&Dashboard_Basis!Y$1&Dashboard_Basis!$A4&Auswahl_Bundesland,Basisdaten!$A:$A,0))),"-",INDEX(Spalte_GP,MATCH(Dashboard_Basis!Y$2&Dashboard_Basis!Y$1&Dashboard_Basis!$A4&Auswahl_Bundesland,Basisdaten!$A:$A,0))) -> 2268 | Z4: =IF(ISERROR(INDEX(Spalte_GP,MATCH(Dashboard_Basis!Z$2&Dashboard_Basis!Z$1&Dashboard_Basis!$A4&Auswahl_Bundesland,Basisdaten!$A:$A,0))),"-",INDEX(Spalte_GP,MATCH(Dashboard_Basis!Z$2&Dashboard_Basis!Z$1&Dashboard_Basis!$A4&Auswahl_Bundesland,Basisdaten!$A:$A,0))) -> 2306 | AA4: =IF(ISERROR(INDEX(Spalte_GP,MATCH(Dashboard_Basis!AA$2&Dashboard_Basis!AA$1&Dashboard_Basis!$A4&Auswahl_Bundesland,Basisdaten!$A:$A,0))),"-",INDEX(Spalte_GP,MATCH(Dashboard_Basis!AA$2&Dashboard_Basis!AA$1&Dashboard_Basis!$A4&Auswahl_Bundesland,Basisdaten!$A:$A,0))) -> 2268 | AB4: =IF(ISERROR(INDEX(Spalte_GP,MATCH(Dashboard_Basis!AB$2&Dashboard_Basis!AB$1&Dashboard_Basis!$A4&Auswahl_Bundesland,Basisdaten!$A:$A,0))),"-",INDEX(Spalte_GP,MATCH(Dashboard_Basis!AB$2&Dashboard_Basis!AB$1&Dashboard_Basis!$A4&Auswahl_Bundesland,Basisdaten!$A:$A,0))) -> 2264 | AC4: =IF(ISERROR(INDEX(Spalte_GP,MATCH(Dashboard_Basis!AC$2&Dashboard_Basis!AC$1&Dashboard_Basis!$A4&Auswahl_Bundesland,Basisdaten!$A:$A,0))),"-",INDEX(Spalte_GP,MATCH(Dashboard_Basis!AC$2&Dashboard_Basis!AC$1&Dashboard_Basis!$A4&Auswahl_Bundesland,Basisdaten!$A:$A,0))) -> 2275 | AD4: =IF(ISERROR(INDEX(Spalte_GP,MATCH(Dashboard_Basis!AD$2&Dashboard_Basis!AD$1&Dashboard_Basis!$A4&Auswahl_Bundesland,Basisdaten!$A:$A,0))),"-",INDEX(Spalte_GP,MATCH(Dashboard_Basis!AD$2&Dashboard_Basis!AD$1&Dashboard_Basis!$A4&Auswahl_Bundesland,Basisdaten!$A:$A,0))) -> 2264 | AE4: =IF(ISERROR(INDEX(Spalte_GP,MATCH(Dashboard_Basis!AE$2&Dashboard_Basis!AE$1&Dashboard_Basis!$A4&Auswahl_Bundesland,Basisdaten!$A:$A,0))),"-",INDEX(Spalte_GP,MATCH(Dashboard_Basis!AE$2&Dashboard_Basis!AE$1&Dashboard_Basis!$A4&Auswahl_Bundesland,Basisdaten!$A:$A,0))) -> 2276 | AF4: =IF(ISERROR(INDEX(Spalte_GP,MATCH(Dashboard_Basis!AF$2&Dashboard_Basis!AF$1&Dashboard_Basis!$A4&Auswahl_Bundesland,Basisdaten!$A:$A,0))),"-",INDEX(Spalte_GP,MATCH(Dashboard_Basis!AF$2&Dashboard_Basis!AF$1&Dashboard_Basis!$A4&Auswahl_Bundesland,Basisdaten!$A:$A,0))) -> 2264 | AG4: =IF(ISERROR(INDEX(Spalte_GP,MATCH(Dashboard_Basis!AG$2&Dashboard_Basis!AG$1&Dashboard_Basis!$A4&Auswahl_Bundesland,Basisdaten!$A:$A,0))),"-",INDEX(Spalte_GP,MATCH(Dashboard_Basis!AG$2&Dashboard_Basis!AG$1&Dashboard_Basis!$A4&Auswahl_Bundesland,Basisdaten!$A:$A,0))) -> 2246 | AH4: =IF(ISERROR(INDEX(Spalte_GP,MATCH(Dashboard_Basis!AH$2&Dashboard_Basis!AH$1&Dashboard_Basis!$A4&Auswahl_Bundesland,Basisdaten!$A:$A,0))),"-",INDEX(Spalte_GP,MATCH(Dashboard_Basis!AH$2&Dashboard_Basis!AH$1&Dashboard_Basis!$A4&Auswahl_Bundesland,Basisdaten!$A:$A,0))) -> 2178 | AI4: 2267.333333 | AJ4: 2279.333333 | AK4: 2271.666667 | AL4: 2229.333333 | AM4: 2273.333333 | AN4: 2272.777778 | AO4: =IF(COUNT(OFFSET(W4,,,,Anzahl_Monate))=Anzahl_Monate,SUM(OFFSET(W4,,,,Anzahl_Monate))/Anzahl_Monate,"-") -> 2261 | AP4: 2261.916667 | AQ4: =IF(ISERROR(INDEX(Spalte_GP,MATCH(Dashboard_Basis!AQ$2&Dashboard_Basis!AQ$1&Dashboard_Basis!$A4&Auswahl_Bundesland,Basisdaten!$A:$A,0))),"-",INDEX(Spalte_GP,MATCH(Dashboard_Basis!AQ$2&Dashboard_Basis!AQ$1&Dashboard_Basis!$A4&Auswahl_Bundesland,Basisdaten!$A:$A,0))) -> 2176 | AR4: =IF(ISERROR(INDEX(Spalte_GP,MATCH(Dashboard_Basis!AR$2&Dashboard_Basis!AR$1&Dashboard_Basis!$A4&Auswahl_Bundesland,Basisdaten!$A:$A,0))),"-",INDEX(Spalte_GP,MATCH(Dashboard_Basis!AR$2&Dashboard_Basis!AR$1&Dashboard_Basis!$A4&Auswahl_Bundesland,Basisdaten!$A:$A,0))) -> 2174 | AS4: =IF(ISERROR(INDEX(Spalte_GP,MATCH(Dashboard_Basis!AS$2&Dashboard_Basis!AS$1&Dashboard_Basis!$A4&Auswahl_Bundesland,Basisdaten!$A:$A,0))),"-",INDEX(Spalte_GP,MATCH(Dashboard_Basis!AS$2&Dashboard_Basis!AS$1&Dashboard_Basis!$A4&Auswahl_Bundesland,Basisdaten!$A:$A,0))) -> 2172 | AT4: =IF(ISERROR(INDEX(Spalte_GP,MATCH(Dashboard_Basis!AT$2&Dashboard_Basis!AT$1&Dashboard_Basis!$A4&Auswahl_Bundesland,Basisdaten!$A:$A,0))),"-",INDEX(Spalte_GP,MATCH(Dashboard_Basis!AT$2&Dashboard_Basis!AT$1&Dashboard_Basis!$A4&Auswahl_Bundesland,Basisdaten!$A:$A,0))) -> 2204 | AU4: =IF(ISERROR(INDEX(Spalte_GP,MATCH(Dashboard_Basis!AU$2&Dashboard_Basis!AU$1&Dashboard_Basis!$A4&Auswahl_Bundesland,Basisdaten!$A:$A,0))),"-",INDEX(Spalte_GP,MATCH(Dashboard_Basis!AU$2&Dashboard_Basis!AU$1&Dashboard_Basis!$A4&Auswahl_Bundesland,Basisdaten!$A:$A,0))) -> 2172 | AV4: =IF(ISERROR(INDEX(Spalte_GP,MATCH(Dashboard_Basis!AV$2&Dashboard_Basis!AV$1&Dashboard_Basis!$A4&Auswahl_Bundesland,Basisdaten!$A:$A,0))),"-",INDEX(Spalte_GP,MATCH(Dashboard_Basis!AV$2&Dashboard_Basis!AV$1&Dashboard_Basis!$A4&Auswahl_Bundesland,Basisdaten!$A:$A,0))) -> 2156 | AW4: =IF(ISERROR(INDEX(Spalte_GP,MATCH(Dashboard_Basis!AW$2&Dashboard_Basis!AW$1&Dashboard_Basis!$A4&Auswahl_Bundesland,Basisdaten!$A:$A,0))),"-",INDEX(Spalte_GP,MATCH(Dashboard_Basis!AW$2&Dashboard_Basis!AW$1&Dashboard_Basis!$A4&Auswahl_Bundesland,Basisdaten!$A:$A,0))) -> 2167 | AX4: =IF(ISERROR(INDEX(Spalte_GP,MATCH(Dashboard_Basis!AX$2&Dashboard_Basis!AX$1&Dashboard_Basis!$A4&Auswahl_Bundesland,Basisdaten!$A:$A,0))),"-",INDEX(Spalte_GP,MATCH(Dashboard_Basis!AX$2&Dashboard_Basis!AX$1&Dashboard_Basis!$A4&Auswahl_Bundesland,Basisdaten!$A:$A,0))) -> 2166 | AY4: =IF(ISERROR(INDEX(Spalte_GP,MATCH(Dashboard_Basis!AY$2&Dashboard_Basis!AY$1&Dashboard_Basis!$A4&Auswahl_Bundesland,Basisdaten!$A:$A,0))),"-",INDEX(Spalte_GP,MATCH(Dashboard_Basis!AY$2&Dashboard_Basis!AY$1&Dashboard_Basis!$A4&Auswahl_Bundesland,Basisdaten!$A:$A,0))) -> 2196 | AZ4: =IF(ISERROR(INDEX(Spalte_GP,MATCH(Dashboard_Basis!AZ$2&Dashboard_Basis!AZ$1&Dashboard_Basis!$A4&Auswahl_Bundesland,Basisdaten!$A:$A,0))),"-",INDEX(Spalte_GP,MATCH(Dashboard_Basis!AZ$2&Dashboard_Basis!AZ$1&Dashboard_Basis!$A4&Auswahl_Bundesland,Basisdaten!$A:$A,0))) -> 2184 | BA4: =IF(ISERROR(INDEX(Spalte_GP,MATCH(Dashboard_Basis!BA$2&Dashboard_Basis!BA$1&Dashboard_Basis!$A4&Auswahl_Bundesland,Basisdaten!$A:$A,0))),"-",INDEX(Spalte_GP,MATCH(Dashboard_Basis!BA$2&Dashboard_Basis!BA$1&Dashboard_Basis!$A4&Auswahl_Bundesland,Basisdaten!$A:$A,0))) -> 2187 | BB4: =IF(ISERROR(INDEX(Spalte_GP,MATCH(Dashboard_Basis!BB$2&Dashboard_Basis!BB$1&Dashboard_Basis!$A4&Auswahl_Bundesland,Basisdaten!$A:$A,0))),"-",INDEX(Spalte_GP,MATCH(Dashboard_Basis!BB$2&Dashboard_Basis!BB$1&Dashboard_Basis!$A4&Auswahl_Bundesland,Basisdaten!$A:$A,0))) -> 2174 | BC4: 2174 | BD4: 2177.333333 | BE4: 2176.333333 | BF4: 2181.666667 | BG4: 2175.666667 | BH4: 2175.888889 | BI4: =IF(COUNT(OFFSET(AQ4,,,,Anzahl_Monate))=Anzahl_Monate,SUM(OFFSET(AQ4,,,,Anzahl_Monate))/Anzahl_Monate,"-") -> 2176 | BJ4: 2177.333333 | BK4: =IF(ISERROR(INDEX(Spalte_GP,MATCH(Dashboard_Basis!BK$2&Dashboard_Basis!BK$1&Dashboard_Basis!$A4&Auswahl_Bundesland,Basisdaten!$A:$A,0))),"-",INDEX(Spalte_GP,MATCH(Dashboard_Basis!BK$2&Dashboard_Basis!BK$1&Dashboard_Basis!$A4&Auswahl_Bundesland,Basisdaten!$A:$A,0))) -> 2265 | BL4: =IF(ISERROR(INDEX(Spalte_GP,MATCH(Dashboard_Basis!BL$2&Dashboard_Basis!BL$1&Dashboard_Basis!$A4&Auswahl_Bundesland,Basisdaten!$A:$A,0))),"-",INDEX(Spalte_GP,MATCH(Dashboard_Basis!BL$2&Dashboard_Basis!BL$1&Dashboard_Basis!$A4&Auswahl_Bundesland,Basisdaten!$A:$A,0))) -> 2256 | BM4: =IF(ISERROR(INDEX(Spalte_GP,MATCH(Dashboard_Basis!BM$2&Dashboard_Basis!BM$1&Dashboard_Basis!$A4&Auswahl_Bundesland,Basisdaten!$A:$A,0))),"-",INDEX(Spalte_GP,MATCH(Dashboard_Basis!BM$2&Dashboard_Basis!BM$1&Dashboard_Basis!$A4&Auswahl_Bundesland,Basisdaten!$A:$A,0))) -> 2264 | BN4: =IF(ISERROR(INDEX(Spalte_GP,MATCH(Dashboard_Basis!BN$2&Dashboard_Basis!BN$1&Dashboard_Basis!$A4&Auswahl_Bundesland,Basisdaten!$A:$A,0))),"-",INDEX(Spalte_GP,MATCH(Dashboard_Basis!BN$2&Dashboard_Basis!BN$1&Dashboard_Basis!$A4&Auswahl_Bundesland,Basisdaten!$A:$A,0))) -> 2221 | BO4: =IF(ISERROR(INDEX(Spalte_GP,MATCH(Dashboard_Basis!BO$2&Dashboard_Basis!BO$1&Dashboard_Basis!$A4&Auswahl_Bundesland,Basisdaten!$A:$A,0))),"-",INDEX(Spalte_GP,MATCH(Dashboard_Basis!BO$2&Dashboard_Basis!BO$1&Dashboard_Basis!$A4&Auswahl_Bundesland,Basisdaten!$A:$A,0))) -> 2204 | BP4: =IF(ISERROR(INDEX(Spalte_GP,MATCH(Dashboard_Basis!BP$2&Dashboard_Basis!BP$1&Dashboard_Basis!$A4&Auswahl_Bundesland,Basisdaten!$A:$A,0))),"-",INDEX(Spalte_GP,MATCH(Dashboard_Basis!BP$2&Dashboard_Basis!BP$1&Dashboard_Basis!$A4&Auswahl_Bundesland,Basisdaten!$A:$A,0))) -> 2220 | BQ4: =IF(ISERROR(INDEX(Spalte_GP,MATCH(Dashboard_Basis!BQ$2&Dashboard_Basis!BQ$1&Dashboard_Basis!$A4&Auswahl_Bundesland,Basisdaten!$A:$A,0))),"-",INDEX(Spalte_GP,MATCH(Dashboard_Basis!BQ$2&Dashboard_Basis!BQ$1&Dashboard_Basis!$A4&Auswahl_Bundesland,Basisdaten!$A:$A,0))) -> 2224 | BR4: =IF(ISERROR(INDEX(Spalte_GP,MATCH(Dashboard_Basis!BR$2&Dashboard_Basis!BR$1&Dashboard_Basis!$A4&Auswahl_Bundesland,Basisdaten!$A:$A,0))),"-",INDEX(Spalte_GP,MATCH(Dashboard_Basis!BR$2&Dashboard_Basis!BR$1&Dashboard_Basis!$A4&Auswahl_Bundesland,Basisdaten!$A:$A,0))) -> 2209 | BS4: =IF(ISERROR(INDEX(Spalte_GP,MATCH(Dashboard_Basis!BS$2&Dashboard_Basis!BS$1&Dashboard_Basis!$A4&Auswahl_Bundesland,Basisdaten!$A:$A,0))),"-",INDEX(Spalte_GP,MATCH(Dashboard_Basis!BS$2&Dashboard_Basis!BS$1&Dashboard_Basis!$A4&Auswahl_Bundesland,Basisdaten!$A:$A,0))) -> 2230 | BT4: =IF(ISERROR(INDEX(Spalte_GP,MATCH(Dashboard_Basis!BT$2&Dashboard_Basis!BT$1&Dashboard_Basis!$A4&Auswahl_Bundesland,Basisdaten!$A:$A,0))),"-",INDEX(Spalte_GP,MATCH(Dashboard_Basis!BT$2&Dashboard_Basis!BT$1&Dashboard_Basis!$A4&Auswahl_Bundesland,Basisdaten!$A:$A,0))) -> 2218 | BU4: =IF(ISERROR(INDEX(Spalte_GP,MATCH(Dashboard_Basis!BU$2&Dashboard_Basis!BU$1&Dashboard_Basis!$A4&Auswahl_Bundesland,Basisdaten!$A:$A,0))),"-",INDEX(Spalte_GP,MATCH(Dashboard_Basis!BU$2&Dashboard_Basis!BU$1&Dashboard_Basis!$A4&Auswahl_Bundesland,Basisdaten!$A:$A,0))) -> 2213 | BV4: =IF(ISERROR(INDEX(Spalte_GP,MATCH(Dashboard_Basis!BV$2&Dashboard_Basis!BV$1&Dashboard_Basis!$A4&Auswahl_Bundesland,Basisdaten!$A:$A,0))),"-",INDEX(Spalte_GP,MATCH(Dashboard_Basis!BV$2&Dashboard_Basis!BV$1&Dashboard_Basis!$A4&Auswahl_Bundesland,Basisdaten!$A:$A,0))) -> 2197 | BW4: 2261.666667 | BX4: 2215 | BY4: 2221 | BZ4: 2209.333333 | CA4: 2238.333333 | CB4: 2232.555556 | CC4: =IF(COUNT(OFFSET(BK4,,,,Anzahl_Monate))=Anzahl_Monate,SUM(OFFSET(BK4,,,,Anzahl_Monate))/Anzahl_Monate,"-") -> 2265 | CD4: 2226.75 | CE4: =IF(ISERROR(INDEX(Spalte_GP,MATCH(Dashboard_Basis!CE$2&Dashboard_Basis!CE$1&Dashboard_Basis!$A4&Auswahl_Bundesland,Basisdaten!$A:$A,0))),"-",INDEX(Spalte_GP,MATCH(Dashboard_Basis!CE$2&Dashboard_Basis!CE$1&Dashboard_Basis!$A4&Auswahl_Bundesland,Basisdaten!$A:$A,0))) -> 2339 | CF4: =IF(ISERROR(INDEX(Spalte_GP,MATCH(Dashboard_Basis!CF$2&Dashboard_Basis!CF$1&Dashboard_Basis!$A4&Auswahl_Bundesland,Basisdaten!$A:$A,0))),"-",INDEX(Spalte_GP,MATCH(Dashboard_Basis!CF$2&Dashboard_Basis!CF$1&Dashboard_Basis!$A4&Auswahl_Bundesland,Basisdaten!$A:$A,0))) -> 2339 | CG4: =IF(ISERROR(INDEX(Spalte_GP,MATCH(Dashboard_Basis!CG$2&Dashboard_Basis!CG$1&Dashboard_Basis!$A4&Auswahl_Bundesland,Basisdaten!$A:$A,0))),"-",INDEX(Spalte_GP,MATCH(Dashboard_Basis!CG$2&Dashboard_Basis!CG$1&Dashboard_Basis!$A4&Auswahl_Bundesland,Basisdaten!$A:$A,0))) -> 2346 | CH4: =IF(ISERROR(INDEX(Spalte_GP,MATCH(Dashboard_Basis!CH$2&Dashboard_Basis!CH$1&Dashboard_Basis!$A4&Auswahl_Bundesland,Basisdaten!$A:$A,0))),"-",INDEX(Spalte_GP,MATCH(Dashboard_Basis!CH$2&Dashboard_Basis!CH$1&Dashboard_Basis!$A4&Auswahl_Bundesland,Basisdaten!$A:$A,0))) -> 2368 | CI4: =IF(ISERROR(INDEX(Spalte_GP,MATCH(Dashboard_Basis!CI$2&Dashboard_Basis!CI$1&Dashboard_Basis!$A4&Auswahl_Bundesland,Basisdaten!$A:$A,0))),"-",INDEX(Spalte_GP,MATCH(Dashboard_Basis!CI$2&Dashboard_Basis!CI$1&Dashboard_Basis!$A4&Auswahl_Bundesland,Basisdaten!$A:$A,0))) -> 2338 | CJ4: =IF(ISERROR(INDEX(Spalte_GP,MATCH(Dashboard_Basis!CJ$2&Dashboard_Basis!CJ$1&Dashboard_Basis!$A4&Auswahl_Bundesland,Basisdaten!$A:$A,0))),"-",INDEX(Spalte_GP,MATCH(Dashboard_Basis!CJ$2&Dashboard_Basis!CJ$1&Dashboard_Basis!$A4&Auswahl_Bundesland,Basisdaten!$A:$A,0))) -> 2343 | CK4: =IF(ISERROR(INDEX(Spalte_GP,MATCH(Dashboard_Basis!CK$2&Dashboard_Basis!CK$1&Dashboard_Basis!$A4&Auswahl_Bundesland,Basisdaten!$A:$A,0))),"-",INDEX(Spalte_GP,MATCH(Dashboard_Basis!CK$2&Dashboard_Basis!CK$1&Dashboard_Basis!$A4&Auswahl_Bundesland,Basisdaten!$A:$A,0))) -> 2334 | CL4: =IF(ISERROR(INDEX(Spalte_GP,MATCH(Dashboard_Basis!CL$2&Dashboard_Basis!CL$1&Dashboard_Basis!$A4&Auswahl_Bundesland,Basisdaten!$A:$A,0))),"-",INDEX(Spalte_GP,MATCH(Dashboard_Basis!CL$2&Dashboard_Basis!CL$1&Dashboard_Basis!$A4&Auswahl_Bundesland,Basisdaten!$A:$A,0))) -> 2323 | CM4: =IF(ISERROR(INDEX(Spalte_GP,MATCH(Dashboard_Basis!CM$2&Dashboard_Basis!CM$1&Dashboard_Basis!$A4&Auswahl_Bundesland,Basisdaten!$A:$A,0))),"-",INDEX(Spalte_GP,MATCH(Dashboard_Basis!CM$2&Dashboard_Basis!CM$1&Dashboard_Basis!$A4&Auswahl_Bundesland,Basisdaten!$A:$A,0))) -> 2322 | CN4: =IF(ISERROR(INDEX(Spalte_GP,MATCH(Dashboard_Basis!CN$2&Dashboard_Basis!CN$1&Dashboard_Basis!$A4&Auswahl_Bundesland,Basisdaten!$A:$A,0))),"-",INDEX(Spalte_GP,MATCH(Dashboard_Basis!CN$2&Dashboard_Basis!CN$1&Dashboard_Basis!$A4&Auswahl_Bundesland,Basisdaten!$A:$A,0))) -> 2295 | CO4: =IF(ISERROR(INDEX(Spalte_GP,MATCH(Dashboard_Basis!CO$2&Dashboard_Basis!CO$1&Dashboard_Basis!$A4&Auswahl_Bundesland,Basisdaten!$A:$A,0))),"-",INDEX(Spalte_GP,MATCH(Dashboard_Basis!CO$2&Dashboard_Basis!CO$1&Dashboard_Basis!$A4&Auswahl_Bundesland,Basisdaten!$A:$A,0))) -> 2285 | CP4: =IF(ISERROR(INDEX(Spalte_GP,MATCH(Dashboard_Basis!CP$2&Dashboard_Basis!CP$1&Dashboard_Basis!$A4&Auswahl_Bundesland,Basisdaten!$A:$A,0))),"-",INDEX(Spalte_GP,MATCH(Dashboard_Basis!CP$2&Dashboard_Basis!CP$1&Dashboard_Basis!$A4&Auswahl_Bundesland,Basisdaten!$A:$A,0))) -> 2268 | CQ4: 2341.333333 | CR4: 2349.666667 | CS4: 2326.333333 | CT4: 2282.666667 | CU4: 2345.5 | CV4: 2339.111111 | CW4: =IF(COUNT(OFFSET(CE4,,,,Anzahl_Monate))=Anzahl_Monate,SUM(OFFSET(CE4,,,,Anzahl_Monate))/Anzahl_Monate,"-") -> 2339 | CX4: 2325 | CY4: =IF(ISERROR(INDEX(Spalte_GP,MATCH(Dashboard_Basis!CY$2&Dashboard_Basis!CY$1&Dashboard_Basis!$A4&Auswahl_Bundesland,Basisdaten!$A:$A,0))),"-",INDEX(Spalte_GP,MATCH(Dashboard_Basis!CY$2&Dashboard_Basis!CY$1&Dashboard_Basis!$A4&Auswahl_Bundesland,Basisdaten!$A:$A,0))) -> 2263 | CZ4: =IF(ISERROR(INDEX(Spalte_GP,MATCH(Dashboard_Basis!CZ$2&Dashboard_Basis!CZ$1&Dashboard_Basis!$A4&Auswahl_Bundesland,Basisdaten!$A:$A,0))),"-",INDEX(Spalte_GP,MATCH(Dashboard_Basis!CZ$2&Dashboard_Basis!CZ$1&Dashboard_Basis!$A4&Auswahl_Bundesland,Basisdaten!$A:$A,0))) -> 2252 | DA4: =IF(ISERROR(INDEX(Spalte_GP,MATCH(Dashboard_Basis!DA$2&Dashboard_Basis!DA$1&Dashboard_Basis!$A4&Auswahl_Bundesland,Basisdaten!$A:$A,0))),"-",INDEX(Spalte_GP,MATCH(Dashboard_Basis!DA$2&Dashboard_Basis!DA$1&Dashboard_Basis!$A4&Auswahl_Bundesland,Basisdaten!$A:$A,0))) -> 2249 | DB4: =IF(ISERROR(INDEX(Spalte_GP,MATCH(Dashboard_Basis!DB$2&Dashboard_Basis!DB$1&Dashboard_Basis!$A4&Auswahl_Bundesland,Basisdaten!$A:$A,0))),"-",INDEX(Spalte_GP,MATCH(Dashboard_Basis!DB$2&Dashboard_Basis!DB$1&Dashboard_Basis!$A4&Auswahl_Bundesland,Basisdaten!$A:$A,0))) -> 2268 | DC4: =IF(ISERROR(INDEX(Spalte_GP,MATCH(Dashboard_Basis!DC$2&Dashboard_Basis!DC$1&Dashboard_Basis!$A4&Auswahl_Bundesland,Basisdaten!$A:$A,0))),"-",INDEX(Spalte_GP,MATCH(Dashboard_Basis!DC$2&Dashboard_Basis!DC$1&Dashboard_Basis!$A4&Auswahl_Bundesland,Basisdaten!$A:$A,0))) -> 2228 | DD4: =IF(ISERROR(INDEX(Spalte_GP,MATCH(Dashboard_Basis!DD$2&Dashboard_Basis!DD$1&Dashboard_Basis!$A4&Auswahl_Bundesland,Basisdaten!$A:$A,0))),"-",INDEX(Spalte_GP,MATCH(Dashboard_Basis!DD$2&Dashboard_Basis!DD$1&Dashboard_Basis!$A4&Auswahl_Bundesland,Basisdaten!$A:$A,0))) -> 2252 | DE4: =IF(ISERROR(INDEX(Spalte_GP,MATCH(Dashboard_Basis!DE$2&Dashboard_Basis!DE$1&Dashboard_Basis!$A4&Auswahl_Bundesland,Basisdaten!$A:$A,0))),"-",INDEX(Spalte_GP,MATCH(Dashboard_Basis!DE$2&Dashboard_Basis!DE$1&Dashboard_Basis!$A4&Auswahl_Bundesland,Basisdaten!$A:$A,0))) -> 2257 | DF4: =IF(ISERROR(INDEX(Spalte_GP,MATCH(Dashboard_Basis!DF$2&Dashboard_Basis!DF$1&Dashboard_Basis!$A4&Auswahl_Bundesland,Basisdaten!$A:$A,0))),"-",INDEX(Spalte_GP,MATCH(Dashboard_Basis!DF$2&Dashboard_Basis!DF$1&Dashboard_Basis!$A4&Auswahl_Bundesland,Basisdaten!$A:$A,0))) -> 2249 | DG4: =IF(ISERROR(INDEX(Spalte_GP,MATCH(Dashboard_Basis!DG$2&Dashboard_Basis!DG$1&Dashboard_Basis!$A4&Auswahl_Bundesland,Basisdaten!$A:$A,0))),"-",INDEX(Spalte_GP,MATCH(Dashboard_Basis!DG$2&Dashboard_Basis!DG$1&Dashboard_Basis!$A4&Auswahl_Bundesland,Basisdaten!$A:$A,0))) -> 2253 | DH4: =IF(ISERROR(INDEX(Spalte_GP,MATCH(Dashboard_Basis!DH$2&Dashboard_Basis!DH$1&Dashboard_Basis!$A4&Auswahl_Bundesland,Basisdaten!$A:$A,0))),"-",INDEX(Spalte_GP,MATCH(Dashboard_Basis!DH$2&Dashboard_Basis!DH$1&Dashboard_Basis!$A4&Auswahl_Bundesland,Basisdaten!$A:$A,0))) -> 2246 | DI4: =IF(ISERROR(INDEX(Spalte_GP,MATCH(Dashboard_Basis!DI$2&Dashboard_Basis!DI$1&Dashboard_Basis!$A4&Auswahl_Bundesland,Basisdaten!$A:$A,0))),"-",INDEX(Spalte_GP,MATCH(Dashboard_Basis!DI$2&Dashboard_Basis!DI$1&Dashboard_Basis!$A4&Auswahl_Bundesland,Basisdaten!$A:$A,0))) -> 2230 | DJ4: =IF(ISERROR(INDEX(Spalte_GP,MATCH(Dashboard_Basis!DJ$2&Dashboard_Basis!DJ$1&Dashboard_Basis!$A4&Auswahl_Bundesland,Basisdaten!$A:$A,0))),"-",INDEX(Spalte_GP,MATCH(Dashboard_Basis!DJ$2&Dashboard_Basis!DJ$1&Dashboard_Basis!$A4&Auswahl_Bundesland,Basisdaten!$A:$A,0))) -> 2232 | DK4: 2254.666667 | DL4: 2249.333333 | DM4: 2253 | DN4: 2236 | DO4: 2252 | DP4: 2252.333333 | DQ4: =IF(COUNT(OFFSET(CY4,,,,Anzahl_Monate))=Anzahl_Monate,SUM(OFFSET(CY4,,,,Anzahl_Monate))/Anzahl_Monate,"-") -> 2263 | DR4: 2248.25 | DS4: =IF(ISERROR(INDEX(Spalte_GP,MATCH(Dashboard_Basis!DS$2&Dashboard_Basis!DS$1&Dashboard_Basis!$A4&Auswahl_Bundesland,Basisdaten!$A:$A,0))),"-",INDEX(Spalte_GP,MATCH(Dashboard_Basis!DS$2&Dashboard_Basis!DS$1&Dashboard_Basis!$A4&Auswahl_Bundesland,Basisdaten!$A:$A,0))) -> 2216 | DT4: =IF(ISERROR(INDEX(Spalte_GP,MATCH(Dashboard_Basis!DT$2&Dashboard_Basis!DT$1&Dashboard_Basis!$A4&Auswahl_Bundesland,Basisdaten!$A:$A,0))),"-",INDEX(Spalte_GP,MATCH(Dashboard_Basis!DT$2&Dashboard_Basis!DT$1&Dashboard_Basis!$A4&Auswahl_Bundesland,Basisdaten!$A:$A,0))) -> 2232 | DU4: =IF(ISERROR(INDEX(Spalte_GP,MATCH(Dashboard_Basis!DU$2&Dashboard_Basis!DU$1&Dashboard_Basis!$A4&Auswahl_Bundesland,Basisdaten!$A:$A,0))),"-",INDEX(Spalte_GP,MATCH(Dashboard_Basis!DU$2&Dashboard_Basis!DU$1&Dashboard_Basis!$A4&Auswahl_Bundesland,Basisdaten!$A:$A,0))) -> 2241 | DV4: =IF(ISERROR(INDEX(Spalte_GP,MATCH(Dashboard_Basis!DV$2&Dashboard_Basis!DV$1&Dashboard_Basis!$A4&Auswahl_Bundesland,Basisdaten!$A:$A,0))),"-",INDEX(Spalte_GP,MATCH(Dashboard_Basis!DV$2&Dashboard_Basis!DV$1&Dashboard_Basis!$A4&Auswahl_Bundesland,Basisdaten!$A:$A,0))) -> 2281 | DW4: =IF(ISERROR(INDEX(Spalte_GP,MATCH(Dashboard_Basis!DW$2&Dashboard_Basis!DW$1&Dashboard_Basis!$A4&Auswahl_Bundesland,Basisdaten!$A:$A,0))),"-",INDEX(Spalte_GP,MATCH(Dashboard_Basis!DW$2&Dashboard_Basis!DW$1&Dashboard_Basis!$A4&Auswahl_Bundesland,Basisdaten!$A:$A,0))) -> 2251 | DX4: =IF(ISERROR(INDEX(Spalte_GP,MATCH(Dashboard_Basis!DX$2&Dashboard_Basis!DX$1&Dashboard_Basis!$A4&Auswahl_Bundesland,Basisdaten!$A:$A,0))),"-",INDEX(Spalte_GP,MATCH(Dashboard_Basis!DX$2&Dashboard_Basis!DX$1&Dashboard_Basis!$A4&Auswahl_Bundesland,Basisdaten!$A:$A,0))) -> 2237 | DY4: =IF(ISERROR(INDEX(Spalte_GP,MATCH(Dashboard_Basis!DY$2&Dashboard_Basis!DY$1&Dashboard_Basis!$A4&Auswahl_Bundesland,Basisdaten!$A:$A,0))),"-",INDEX(Spalte_GP,MATCH(Dashboard_Basis!DY$2&Dashboard_Basis!DY$1&Dashboard_Basis!$A4&Auswahl_Bundesland,Basisdaten!$A:$A,0))) -> 2252 | DZ4: =IF(ISERROR(INDEX(Spalte_GP,MATCH(Dashboard_Basis!DZ$2&Dashboard_Basis!DZ$1&Dashboard_Basis!$A4&Auswahl_Bundesland,Basisdaten!$A:$A,0))),"-",INDEX(Spalte_GP,MATCH(Dashboard_Basis!DZ$2&Dashboard_Basis!DZ$1&Dashboard_Basis!$A4&Auswahl_Bundesland,Basisdaten!$A:$A,0))) -> 2246 | EA4: =IF(ISERROR(INDEX(Spalte_GP,MATCH(Dashboard_Basis!EA$2&Dashboard_Basis!EA$1&Dashboard_Basis!$A4&Auswahl_Bundesland,Basisdaten!$A:$A,0))),"-",INDEX(Spalte_GP,MATCH(Dashboard_Basis!EA$2&Dashboard_Basis!EA$1&Dashboard_Basis!$A4&Auswahl_Bundesland,Basisdaten!$A:$A,0))) -> 2258 | EB4: =IF(ISERROR(INDEX(Spalte_GP,MATCH(Dashboard_Basis!EB$2&Dashboard_Basis!EB$1&Dashboard_Basis!$A4&Auswahl_Bundesland,Basisdaten!$A:$A,0))),"-",INDEX(Spalte_GP,MATCH(Dashboard_Basis!EB$2&Dashboard_Basis!EB$1&Dashboard_Basis!$A4&Auswahl_Bundesland,Basisdaten!$A:$A,0))) -> 2299 | EC4: =IF(ISERROR(INDEX(Spalte_GP,MATCH(Dashboard_Basis!EC$2&Dashboard_Basis!EC$1&Dashboard_Basis!$A4&Auswahl_Bundesland,Basisdaten!$A:$A,0))),"-",INDEX(Spalte_GP,MATCH(Dashboard_Basis!EC$2&Dashboard_Basis!EC$1&Dashboard_Basis!$A4&Auswahl_Bundesland,Basisdaten!$A:$A,0))) -> 2295 | ED4: =IF(ISERROR(INDEX(Spalte_GP,MATCH(Dashboard_Basis!ED$2&Dashboard_Basis!ED$1&Dashboard_Basis!$A4&Auswahl_Bundesland,Basisdaten!$A:$A,0))),"-",INDEX(Spalte_GP,MATCH(Dashboard_Basis!ED$2&Dashboard_Basis!ED$1&Dashboard_Basis!$A4&Auswahl_Bundesland,Basisdaten!$A:$A,0))) -> 2260 | EE4: 2229.666667 | EF4: 2256.333333 | EG4: 2252 | EH4: 2284.666667 | EI4: 2243 | EJ4: 2246 | EK4: =IF(COUNT(OFFSET(DS4,,,,Anzahl_Monate))=Anzahl_Monate,SUM(OFFSET(DS4,,,,Anzahl_Monate))/Anzahl_Monate,"-") -> 2216 | EL4: 2255.666667 | EM4: =IF(ISERROR(INDEX(Spalte_GP,MATCH(Dashboard_Basis!EM$2&Dashboard_Basis!EM$1&Dashboard_Basis!$A4&Auswahl_Bundesland,Basisdaten!$A:$A,0))),"-",INDEX(Spalte_GP,MATCH(Dashboard_Basis!EM$2&Dashboard_Basis!EM$1&Dashboard_Basis!$A4&Auswahl_Bundesland,Basisdaten!$A:$A,0))) -> 2233 | EN4: =IF(ISERROR(INDEX(Spalte_GP,MATCH(Dashboard_Basis!EN$2&Dashboard_Basis!EN$1&Dashboard_Basis!$A4&Auswahl_Bundesland,Basisdaten!$A:$A,0))),"-",INDEX(Spalte_GP,MATCH(Dashboard_Basis!EN$2&Dashboard_Basis!EN$1&Dashboard_Basis!$A4&Auswahl_Bundesland,Basisdaten!$A:$A,0))) -> 2240 | EO4: =IF(ISERROR(INDEX(Spalte_GP,MATCH(Dashboard_Basis!EO$2&Dashboard_Basis!EO$1&Dashboard_Basis!$A4&Auswahl_Bundesland,Basisdaten!$A:$A,0))),"-",INDEX(Spalte_GP,MATCH(Dashboard_Basis!EO$2&Dashboard_Basis!EO$1&Dashboard_Basis!$A4&Auswahl_Bundesland,Basisdaten!$A:$A,0))) -> 2252 | EP4: =IF(ISERROR(INDEX(Spalte_GP,MATCH(Dashboard_Basis!EP$2&Dashboard_Basis!EP$1&Dashboard_Basis!$A4&Auswahl_Bundesland,Basisdaten!$A:$A,0))),"-",INDEX(Spalte_GP,MATCH(Dashboard_Basis!EP$2&Dashboard_Basis!EP$1&Dashboard_Basis!$A4&Auswahl_Bundesland,Basisdaten!$A:$A,0))) -> 2280 | EQ4: =IF(ISERROR(INDEX(Spalte_GP,MATCH(Dashboard_Basis!EQ$2&Dashboard_Basis!EQ$1&Dashboard_Basis!$A4&Auswahl_Bundesland,Basisdaten!$A:$A,0))),"-",INDEX(Spalte_GP,MATCH(Dashboard_Basis!EQ$2&Dashboard_Basis!EQ$1&Dashboard_Basis!$A4&Auswahl_Bundesland,Basisdaten!$A:$A,0))) -> 2260 | ER4: =IF(ISERROR(INDEX(Spalte_GP,MATCH(Dashboard_Basis!ER$2&Dashboard_Basis!ER$1&Dashboard_Basis!$A4&Auswahl_Bundesland,Basisdaten!$A:$A,0))),"-",INDEX(Spalte_GP,MATCH(Dashboard_Basis!ER$2&Dashboard_Basis!ER$1&Dashboard_Basis!$A4&Auswahl_Bundesland,Basisdaten!$A:$A,0))) -> 2259 | ES4: =IF(ISERROR(INDEX(Spalte_GP,MATCH(Dashboard_Basis!ES$2&Dashboard_Basis!ES$1&Dashboard_Basis!$A4&Auswahl_Bundesland,Basisdaten!$A:$A,0))),"-",INDEX(Spalte_GP,MATCH(Dashboard_Basis!ES$2&Dashboard_Basis!ES$1&Dashboard_Basis!$A4&Auswahl_Bundesland,Basisdaten!$A:$A,0))) -> 2290 | ET4: =IF(ISERROR(INDEX(Spalte_GP,MATCH(Dashboard_Basis!ET$2&Dashboard_Basis!ET$1&Dashboard_Basis!$A4&Auswahl_Bundesland,Basisdaten!$A:$A,0))),"-",INDEX(Spalte_GP,MATCH(Dashboard_Basis!ET$2&Dashboard_Basis!ET$1&Dashboard_Basis!$A4&Auswahl_Bundesland,Basisdaten!$A:$A,0))) -> 2290 | EU4: =IF(ISERROR(INDEX(Spalte_GP,MATCH(Dashboard_Basis!EU$2&Dashboard_Basis!EU$1&Dashboard_Basis!$A4&Auswahl_Bundesland,Basisdaten!$A:$A,0))),"-",INDEX(Spalte_GP,MATCH(Dashboard_Basis!EU$2&Dashboard_Basis!EU$1&Dashboard_Basis!$A4&Auswahl_Bundesland,Basisdaten!$A:$A,0))) -> 2304 | EV4: =IF(ISERROR(INDEX(Spalte_GP,MATCH(Dashboard_Basis!EV$2&Dashboard_Basis!EV$1&Dashboard_Basis!$A4&Auswahl_Bundesland,Basisdaten!$A:$A,0))),"-",INDEX(Spalte_GP,MATCH(Dashboard_Basis!EV$2&Dashboard_Basis!EV$1&Dashboard_Basis!$A4&Auswahl_Bundesland,Basisdaten!$A:$A,0))) -> 2309 | EW4: =IF(ISERROR(INDEX(Spalte_GP,MATCH(Dashboard_Basis!EW$2&Dashboard_Basis!EW$1&Dashboard_Basis!$A4&Auswahl_Bundesland,Basisdaten!$A:$A,0))),"-",INDEX(Spalte_GP,MATCH(Dashboard_Basis!EW$2&Dashboard_Basis!EW$1&Dashboard_Basis!$A4&Auswahl_Bundesland,Basisdaten!$A:$A,0))) -> 2309 | EX4: =IF(ISERROR(INDEX(Spalte_GP,MATCH(Dashboard_Basis!EX$2&Dashboard_Basis!EX$1&Dashboard_Basis!$A4&Auswahl_Bundesland,Basisdaten!$A:$A,0))),"-",INDEX(Spalte_GP,MATCH(Dashboard_Basis!EX$2&Dashboard_Basis!EX$1&Dashboard_Basis!$A4&Auswahl_Bundesland,Basisdaten!$A:$A,0))) -> 2301 | EY4: 2241.666667 | EZ4: 2266.333333 | FA4: 2294.666667 | FB4: 2306.333333 | FC4: 2254 | FD4: 2267.555556 | FE4: =IF(COUNT(OFFSET(EM4,,,,Anzahl_Monate))=Anzahl_Monate,SUM(OFFSET(EM4,,,,Anzahl_Monate))/Anzahl_Monate,"-") -> 2233 | FF4: 2277.25 | FG4: =IF(ISERROR(INDEX(Spalte_GP,MATCH(Dashboard_Basis!FG$2&Dashboard_Basis!FG$1&Dashboard_Basis!$A4&Auswahl_Bundesland,Basisdaten!$A:$A,0))),"-",INDEX(Spalte_GP,MATCH(Dashboard_Basis!FG$2&Dashboard_Basis!FG$1&Dashboard_Basis!$A4&Auswahl_Bundesland,Basisdaten!$A:$A,0))) -> 2358 | FH4: =IF(ISERROR(INDEX(Spalte_GP,MATCH(Dashboard_Basis!FH$2&Dashboard_Basis!FH$1&Dashboard_Basis!$A4&Auswahl_Bundesland,Basisdaten!$A:$A,0))),"-",INDEX(Spalte_GP,MATCH(Dashboard_Basis!FH$2&Dashboard_Basis!FH$1&Dashboard_Basis!$A4&Auswahl_Bundesland,Basisdaten!$A:$A,0))) -> 2365 | FI4: =IF(ISERROR(INDEX(Spalte_GP,MATCH(Dashboard_Basis!FI$2&Dashboard_Basis!FI$1&Dashboard_Basis!$A4&Auswahl_Bundesland,Basisdaten!$A:$A,0))),"-",INDEX(Spalte_GP,MATCH(Dashboard_Basis!FI$2&Dashboard_Basis!FI$1&Dashboard_Basis!$A4&Auswahl_Bundesland,Basisdaten!$A:$A,0))) -> 2363 | FJ4: =IF(ISERROR(INDEX(Spalte_GP,MATCH(Dashboard_Basis!FJ$2&Dashboard_Basis!FJ$1&Dashboard_Basis!$A4&Auswahl_Bundesland,Basisdaten!$A:$A,0))),"-",INDEX(Spalte_GP,MATCH(Dashboard_Basis!FJ$2&Dashboard_Basis!FJ$1&Dashboard_Basis!$A4&Auswahl_Bundesland,Basisdaten!$A:$A,0))) -> 2438 | FK4: =IF(ISERROR(INDEX(Spalte_GP,MATCH(Dashboard_Basis!FK$2&Dashboard_Basis!FK$1&Dashboard_Basis!$A4&Auswahl_Bundesland,Basisdaten!$A:$A,0))),"-",INDEX(Spalte_GP,MATCH(Dashboard_Basis!FK$2&Dashboard_Basis!FK$1&Dashboard_Basis!$A4&Auswahl_Bundesland,Basisdaten!$A:$A,0))) -> 2421 | FL4: =IF(ISERROR(INDEX(Spalte_GP,MATCH(Dashboard_Basis!FL$2&Dashboard_Basis!FL$1&Dashboard_Basis!$A4&Auswahl_Bundesland,Basisdaten!$A:$A,0))),"-",INDEX(Spalte_GP,MATCH(Dashboard_Basis!FL$2&Dashboard_Basis!FL$1&Dashboard_Basis!$A4&Auswahl_Bundesland,Basisdaten!$A:$A,0))) -> 2417 | FM4: =IF(ISERROR(INDEX(Spalte_GP,MATCH(Dashboard_Basis!FM$2&Dashboard_Basis!FM$1&Dashboard_Basis!$A4&Auswahl_Bundesland,Basisdaten!$A:$A,0))),"-",INDEX(Spalte_GP,MATCH(Dashboard_Basis!FM$2&Dashboard_Basis!FM$1&Dashboard_Basis!$A4&Auswahl_Bundesland,Basisdaten!$A:$A,0))) -> 2434 | FN4: =IF(ISERROR(INDEX(Spalte_GP,MATCH(Dashboard_Basis!FN$2&Dashboard_Basis!FN$1&Dashboard_Basis!$A4&Auswahl_Bundesland,Basisdaten!$A:$A,0))),"-",INDEX(Spalte_GP,MATCH(Dashboard_Basis!FN$2&Dashboard_Basis!FN$1&Dashboard_Basis!$A4&Auswahl_Bundesland,Basisdaten!$A:$A,0))) -> 2418 | FO4: =IF(ISERROR(INDEX(Spalte_GP,MATCH(Dashboard_Basis!FO$2&Dashboard_Basis!FO$1&Dashboard_Basis!$A4&Auswahl_Bundesland,Basisdaten!$A:$A,0))),"-",INDEX(Spalte_GP,MATCH(Dashboard_Basis!FO$2&Dashboard_Basis!FO$1&Dashboard_Basis!$A4&Auswahl_Bundesland,Basisdaten!$A:$A,0))) -> 2446 | FP4: =IF(ISERROR(INDEX(Spalte_GP,MATCH(Dashboard_Basis!FP$2&Dashboard_Basis!FP$1&Dashboard_Basis!$A4&Auswahl_Bundesland,Basisdaten!$A:$A,0))),"-",INDEX(Spalte_GP,MATCH(Dashboard_Basis!FP$2&Dashboard_Basis!FP$1&Dashboard_Basis!$A4&Auswahl_Bundesland,Basisdaten!$A:$A,0))) -> 2450 | FQ4: =IF(ISERROR(INDEX(Spalte_GP,MATCH(Dashboard_Basis!FQ$2&Dashboard_Basis!FQ$1&Dashboard_Basis!$A4&Auswahl_Bundesland,Basisdaten!$A:$A,0))),"-",INDEX(Spalte_GP,MATCH(Dashboard_Basis!FQ$2&Dashboard_Basis!FQ$1&Dashboard_Basis!$A4&Auswahl_Bundesland,Basisdaten!$A:$A,0))) -> 2440 | FR4: =IF(ISERROR(INDEX(Spalte_GP,MATCH(Dashboard_Basis!FR$2&Dashboard_Basis!FR$1&Dashboard_Basis!$A4&Auswahl_Bundesland,Basisdaten!$A:$A,0))),"-",INDEX(Spalte_GP,MATCH(Dashboard_Basis!FR$2&Dashboard_Basis!FR$1&Dashboard_Basis!$A4&Auswahl_Bundesland,Basisdaten!$A:$A,0))) -> 2470 | FS4: 2362 | FT4: 2425.333333 | FU4: 2432.666667 | FV4: 2453.333333 | FW4: 2393.666667 | FX4: 2406.666667 | FY4: =IF(COUNT(OFFSET(FG4,,,,Anzahl_Monate))=Anzahl_Monate,SUM(OFFSET(FG4,,,,Anzahl_Monate))/Anzahl_Monate,"-") -> 2358 | FZ4: 2418.333333 | GA4: =IF(ISERROR(INDEX(Spalte_GP,MATCH(Dashboard_Basis!GA$2&Dashboard_Basis!GA$1&Dashboard_Basis!$A4&Auswahl_Bundesland,Basisdaten!$A:$A,0))),"-",INDEX(Spalte_GP,MATCH(Dashboard_Basis!GA$2&Dashboard_Basis!GA$1&Dashboard_Basis!$A4&Auswahl_Bundesland,Basisdaten!$A:$A,0))) -> 2484 | GB4: =IF(ISERROR(INDEX(Spalte_GP,MATCH(Dashboard_Basis!GB$2&Dashboard_Basis!GB$1&Dashboard_Basis!$A4&Auswahl_Bundesland,Basisdaten!$A:$A,0))),"-",INDEX(Spalte_GP,MATCH(Dashboard_Basis!GB$2&Dashboard_Basis!GB$1&Dashboard_Basis!$A4&Auswahl_Bundesland,Basisdaten!$A:$A,0))) -> 2485 | GC4: =IF(ISERROR(INDEX(Spalte_GP,MATCH(Dashboard_Basis!GC$2&Dashboard_Basis!GC$1&Dashboard_Basis!$A4&Auswahl_Bundesland,Basisdaten!$A:$A,0))),"-",INDEX(Spalte_GP,MATCH(Dashboard_Basis!GC$2&Dashboard_Basis!GC$1&Dashboard_Basis!$A4&Auswahl_Bundesland,Basisdaten!$A:$A,0))) -> 2482 | GD4: =IF(ISERROR(INDEX(Spalte_GP,MATCH(Dashboard_Basis!GD$2&Dashboard_Basis!GD$1&Dashboard_Basis!$A4&Auswahl_Bundesland,Basisdaten!$A:$A,0))),"-",INDEX(Spalte_GP,MATCH(Dashboard_Basis!GD$2&Dashboard_Basis!GD$1&Dashboard_Basis!$A4&Auswahl_Bundesland,Basisdaten!$A:$A,0))) -> 2477 | GE4: =IF(ISERROR(INDEX(Spalte_GP,MATCH(Dashboard_Basis!GE$2&Dashboard_Basis!GE$1&Dashboard_Basis!$A4&Auswahl_Bundesland,Basisdaten!$A:$A,0))),"-",INDEX(Spalte_GP,MATCH(Dashboard_Basis!GE$2&Dashboard_Basis!GE$1&Dashboard_Basis!$A4&Auswahl_Bundesland,Basisdaten!$A:$A,0))) -> 2473 | GF4: =IF(ISERROR(INDEX(Spalte_GP,MATCH(Dashboard_Basis!GF$2&Dashboard_Basis!GF$1&Dashboard_Basis!$A4&Auswahl_Bundesland,Basisdaten!$A:$A,0))),"-",INDEX(Spalte_GP,MATCH(Dashboard_Basis!GF$2&Dashboard_Basis!GF$1&Dashboard_Basis!$A4&Auswahl_Bundesland,Basisdaten!$A:$A,0))) -> 2476 | GG4: =IF(ISERROR(INDEX(Spalte_GP,MATCH(Dashboard_Basis!GG$2&Dashboard_Basis!GG$1&Dashboard_Basis!$A4&Auswahl_Bundesland,Basisdaten!$A:$A,0))),"-",INDEX(Spalte_GP,MATCH(Dashboard_Basis!GG$2&Dashboard_Basis!GG$1&Dashboard_Basis!$A4&Auswahl_Bundesland,Basisdaten!$A:$A,0))) -> 2488 | GH4: =IF(ISERROR(INDEX(Spalte_GP,MATCH(Dashboard_Basis!GH$2&Dashboard_Basis!GH$1&Dashboard_Basis!$A4&Auswahl_Bundesland,Basisdaten!$A:$A,0))),"-",INDEX(Spalte_GP,MATCH(Dashboard_Basis!GH$2&Dashboard_Basis!GH$1&Dashboard_Basis!$A4&Auswahl_Bundesland,Basisdaten!$A:$A,0))) -> 2458 | GI4: =IF(ISERROR(INDEX(Spalte_GP,MATCH(Dashboard_Basis!GI$2&Dashboard_Basis!GI$1&Dashboard_Basis!$A4&Auswahl_Bundesland,Basisdaten!$A:$A,0))),"-",INDEX(Spalte_GP,MATCH(Dashboard_Basis!GI$2&Dashboard_Basis!GI$1&Dashboard_Basis!$A4&Auswahl_Bundesland,Basisdaten!$A:$A,0))) -> 2461 | GJ4: =IF(ISERROR(INDEX(Spalte_GP,MATCH(Dashboard_Basis!GJ$2&Dashboard_Basis!GJ$1&Dashboard_Basis!$A4&Auswahl_Bundesland,Basisdaten!$A:$A,0))),"-",INDEX(Spalte_GP,MATCH(Dashboard_Basis!GJ$2&Dashboard_Basis!GJ$1&Dashboard_Basis!$A4&Auswahl_Bundesland,Basisdaten!$A:$A,0))) -> 2445 | GK4: =IF(ISERROR(INDEX(Spalte_GP,MATCH(Dashboard_Basis!GK$2&Dashboard_Basis!GK$1&Dashboard_Basis!$A4&Auswahl_Bundesland,Basisdaten!$A:$A,0))),"-",INDEX(Spalte_GP,MATCH(Dashboard_Basis!GK$2&Dashboard_Basis!GK$1&Dashboard_Basis!$A4&Auswahl_Bundesland,Basisdaten!$A:$A,0))) -> 2439 | GL4: =IF(ISERROR(INDEX(Spalte_GP,MATCH(Dashboard_Basis!GL$2&Dashboard_Basis!GL$1&Dashboard_Basis!$A4&Auswahl_Bundesland,Basisdaten!$A:$A,0))),"-",INDEX(Spalte_GP,MATCH(Dashboard_Basis!GL$2&Dashboard_Basis!GL$1&Dashboard_Basis!$A4&Auswahl_Bundesland,Basisdaten!$A:$A,0))) -> 2406 | GM4: 2483.666667 | GN4: 2475.333333 | GO4: 2469 | GP4: 2430 | GQ4: 2479.5 | GR4: 2476 | GS4: =IF(COUNT(OFFSET(GA4,,,,Anzahl_Monate))=Anzahl_Monate,SUM(OFFSET(GA4,,,,Anzahl_Monate))/Anzahl_Monate,"-") -> 2484 | GT4: 2464.5 | GU4: =IF(ISERROR(INDEX(Spalte_GP,MATCH(Dashboard_Basis!GU$2&Dashboard_Basis!GU$1&Dashboard_Basis!$A4&Auswahl_Bundesland,Basisdaten!$A:$A,0))),"-",INDEX(Spalte_GP,MATCH(Dashboard_Basis!GU$2&Dashboard_Basis!GU$1&Dashboard_Basis!$A4&Auswahl_Bundesland,Basisdaten!$A:$A,0))) -> 2195 | GV4: =IF(ISERROR(INDEX(Spalte_GP,MATCH(Dashboard_Basis!GV$2&Dashboard_Basis!GV$1&Dashboard_Basis!$A4&Auswahl_Bundesland,Basisdaten!$A:$A,0))),"-",INDEX(Spalte_GP,MATCH(Dashboard_Basis!GV$2&Dashboard_Basis!GV$1&Dashboard_Basis!$A4&Auswahl_Bundesland,Basisdaten!$A:$A,0))) -> 2194 | GW4: =IF(ISERROR(INDEX(Spalte_GP,MATCH(Dashboard_Basis!GW$2&Dashboard_Basis!GW$1&Dashboard_Basis!$A4&Auswahl_Bundesland,Basisdaten!$A:$A,0))),"-",INDEX(Spalte_GP,MATCH(Dashboard_Basis!GW$2&Dashboard_Basis!GW$1&Dashboard_Basis!$A4&Auswahl_Bundesland,Basisdaten!$A:$A,0))) -> 2202 | GX4: =IF(ISERROR(INDEX(Spalte_GP,MATCH(Dashboard_Basis!GX$2&Dashboard_Basis!GX$1&Dashboard_Basis!$A4&Auswahl_Bundesland,Basisdaten!$A:$A,0))),"-",INDEX(Spalte_GP,MATCH(Dashboard_Basis!GX$2&Dashboard_Basis!GX$1&Dashboard_Basis!$A4&Auswahl_Bundesland,Basisdaten!$A:$A,0))) -> 2251 | GY4: =IF(ISERROR(INDEX(Spalte_GP,MATCH(Dashboard_Basis!GY$2&Dashboard_Basis!GY$1&Dashboard_Basis!$A4&Auswahl_Bundesland,Basisdaten!$A:$A,0))),"-",INDEX(Spalte_GP,MATCH(Dashboard_Basis!GY$2&Dashboard_Basis!GY$1&Dashboard_Basis!$A4&Auswahl_Bundesland,Basisdaten!$A:$A,0))) -> 2205 | GZ4: =IF(ISERROR(INDEX(Spalte_GP,MATCH(Dashboard_Basis!GZ$2&Dashboard_Basis!GZ$1&Dashboard_Basis!$A4&Auswahl_Bundesland,Basisdaten!$A:$A,0))),"-",INDEX(Spalte_GP,MATCH(Dashboard_Basis!GZ$2&Dashboard_Basis!GZ$1&Dashboard_Basis!$A4&Auswahl_Bundesland,Basisdaten!$A:$A,0))) -> 2204 | HA4: =IF(ISERROR(INDEX(Spalte_GP,MATCH(Dashboard_Basis!HA$2&Dashboard_Basis!HA$1&Dashboard_Basis!$A4&Auswahl_Bundesland,Basisdaten!$A:$A,0))),"-",INDEX(Spalte_GP,MATCH(Dashboard_Basis!HA$2&Dashboard_Basis!HA$1&Dashboard_Basis!$A4&Auswahl_Bundesland,Basisdaten!$A:$A,0))) -> 2203 | HB4: =IF(ISERROR(INDEX(Spalte_GP,MATCH(Dashboard_Basis!HB$2&Dashboard_Basis!HB$1&Dashboard_Basis!$A4&Auswahl_Bundesland,Basisdaten!$A:$A,0))),"-",INDEX(Spalte_GP,MATCH(Dashboard_Basis!HB$2&Dashboard_Basis!HB$1&Dashboard_Basis!$A4&Auswahl_Bundesland,Basisdaten!$A:$A,0))) -> 2195 | HC4: =IF(ISERROR(INDEX(Spalte_GP,MATCH(Dashboard_Basis!HC$2&Dashboard_Basis!HC$1&Dashboard_Basis!$A4&Auswahl_Bundesland,Basisdaten!$A:$A,0))),"-",INDEX(Spalte_GP,MATCH(Dashboard_Basis!HC$2&Dashboard_Basis!HC$1&Dashboard_Basis!$A4&Auswahl_Bundesland,Basisdaten!$A:$A,0))) -> 2185 | HD4: =IF(ISERROR(INDEX(Spalte_GP,MATCH(Dashboard_Basis!HD$2&Dashboard_Basis!HD$1&Dashboard_Basis!$A4&Auswahl_Bundesland,Basisdaten!$A:$A,0))),"-",INDEX(Spalte_GP,MATCH(Dashboard_Basis!HD$2&Dashboard_Basis!HD$1&Dashboard_Basis!$A4&Auswahl_Bundesland,Basisdaten!$A:$A,0))) -> 2207 | HE4: =IF(ISERROR(INDEX(Spalte_GP,MATCH(Dashboard_Basis!HE$2&Dashboard_Basis!HE$1&Dashboard_Basis!$A4&Auswahl_Bundesland,Basisdaten!$A:$A,0))),"-",INDEX(Spalte_GP,MATCH(Dashboard_Basis!HE$2&Dashboard_Basis!HE$1&Dashboard_Basis!$A4&Auswahl_Bundesland,Basisdaten!$A:$A,0))) -> 2202 | HF4: =IF(ISERROR(INDEX(Spalte_GP,MATCH(Dashboard_Basis!HF$2&Dashboard_Basis!HF$1&Dashboard_Basis!$A4&Auswahl_Bundesland,Basisdaten!$A:$A,0))),"-",INDEX(Spalte_GP,MATCH(Dashboard_Basis!HF$2&Dashboard_Basis!HF$1&Dashboard_Basis!$A4&Auswahl_Bundesland,Basisdaten!$A:$A,0))) -> 2185 | HG4: 2197 | HH4: 2220 | HI4: 2194.333333 | HJ4: 2198 | HK4: 2208.5 | HL4: 2203.777778 | HM4: =IF(COUNT(OFFSET(GU4,,,,Anzahl_Monate))=Anzahl_Monate,SUM(OFFSET(GU4,,,,Anzahl_Monate))/Anzahl_Monate,"-") -> 2195 | HN4: 2202.333333 | HO4: =IF(ISERROR(INDEX(Spalte_GP,MATCH(Dashboard_Basis!HO$2&Dashboard_Basis!HO$1&Dashboard_Basis!$A4&Auswahl_Bundesland,Basisdaten!$A:$A,0))),"-",INDEX(Spalte_GP,MATCH(Dashboard_Basis!HO$2&Dashboard_Basis!HO$1&Dashboard_Basis!$A4&Auswahl_Bundesland,Basisdaten!$A:$A,0))) -> 2161 | HP4: =IF(ISERROR(INDEX(Spalte_GP,MATCH(Dashboard_Basis!HP$2&Dashboard_Basis!HP$1&Dashboard_Basis!$A4&Auswahl_Bundesland,Basisdaten!$A:$A,0))),"-",INDEX(Spalte_GP,MATCH(Dashboard_Basis!HP$2&Dashboard_Basis!HP$1&Dashboard_Basis!$A4&Auswahl_Bundesland,Basisdaten!$A:$A,0))) -> 2174 | HQ4: =IF(ISERROR(INDEX(Spalte_GP,MATCH(Dashboard_Basis!HQ$2&Dashboard_Basis!HQ$1&Dashboard_Basis!$A4&Auswahl_Bundesland,Basisdaten!$A:$A,0))),"-",INDEX(Spalte_GP,MATCH(Dashboard_Basis!HQ$2&Dashboard_Basis!HQ$1&Dashboard_Basis!$A4&Auswahl_Bundesland,Basisdaten!$A:$A,0))) -> 2184 | HR4: =IF(ISERROR(INDEX(Spalte_GP,MATCH(Dashboard_Basis!HR$2&Dashboard_Basis!HR$1&Dashboard_Basis!$A4&Auswahl_Bundesland,Basisdaten!$A:$A,0))),"-",INDEX(Spalte_GP,MATCH(Dashboard_Basis!HR$2&Dashboard_Basis!HR$1&Dashboard_Basis!$A4&Auswahl_Bundesland,Basisdaten!$A:$A,0))) -> 2240 | HS4: =IF(ISERROR(INDEX(Spalte_GP,MATCH(Dashboard_Basis!HS$2&Dashboard_Basis!HS$1&Dashboard_Basis!$A4&Auswahl_Bundesland,Basisdaten!$A:$A,0))),"-",INDEX(Spalte_GP,MATCH(Dashboard_Basis!HS$2&Dashboard_Basis!HS$1&Dashboard_Basis!$A4&Auswahl_Bundesland,Basisdaten!$A:$A,0))) -> 2198 | HT4: =IF(ISERROR(INDEX(Spalte_GP,MATCH(Dashboard_Basis!HT$2&Dashboard_Basis!HT$1&Dashboard_Basis!$A4&Auswahl_Bundesland,Basisdaten!$A:$A,0))),"-",INDEX(Spalte_GP,MATCH(Dashboard_Basis!HT$2&Dashboard_Basis!HT$1&Dashboard_Basis!$A4&Auswahl_Bundesland,Basisdaten!$A:$A,0))) -> 2207 | HU4: =IF(ISERROR(INDEX(Spalte_GP,MATCH(Dashboard_Basis!HU$2&Dashboard_Basis!HU$1&Dashboard_Basis!$A4&Auswahl_Bundesland,Basisdaten!$A:$A,0))),"-",INDEX(Spalte_GP,MATCH(Dashboard_Basis!HU$2&Dashboard_Basis!HU$1&Dashboard_Basis!$A4&Auswahl_Bundesland,Basisdaten!$A:$A,0))) -> 2215 | HV4: =IF(ISERROR(INDEX(Spalte_GP,MATCH(Dashboard_Basis!HV$2&Dashboard_Basis!HV$1&Dashboard_Basis!$A4&Auswahl_Bundesland,Basisdaten!$A:$A,0))),"-",INDEX(Spalte_GP,MATCH(Dashboard_Basis!HV$2&Dashboard_Basis!HV$1&Dashboard_Basis!$A4&Auswahl_Bundesland,Basisdaten!$A:$A,0))) -> 2220 | HW4: =IF(ISERROR(INDEX(Spalte_GP,MATCH(Dashboard_Basis!HW$2&Dashboard_Basis!HW$1&Dashboard_Basis!$A4&Auswahl_Bundesland,Basisdaten!$A:$A,0))),"-",INDEX(Spalte_GP,MATCH(Dashboard_Basis!HW$2&Dashboard_Basis!HW$1&Dashboard_Basis!$A4&Auswahl_Bundesland,Basisdaten!$A:$A,0))) -> 2258 | HX4: =IF(ISERROR(INDEX(Spalte_GP,MATCH(Dashboard_Basis!HX$2&Dashboard_Basis!HX$1&Dashboard_Basis!$A4&Auswahl_Bundesland,Basisdaten!$A:$A,0))),"-",INDEX(Spalte_GP,MATCH(Dashboard_Basis!HX$2&Dashboard_Basis!HX$1&Dashboard_Basis!$A4&Auswahl_Bundesland,Basisdaten!$A:$A,0))) -> - | HY4: =IF(ISERROR(INDEX(Spalte_GP,MATCH(Dashboard_Basis!HY$2&Dashboard_Basis!HY$1&Dashboard_Basis!$A4&Auswahl_Bundesland,Basisdaten!$A:$A,0))),"-",INDEX(Spalte_GP,MATCH(Dashboard_Basis!HY$2&Dashboard_Basis!HY$1&Dashboard_Basis!$A4&Auswahl_Bundesland,Basisdaten!$A:$A,0))) -> - | HZ4: =IF(ISERROR(INDEX(Spalte_GP,MATCH(Dashboard_Basis!HZ$2&Dashboard_Basis!HZ$1&Dashboard_Basis!$A4&Auswahl_Bundesland,Basisdaten!$A:$A,0))),"-",INDEX(Spalte_GP,MATCH(Dashboard_Basis!HZ$2&Dashboard_Basis!HZ$1&Dashboard_Basis!$A4&Auswahl_Bundesland,Basisdaten!$A:$A,0))) -> - | IA4: 2173 | IB4: 2215 | IC4: 2231 | ID4: - | IE4: 2194 | IF4: 2206.333333 | IG4: =IF(COUNT(OFFSET(HO4,,,,Anzahl_Monate))=Anzahl_Monate,SUM(OFFSET(HO4,,,,Anzahl_Monate))/Anzahl_Monate,"-") -> 2161 | IH4: - | II4: =IF(ISERROR(INDEX(Spalte_GP,MATCH(Dashboard_Basis!II$2&Dashboard_Basis!II$1&Dashboard_Basis!$A4&Auswahl_Bundesland,Basisdaten!$A:$A,0))),"-",INDEX(Spalte_GP,MATCH(Dashboard_Basis!II$2&Dashboard_Basis!II$1&Dashboard_Basis!$A4&Auswahl_Bundesland,Basisdaten!$A:$A,0))) -> - | IJ4: =IF(ISERROR(INDEX(Spalte_GP,MATCH(Dashboard_Basis!IJ$2&Dashboard_Basis!IJ$1&Dashboard_Basis!$A4&Auswahl_Bundesland,Basisdaten!$A:$A,0))),"-",INDEX(Spalte_GP,MATCH(Dashboard_Basis!IJ$2&Dashboard_Basis!IJ$1&Dashboard_Basis!$A4&Auswahl_Bundesland,Basisdaten!$A:$A,0))) -> - | IK4: =IF(ISERROR(INDEX(Spalte_GP,MATCH(Dashboard_Basis!IK$2&Dashboard_Basis!IK$1&Dashboard_Basis!$A4&Auswahl_Bundesland,Basisdaten!$A:$A,0))),"-",INDEX(Spalte_GP,MATCH(Dashboard_Basis!IK$2&Dashboard_Basis!IK$1&Dashboard_Basis!$A4&Auswahl_Bundesland,Basisdaten!$A:$A,0))) -> - | IL4: =IF(ISERROR(INDEX(Spalte_GP,MATCH(Dashboard_Basis!IL$2&Dashboard_Basis!IL$1&Dashboard_Basis!$A4&Auswahl_Bundesland,Basisdaten!$A:$A,0))),"-",INDEX(Spalte_GP,MATCH(Dashboard_Basis!IL$2&Dashboard_Basis!IL$1&Dashboard_Basis!$A4&Auswahl_Bundesland,Basisdaten!$A:$A,0))) -> - | IM4: =IF(ISERROR(INDEX(Spalte_GP,MATCH(Dashboard_Basis!IM$2&Dashboard_Basis!IM$1&Dashboard_Basis!$A4&Auswahl_Bundesland,Basisdaten!$A:$A,0))),"-",INDEX(Spalte_GP,MATCH(Dashboard_Basis!IM$2&Dashboard_Basis!IM$1&Dashboard_Basis!$A4&Auswahl_Bundesland,Basisdaten!$A:$A,0))) -> - | IN4: =IF(ISERROR(INDEX(Spalte_GP,MATCH(Dashboard_Basis!IN$2&Dashboard_Basis!IN$1&Dashboard_Basis!$A4&Auswahl_Bundesland,Basisdaten!$A:$A,0))),"-",INDEX(Spalte_GP,MATCH(Dashboard_Basis!IN$2&Dashboard_Basis!IN$1&Dashboard_Basis!$A4&Auswahl_Bundesland,Basisdaten!$A:$A,0))) -> - | IO4: =IF(ISERROR(INDEX(Spalte_GP,MATCH(Dashboard_Basis!IO$2&Dashboard_Basis!IO$1&Dashboard_Basis!$A4&Auswahl_Bundesland,Basisdaten!$A:$A,0))),"-",INDEX(Spalte_GP,MATCH(Dashboard_Basis!IO$2&Dashboard_Basis!IO$1&Dashboard_Basis!$A4&Auswahl_Bundesland,Basisdaten!$A:$A,0))) -> - | IP4: =IF(ISERROR(INDEX(Spalte_GP,MATCH(Dashboard_Basis!IP$2&Dashboard_Basis!IP$1&Dashboard_Basis!$A4&Auswahl_Bundesland,Basisdaten!$A:$A,0))),"-",INDEX(Spalte_GP,MATCH(Dashboard_Basis!IP$2&Dashboard_Basis!IP$1&Dashboard_Basis!$A4&Auswahl_Bundesland,Basisdaten!$A:$A,0))) -> - | IQ4: =IF(ISERROR(INDEX(Spalte_GP,MATCH(Dashboard_Basis!IQ$2&Dashboard_Basis!IQ$1&Dashboard_Basis!$A4&Auswahl_Bundesland,Basisdaten!$A:$A,0))),"-",INDEX(Spalte_GP,MATCH(Dashboard_Basis!IQ$2&Dashboard_Basis!IQ$1&Dashboard_Basis!$A4&Auswahl_Bundesland,Basisdaten!$A:$A,0))) -> - | IR4: =IF(ISERROR(INDEX(Spalte_GP,MATCH(Dashboard_Basis!IR$2&Dashboard_Basis!IR$1&Dashboard_Basis!$A4&Auswahl_Bundesland,Basisdaten!$A:$A,0))),"-",INDEX(Spalte_GP,MATCH(Dashboard_Basis!IR$2&Dashboard_Basis!IR$1&Dashboard_Basis!$A4&Auswahl_Bundesland,Basisdaten!$A:$A,0))) -> - | IS4: =IF(ISERROR(INDEX(Spalte_GP,MATCH(Dashboard_Basis!IS$2&Dashboard_Basis!IS$1&Dashboard_Basis!$A4&Auswahl_Bundesland,Basisdaten!$A:$A,0))),"-",INDEX(Spalte_GP,MATCH(Dashboard_Basis!IS$2&Dashboard_Basis!IS$1&Dashboard_Basis!$A4&Auswahl_Bundesland,Basisdaten!$A:$A,0))) -> - | IT4: =IF(ISERROR(INDEX(Spalte_GP,MATCH(Dashboard_Basis!IT$2&Dashboard_Basis!IT$1&Dashboard_Basis!$A4&Auswahl_Bundesland,Basisdaten!$A:$A,0))),"-",INDEX(Spalte_GP,MATCH(Dashboard_Basis!IT$2&Dashboard_Basis!IT$1&Dashboard_Basis!$A4&Auswahl_Bundesland,Basisdaten!$A:$A,0))) -> - | IU4: - | IV4: - | IW4: - | IX4: - | IY4: - | IZ4: - | JA4: =IF(COUNT(OFFSET(II4,,,,Anzahl_Monate))=Anzahl_Monate,SUM(OFFSET(II4,,,,Anzahl_Monate))/Anzahl_Monate,"-") -> - | JB4: -
A5: 2030 | B5: Stein- u. keramische Industrie | C5: =IF(ISERROR(INDEX(Spalte_GP,MATCH(Dashboard_Basis!C$2&Dashboard_Basis!C$1&Dashboard_Basis!$A5&Auswahl_Bundesland,Basisdaten!$A:$A,0))),"-",INDEX(Spalte_GP,MATCH(Dashboard_Basis!C$2&Dashboard_Basis!C$1&Dashboard_Basis!$A5&Auswahl_Bundesland,Basisdaten!$A:$A,0))) -> 13031 | D5: =IF(ISERROR(INDEX(Spalte_GP,MATCH(Dashboard_Basis!D$2&Dashboard_Basis!D$1&Dashboard_Basis!$A5&Auswahl_Bundesland,Basisdaten!$A:$A,0))),"-",INDEX(Spalte_GP,MATCH(Dashboard_Basis!D$2&Dashboard_Basis!D$1&Dashboard_Basis!$A5&Auswahl_Bundesland,Basisdaten!$A:$A,0))) -> 13406 | E5: =IF(ISERROR(INDEX(Spalte_GP,MATCH(Dashboard_Basis!E$2&Dashboard_Basis!E$1&Dashboard_Basis!$A5&Auswahl_Bundesland,Basisdaten!$A:$A,0))),"-",INDEX(Spalte_GP,MATCH(Dashboard_Basis!E$2&Dashboard_Basis!E$1&Dashboard_Basis!$A5&Auswahl_Bundesland,Basisdaten!$A:$A,0))) -> 13909 | F5: =IF(ISERROR(INDEX(Spalte_GP,MATCH(Dashboard_Basis!F$2&Dashboard_Basis!F$1&Dashboard_Basis!$A5&Auswahl_Bundesland,Basisdaten!$A:$A,0))),"-",INDEX(Spalte_GP,MATCH(Dashboard_Basis!F$2&Dashboard_Basis!F$1&Dashboard_Basis!$A5&Auswahl_Bundesland,Basisdaten!$A:$A,0))) -> 14164 | G5: =IF(ISERROR(INDEX(Spalte_GP,MATCH(Dashboard_Basis!G$2&Dashboard_Basis!G$1&Dashboard_Basis!$A5&Auswahl_Bundesland,Basisdaten!$A:$A,0))),"-",INDEX(Spalte_GP,MATCH(Dashboard_Basis!G$2&Dashboard_Basis!G$1&Dashboard_Basis!$A5&Auswahl_Bundesland,Basisdaten!$A:$A,0))) -> 14212 | H5: =IF(ISERROR(INDEX(Spalte_GP,MATCH(Dashboard_Basis!H$2&Dashboard_Basis!H$1&Dashboard_Basis!$A5&Auswahl_Bundesland,Basisdaten!$A:$A,0))),"-",INDEX(Spalte_GP,MATCH(Dashboard_Basis!H$2&Dashboard_Basis!H$1&Dashboard_Basis!$A5&Auswahl_Bundesland,Basisdaten!$A:$A,0))) -> 14215 | I5: =IF(ISERROR(INDEX(Spalte_GP,MATCH(Dashboard_Basis!I$2&Dashboard_Basis!I$1&Dashboard_Basis!$A5&Auswahl_Bundesland,Basisdaten!$A:$A,0))),"-",INDEX(Spalte_GP,MATCH(Dashboard_Basis!I$2&Dashboard_Basis!I$1&Dashboard_Basis!$A5&Auswahl_Bundesland,Basisdaten!$A:$A,0))) -> 14340 | J5: =IF(ISERROR(INDEX(Spalte_GP,MATCH(Dashboard_Basis!J$2&Dashboard_Basis!J$1&Dashboard_Basis!$A5&Auswahl_Bundesland,Basisdaten!$A:$A,0))),"-",INDEX(Spalte_GP,MATCH(Dashboard_Basis!J$2&Dashboard_Basis!J$1&Dashboard_Basis!$A5&Auswahl_Bundesland,Basisdaten!$A:$A,0))) -> 14360 | K5: =IF(ISERROR(INDEX(Spalte_GP,MATCH(Dashboard_Basis!K$2&Dashboard_Basis!K$1&Dashboard_Basis!$A5&Auswahl_Bundesland,Basisdaten!$A:$A,0))),"-",INDEX(Spalte_GP,MATCH(Dashboard_Basis!K$2&Dashboard_Basis!K$1&Dashboard_Basis!$A5&Auswahl_Bundesland,Basisdaten!$A:$A,0))) -> 14205 | L5: =IF(ISERROR(INDEX(Spalte_GP,MATCH(Dashboard_Basis!L$2&Dashboard_Basis!L$1&Dashboard_Basis!$A5&Auswahl_Bundesland,Basisdaten!$A:$A,0))),"-",INDEX(Spalte_GP,MATCH(Dashboard_Basis!L$2&Dashboard_Basis!L$1&Dashboard_Basis!$A5&Auswahl_Bundesland,Basisdaten!$A:$A,0))) -> 14085 | M5: =IF(ISERROR(INDEX(Spalte_GP,MATCH(Dashboard_Basis!M$2&Dashboard_Basis!M$1&Dashboard_Basis!$A5&Auswahl_Bundesland,Basisdaten!$A:$A,0))),"-",INDEX(Spalte_GP,MATCH(Dashboard_Basis!M$2&Dashboard_Basis!M$1&Dashboard_Basis!$A5&Auswahl_Bundesland,Basisdaten!$A:$A,0))) -> 13910 | N5: =IF(ISERROR(INDEX(Spalte_GP,MATCH(Dashboard_Basis!N$2&Dashboard_Basis!N$1&Dashboard_Basis!$A5&Auswahl_Bundesland,Basisdaten!$A:$A,0))),"-",INDEX(Spalte_GP,MATCH(Dashboard_Basis!N$2&Dashboard_Basis!N$1&Dashboard_Basis!$A5&Auswahl_Bundesland,Basisdaten!$A:$A,0))) -> 13291 | O5: 13448.66667 | P5: 14197 | Q5: 14301.66667 | R5: 13762 | S5: 13822.83333 | T5: 13982.44444 | U5: =IF(COUNT(OFFSET(C5,,,,Anzahl_Monate))=Anzahl_Monate,SUM(OFFSET(C5,,,,Anzahl_Monate))/Anzahl_Monate,"-") -> 13031 | V5: 13927.33333 | W5: =IF(ISERROR(INDEX(Spalte_GP,MATCH(Dashboard_Basis!W$2&Dashboard_Basis!W$1&Dashboard_Basis!$A5&Auswahl_Bundesland,Basisdaten!$A:$A,0))),"-",INDEX(Spalte_GP,MATCH(Dashboard_Basis!W$2&Dashboard_Basis!W$1&Dashboard_Basis!$A5&Auswahl_Bundesland,Basisdaten!$A:$A,0))) -> 12917 | X5: =IF(ISERROR(INDEX(Spalte_GP,MATCH(Dashboard_Basis!X$2&Dashboard_Basis!X$1&Dashboard_Basis!$A5&Auswahl_Bundesland,Basisdaten!$A:$A,0))),"-",INDEX(Spalte_GP,MATCH(Dashboard_Basis!X$2&Dashboard_Basis!X$1&Dashboard_Basis!$A5&Auswahl_Bundesland,Basisdaten!$A:$A,0))) -> 13136 | Y5: =IF(ISERROR(INDEX(Spalte_GP,MATCH(Dashboard_Basis!Y$2&Dashboard_Basis!Y$1&Dashboard_Basis!$A5&Auswahl_Bundesland,Basisdaten!$A:$A,0))),"-",INDEX(Spalte_GP,MATCH(Dashboard_Basis!Y$2&Dashboard_Basis!Y$1&Dashboard_Basis!$A5&Auswahl_Bundesland,Basisdaten!$A:$A,0))) -> 13647 | Z5: =IF(ISERROR(INDEX(Spalte_GP,MATCH(Dashboard_Basis!Z$2&Dashboard_Basis!Z$1&Dashboard_Basis!$A5&Auswahl_Bundesland,Basisdaten!$A:$A,0))),"-",INDEX(Spalte_GP,MATCH(Dashboard_Basis!Z$2&Dashboard_Basis!Z$1&Dashboard_Basis!$A5&Auswahl_Bundesland,Basisdaten!$A:$A,0))) -> 13823 | AA5: =IF(ISERROR(INDEX(Spalte_GP,MATCH(Dashboard_Basis!AA$2&Dashboard_Basis!AA$1&Dashboard_Basis!$A5&Auswahl_Bundesland,Basisdaten!$A:$A,0))),"-",INDEX(Spalte_GP,MATCH(Dashboard_Basis!AA$2&Dashboard_Basis!AA$1&Dashboard_Basis!$A5&Auswahl_Bundesland,Basisdaten!$A:$A,0))) -> 13854 | AB5: =IF(ISERROR(INDEX(Spalte_GP,MATCH(Dashboard_Basis!AB$2&Dashboard_Basis!AB$1&Dashboard_Basis!$A5&Auswahl_Bundesland,Basisdaten!$A:$A,0))),"-",INDEX(Spalte_GP,MATCH(Dashboard_Basis!AB$2&Dashboard_Basis!AB$1&Dashboard_Basis!$A5&Auswahl_Bundesland,Basisdaten!$A:$A,0))) -> 13960 | AC5: =IF(ISERROR(INDEX(Spalte_GP,MATCH(Dashboard_Basis!AC$2&Dashboard_Basis!AC$1&Dashboard_Basis!$A5&Auswahl_Bundesland,Basisdaten!$A:$A,0))),"-",INDEX(Spalte_GP,MATCH(Dashboard_Basis!AC$2&Dashboard_Basis!AC$1&Dashboard_Basis!$A5&Auswahl_Bundesland,Basisdaten!$A:$A,0))) -> 14247 | AD5: =IF(ISERROR(INDEX(Spalte_GP,MATCH(Dashboard_Basis!AD$2&Dashboard_Basis!AD$1&Dashboard_Basis!$A5&Auswahl_Bundesland,Basisdaten!$A:$A,0))),"-",INDEX(Spalte_GP,MATCH(Dashboard_Basis!AD$2&Dashboard_Basis!AD$1&Dashboard_Basis!$A5&Auswahl_Bundesland,Basisdaten!$A:$A,0))) -> 14132 | AE5: =IF(ISERROR(INDEX(Spalte_GP,MATCH(Dashboard_Basis!AE$2&Dashboard_Basis!AE$1&Dashboard_Basis!$A5&Auswahl_Bundesland,Basisdaten!$A:$A,0))),"-",INDEX(Spalte_GP,MATCH(Dashboard_Basis!AE$2&Dashboard_Basis!AE$1&Dashboard_Basis!$A5&Auswahl_Bundesland,Basisdaten!$A:$A,0))) -> 13873 | AF5: =IF(ISERROR(INDEX(Spalte_GP,MATCH(Dashboard_Basis!AF$2&Dashboard_Basis!AF$1&Dashboard_Basis!$A5&Auswahl_Bundesland,Basisdaten!$A:$A,0))),"-",INDEX(Spalte_GP,MATCH(Dashboard_Basis!AF$2&Dashboard_Basis!AF$1&Dashboard_Basis!$A5&Auswahl_Bundesland,Basisdaten!$A:$A,0))) -> 13764 | AG5: =IF(ISERROR(INDEX(Spalte_GP,MATCH(Dashboard_Basis!AG$2&Dashboard_Basis!AG$1&Dashboard_Basis!$A5&Auswahl_Bundesland,Basisdaten!$A:$A,0))),"-",INDEX(Spalte_GP,MATCH(Dashboard_Basis!AG$2&Dashboard_Basis!AG$1&Dashboard_Basis!$A5&Auswahl_Bundesland,Basisdaten!$A:$A,0))) -> 13620 | AH5: =IF(ISERROR(INDEX(Spalte_GP,MATCH(Dashboard_Basis!AH$2&Dashboard_Basis!AH$1&Dashboard_Basis!$A5&Auswahl_Bundesland,Basisdaten!$A:$A,0))),"-",INDEX(Spalte_GP,MATCH(Dashboard_Basis!AH$2&Dashboard_Basis!AH$1&Dashboard_Basis!$A5&Auswahl_Bundesland,Basisdaten!$A:$A,0))) -> 12955 | AI5: 13233.33333 | AJ5: 13879 | AK5: 14084 | AL5: 13446.33333 | AM5: 13556.16667 | AN5: 13732.11111 | AO5: 12917 | AP5: 13660.66667 | AQ5: =IF(ISERROR(INDEX(Spalte_GP,MATCH(Dashboard_Basis!AQ$2&Dashboard_Basis!AQ$1&Dashboard_Basis!$A5&Auswahl_Bundesland,Basisdaten!$A:$A,0))),"-",INDEX(Spalte_GP,MATCH(Dashboard_Basis!AQ$2&Dashboard_Basis!AQ$1&Dashboard_Basis!$A5&Auswahl_Bundesland,Basisdaten!$A:$A,0))) -> 12666 | AR5: =IF(ISERROR(INDEX(Spalte_GP,MATCH(Dashboard_Basis!AR$2&Dashboard_Basis!AR$1&Dashboard_Basis!$A5&Auswahl_Bundesland,Basisdaten!$A:$A,0))),"-",INDEX(Spalte_GP,MATCH(Dashboard_Basis!AR$2&Dashboard_Basis!AR$1&Dashboard_Basis!$A5&Auswahl_Bundesland,Basisdaten!$A:$A,0))) -> 12870 | AS5: =IF(ISERROR(INDEX(Spalte_GP,MATCH(Dashboard_Basis!AS$2&Dashboard_Basis!AS$1&Dashboard_Basis!$A5&Auswahl_Bundesland,Basisdaten!$A:$A,0))),"-",INDEX(Spalte_GP,MATCH(Dashboard_Basis!AS$2&Dashboard_Basis!AS$1&Dashboard_Basis!$A5&Auswahl_Bundesland,Basisdaten!$A:$A,0))) -> 13332 | AT5: =IF(ISERROR(INDEX(Spalte_GP,MATCH(Dashboard_Basis!AT$2&Dashboard_Basis!AT$1&Dashboard_Basis!$A5&Auswahl_Bundesland,Basisdaten!$A:$A,0))),"-",INDEX(Spalte_GP,MATCH(Dashboard_Basis!AT$2&Dashboard_Basis!AT$1&Dashboard_Basis!$A5&Auswahl_Bundesland,Basisdaten!$A:$A,0))) -> 13733 | AU5: =IF(ISERROR(INDEX(Spalte_GP,MATCH(Dashboard_Basis!AU$2&Dashboard_Basis!AU$1&Dashboard_Basis!$A5&Auswahl_Bundesland,Basisdaten!$A:$A,0))),"-",INDEX(Spalte_GP,MATCH(Dashboard_Basis!AU$2&Dashboard_Basis!AU$1&Dashboard_Basis!$A5&Auswahl_Bundesland,Basisdaten!$A:$A,0))) -> 13775 | AV5: =IF(ISERROR(INDEX(Spalte_GP,MATCH(Dashboard_Basis!AV$2&Dashboard_Basis!AV$1&Dashboard_Basis!$A5&Auswahl_Bundesland,Basisdaten!$A:$A,0))),"-",INDEX(Spalte_GP,MATCH(Dashboard_Basis!AV$2&Dashboard_Basis!AV$1&Dashboard_Basis!$A5&Auswahl_Bundesland,Basisdaten!$A:$A,0))) -> 13781 | AW5: =IF(ISERROR(INDEX(Spalte_GP,MATCH(Dashboard_Basis!AW$2&Dashboard_Basis!AW$1&Dashboard_Basis!$A5&Auswahl_Bundesland,Basisdaten!$A:$A,0))),"-",INDEX(Spalte_GP,MATCH(Dashboard_Basis!AW$2&Dashboard_Basis!AW$1&Dashboard_Basis!$A5&Auswahl_Bundesland,Basisdaten!$A:$A,0))) -> 14125 | AX5: =IF(ISERROR(INDEX(Spalte_GP,MATCH(Dashboard_Basis!AX$2&Dashboard_Basis!AX$1&Dashboard_Basis!$A5&Auswahl_Bundesland,Basisdaten!$A:$A,0))),"-",INDEX(Spalte_GP,MATCH(Dashboard_Basis!AX$2&Dashboard_Basis!AX$1&Dashboard_Basis!$A5&Auswahl_Bundesland,Basisdaten!$A:$A,0))) -> 13848 | AY5: =IF(ISERROR(INDEX(Spalte_GP,MATCH(Dashboard_Basis!AY$2&Dashboard_Basis!AY$1&Dashboard_Basis!$A5&Auswahl_Bundesland,Basisdaten!$A:$A,0))),"-",INDEX(Spalte_GP,MATCH(Dashboard_Basis!AY$2&Dashboard_Basis!AY$1&Dashboard_Basis!$A5&Auswahl_Bundesland,Basisdaten!$A:$A,0))) -> 13708 | AZ5: =IF(ISERROR(INDEX(Spalte_GP,MATCH(Dashboard_Basis!AZ$2&Dashboard_Basis!AZ$1&Dashboard_Basis!$A5&Auswahl_Bundesland,Basisdaten!$A:$A,0))),"-",INDEX(Spalte_GP,MATCH(Dashboard_Basis!AZ$2&Dashboard_Basis!AZ$1&Dashboard_Basis!$A5&Auswahl_Bundesland,Basisdaten!$A:$A,0))) -> 13561 | BA5: =IF(ISERROR(INDEX(Spalte_GP,MATCH(Dashboard_Basis!BA$2&Dashboard_Basis!BA$1&Dashboard_Basis!$A5&Auswahl_Bundesland,Basisdaten!$A:$A,0))),"-",INDEX(Spalte_GP,MATCH(Dashboard_Basis!BA$2&Dashboard_Basis!BA$1&Dashboard_Basis!$A5&Auswahl_Bundesland,Basisdaten!$A:$A,0))) -> 13435 | BB5: =IF(ISERROR(INDEX(Spalte_GP,MATCH(Dashboard_Basis!BB$2&Dashboard_Basis!BB$1&Dashboard_Basis!$A5&Auswahl_Bundesland,Basisdaten!$A:$A,0))),"-",INDEX(Spalte_GP,MATCH(Dashboard_Basis!BB$2&Dashboard_Basis!BB$1&Dashboard_Basis!$A5&Auswahl_Bundesland,Basisdaten!$A:$A,0))) -> 12894 | BC5: 12956 | BD5: 13763 | BE5: 13893.66667 | BF5: 13296.66667 | BG5: 13359.5 | BH5: 13537.55556 | BI5: 12666 | BJ5: 13477.33333 | BK5: =IF(ISERROR(INDEX(Spalte_GP,MATCH(Dashboard_Basis!BK$2&Dashboard_Basis!BK$1&Dashboard_Basis!$A5&Auswahl_Bundesland,Basisdaten!$A:$A,0))),"-",INDEX(Spalte_GP,MATCH(Dashboard_Basis!BK$2&Dashboard_Basis!BK$1&Dashboard_Basis!$A5&Auswahl_Bundesland,Basisdaten!$A:$A,0))) -> 12525 | BL5: =IF(ISERROR(INDEX(Spalte_GP,MATCH(Dashboard_Basis!BL$2&Dashboard_Basis!BL$1&Dashboard_Basis!$A5&Auswahl_Bundesland,Basisdaten!$A:$A,0))),"-",INDEX(Spalte_GP,MATCH(Dashboard_Basis!BL$2&Dashboard_Basis!BL$1&Dashboard_Basis!$A5&Auswahl_Bundesland,Basisdaten!$A:$A,0))) -> 12700 | BM5: =IF(ISERROR(INDEX(Spalte_GP,MATCH(Dashboard_Basis!BM$2&Dashboard_Basis!BM$1&Dashboard_Basis!$A5&Auswahl_Bundesland,Basisdaten!$A:$A,0))),"-",INDEX(Spalte_GP,MATCH(Dashboard_Basis!BM$2&Dashboard_Basis!BM$1&Dashboard_Basis!$A5&Auswahl_Bundesland,Basisdaten!$A:$A,0))) -> 13252 | BN5: =IF(ISERROR(INDEX(Spalte_GP,MATCH(Dashboard_Basis!BN$2&Dashboard_Basis!BN$1&Dashboard_Basis!$A5&Auswahl_Bundesland,Basisdaten!$A:$A,0))),"-",INDEX(Spalte_GP,MATCH(Dashboard_Basis!BN$2&Dashboard_Basis!BN$1&Dashboard_Basis!$A5&Auswahl_Bundesland,Basisdaten!$A:$A,0))) -> 13355 | BO5: =IF(ISERROR(INDEX(Spalte_GP,MATCH(Dashboard_Basis!BO$2&Dashboard_Basis!BO$1&Dashboard_Basis!$A5&Auswahl_Bundesland,Basisdaten!$A:$A,0))),"-",INDEX(Spalte_GP,MATCH(Dashboard_Basis!BO$2&Dashboard_Basis!BO$1&Dashboard_Basis!$A5&Auswahl_Bundesland,Basisdaten!$A:$A,0))) -> 13387 | BP5: =IF(ISERROR(INDEX(Spalte_GP,MATCH(Dashboard_Basis!BP$2&Dashboard_Basis!BP$1&Dashboard_Basis!$A5&Auswahl_Bundesland,Basisdaten!$A:$A,0))),"-",INDEX(Spalte_GP,MATCH(Dashboard_Basis!BP$2&Dashboard_Basis!BP$1&Dashboard_Basis!$A5&Auswahl_Bundesland,Basisdaten!$A:$A,0))) -> 13491 | BQ5: =IF(ISERROR(INDEX(Spalte_GP,MATCH(Dashboard_Basis!BQ$2&Dashboard_Basis!BQ$1&Dashboard_Basis!$A5&Auswahl_Bundesland,Basisdaten!$A:$A,0))),"-",INDEX(Spalte_GP,MATCH(Dashboard_Basis!BQ$2&Dashboard_Basis!BQ$1&Dashboard_Basis!$A5&Auswahl_Bundesland,Basisdaten!$A:$A,0))) -> 13788 | BR5: =IF(ISERROR(INDEX(Spalte_GP,MATCH(Dashboard_Basis!BR$2&Dashboard_Basis!BR$1&Dashboard_Basis!$A5&Auswahl_Bundesland,Basisdaten!$A:$A,0))),"-",INDEX(Spalte_GP,MATCH(Dashboard_Basis!BR$2&Dashboard_Basis!BR$1&Dashboard_Basis!$A5&Auswahl_Bundesland,Basisdaten!$A:$A,0))) -> 13525 | BS5: =IF(ISERROR(INDEX(Spalte_GP,MATCH(Dashboard_Basis!BS$2&Dashboard_Basis!BS$1&Dashboard_Basis!$A5&Auswahl_Bundesland,Basisdaten!$A:$A,0))),"-",INDEX(Spalte_GP,MATCH(Dashboard_Basis!BS$2&Dashboard_Basis!BS$1&Dashboard_Basis!$A5&Auswahl_Bundesland,Basisdaten!$A:$A,0))) -> 13444 | BT5: =IF(ISERROR(INDEX(Spalte_GP,MATCH(Dashboard_Basis!BT$2&Dashboard_Basis!BT$1&Dashboard_Basis!$A5&Auswahl_Bundesland,Basisdaten!$A:$A,0))),"-",INDEX(Spalte_GP,MATCH(Dashboard_Basis!BT$2&Dashboard_Basis!BT$1&Dashboard_Basis!$A5&Auswahl_Bundesland,Basisdaten!$A:$A,0))) -> 13296 | BU5: =IF(ISERROR(INDEX(Spalte_GP,MATCH(Dashboard_Basis!BU$2&Dashboard_Basis!BU$1&Dashboard_Basis!$A5&Auswahl_Bundesland,Basisdaten!$A:$A,0))),"-",INDEX(Spalte_GP,MATCH(Dashboard_Basis!BU$2&Dashboard_Basis!BU$1&Dashboard_Basis!$A5&Auswahl_Bundesland,Basisdaten!$A:$A,0))) -> 13232 | BV5: =IF(ISERROR(INDEX(Spalte_GP,MATCH(Dashboard_Basis!BV$2&Dashboard_Basis!BV$1&Dashboard_Basis!$A5&Auswahl_Bundesland,Basisdaten!$A:$A,0))),"-",INDEX(Spalte_GP,MATCH(Dashboard_Basis!BV$2&Dashboard_Basis!BV$1&Dashboard_Basis!$A5&Auswahl_Bundesland,Basisdaten!$A:$A,0))) -> 12559 | BW5: 12825.66667 | BX5: 13411 | BY5: 13585.66667 | BZ5: 13029 | CA5: 13118.33333 | CB5: 13274.11111 | CC5: 12525 | CD5: 13212.83333 | CE5: =IF(ISERROR(INDEX(Spalte_GP,MATCH(Dashboard_Basis!CE$2&Dashboard_Basis!CE$1&Dashboard_Basis!$A5&Auswahl_Bundesland,Basisdaten!$A:$A,0))),"-",INDEX(Spalte_GP,MATCH(Dashboard_Basis!CE$2&Dashboard_Basis!CE$1&Dashboard_Basis!$A5&Auswahl_Bundesland,Basisdaten!$A:$A,0))) -> 12343 | CF5: =IF(ISERROR(INDEX(Spalte_GP,MATCH(Dashboard_Basis!CF$2&Dashboard_Basis!CF$1&Dashboard_Basis!$A5&Auswahl_Bundesland,Basisdaten!$A:$A,0))),"-",INDEX(Spalte_GP,MATCH(Dashboard_Basis!CF$2&Dashboard_Basis!CF$1&Dashboard_Basis!$A5&Auswahl_Bundesland,Basisdaten!$A:$A,0))) -> 12514 | CG5: =IF(ISERROR(INDEX(Spalte_GP,MATCH(Dashboard_Basis!CG$2&Dashboard_Basis!CG$1&Dashboard_Basis!$A5&Auswahl_Bundesland,Basisdaten!$A:$A,0))),"-",INDEX(Spalte_GP,MATCH(Dashboard_Basis!CG$2&Dashboard_Basis!CG$1&Dashboard_Basis!$A5&Auswahl_Bundesland,Basisdaten!$A:$A,0))) -> 13038 | CH5: =IF(ISERROR(INDEX(Spalte_GP,MATCH(Dashboard_Basis!CH$2&Dashboard_Basis!CH$1&Dashboard_Basis!$A5&Auswahl_Bundesland,Basisdaten!$A:$A,0))),"-",INDEX(Spalte_GP,MATCH(Dashboard_Basis!CH$2&Dashboard_Basis!CH$1&Dashboard_Basis!$A5&Auswahl_Bundesland,Basisdaten!$A:$A,0))) -> 13137 | CI5: =IF(ISERROR(INDEX(Spalte_GP,MATCH(Dashboard_Basis!CI$2&Dashboard_Basis!CI$1&Dashboard_Basis!$A5&Auswahl_Bundesland,Basisdaten!$A:$A,0))),"-",INDEX(Spalte_GP,MATCH(Dashboard_Basis!CI$2&Dashboard_Basis!CI$1&Dashboard_Basis!$A5&Auswahl_Bundesland,Basisdaten!$A:$A,0))) -> 13243 | CJ5: =IF(ISERROR(INDEX(Spalte_GP,MATCH(Dashboard_Basis!CJ$2&Dashboard_Basis!CJ$1&Dashboard_Basis!$A5&Auswahl_Bundesland,Basisdaten!$A:$A,0))),"-",INDEX(Spalte_GP,MATCH(Dashboard_Basis!CJ$2&Dashboard_Basis!CJ$1&Dashboard_Basis!$A5&Auswahl_Bundesland,Basisdaten!$A:$A,0))) -> 13387 | CK5: =IF(ISERROR(INDEX(Spalte_GP,MATCH(Dashboard_Basis!CK$2&Dashboard_Basis!CK$1&Dashboard_Basis!$A5&Auswahl_Bundesland,Basisdaten!$A:$A,0))),"-",INDEX(Spalte_GP,MATCH(Dashboard_Basis!CK$2&Dashboard_Basis!CK$1&Dashboard_Basis!$A5&Auswahl_Bundesland,Basisdaten!$A:$A,0))) -> 13700 | CL5: =IF(ISERROR(INDEX(Spalte_GP,MATCH(Dashboard_Basis!CL$2&Dashboard_Basis!CL$1&Dashboard_Basis!$A5&Auswahl_Bundesland,Basisdaten!$A:$A,0))),"-",INDEX(Spalte_GP,MATCH(Dashboard_Basis!CL$2&Dashboard_Basis!CL$1&Dashboard_Basis!$A5&Auswahl_Bundesland,Basisdaten!$A:$A,0))) -> 13567 | CM5: =IF(ISERROR(INDEX(Spalte_GP,MATCH(Dashboard_Basis!CM$2&Dashboard_Basis!CM$1&Dashboard_Basis!$A5&Auswahl_Bundesland,Basisdaten!$A:$A,0))),"-",INDEX(Spalte_GP,MATCH(Dashboard_Basis!CM$2&Dashboard_Basis!CM$1&Dashboard_Basis!$A5&Auswahl_Bundesland,Basisdaten!$A:$A,0))) -> 13410 | CN5: =IF(ISERROR(INDEX(Spalte_GP,MATCH(Dashboard_Basis!CN$2&Dashboard_Basis!CN$1&Dashboard_Basis!$A5&Auswahl_Bundesland,Basisdaten!$A:$A,0))),"-",INDEX(Spalte_GP,MATCH(Dashboard_Basis!CN$2&Dashboard_Basis!CN$1&Dashboard_Basis!$A5&Auswahl_Bundesland,Basisdaten!$A:$A,0))) -> 13339 | CO5: =IF(ISERROR(INDEX(Spalte_GP,MATCH(Dashboard_Basis!CO$2&Dashboard_Basis!CO$1&Dashboard_Basis!$A5&Auswahl_Bundesland,Basisdaten!$A:$A,0))),"-",INDEX(Spalte_GP,MATCH(Dashboard_Basis!CO$2&Dashboard_Basis!CO$1&Dashboard_Basis!$A5&Auswahl_Bundesland,Basisdaten!$A:$A,0))) -> 13250 | CP5: =IF(ISERROR(INDEX(Spalte_GP,MATCH(Dashboard_Basis!CP$2&Dashboard_Basis!CP$1&Dashboard_Basis!$A5&Auswahl_Bundesland,Basisdaten!$A:$A,0))),"-",INDEX(Spalte_GP,MATCH(Dashboard_Basis!CP$2&Dashboard_Basis!CP$1&Dashboard_Basis!$A5&Auswahl_Bundesland,Basisdaten!$A:$A,0))) -> 12788 | CQ5: 12631.66667 | CR5: 13255.66667 | CS5: 13559 | CT5: 13125.66667 | CU5: 12943.66667 | CV5: 13148.77778 | CW5: 12343 | CX5: 13143 | CY5: =IF(ISERROR(INDEX(Spalte_GP,MATCH(Dashboard_Basis!CY$2&Dashboard_Basis!CY$1&Dashboard_Basis!$A5&Auswahl_Bundesland,Basisdaten!$A:$A,0))),"-",INDEX(Spalte_GP,MATCH(Dashboard_Basis!CY$2&Dashboard_Basis!CY$1&Dashboard_Basis!$A5&Auswahl_Bundesland,Basisdaten!$A:$A,0))) -> 12280 | CZ5: =IF(ISERROR(INDEX(Spalte_GP,MATCH(Dashboard_Basis!CZ$2&Dashboard_Basis!CZ$1&Dashboard_Basis!$A5&Auswahl_Bundesland,Basisdaten!$A:$A,0))),"-",INDEX(Spalte_GP,MATCH(Dashboard_Basis!CZ$2&Dashboard_Basis!CZ$1&Dashboard_Basis!$A5&Auswahl_Bundesland,Basisdaten!$A:$A,0))) -> 12606 | DA5: =IF(ISERROR(INDEX(Spalte_GP,MATCH(Dashboard_Basis!DA$2&Dashboard_Basis!DA$1&Dashboard_Basis!$A5&Auswahl_Bundesland,Basisdaten!$A:$A,0))),"-",INDEX(Spalte_GP,MATCH(Dashboard_Basis!DA$2&Dashboard_Basis!DA$1&Dashboard_Basis!$A5&Auswahl_Bundesland,Basisdaten!$A:$A,0))) -> 12996 | DB5: =IF(ISERROR(INDEX(Spalte_GP,MATCH(Dashboard_Basis!DB$2&Dashboard_Basis!DB$1&Dashboard_Basis!$A5&Auswahl_Bundesland,Basisdaten!$A:$A,0))),"-",INDEX(Spalte_GP,MATCH(Dashboard_Basis!DB$2&Dashboard_Basis!DB$1&Dashboard_Basis!$A5&Auswahl_Bundesland,Basisdaten!$A:$A,0))) -> 13192 | DC5: =IF(ISERROR(INDEX(Spalte_GP,MATCH(Dashboard_Basis!DC$2&Dashboard_Basis!DC$1&Dashboard_Basis!$A5&Auswahl_Bundesland,Basisdaten!$A:$A,0))),"-",INDEX(Spalte_GP,MATCH(Dashboard_Basis!DC$2&Dashboard_Basis!DC$1&Dashboard_Basis!$A5&Auswahl_Bundesland,Basisdaten!$A:$A,0))) -> 13197 | DD5: =IF(ISERROR(INDEX(Spalte_GP,MATCH(Dashboard_Basis!DD$2&Dashboard_Basis!DD$1&Dashboard_Basis!$A5&Auswahl_Bundesland,Basisdaten!$A:$A,0))),"-",INDEX(Spalte_GP,MATCH(Dashboard_Basis!DD$2&Dashboard_Basis!DD$1&Dashboard_Basis!$A5&Auswahl_Bundesland,Basisdaten!$A:$A,0))) -> 13275 | DE5: =IF(ISERROR(INDEX(Spalte_GP,MATCH(Dashboard_Basis!DE$2&Dashboard_Basis!DE$1&Dashboard_Basis!$A5&Auswahl_Bundesland,Basisdaten!$A:$A,0))),"-",INDEX(Spalte_GP,MATCH(Dashboard_Basis!DE$2&Dashboard_Basis!DE$1&Dashboard_Basis!$A5&Auswahl_Bundesland,Basisdaten!$A:$A,0))) -> 13477 | DF5: =IF(ISERROR(INDEX(Spalte_GP,MATCH(Dashboard_Basis!DF$2&Dashboard_Basis!DF$1&Dashboard_Basis!$A5&Auswahl_Bundesland,Basisdaten!$A:$A,0))),"-",INDEX(Spalte_GP,MATCH(Dashboard_Basis!DF$2&Dashboard_Basis!DF$1&Dashboard_Basis!$A5&Auswahl_Bundesland,Basisdaten!$A:$A,0))) -> 13373 | DG5: =IF(ISERROR(INDEX(Spalte_GP,MATCH(Dashboard_Basis!DG$2&Dashboard_Basis!DG$1&Dashboard_Basis!$A5&Auswahl_Bundesland,Basisdaten!$A:$A,0))),"-",INDEX(Spalte_GP,MATCH(Dashboard_Basis!DG$2&Dashboard_Basis!DG$1&Dashboard_Basis!$A5&Auswahl_Bundesland,Basisdaten!$A:$A,0))) -> 13228 | DH5: =IF(ISERROR(INDEX(Spalte_GP,MATCH(Dashboard_Basis!DH$2&Dashboard_Basis!DH$1&Dashboard_Basis!$A5&Auswahl_Bundesland,Basisdaten!$A:$A,0))),"-",INDEX(Spalte_GP,MATCH(Dashboard_Basis!DH$2&Dashboard_Basis!DH$1&Dashboard_Basis!$A5&Auswahl_Bundesland,Basisdaten!$A:$A,0))) -> 13144 | DI5: =IF(ISERROR(INDEX(Spalte_GP,MATCH(Dashboard_Basis!DI$2&Dashboard_Basis!DI$1&Dashboard_Basis!$A5&Auswahl_Bundesland,Basisdaten!$A:$A,0))),"-",INDEX(Spalte_GP,MATCH(Dashboard_Basis!DI$2&Dashboard_Basis!DI$1&Dashboard_Basis!$A5&Auswahl_Bundesland,Basisdaten!$A:$A,0))) -> 13064 | DJ5: =IF(ISERROR(INDEX(Spalte_GP,MATCH(Dashboard_Basis!DJ$2&Dashboard_Basis!DJ$1&Dashboard_Basis!$A5&Auswahl_Bundesland,Basisdaten!$A:$A,0))),"-",INDEX(Spalte_GP,MATCH(Dashboard_Basis!DJ$2&Dashboard_Basis!DJ$1&Dashboard_Basis!$A5&Auswahl_Bundesland,Basisdaten!$A:$A,0))) -> 12668 | DK5: 12627.33333 | DL5: 13221.33333 | DM5: 13359.33333 | DN5: 12958.66667 | DO5: 12924.33333 | DP5: 13069.33333 | DQ5: 12280 | DR5: 13041.66667 | DS5: =IF(ISERROR(INDEX(Spalte_GP,MATCH(Dashboard_Basis!DS$2&Dashboard_Basis!DS$1&Dashboard_Basis!$A5&Auswahl_Bundesland,Basisdaten!$A:$A,0))),"-",INDEX(Spalte_GP,MATCH(Dashboard_Basis!DS$2&Dashboard_Basis!DS$1&Dashboard_Basis!$A5&Auswahl_Bundesland,Basisdaten!$A:$A,0))) -> 12330 | DT5: =IF(ISERROR(INDEX(Spalte_GP,MATCH(Dashboard_Basis!DT$2&Dashboard_Basis!DT$1&Dashboard_Basis!$A5&Auswahl_Bundesland,Basisdaten!$A:$A,0))),"-",INDEX(Spalte_GP,MATCH(Dashboard_Basis!DT$2&Dashboard_Basis!DT$1&Dashboard_Basis!$A5&Auswahl_Bundesland,Basisdaten!$A:$A,0))) -> 12552 | DU5: =IF(ISERROR(INDEX(Spalte_GP,MATCH(Dashboard_Basis!DU$2&Dashboard_Basis!DU$1&Dashboard_Basis!$A5&Auswahl_Bundesland,Basisdaten!$A:$A,0))),"-",INDEX(Spalte_GP,MATCH(Dashboard_Basis!DU$2&Dashboard_Basis!DU$1&Dashboard_Basis!$A5&Auswahl_Bundesland,Basisdaten!$A:$A,0))) -> 13013 | DV5: =IF(ISERROR(INDEX(Spalte_GP,MATCH(Dashboard_Basis!DV$2&Dashboard_Basis!DV$1&Dashboard_Basis!$A5&Auswahl_Bundesland,Basisdaten!$A:$A,0))),"-",INDEX(Spalte_GP,MATCH(Dashboard_Basis!DV$2&Dashboard_Basis!DV$1&Dashboard_Basis!$A5&Auswahl_Bundesland,Basisdaten!$A:$A,0))) -> 13184 | DW5: =IF(ISERROR(INDEX(Spalte_GP,MATCH(Dashboard_Basis!DW$2&Dashboard_Basis!DW$1&Dashboard_Basis!$A5&Auswahl_Bundesland,Basisdaten!$A:$A,0))),"-",INDEX(Spalte_GP,MATCH(Dashboard_Basis!DW$2&Dashboard_Basis!DW$1&Dashboard_Basis!$A5&Auswahl_Bundesland,Basisdaten!$A:$A,0))) -> 13261 | DX5: =IF(ISERROR(INDEX(Spalte_GP,MATCH(Dashboard_Basis!DX$2&Dashboard_Basis!DX$1&Dashboard_Basis!$A5&Auswahl_Bundesland,Basisdaten!$A:$A,0))),"-",INDEX(Spalte_GP,MATCH(Dashboard_Basis!DX$2&Dashboard_Basis!DX$1&Dashboard_Basis!$A5&Auswahl_Bundesland,Basisdaten!$A:$A,0))) -> 13247 | DY5: =IF(ISERROR(INDEX(Spalte_GP,MATCH(Dashboard_Basis!DY$2&Dashboard_Basis!DY$1&Dashboard_Basis!$A5&Auswahl_Bundesland,Basisdaten!$A:$A,0))),"-",INDEX(Spalte_GP,MATCH(Dashboard_Basis!DY$2&Dashboard_Basis!DY$1&Dashboard_Basis!$A5&Auswahl_Bundesland,Basisdaten!$A:$A,0))) -> 13574 | DZ5: =IF(ISERROR(INDEX(Spalte_GP,MATCH(Dashboard_Basis!DZ$2&Dashboard_Basis!DZ$1&Dashboard_Basis!$A5&Auswahl_Bundesland,Basisdaten!$A:$A,0))),"-",INDEX(Spalte_GP,MATCH(Dashboard_Basis!DZ$2&Dashboard_Basis!DZ$1&Dashboard_Basis!$A5&Auswahl_Bundesland,Basisdaten!$A:$A,0))) -> 13470 | EA5: =IF(ISERROR(INDEX(Spalte_GP,MATCH(Dashboard_Basis!EA$2&Dashboard_Basis!EA$1&Dashboard_Basis!$A5&Auswahl_Bundesland,Basisdaten!$A:$A,0))),"-",INDEX(Spalte_GP,MATCH(Dashboard_Basis!EA$2&Dashboard_Basis!EA$1&Dashboard_Basis!$A5&Auswahl_Bundesland,Basisdaten!$A:$A,0))) -> 13250 | EB5: =IF(ISERROR(INDEX(Spalte_GP,MATCH(Dashboard_Basis!EB$2&Dashboard_Basis!EB$1&Dashboard_Basis!$A5&Auswahl_Bundesland,Basisdaten!$A:$A,0))),"-",INDEX(Spalte_GP,MATCH(Dashboard_Basis!EB$2&Dashboard_Basis!EB$1&Dashboard_Basis!$A5&Auswahl_Bundesland,Basisdaten!$A:$A,0))) -> 13238 | EC5: =IF(ISERROR(INDEX(Spalte_GP,MATCH(Dashboard_Basis!EC$2&Dashboard_Basis!EC$1&Dashboard_Basis!$A5&Auswahl_Bundesland,Basisdaten!$A:$A,0))),"-",INDEX(Spalte_GP,MATCH(Dashboard_Basis!EC$2&Dashboard_Basis!EC$1&Dashboard_Basis!$A5&Auswahl_Bundesland,Basisdaten!$A:$A,0))) -> 13176 | ED5: =IF(ISERROR(INDEX(Spalte_GP,MATCH(Dashboard_Basis!ED$2&Dashboard_Basis!ED$1&Dashboard_Basis!$A5&Auswahl_Bundesland,Basisdaten!$A:$A,0))),"-",INDEX(Spalte_GP,MATCH(Dashboard_Basis!ED$2&Dashboard_Basis!ED$1&Dashboard_Basis!$A5&Auswahl_Bundesland,Basisdaten!$A:$A,0))) -> 12601 | EE5: 12631.66667 | EF5: 13230.66667 | EG5: 13431.33333 | EH5: 13005 | EI5: 12931.16667 | EJ5: 13097.88889 | EK5: 12330 | EL5: 13074.66667 | EM5: =IF(ISERROR(INDEX(Spalte_GP,MATCH(Dashboard_Basis!EM$2&Dashboard_Basis!EM$1&Dashboard_Basis!$A5&Auswahl_Bundesland,Basisdaten!$A:$A,0))),"-",INDEX(Spalte_GP,MATCH(Dashboard_Basis!EM$2&Dashboard_Basis!EM$1&Dashboard_Basis!$A5&Auswahl_Bundesland,Basisdaten!$A:$A,0))) -> 12289 | EN5: =IF(ISERROR(INDEX(Spalte_GP,MATCH(Dashboard_Basis!EN$2&Dashboard_Basis!EN$1&Dashboard_Basis!$A5&Auswahl_Bundesland,Basisdaten!$A:$A,0))),"-",INDEX(Spalte_GP,MATCH(Dashboard_Basis!EN$2&Dashboard_Basis!EN$1&Dashboard_Basis!$A5&Auswahl_Bundesland,Basisdaten!$A:$A,0))) -> 12576 | EO5: =IF(ISERROR(INDEX(Spalte_GP,MATCH(Dashboard_Basis!EO$2&Dashboard_Basis!EO$1&Dashboard_Basis!$A5&Auswahl_Bundesland,Basisdaten!$A:$A,0))),"-",INDEX(Spalte_GP,MATCH(Dashboard_Basis!EO$2&Dashboard_Basis!EO$1&Dashboard_Basis!$A5&Auswahl_Bundesland,Basisdaten!$A:$A,0))) -> 12837 | EP5: =IF(ISERROR(INDEX(Spalte_GP,MATCH(Dashboard_Basis!EP$2&Dashboard_Basis!EP$1&Dashboard_Basis!$A5&Auswahl_Bundesland,Basisdaten!$A:$A,0))),"-",INDEX(Spalte_GP,MATCH(Dashboard_Basis!EP$2&Dashboard_Basis!EP$1&Dashboard_Basis!$A5&Auswahl_Bundesland,Basisdaten!$A:$A,0))) -> 12973 | EQ5: =IF(ISERROR(INDEX(Spalte_GP,MATCH(Dashboard_Basis!EQ$2&Dashboard_Basis!EQ$1&Dashboard_Basis!$A5&Auswahl_Bundesland,Basisdaten!$A:$A,0))),"-",INDEX(Spalte_GP,MATCH(Dashboard_Basis!EQ$2&Dashboard_Basis!EQ$1&Dashboard_Basis!$A5&Auswahl_Bundesland,Basisdaten!$A:$A,0))) -> 12879 | ER5: =IF(ISERROR(INDEX(Spalte_GP,MATCH(Dashboard_Basis!ER$2&Dashboard_Basis!ER$1&Dashboard_Basis!$A5&Auswahl_Bundesland,Basisdaten!$A:$A,0))),"-",INDEX(Spalte_GP,MATCH(Dashboard_Basis!ER$2&Dashboard_Basis!ER$1&Dashboard_Basis!$A5&Auswahl_Bundesland,Basisdaten!$A:$A,0))) -> 12929 | ES5: =IF(ISERROR(INDEX(Spalte_GP,MATCH(Dashboard_Basis!ES$2&Dashboard_Basis!ES$1&Dashboard_Basis!$A5&Auswahl_Bundesland,Basisdaten!$A:$A,0))),"-",INDEX(Spalte_GP,MATCH(Dashboard_Basis!ES$2&Dashboard_Basis!ES$1&Dashboard_Basis!$A5&Auswahl_Bundesland,Basisdaten!$A:$A,0))) -> 13283 | ET5: =IF(ISERROR(INDEX(Spalte_GP,MATCH(Dashboard_Basis!ET$2&Dashboard_Basis!ET$1&Dashboard_Basis!$A5&Auswahl_Bundesland,Basisdaten!$A:$A,0))),"-",INDEX(Spalte_GP,MATCH(Dashboard_Basis!ET$2&Dashboard_Basis!ET$1&Dashboard_Basis!$A5&Auswahl_Bundesland,Basisdaten!$A:$A,0))) -> 13212 | EU5: =IF(ISERROR(INDEX(Spalte_GP,MATCH(Dashboard_Basis!EU$2&Dashboard_Basis!EU$1&Dashboard_Basis!$A5&Auswahl_Bundesland,Basisdaten!$A:$A,0))),"-",INDEX(Spalte_GP,MATCH(Dashboard_Basis!EU$2&Dashboard_Basis!EU$1&Dashboard_Basis!$A5&Auswahl_Bundesland,Basisdaten!$A:$A,0))) -> 13042 | EV5: =IF(ISERROR(INDEX(Spalte_GP,MATCH(Dashboard_Basis!EV$2&Dashboard_Basis!EV$1&Dashboard_Basis!$A5&Auswahl_Bundesland,Basisdaten!$A:$A,0))),"-",INDEX(Spalte_GP,MATCH(Dashboard_Basis!EV$2&Dashboard_Basis!EV$1&Dashboard_Basis!$A5&Auswahl_Bundesland,Basisdaten!$A:$A,0))) -> 13034 | EW5: =IF(ISERROR(INDEX(Spalte_GP,MATCH(Dashboard_Basis!EW$2&Dashboard_Basis!EW$1&Dashboard_Basis!$A5&Auswahl_Bundesland,Basisdaten!$A:$A,0))),"-",INDEX(Spalte_GP,MATCH(Dashboard_Basis!EW$2&Dashboard_Basis!EW$1&Dashboard_Basis!$A5&Auswahl_Bundesland,Basisdaten!$A:$A,0))) -> 12673 | EX5: =IF(ISERROR(INDEX(Spalte_GP,MATCH(Dashboard_Basis!EX$2&Dashboard_Basis!EX$1&Dashboard_Basis!$A5&Auswahl_Bundesland,Basisdaten!$A:$A,0))),"-",INDEX(Spalte_GP,MATCH(Dashboard_Basis!EX$2&Dashboard_Basis!EX$1&Dashboard_Basis!$A5&Auswahl_Bundesland,Basisdaten!$A:$A,0))) -> 12208 | EY5: 12567.33333 | EZ5: 12927 | FA5: 13179 | FB5: 12638.33333 | FC5: 12747.16667 | FD5: 12891.11111 | FE5: 12289 | FF5: 12827.91667 | FG5: =IF(ISERROR(INDEX(Spalte_GP,MATCH(Dashboard_Basis!FG$2&Dashboard_Basis!FG$1&Dashboard_Basis!$A5&Auswahl_Bundesland,Basisdaten!$A:$A,0))),"-",INDEX(Spalte_GP,MATCH(Dashboard_Basis!FG$2&Dashboard_Basis!FG$1&Dashboard_Basis!$A5&Auswahl_Bundesland,Basisdaten!$A:$A,0))) -> 12359 | FH5: =IF(ISERROR(INDEX(Spalte_GP,MATCH(Dashboard_Basis!FH$2&Dashboard_Basis!FH$1&Dashboard_Basis!$A5&Auswahl_Bundesland,Basisdaten!$A:$A,0))),"-",INDEX(Spalte_GP,MATCH(Dashboard_Basis!FH$2&Dashboard_Basis!FH$1&Dashboard_Basis!$A5&Auswahl_Bundesland,Basisdaten!$A:$A,0))) -> 12599 | FI5: =IF(ISERROR(INDEX(Spalte_GP,MATCH(Dashboard_Basis!FI$2&Dashboard_Basis!FI$1&Dashboard_Basis!$A5&Auswahl_Bundesland,Basisdaten!$A:$A,0))),"-",INDEX(Spalte_GP,MATCH(Dashboard_Basis!FI$2&Dashboard_Basis!FI$1&Dashboard_Basis!$A5&Auswahl_Bundesland,Basisdaten!$A:$A,0))) -> 12884 | FJ5: =IF(ISERROR(INDEX(Spalte_GP,MATCH(Dashboard_Basis!FJ$2&Dashboard_Basis!FJ$1&Dashboard_Basis!$A5&Auswahl_Bundesland,Basisdaten!$A:$A,0))),"-",INDEX(Spalte_GP,MATCH(Dashboard_Basis!FJ$2&Dashboard_Basis!FJ$1&Dashboard_Basis!$A5&Auswahl_Bundesland,Basisdaten!$A:$A,0))) -> 13070 | FK5: =IF(ISERROR(INDEX(Spalte_GP,MATCH(Dashboard_Basis!FK$2&Dashboard_Basis!FK$1&Dashboard_Basis!$A5&Auswahl_Bundesland,Basisdaten!$A:$A,0))),"-",INDEX(Spalte_GP,MATCH(Dashboard_Basis!FK$2&Dashboard_Basis!FK$1&Dashboard_Basis!$A5&Auswahl_Bundesland,Basisdaten!$A:$A,0))) -> 13022 | FL5: =IF(ISERROR(INDEX(Spalte_GP,MATCH(Dashboard_Basis!FL$2&Dashboard_Basis!FL$1&Dashboard_Basis!$A5&Auswahl_Bundesland,Basisdaten!$A:$A,0))),"-",INDEX(Spalte_GP,MATCH(Dashboard_Basis!FL$2&Dashboard_Basis!FL$1&Dashboard_Basis!$A5&Auswahl_Bundesland,Basisdaten!$A:$A,0))) -> 12988 | FM5: =IF(ISERROR(INDEX(Spalte_GP,MATCH(Dashboard_Basis!FM$2&Dashboard_Basis!FM$1&Dashboard_Basis!$A5&Auswahl_Bundesland,Basisdaten!$A:$A,0))),"-",INDEX(Spalte_GP,MATCH(Dashboard_Basis!FM$2&Dashboard_Basis!FM$1&Dashboard_Basis!$A5&Auswahl_Bundesland,Basisdaten!$A:$A,0))) -> 13336 | FN5: =IF(ISERROR(INDEX(Spalte_GP,MATCH(Dashboard_Basis!FN$2&Dashboard_Basis!FN$1&Dashboard_Basis!$A5&Auswahl_Bundesland,Basisdaten!$A:$A,0))),"-",INDEX(Spalte_GP,MATCH(Dashboard_Basis!FN$2&Dashboard_Basis!FN$1&Dashboard_Basis!$A5&Auswahl_Bundesland,Basisdaten!$A:$A,0))) -> 13099 | FO5: =IF(ISERROR(INDEX(Spalte_GP,MATCH(Dashboard_Basis!FO$2&Dashboard_Basis!FO$1&Dashboard_Basis!$A5&Auswahl_Bundesland,Basisdaten!$A:$A,0))),"-",INDEX(Spalte_GP,MATCH(Dashboard_Basis!FO$2&Dashboard_Basis!FO$1&Dashboard_Basis!$A5&Auswahl_Bundesland,Basisdaten!$A:$A,0))) -> 13014 | FP5: =IF(ISERROR(INDEX(Spalte_GP,MATCH(Dashboard_Basis!FP$2&Dashboard_Basis!FP$1&Dashboard_Basis!$A5&Auswahl_Bundesland,Basisdaten!$A:$A,0))),"-",INDEX(Spalte_GP,MATCH(Dashboard_Basis!FP$2&Dashboard_Basis!FP$1&Dashboard_Basis!$A5&Auswahl_Bundesland,Basisdaten!$A:$A,0))) -> 12906 | FQ5: =IF(ISERROR(INDEX(Spalte_GP,MATCH(Dashboard_Basis!FQ$2&Dashboard_Basis!FQ$1&Dashboard_Basis!$A5&Auswahl_Bundesland,Basisdaten!$A:$A,0))),"-",INDEX(Spalte_GP,MATCH(Dashboard_Basis!FQ$2&Dashboard_Basis!FQ$1&Dashboard_Basis!$A5&Auswahl_Bundesland,Basisdaten!$A:$A,0))) -> 12813 | FR5: =IF(ISERROR(INDEX(Spalte_GP,MATCH(Dashboard_Basis!FR$2&Dashboard_Basis!FR$1&Dashboard_Basis!$A5&Auswahl_Bundesland,Basisdaten!$A:$A,0))),"-",INDEX(Spalte_GP,MATCH(Dashboard_Basis!FR$2&Dashboard_Basis!FR$1&Dashboard_Basis!$A5&Auswahl_Bundesland,Basisdaten!$A:$A,0))) -> 12355 | FS5: 12614 | FT5: 13026.66667 | FU5: 13149.66667 | FV5: 12691.33333 | FW5: 12820.33333 | FX5: 12930.11111 | FY5: 12359 | FZ5: 12870.41667 | GA5: =IF(ISERROR(INDEX(Spalte_GP,MATCH(Dashboard_Basis!GA$2&Dashboard_Basis!GA$1&Dashboard_Basis!$A5&Auswahl_Bundesland,Basisdaten!$A:$A,0))),"-",INDEX(Spalte_GP,MATCH(Dashboard_Basis!GA$2&Dashboard_Basis!GA$1&Dashboard_Basis!$A5&Auswahl_Bundesland,Basisdaten!$A:$A,0))) -> 12315 | GB5: =IF(ISERROR(INDEX(Spalte_GP,MATCH(Dashboard_Basis!GB$2&Dashboard_Basis!GB$1&Dashboard_Basis!$A5&Auswahl_Bundesland,Basisdaten!$A:$A,0))),"-",INDEX(Spalte_GP,MATCH(Dashboard_Basis!GB$2&Dashboard_Basis!GB$1&Dashboard_Basis!$A5&Auswahl_Bundesland,Basisdaten!$A:$A,0))) -> 12487 | GC5: =IF(ISERROR(INDEX(Spalte_GP,MATCH(Dashboard_Basis!GC$2&Dashboard_Basis!GC$1&Dashboard_Basis!$A5&Auswahl_Bundesland,Basisdaten!$A:$A,0))),"-",INDEX(Spalte_GP,MATCH(Dashboard_Basis!GC$2&Dashboard_Basis!GC$1&Dashboard_Basis!$A5&Auswahl_Bundesland,Basisdaten!$A:$A,0))) -> 12594 | GD5: =IF(ISERROR(INDEX(Spalte_GP,MATCH(Dashboard_Basis!GD$2&Dashboard_Basis!GD$1&Dashboard_Basis!$A5&Auswahl_Bundesland,Basisdaten!$A:$A,0))),"-",INDEX(Spalte_GP,MATCH(Dashboard_Basis!GD$2&Dashboard_Basis!GD$1&Dashboard_Basis!$A5&Auswahl_Bundesland,Basisdaten!$A:$A,0))) -> 12579 | GE5: =IF(ISERROR(INDEX(Spalte_GP,MATCH(Dashboard_Basis!GE$2&Dashboard_Basis!GE$1&Dashboard_Basis!$A5&Auswahl_Bundesland,Basisdaten!$A:$A,0))),"-",INDEX(Spalte_GP,MATCH(Dashboard_Basis!GE$2&Dashboard_Basis!GE$1&Dashboard_Basis!$A5&Auswahl_Bundesland,Basisdaten!$A:$A,0))) -> 12592 | GF5: =IF(ISERROR(INDEX(Spalte_GP,MATCH(Dashboard_Basis!GF$2&Dashboard_Basis!GF$1&Dashboard_Basis!$A5&Auswahl_Bundesland,Basisdaten!$A:$A,0))),"-",INDEX(Spalte_GP,MATCH(Dashboard_Basis!GF$2&Dashboard_Basis!GF$1&Dashboard_Basis!$A5&Auswahl_Bundesland,Basisdaten!$A:$A,0))) -> 12691 | GG5: =IF(ISERROR(INDEX(Spalte_GP,MATCH(Dashboard_Basis!GG$2&Dashboard_Basis!GG$1&Dashboard_Basis!$A5&Auswahl_Bundesland,Basisdaten!$A:$A,0))),"-",INDEX(Spalte_GP,MATCH(Dashboard_Basis!GG$2&Dashboard_Basis!GG$1&Dashboard_Basis!$A5&Auswahl_Bundesland,Basisdaten!$A:$A,0))) -> 12896 | GH5: =IF(ISERROR(INDEX(Spalte_GP,MATCH(Dashboard_Basis!GH$2&Dashboard_Basis!GH$1&Dashboard_Basis!$A5&Auswahl_Bundesland,Basisdaten!$A:$A,0))),"-",INDEX(Spalte_GP,MATCH(Dashboard_Basis!GH$2&Dashboard_Basis!GH$1&Dashboard_Basis!$A5&Auswahl_Bundesland,Basisdaten!$A:$A,0))) -> 12824 | GI5: =IF(ISERROR(INDEX(Spalte_GP,MATCH(Dashboard_Basis!GI$2&Dashboard_Basis!GI$1&Dashboard_Basis!$A5&Auswahl_Bundesland,Basisdaten!$A:$A,0))),"-",INDEX(Spalte_GP,MATCH(Dashboard_Basis!GI$2&Dashboard_Basis!GI$1&Dashboard_Basis!$A5&Auswahl_Bundesland,Basisdaten!$A:$A,0))) -> 12795 | GJ5: =IF(ISERROR(INDEX(Spalte_GP,MATCH(Dashboard_Basis!GJ$2&Dashboard_Basis!GJ$1&Dashboard_Basis!$A5&Auswahl_Bundesland,Basisdaten!$A:$A,0))),"-",INDEX(Spalte_GP,MATCH(Dashboard_Basis!GJ$2&Dashboard_Basis!GJ$1&Dashboard_Basis!$A5&Auswahl_Bundesland,Basisdaten!$A:$A,0))) -> 12771 | GK5: =IF(ISERROR(INDEX(Spalte_GP,MATCH(Dashboard_Basis!GK$2&Dashboard_Basis!GK$1&Dashboard_Basis!$A5&Auswahl_Bundesland,Basisdaten!$A:$A,0))),"-",INDEX(Spalte_GP,MATCH(Dashboard_Basis!GK$2&Dashboard_Basis!GK$1&Dashboard_Basis!$A5&Auswahl_Bundesland,Basisdaten!$A:$A,0))) -> 12742 | GL5: =IF(ISERROR(INDEX(Spalte_GP,MATCH(Dashboard_Basis!GL$2&Dashboard_Basis!GL$1&Dashboard_Basis!$A5&Auswahl_Bundesland,Basisdaten!$A:$A,0))),"-",INDEX(Spalte_GP,MATCH(Dashboard_Basis!GL$2&Dashboard_Basis!GL$1&Dashboard_Basis!$A5&Auswahl_Bundesland,Basisdaten!$A:$A,0))) -> 12317 | GM5: 12465.33333 | GN5: 12620.66667 | GO5: 12838.33333 | GP5: 12610 | GQ5: 12543 | GR5: 12641.44444 | GS5: 12315 | GT5: 12633.58333 | GU5: =IF(ISERROR(INDEX(Spalte_GP,MATCH(Dashboard_Basis!GU$2&Dashboard_Basis!GU$1&Dashboard_Basis!$A5&Auswahl_Bundesland,Basisdaten!$A:$A,0))),"-",INDEX(Spalte_GP,MATCH(Dashboard_Basis!GU$2&Dashboard_Basis!GU$1&Dashboard_Basis!$A5&Auswahl_Bundesland,Basisdaten!$A:$A,0))) -> 12194 | GV5: =IF(ISERROR(INDEX(Spalte_GP,MATCH(Dashboard_Basis!GV$2&Dashboard_Basis!GV$1&Dashboard_Basis!$A5&Auswahl_Bundesland,Basisdaten!$A:$A,0))),"-",INDEX(Spalte_GP,MATCH(Dashboard_Basis!GV$2&Dashboard_Basis!GV$1&Dashboard_Basis!$A5&Auswahl_Bundesland,Basisdaten!$A:$A,0))) -> 12374 | GW5: =IF(ISERROR(INDEX(Spalte_GP,MATCH(Dashboard_Basis!GW$2&Dashboard_Basis!GW$1&Dashboard_Basis!$A5&Auswahl_Bundesland,Basisdaten!$A:$A,0))),"-",INDEX(Spalte_GP,MATCH(Dashboard_Basis!GW$2&Dashboard_Basis!GW$1&Dashboard_Basis!$A5&Auswahl_Bundesland,Basisdaten!$A:$A,0))) -> 12737 | GX5: =IF(ISERROR(INDEX(Spalte_GP,MATCH(Dashboard_Basis!GX$2&Dashboard_Basis!GX$1&Dashboard_Basis!$A5&Auswahl_Bundesland,Basisdaten!$A:$A,0))),"-",INDEX(Spalte_GP,MATCH(Dashboard_Basis!GX$2&Dashboard_Basis!GX$1&Dashboard_Basis!$A5&Auswahl_Bundesland,Basisdaten!$A:$A,0))) -> 12813 | GY5: =IF(ISERROR(INDEX(Spalte_GP,MATCH(Dashboard_Basis!GY$2&Dashboard_Basis!GY$1&Dashboard_Basis!$A5&Auswahl_Bundesland,Basisdaten!$A:$A,0))),"-",INDEX(Spalte_GP,MATCH(Dashboard_Basis!GY$2&Dashboard_Basis!GY$1&Dashboard_Basis!$A5&Auswahl_Bundesland,Basisdaten!$A:$A,0))) -> 12886 | GZ5: =IF(ISERROR(INDEX(Spalte_GP,MATCH(Dashboard_Basis!GZ$2&Dashboard_Basis!GZ$1&Dashboard_Basis!$A5&Auswahl_Bundesland,Basisdaten!$A:$A,0))),"-",INDEX(Spalte_GP,MATCH(Dashboard_Basis!GZ$2&Dashboard_Basis!GZ$1&Dashboard_Basis!$A5&Auswahl_Bundesland,Basisdaten!$A:$A,0))) -> 12978 | HA5: =IF(ISERROR(INDEX(Spalte_GP,MATCH(Dashboard_Basis!HA$2&Dashboard_Basis!HA$1&Dashboard_Basis!$A5&Auswahl_Bundesland,Basisdaten!$A:$A,0))),"-",INDEX(Spalte_GP,MATCH(Dashboard_Basis!HA$2&Dashboard_Basis!HA$1&Dashboard_Basis!$A5&Auswahl_Bundesland,Basisdaten!$A:$A,0))) -> 13236 | HB5: =IF(ISERROR(INDEX(Spalte_GP,MATCH(Dashboard_Basis!HB$2&Dashboard_Basis!HB$1&Dashboard_Basis!$A5&Auswahl_Bundesland,Basisdaten!$A:$A,0))),"-",INDEX(Spalte_GP,MATCH(Dashboard_Basis!HB$2&Dashboard_Basis!HB$1&Dashboard_Basis!$A5&Auswahl_Bundesland,Basisdaten!$A:$A,0))) -> 13183 | HC5: =IF(ISERROR(INDEX(Spalte_GP,MATCH(Dashboard_Basis!HC$2&Dashboard_Basis!HC$1&Dashboard_Basis!$A5&Auswahl_Bundesland,Basisdaten!$A:$A,0))),"-",INDEX(Spalte_GP,MATCH(Dashboard_Basis!HC$2&Dashboard_Basis!HC$1&Dashboard_Basis!$A5&Auswahl_Bundesland,Basisdaten!$A:$A,0))) -> 13144 | HD5: =IF(ISERROR(INDEX(Spalte_GP,MATCH(Dashboard_Basis!HD$2&Dashboard_Basis!HD$1&Dashboard_Basis!$A5&Auswahl_Bundesland,Basisdaten!$A:$A,0))),"-",INDEX(Spalte_GP,MATCH(Dashboard_Basis!HD$2&Dashboard_Basis!HD$1&Dashboard_Basis!$A5&Auswahl_Bundesland,Basisdaten!$A:$A,0))) -> 13046 | HE5: =IF(ISERROR(INDEX(Spalte_GP,MATCH(Dashboard_Basis!HE$2&Dashboard_Basis!HE$1&Dashboard_Basis!$A5&Auswahl_Bundesland,Basisdaten!$A:$A,0))),"-",INDEX(Spalte_GP,MATCH(Dashboard_Basis!HE$2&Dashboard_Basis!HE$1&Dashboard_Basis!$A5&Auswahl_Bundesland,Basisdaten!$A:$A,0))) -> 13050 | HF5: =IF(ISERROR(INDEX(Spalte_GP,MATCH(Dashboard_Basis!HF$2&Dashboard_Basis!HF$1&Dashboard_Basis!$A5&Auswahl_Bundesland,Basisdaten!$A:$A,0))),"-",INDEX(Spalte_GP,MATCH(Dashboard_Basis!HF$2&Dashboard_Basis!HF$1&Dashboard_Basis!$A5&Auswahl_Bundesland,Basisdaten!$A:$A,0))) -> 12580 | HG5: 12435 | HH5: 12892.33333 | HI5: 13187.66667 | HJ5: 12892 | HK5: 12663.66667 | HL5: 12838.33333 | HM5: 12194 | HN5: 12851.75 | HO5: =IF(ISERROR(INDEX(Spalte_GP,MATCH(Dashboard_Basis!HO$2&Dashboard_Basis!HO$1&Dashboard_Basis!$A5&Auswahl_Bundesland,Basisdaten!$A:$A,0))),"-",INDEX(Spalte_GP,MATCH(Dashboard_Basis!HO$2&Dashboard_Basis!HO$1&Dashboard_Basis!$A5&Auswahl_Bundesland,Basisdaten!$A:$A,0))) -> 12507 | HP5: =IF(ISERROR(INDEX(Spalte_GP,MATCH(Dashboard_Basis!HP$2&Dashboard_Basis!HP$1&Dashboard_Basis!$A5&Auswahl_Bundesland,Basisdaten!$A:$A,0))),"-",INDEX(Spalte_GP,MATCH(Dashboard_Basis!HP$2&Dashboard_Basis!HP$1&Dashboard_Basis!$A5&Auswahl_Bundesland,Basisdaten!$A:$A,0))) -> 12790 | HQ5: =IF(ISERROR(INDEX(Spalte_GP,MATCH(Dashboard_Basis!HQ$2&Dashboard_Basis!HQ$1&Dashboard_Basis!$A5&Auswahl_Bundesland,Basisdaten!$A:$A,0))),"-",INDEX(Spalte_GP,MATCH(Dashboard_Basis!HQ$2&Dashboard_Basis!HQ$1&Dashboard_Basis!$A5&Auswahl_Bundesland,Basisdaten!$A:$A,0))) -> 12921 | HR5: =IF(ISERROR(INDEX(Spalte_GP,MATCH(Dashboard_Basis!HR$2&Dashboard_Basis!HR$1&Dashboard_Basis!$A5&Auswahl_Bundesland,Basisdaten!$A:$A,0))),"-",INDEX(Spalte_GP,MATCH(Dashboard_Basis!HR$2&Dashboard_Basis!HR$1&Dashboard_Basis!$A5&Auswahl_Bundesland,Basisdaten!$A:$A,0))) -> 13144 | HS5: =IF(ISERROR(INDEX(Spalte_GP,MATCH(Dashboard_Basis!HS$2&Dashboard_Basis!HS$1&Dashboard_Basis!$A5&Auswahl_Bundesland,Basisdaten!$A:$A,0))),"-",INDEX(Spalte_GP,MATCH(Dashboard_Basis!HS$2&Dashboard_Basis!HS$1&Dashboard_Basis!$A5&Auswahl_Bundesland,Basisdaten!$A:$A,0))) -> 13175 | HT5: =IF(ISERROR(INDEX(Spalte_GP,MATCH(Dashboard_Basis!HT$2&Dashboard_Basis!HT$1&Dashboard_Basis!$A5&Auswahl_Bundesland,Basisdaten!$A:$A,0))),"-",INDEX(Spalte_GP,MATCH(Dashboard_Basis!HT$2&Dashboard_Basis!HT$1&Dashboard_Basis!$A5&Auswahl_Bundesland,Basisdaten!$A:$A,0))) -> 13169 | HU5: =IF(ISERROR(INDEX(Spalte_GP,MATCH(Dashboard_Basis!HU$2&Dashboard_Basis!HU$1&Dashboard_Basis!$A5&Auswahl_Bundesland,Basisdaten!$A:$A,0))),"-",INDEX(Spalte_GP,MATCH(Dashboard_Basis!HU$2&Dashboard_Basis!HU$1&Dashboard_Basis!$A5&Auswahl_Bundesland,Basisdaten!$A:$A,0))) -> 13352 | HV5: =IF(ISERROR(INDEX(Spalte_GP,MATCH(Dashboard_Basis!HV$2&Dashboard_Basis!HV$1&Dashboard_Basis!$A5&Auswahl_Bundesland,Basisdaten!$A:$A,0))),"-",INDEX(Spalte_GP,MATCH(Dashboard_Basis!HV$2&Dashboard_Basis!HV$1&Dashboard_Basis!$A5&Auswahl_Bundesland,Basisdaten!$A:$A,0))) -> 13344 | HW5: =IF(ISERROR(INDEX(Spalte_GP,MATCH(Dashboard_Basis!HW$2&Dashboard_Basis!HW$1&Dashboard_Basis!$A5&Auswahl_Bundesland,Basisdaten!$A:$A,0))),"-",INDEX(Spalte_GP,MATCH(Dashboard_Basis!HW$2&Dashboard_Basis!HW$1&Dashboard_Basis!$A5&Auswahl_Bundesland,Basisdaten!$A:$A,0))) -> 13247 | HX5: =IF(ISERROR(INDEX(Spalte_GP,MATCH(Dashboard_Basis!HX$2&Dashboard_Basis!HX$1&Dashboard_Basis!$A5&Auswahl_Bundesland,Basisdaten!$A:$A,0))),"-",INDEX(Spalte_GP,MATCH(Dashboard_Basis!HX$2&Dashboard_Basis!HX$1&Dashboard_Basis!$A5&Auswahl_Bundesland,Basisdaten!$A:$A,0))) -> - | HY5: =IF(ISERROR(INDEX(Spalte_GP,MATCH(Dashboard_Basis!HY$2&Dashboard_Basis!HY$1&Dashboard_Basis!$A5&Auswahl_Bundesland,Basisdaten!$A:$A,0))),"-",INDEX(Spalte_GP,MATCH(Dashboard_Basis!HY$2&Dashboard_Basis!HY$1&Dashboard_Basis!$A5&Auswahl_Bundesland,Basisdaten!$A:$A,0))) -> - | HZ5: =IF(ISERROR(INDEX(Spalte_GP,MATCH(Dashboard_Basis!HZ$2&Dashboard_Basis!HZ$1&Dashboard_Basis!$A5&Auswahl_Bundesland,Basisdaten!$A:$A,0))),"-",INDEX(Spalte_GP,MATCH(Dashboard_Basis!HZ$2&Dashboard_Basis!HZ$1&Dashboard_Basis!$A5&Auswahl_Bundesland,Basisdaten!$A:$A,0))) -> - | IA5: 12739.33333 | IB5: 13162.66667 | IC5: 13314.33333 | ID5: - | IE5: 12951 | IF5: 13072.11111 | IG5: 12507 | IH5: - | II5: =IF(ISERROR(INDEX(Spalte_GP,MATCH(Dashboard_Basis!II$2&Dashboard_Basis!II$1&Dashboard_Basis!$A5&Auswahl_Bundesland,Basisdaten!$A:$A,0))),"-",INDEX(Spalte_GP,MATCH(Dashboard_Basis!II$2&Dashboard_Basis!II$1&Dashboard_Basis!$A5&Auswahl_Bundesland,Basisdaten!$A:$A,0))) -> - | IJ5: =IF(ISERROR(INDEX(Spalte_GP,MATCH(Dashboard_Basis!IJ$2&Dashboard_Basis!IJ$1&Dashboard_Basis!$A5&Auswahl_Bundesland,Basisdaten!$A:$A,0))),"-",INDEX(Spalte_GP,MATCH(Dashboard_Basis!IJ$2&Dashboard_Basis!IJ$1&Dashboard_Basis!$A5&Auswahl_Bundesland,Basisdaten!$A:$A,0))) -> - | IK5: =IF(ISERROR(INDEX(Spalte_GP,MATCH(Dashboard_Basis!IK$2&Dashboard_Basis!IK$1&Dashboard_Basis!$A5&Auswahl_Bundesland,Basisdaten!$A:$A,0))),"-",INDEX(Spalte_GP,MATCH(Dashboard_Basis!IK$2&Dashboard_Basis!IK$1&Dashboard_Basis!$A5&Auswahl_Bundesland,Basisdaten!$A:$A,0))) -> - | IL5: =IF(ISERROR(INDEX(Spalte_GP,MATCH(Dashboard_Basis!IL$2&Dashboard_Basis!IL$1&Dashboard_Basis!$A5&Auswahl_Bundesland,Basisdaten!$A:$A,0))),"-",INDEX(Spalte_GP,MATCH(Dashboard_Basis!IL$2&Dashboard_Basis!IL$1&Dashboard_Basis!$A5&Auswahl_Bundesland,Basisdaten!$A:$A,0))) -> - | IM5: =IF(ISERROR(INDEX(Spalte_GP,MATCH(Dashboard_Basis!IM$2&Dashboard_Basis!IM$1&Dashboard_Basis!$A5&Auswahl_Bundesland,Basisdaten!$A:$A,0))),"-",INDEX(Spalte_GP,MATCH(Dashboard_Basis!IM$2&Dashboard_Basis!IM$1&Dashboard_Basis!$A5&Auswahl_Bundesland,Basisdaten!$A:$A,0))) -> - | IN5: =IF(ISERROR(INDEX(Spalte_GP,MATCH(Dashboard_Basis!IN$2&Dashboard_Basis!IN$1&Dashboard_Basis!$A5&Auswahl_Bundesland,Basisdaten!$A:$A,0))),"-",INDEX(Spalte_GP,MATCH(Dashboard_Basis!IN$2&Dashboard_Basis!IN$1&Dashboard_Basis!$A5&Auswahl_Bundesland,Basisdaten!$A:$A,0))) -> - | IO5: =IF(ISERROR(INDEX(Spalte_GP,MATCH(Dashboard_Basis!IO$2&Dashboard_Basis!IO$1&Dashboard_Basis!$A5&Auswahl_Bundesland,Basisdaten!$A:$A,0))),"-",INDEX(Spalte_GP,MATCH(Dashboard_Basis!IO$2&Dashboard_Basis!IO$1&Dashboard_Basis!$A5&Auswahl_Bundesland,Basisdaten!$A:$A,0))) -> - | IP5: =IF(ISERROR(INDEX(Spalte_GP,MATCH(Dashboard_Basis!IP$2&Dashboard_Basis!IP$1&Dashboard_Basis!$A5&Auswahl_Bundesland,Basisdaten!$A:$A,0))),"-",INDEX(Spalte_GP,MATCH(Dashboard_Basis!IP$2&Dashboard_Basis!IP$1&Dashboard_Basis!$A5&Auswahl_Bundesland,Basisdaten!$A:$A,0))) -> - | IQ5: =IF(ISERROR(INDEX(Spalte_GP,MATCH(Dashboard_Basis!IQ$2&Dashboard_Basis!IQ$1&Dashboard_Basis!$A5&Auswahl_Bundesland,Basisdaten!$A:$A,0))),"-",INDEX(Spalte_GP,MATCH(Dashboard_Basis!IQ$2&Dashboard_Basis!IQ$1&Dashboard_Basis!$A5&Auswahl_Bundesland,Basisdaten!$A:$A,0))) -> - | IR5: =IF(ISERROR(INDEX(Spalte_GP,MATCH(Dashboard_Basis!IR$2&Dashboard_Basis!IR$1&Dashboard_Basis!$A5&Auswahl_Bundesland,Basisdaten!$A:$A,0))),"-",INDEX(Spalte_GP,MATCH(Dashboard_Basis!IR$2&Dashboard_Basis!IR$1&Dashboard_Basis!$A5&Auswahl_Bundesland,Basisdaten!$A:$A,0))) -> - | IS5: =IF(ISERROR(INDEX(Spalte_GP,MATCH(Dashboard_Basis!IS$2&Dashboard_Basis!IS$1&Dashboard_Basis!$A5&Auswahl_Bundesland,Basisdaten!$A:$A,0))),"-",INDEX(Spalte_GP,MATCH(Dashboard_Basis!IS$2&Dashboard_Basis!IS$1&Dashboard_Basis!$A5&Auswahl_Bundesland,Basisdaten!$A:$A,0))) -> - | IT5: =IF(ISERROR(INDEX(Spalte_GP,MATCH(Dashboard_Basis!IT$2&Dashboard_Basis!IT$1&Dashboard_Basis!$A5&Auswahl_Bundesland,Basisdaten!$A:$A,0))),"-",INDEX(Spalte_GP,MATCH(Dashboard_Basis!IT$2&Dashboard_Basis!IT$1&Dashboard_Basis!$A5&Auswahl_Bundesland,Basisdaten!$A:$A,0))) -> - | IU5: - | IV5: - | IW5: - | IX5: - | IY5: - | IZ5: - | JA5: =IF(COUNT(OFFSET(II5,,,,Anzahl_Monate))=Anzahl_Monate,SUM(OFFSET(II5,,,,Anzahl_Monate))/Anzahl_Monate,"-") -> - | JB5: -
